Workbook

Sheet Instructions
A1: =CONCATENATE("Version: ",'Complete This Page'!J1) -> Version: NPAC v2024.0
C2: Regional Income Tax Agency
C3: Net Profits
C4: Auto-Calculating Form 27
B6: Disclaimer
B7: This worksheet is intended as an aid for tax preparation. The form will be useful in many situations but it does not apply to all possible filing scenarios. Form restrictions are listed below. Please scroll down and review them.
B9: Under no circumstance does the use of this worksheet exempt the return from RITA audit processes nor does this form excuse any penalties and interest that may result from the underpayment of the actual taxes due.
B11: Who May Use This Form
B12: RITA Form 27 is used by corporations (including S corporations), estates, limited liability companies, partnerships, and trusts to report net profit (or loss) and to pay the tax due as a result of profits earned while conducting business in one or more RITA municipalities. Form restrictions are listed below. Please scroll down and review them.
A14: òContinueò | B14: Rounding Off to Whole Dollars
B15: When using the auto-calc all amounts must be rounded. To round, drop amounts under 50 cents and increase amounts 50 cents or greater to the next dollar.
B17: Restrictions
B18: Do not use this worksheet if any of the following apply as the auto-calc will produce incorrect results.
B19: ● | C19: The business is a disregarded entity filing for federal purposes on Schedule C or E (Form 1040).
A20: òContinueò | B20: ● | C20: The business is a regulated investment company.
B21: ● | C21: The business needs to allocate income to more than five RITA municipalities.
B22: ● | C22: The federal return reports income or loss from a like-kind exchange.
B23: ● | C23: The federal return reports income or loss from an installment sale.
B24: ● | C24: The federal return reports flow-through capital gains and/or losses from a partnership.
B25: ● | C25: The business is a partnership with more than five (5) partners.
A26: òContinueò | B26: ● | C26: The business is a non-C corporation that paid a single employee in excess of $1 million in compensation.
B27: ● | C27: The federal return reports a capital loss carryback.
B28: ● | C28: The business is claiming a municipal net operating loss generated more than five (5) tax years ago.
B29: ● | C29: The business is filing for multiple municipalities and utilizing different net operating loss amounts for each municipality.
B30: ● | C30: The business is using an alternate method for allocating income.
B31: ● | C31: The business is a non-C corporation that could claim a deduction for charitable contributions and one or more of the following apply:
A32: òContinueò | C32: Ø The business claimed a IRC 249 deduction related to the cost of borrowing to repurchase bonds it issued.
C33: Ø If the business was a C corporation, it would have claimed a domestic production activities deduction.
B35: Do not use this worksheet if any of the following apply as the auto-calc may produce incorrect results.
B36: ● | C36: The business is filing a consolidated return. This worksheet was not designed to support consolidated returns.
A37: òContinueò | B37: ● | C37: The business is filing a return for a tax year beginning prior to January 1, 2023.
B38: ● | C38: The business is filing a return for a tax year beginning after December 31, 2023.
B39: ● | C39: The business is reporting a profit to a municipality whose rate changed during the business's tax year.
B40: ● | C40: The business is filing a short-year return.
B41: ● | C41: The business is a partnership that has made a section 754 election.
B43: How to Use This Form
B44: Preparers should enter information in the blue boxes on the "Complete This Page" tab and, if applicable, the "Form 8903" tab. When finished, print the "Print Return" worksheet, the "Print Schedules" worksheet, and if applicable, the "Form 8903" worksheet. Review the return for accuracy, have the taxpayer sign the return, and then mail the return, schedules, and a copy of the taxpayer's federal return to the address shown on page 4 of the Form 27. If payment is due, make the check or money order payable to RITA and include it with the return.
B46: The tab labeled "Form 8903" has been provided for taxpayers that are not C corporations that are claiming an domestic production activities deduction (DPAD) on Schedule X.
B48: Instructions for Form 27 and the answers to frequently asked questions regarding the net profits tax are available on-line at www.ritaohio.com.
B52: End of Instructions

Sheet Complete This Page
J1: NPAC v2024.0
B2: Company | G2: Federal EIN
B4: Street # | C4: Street Name | E4: Suite # | G4: Business Activity Code
B6: City | D6: State | E6: Zip | G6: Business Activity Description
B9: Business Type for Federal Filing Purposes | G9: Calendar | H9: Or Fiscal Tax Year
G10: Tax Year | H10: Beginning | J10: Ending
G12: =IF(AND(G11="",H11="",J11=""), "",IF(AND(G11<>"",G11<2023),"Calendar Year cannot be earlier than 2023.", "")) -> 
G13: =IF(AND(H11="",J11<>""),Data!C286,IF(AND(H11<>"",J11=""),Data!C287,IF(AND(H11<>"",H11<Data!B282),Data!C282,IF(AND(J11<>"",J11>Data!B283), Data!C283,IF((J11-H11)>372,Data!C284,IF((J11-H11)<0,Data!C285,"")))))) -> 
B14: =Data!B20 -> No federal filing Business Type selected.
B15: Municipalities (You must choose at least one) | E15: Warnings: | I15: Credit Carryover
E16: =IF(Data!F262<>"",Data!F262,Data!E33) ->  | L16: ='Tax Rate Calc'!$N7 -> 
E17: =IF(Data!F263<>"",Data!F263,Data!E34) ->  | L17: ='Tax Rate Calc'!$N8 -> 
E18: =IF(Data!F264<>"",Data!F264,Data!E35) ->  | I18: Estimated Tax Pymts | L18: ='Tax Rate Calc'!$N9 -> 
E19: =IF(Data!F265<>"",Data!F265,Data!E36) ->  | L19: ='Tax Rate Calc'!$N10 -> 
E20: =IF(Data!F266<>"",Data!F266,Data!E37) ->  | I20: =IF(Data!B22=TRUE,"Include pymts made with original return","") ->  | L20: ='Tax Rate Calc'!$N11 -> 
B22: General Questions
B23: Please check the appropriate boxes and indicate the taxpayer's phone number:
F26: Taxpayer's Phone:
C28: Check this box if your federal return claimed a deduction for salaries and wages.
C29: Check this box if electing to apportion income based on the guidelines in ORC 718.021 and will be situsing any payroll, property or sales from a qualifying remote employee or owner at the individual’s qualifying remote work location to that individual’s qualifying reporting location.
C30: Check this box if you are a small employer [total receipts, gains, intangible income, reimbursements, etc. < $500,000].
C32: =IF(Data!A47="","Skip this question.",Data!E45) -> Skip this question.
C34: Check if Paid Preparer | F34: Firm Name:
C35: (leave preparer info blank if not using a paid preparer) | F35: Address:
C36: Preparer's Phone Number:
B40: Municipal Income Tax Computation Worksheet
B41: Part I | C41: Information From Federal Return: All Taxpayers
B42: Income before net operating losses & special deductions | F42: =References!C258 -> No guidance available | H42: 1
B43: Interest income | F43: =References!C260 -> No guidance available | H43: =+H42+1 -> 2
B44: Dividend income | F44: =References!C261 -> No guidance available | H44: =+H43+1 -> 3
B45: Royalty income on intangible property | F45: =References!C262 -> No guidance available | H45: 4
B46: Ordinary income/(losses) from pass-thru entities | F46: =References!C263 -> No guidance available | H46: 5
B47: Taxes on or measured by net income | F47: =References!C270 -> No guidance available | H47: 6
B48: Net short-term capital gain (loss) (attach Sched D) | F48: =References!C279 -> No guidance available | H48: 7
B49: Net long-term capital gain (loss) (attach Sched D) | F49: =References!C280 -> No guidance available | H49: 8
B50: Net section 1231 gain (loss) (attach Form 4797) | F50: =References!C281 -> No guidance available | H50: 9
B51: =IF(AND(OR(I48<0,I49<0,I50<0),Data!F9=TRUE),"Caution: Only report the amount of Schedule D and Form 4797, Ln 7 losses that were included in calculating Form 1120, Pg 1, Ln 28.","") -> 
B52: Part II | C52: Taxpayers Not Filing as C-Corporations | F52: =IF(AND(Data!F9=TRUE,Data!B17=1),"Skip:","") ->  | G52: =IF(F52="Skip:","Taxpayer is filing as a C-Corporation","") -> 
B53: Section 179 expense deduction (current year) | F53: =References!C282 -> No guidance available | H53: =+H50+1 -> 10
B54: =CONCATENATE("Carryover of disallowed section 179 deduction to ",IF(G11="",YEAR(H11)+1,G11+1)) -> Carryover of disallowed section 179 deduction to 1901 | F54: =References!C283 -> No guidance available | H54: =+H53+1 -> 11
B55: Charitable contributions | F55: =References!C284 -> No guidance available | H55: 12
B56: Qualified self-employed retirement plan for owners | F56: =References!C285 -> No guidance available | H56: 13
B57: Health insurance paid or accrued for owners | F57: =References!C286 -> No guidance available | H57: 14
B58: Life insurance paid or accrued for owners | F58: =References!C287 -> No guidance available | H58: 15
B59: Expensed pymts to partners not treated as guaranteed pymts | F59: Various | H59: 16
B60: Depreciation allowed or allowable on §1250 property | F60: =References!C288 -> No guidance available | H60: 17
B61: Total gain on §1250 property | F61: =References!C289 -> No guidance available | H61: 18
B62: Enter the smaller of line 16 or 17 | H62: 19 | I62: =IF(I60<I61,I60,I61) -> 0
B63: Gain on §1250 property treated as ordinary income | F63: =References!C291 -> No guidance available | H63: 20
B64: Domestic Prodution Activities Deduction (attach 8903) | F64: Complete "Form 8903" Tab | H64: =+H63+1 -> 21 | I64: =IF(F52="Skip:","",IF('Form 8903'!G1<2011,'Form 8903 (pre 2011)'!H27,'Form 8903'!G33)) -> 0
B65: =IF(OR(I53<>"",I54<>"",I55<>"",I56<>"",I57<>"",I58<>"",I60<>"",I61<>"",I63<>""),IF(Data!F9=TRUE,CONCATENATE("Error: Lines ",H53," through ",H64," are not blank. These lines should be blank for C corporations."),""),"") -> 
B66: Part III | C66: Information for Allocating Municipal Income | F66: =IF(Data!B49=TRUE,"Skip:","") ->  | G66: =IF(F66="Skip:",CONCATENATE("100% of Income to ",Data!A47),"") -> 
B67: Gross receipts from sales or services performed | F67: =References!C259 -> No guidance available | H67: =+H64+1 -> 22
B68: Compensation of officers | F68: =References!C264 -> No guidance available | H68: =+H67+1 -> 23
B69: Salaries and wages (less employment credits) | F69: =References!C265 -> No guidance available | H69: =+H68+1 -> 24
B70: Cost of labor included in cost of goods sold | F70: =References!C266 -> No guidance available | H70: 25
B71: Other compensation paid to employees | F71: =References!C267 -> No guidance available | H71: 26
B72: Rent expense on real property not included in COGS | F72: =References!C268 -> No guidance available | H72: 27
B73: Rent expense on real property included in COGS | F73: =References!C269 -> No guidance available | H73: 28
B74: Inventories (beginning) | F74: =References!C271 -> No guidance available | H74: 29
B75: Inventories (ending) | F75: =References!C272 -> No guidance available | H75: 30
B76: Buildings & other depreciable assets (beginning) | F76: =References!C273 -> No guidance available | H76: 31
B77: Buildings & other depreciable assets (ending) | F77: =References!C274 -> No guidance available | H77: 32
B78: Depletable assets (original cost-beginning) | F78: =References!C275 -> No guidance available | H78: 33
B79: Depletable assets (original cost-ending) | F79: =References!C276 -> No guidance available | H79: 34
B80: Land (original cost-beginning) | F80: =References!C277 -> No guidance available | H80: 35
B81: Land (original cost-ending) | F81: =References!C278 -> No guidance available | H81: 36
C82: Check this box if electing to apportion income based on the guidelines in ORC 718.021 and will be situsing any payroll, property or sales from a qualifying remote employee or owner at the individual’s qualifying remote work location to that individual’s qualifying reporting location.
B83: Located In RITA Municipalities | D83: =IF(Data!$A$40<>0,Data!$A$40,"") ->  | E83: =IF(Data!$A$41<>0,Data!$A$41,"") ->  | F83: =IF(Data!$A$42<>0,Data!$A$42,"") ->  | G83: =IF(Data!$A$43<>0,Data!$A$43,"") ->  | H83: =IF(Data!$A$44<>0,Data!$A$44,"") ->  | J83: Total
B84: Average original cost of real and tangible personal property | J84: =SUM(D84:H84) -> 0
B85: Annual rental or lease amount multiplied by 8 | J85: 0
B86: Combine the two lines above | D86: =SUM(D84:D85) -> 0 | E86: =SUM(E84:E85) -> 0 | F86: =SUM(F84:F85) -> 0 | G86: =SUM(G84:G85) -> 0 | H86: =SUM(H84:I85) -> 0 | J86: 0
B87: Wages, salaries, and other compensation paid to employees for services perform in the municipality | J87: 0
B88: Gross receipts of the business or profession from sales made or service performed in the municipality | J88: 0
B89: Computed Property Factor | D89: =IF('Print Return'!$L$197=0,"n/a",'Print Return'!$H$210) -> n/a | E89: =IF('Print Return'!$L$197=0,"n/a",'Print Return'!$H$211) -> n/a | F89: =IF('Print Return'!$L$197=0,"n/a",'Print Return'!$H$212) -> n/a | G89: =IF('Print Return'!$L$197=0,"n/a",'Print Return'!$H$213) -> n/a | H89: =IF('Print Return'!$L$197=0,"n/a",'Print Return'!$H$214) -> n/a | J89: 0
B90: Computed Wage Factor | D90: =IF('Print Return'!$L$198=0,"n/a",'Print Return'!$J$210) -> n/a | E90: =IF('Print Return'!$L$198=0,"n/a",'Print Return'!$J$211) -> n/a | F90: =IF('Print Return'!$L$198=0,"n/a",'Print Return'!$J$212) -> n/a | G90: =IF('Print Return'!$L$198=0,"n/a",'Print Return'!$J$213) -> n/a | H90: =IF('Print Return'!$L$198=0,"n/a",'Print Return'!$J$214) -> n/a | J90: 0
B91: Computed Receipts Factor | D91: =IF('Print Return'!$L$199=0,"n/a",'Print Return'!$M$210) -> n/a | E91: =IF('Print Return'!$L$199=0,"n/a",'Print Return'!$M$211) -> n/a | F91: =IF('Print Return'!$L$199=0,"n/a",'Print Return'!$M$212) -> n/a | G91: =IF('Print Return'!$L$199=0,"n/a",'Print Return'!$M$213) -> n/a | H91: =IF('Print Return'!$L$199=0,"n/a",'Print Return'!$M$214) -> n/a | J91: 0
B92: Average Allocation Percentages | D92: =IF(Data!$B$54>0,ROUND(SUM(D89:D91)/Data!$B$54,6),"n/a") -> n/a | E92: =IF(Data!$B$54>0,ROUND(SUM(E89:E91)/Data!$B$54,6),"n/a") -> n/a | F92: =IF(Data!$B$54>0,ROUND(SUM(F89:F91)/Data!$B$54,6),"n/a") -> n/a | G92: =IF(Data!$B$54>0,ROUND(SUM(G89:G91)/Data!$B$54,6),"n/a") -> n/a | H92: =IF(Data!$B$54>0,ROUND(SUM(H89:H91)/Data!$B$54,6),"n/a") -> n/a | J92: 0
B93: =+Data!E252 -> 
B94: POST APPORTIONED LOSSES FOR TYs BEGINNING PRIOR TO 1/1/17
B95: Municipal net operating loss carryovers are calculated based on your adjusted federal taxable income (municipal taxable income), and must be tracked by municipality. A net operating loss generated in one year in one municipality may not be used to reduce the taxable income of a different municipality in a subsequent year.
B96: =CONCATENATE(Data!$H262,Data!$H263,Data!$H264,Data!$H265,Data!$H266,IF(Data!F44="","",CONCATENATE("Cities that prohibit NOL's: ",Data!F44,". ")),IF(Data!G44="","",CONCATENATE("NOL's restricted to 3 yrs: ",Data!G44,". ")),IF(Data!H44="","",CONCATENATE("NOL's restricted to 1 yr: ",Data!H44,"."))) -> 
B97: Municipal | D97: Year Unused Municipal NOL Generated | J97: Utilized on this return
B98: Net Operating Loss Carryovers | D98: =IF(AND(G11="",J11=""),"",IF($G$11<>"",$G$11-5,YEAR($J$11)-6)) ->  | E98: =IF(AND(G11="",J11=""),"",IF($G$11<>"",$G$11-4,YEAR($J$11)-5)) ->  | F98: =IF(AND(G11="",J11=""),"",IF($G$11<>"",$G$11-3,YEAR($J$11)-4)) ->  | G98: =IF(AND(G11="",J11=""),"",IF($G$11<>"",$G$11-2,YEAR($J$11)-3)) ->  | H98: =IF(AND(G11="",J11=""),"",IF($G$11<>"",$G$11-1,YEAR($J$11)-2)) -> 
B99: =IF(Data!A$40<>0,Data!A$40,"") ->  | L99: =IF(Data!D$33=FALSE,SUM(IF(D98>=2017,D99,0),IF(E98>=2017,E99,0),IF(F98>=2017,F99,0),IF(G98>=2017,G99,0),IF(H98>=2017,H99,0)),0) -> 0 | M99: =IF(Data!C33=0,0,IF(Data!C33=3,SUM(IF(F98<2017,F99,0),IF(G98<2017,G99,0),IF(H98<2017,H99,0)),IF(Data!C33=1,IF(H98<2017,H99,0),SUM(IF(D98<2017,D99,0),IF(E98<2017,E99,0),IF(F98<2017,F99,0),IF(G98<2017,G99,0),IF(H98<2017,H99,0))))) - J99 -> 0
B100: =IF(Data!A$41<>0,Data!A$41,"") ->  | L100: =IF(Data!D$34=FALSE,SUM(IF(D98>=2017,D100,0),IF(E98>=2017,E100,0),IF(F98>=2017,F100,0),IF(G98>=2017,G100,0),IF(H98>=2017,H100,0)),0) -> 0 | M100: =IF(Data!C34=0,0,IF(Data!C34=3,SUM(IF(F98<2017,F100,0),IF(G98<2017,G100,0),IF(H98<2017,H100,0)),IF(Data!C34=1,IF(H98<2017,H100,0),SUM(IF(D98<2017,D100,0),IF(E98<2017,E100,0),IF(F98<2017,F100,0),IF(G98<2017,G100,0),IF(H98<2017,H100,0))))) - J100 -> 0
B101: =IF(Data!A$42<>0,Data!A$42,"") ->  | L101: =IF(Data!D$35=FALSE,SUM(IF(D98>=2017,D101,0),IF(E98>=2017,E101,0),IF(F98>=2017,F101,0),IF(G98>=2017,G101,0),IF(H98>=2017,H101,0)),0) -> 0 | M101: =IF(Data!C35=0,0,IF(Data!C35=3,SUM(IF(F98<2017,F101,0),IF(G98<2017,G101,0),IF(H98<2017,H101,0)),IF(Data!C35=1,IF(H98<2017,H101,0),SUM(IF(D98<2017,D101,0),IF(E98<2017,E101,0),IF(F98<2017,F101,0),IF(G98<2017,G101,0),IF(H98<2017,H101,0))))) - J101 -> 0
B102: =IF(Data!A$43<>0,Data!A$43,"") ->  | L102: =IF(Data!D$36=FALSE,SUM(IF(D98>=2017,D102,0),IF(E98>=2017,E102,0),IF(F98>=2017,F102,0),IF(G98>=2017,G102,0),IF(H98>=2017,H102,0)),0) -> 0 | M102: =IF(Data!C36=0,0,IF(Data!C36=3,SUM(IF(F98<2017,F102,0),IF(G98<2017,G102,0),IF(H98<2017,H102,0)),IF(Data!C36=1,IF(H98<2017,H102,0),SUM(IF(D98<2017,D102,0),IF(E98<2017,E102,0),IF(F98<2017,F102,0),IF(G98<2017,G102,0),IF(H98<2017,H102,0))))) - J102 -> 0
B103: =IF(Data!A$44<>0,Data!A$44,"") ->  | L103: =IF(Data!D$37=FALSE,SUM(IF(D98>=2017,D103,0),IF(E98>=2017,E103,0),IF(F98>=2017,F103,0),IF(G98>=2017,G103,0),IF(H98>=2017,H103,0)),0) -> 0 | M103: =IF(Data!C37=0,0,IF(Data!C37=3,SUM(IF(F98<2017,F102,0),IF(G98<2017,G103,0),IF(H98<2017,H103,0)),IF(Data!C37=1,IF(H98<2017,H103,0),SUM(IF(D98<2017,D103,0),IF(E98<2017,E103,0),IF(F98<2017,F103,0),IF(G98<2017,G103,0),IF(H98<2017,H103,0))))) - J103 -> 0
B104: =IF(OR(M99<0, M100<0, M101<0, M102<0, M103<0)=TRUE,"NOL utilized on this return exceeds unused NOL for some municipalities; ","") -> 
B105: =IF(OR(D99<0,D100<0,D101<0,D102<0,D103<0,E99<0,E100<0,E101<0,E102<0,E103<0,F99<0,F100<0,F101<0,F102<0,F103<0,G99<0,G100<0,G101<0,G102<0,G103<0,H99<0,H100<0,H101<0,H102<0,H103<0),"Do not enter net operating losses as negative numbers.","") -> 
B106: PRE-APPORTIONED LOSSES FROM TYs BEGINNING ON OR AFTER 1/1/17
B107: Net Operating Loss Carryovers (Pre-Apportioned) | D107: =IF(AND(G11="",J11=""),"",IF($G$11<>"",$G$11-5,YEAR($J$11)-6)) ->  | E107: =IF(AND(G11="",J11=""),"",IF($G$11<>"",$G$11-4,YEAR($J$11)-5)) ->  | F107: =IF(AND(G11="",J11=""),"",IF($G$11<>"",$G$11-3,YEAR($J$11)-4)) ->  | G107: =IF(AND(G11="",J11=""),"",IF($G$11<>"",$G$11-2,YEAR($J$11)-3)) ->  | H107: =IF(AND(G11="",J11=""),"",IF($G$11<>"",$G$11-1,YEAR($J$11)-2)) ->  | J107: Total Unutilized NOL | K107: Utilized on this return
J108: =SUM(D108:H108) -> 0
B109: =IF(L110>0,CONCATENATE(IF(B110=TRUE,CONCATENATE("The maximum value for NOL 'Utilized on this return' that can be entered in cell K108 cannot exceed ", TEXT(L110, "$#,##0"),"."), CONCATENATE("The maximum amount of NOL ", TEXT(L110, "$#,##0"), " was automatically applied. If you wish to enter a smaller NOL value, please type it in cell K108 to overwrite."))),"") -> 
B110: =IF(ISNUMBER(J108)=TRUE,IF(OR(J108>'Print Return'!L37,J108>='Print NOL Worksheet'!J24+1)=TRUE,TRUE,FALSE),FALSE) -> FALSE | K110: =MAX(0,ROUND(IF(K108>0,K108,MIN(J108,'Print Return'!L37)),0)) -> 0 | L110: =MAX(0,ROUND(MIN(J108,'Print Return'!L37),0)) -> 0
B111: Federal Carryover Information from Your Records | J111: =IF(Data!F9=TRUE,"Skip: C-Corp","") -> 
B112: The following schedule is used only by taxpayers who are not C corporations. The Ohio Revised Code §718.01(A)(1)(g) requires that these taxpayers calculate their adjusted federal income as if they were C corporations. Thus, non-C corporations must track the C corporation carryovers listed below for municipal tax purposes. The amounts entered below by non-C corporations should match what would have been claimed for federal tax purposes if the taxpayer was a C corporation. C corporations should attach copies of their federal carryover schedules to their municipal tax return.
B113: Charitiable contribution carryovers and capital loss carryovers are calculated based on your federal taxable income and are not tracked by municipality. These amounts are used to calculated the allowable charitable contribtuion deduction and the allowable capital loss deduction.
B114: Unrecaptured §1231 losses and the federal net operating loss are calculated based on your federal taxable income. The §1231 losses are used to determine the allowable capital losses and the federal net operating loss is used in determining the allowable charitable contribution deduction.
B115: Disallowed §179 carryovers are calculated based on your federal taxable income calculated, like all other items in this section, as if you were a C corporation.
B116: =IF(OR(J119<>0,J120<>0,J121<>0,J122<>0),IF(Data!F9=TRUE,"Error: The schedule below should be blank for C corporations. Attach federal schedules.",""),"") -> 
B117: Federal Carryovers | D117: Year Unused Carryover Generated | J117: Available
D118: =IF(AND(G11="",J11=""),"",IF($G$11<>"",$G$11-5,YEAR($J$11)-6)) ->  | E118: =IF(AND(G11="",J11=""),"",IF($G$11<>"",$G$11-4,YEAR($J$11)-5)) ->  | F118: =IF(AND(G11="",J11=""),"",IF($G$11<>"",$G$11-3,YEAR($J$11)-4)) ->  | G118: =IF(AND(G11="",J11=""),"",IF($G$11<>"",$G$11-2,YEAR($J$11)-3)) ->  | H118: =IF(AND(G11="",J11=""),"",IF($G$11<>"",$G$11-1,YEAR($J$11)-2)) -> 
B119: Charitable Contributions Carryovers | J119: =SUM(D119:H119) -> 0
B120: Capital Loss Carryovers | J120: =SUM(D120:H120) -> 0
B121: Unrecaptured §1231 Losses | J121: =SUM(D121:H121) -> 0
B122: Federal net operating losses | J122: =SUM(D122:H122) -> 0
B123: Carryovers of Disallowed §179 | J123: =SUM(D123:H123) -> 0
B124: Note: Fiscal year taxpayers use "fiscal year beginning in 20XX" when completing this schedule.
B125: =IF(OR(D119<0,D120<0,D121<0,D122<0,E119<0,E120<0,E121<0,E122<0,F119<0,F120<0,F121<0,F122<0,G119<0,G120<0,G121<0,G122<0,H119<0,H120<0,H121<0,H122<0),"Do not enter any federal carryover as a negative number.","") -> 
B126: Partners' Information (Form 1065 Filers Only)
B127: Partners' Information (Form 1065 Filers Only) | F127: Social Security | G127: Ownership % | H127: Increase (decrease) | J127: Other Payments
B128: =IF(Data!B11=TRUE,"Partners' Names & Addresses","Skip This Section") -> Skip This Section | F128: Number | G128: =+References!C293 -> Sched K-1, Ln J | H128: =+References!C294 -> Sched K-1, Ln L | J128: =+References!C295 -> Sched K-1, Ln 4
B134: =IF(AND(Data!B11=TRUE,G134<>1),"Warning: Ownership Percentages Do Not Total 100%.","") ->  | G134: =SUM(G129:G133) -> 0 | H134: =SUM(H129:H133) -> 0 | J134: =SUM(J129:J133) -> 0
B136: Wages & Withholding Reconciliation
B137: =+Data!E180 -> Complete this section to reconcile the wages reported on your Federal return to the local RITA wages reported by your payroll department throughout the year .
B138: =CONCATENATE("Total RITA WORKPLACE wages shown on your withholding tax returns (Forms 11) for period covered by this return (",Data!E176,Data!E179,").") -> Total RITA WORKPLACE wages shown on your withholding tax returns (Forms 11) for period covered by this return (year ). | H138: 1
B139: Total salaries & wages and other W-2 compensation reported on your federal return. | H139: =+H138+1 -> 2
B141: Municipality | D141: Per Sched Y | E141: Per Forms 11 | F141: Variance | G141: =IF(Data!B175=TRUE,Data!E191,Data!E200) -> 
B142: =IF(Data!$A$40<>0,Data!$A$40,Data!A40) -> 0 | D142: =IF(D87="","",D87) ->  | F142: =IF(AND(D142="",E142=""),"",Data!F183) -> 
B143: =IF(Data!A$41<>0,Data!A$41,"") ->  | D143: =IF(E87="","",E87) ->  | F143: =IF(AND(D143="",E143=""),"",Data!F184) -> 
B144: =IF(Data!A$42<>0,Data!A$42,"") ->  | D144: =IF(F87="","",F87) ->  | F144: =IF(AND(D144="",E144=""),"",Data!F185) -> 
B145: =IF(Data!A$43<>0,Data!A$43,"") ->  | D145: =IF(G87="","",G87) ->  | F145: =IF(AND(D145="",E145=""),"",Data!F186) -> 
B146: =IF(Data!A$44<>0,Data!A$44,"") ->  | D146: =IF(H87="","",H87) ->  | F146: =IF(AND(D146="",E146=""),"",Data!F187) -> 
B148: Explanation of Variance(s)
B151: If withholding was remitted under a different EIN than the one being used to file this return, provide the name, address and EIN used to remit the withholding.
B152: EIN used: | E152: Name:
E153: Address:
B156: Final Questions
B157: =IF(Data!B$218=TRUE,Data!E$218,IF(Data!B219=TRUE,Data!E219,Data!A208)) -> You must select at least one RITA municipality before continuing. Select RITA municipalities using the "Municipalities" drop-down lists near the top of this worksheet.
B158: =IF(Data!B$218=TRUE,"",Data!A210) -> 
B160: =IF(Data!B$218=TRUE,"",IF(Data!B66>0,Data!E64,Data!A212)) -> 
B161: =IF(Data!B30<>"","Warning:","") ->  | C161: =Data!B30 -> 
B162: =IF(Data!B218=TRUE,"",Data!A214) -> 
B164: Allocation of Estimated Tax | D164: =IF(Data!$A$40<>0,Data!$A$40,"") ->  | E164: =IF(Data!$A$41<>0,Data!$A$41,"") ->  | F164: =IF(Data!$A$42<>0,Data!$A$42,"") ->  | G164: =IF(Data!$A$43<>0,Data!$A$43,"") ->  | H164: =IF(Data!$A$44<>0,Data!$A$44,"") ->  | J164: Total
B165: Auto-Allocations Based on Our Estimate | D165: =IF(Data!$B$49=TRUE,Data!B67,ROUND('Print Return'!F79*'Print Return'!I95,0)) -> 0 | E165: =IF(Data!$B$49=TRUE,"",ROUND('Print Return'!F81*'Print Return'!I97,0)) -> 0 | F165: =IF(Data!$B$49=TRUE,"",ROUND('Print Return'!F83*'Print Return'!I99,0)) -> 0 | G165: =IF(Data!$B$49=TRUE,"",ROUND('Print Return'!F85*'Print Return'!I101,0)) -> 0 | H165: =IF(Data!$B$49=TRUE,"",ROUND('Print Return'!F87*'Print Return'!I103,0)) -> 0 | J165: =SUM(D165:I165) -> 0
B166: Auto-Allocations Based on Your Estimate | D166: =IF(Data!$B$49=TRUE,I162,IF(J165=0,"",I162-SUM(E166:I166))) ->  | E166: =IF(Data!$B$49=TRUE,"",IF(J165=0,"",ROUND((E165/$J165)*$I$162,0))) ->  | F166: =IF(Data!$B$49=TRUE,"",IF(J165=0,"",ROUND((F165/$J165)*$I$162,0))) ->  | G166: =IF(Data!$B$49=TRUE,"",IF(J165=0,"",ROUND((G165/$J165)*$I$162,0))) ->  | H166: =IF(Data!$B$49=TRUE,"",IF(J165=0,"",ROUND((H165/$J165)*$I$162,0))) ->  | J166: =SUM(D166:I166) -> 0
B167: Your Good Faith Allocations if Different | J167: =SUM(D167:I167) -> 0
B168: =IF(AND(I162<>"",J167<>0,SUM(D167:I167)<>I162),CONCATENATE("Error: Your good faith allocations must total $",I162),IF(AND(I162="",J167<>0,SUM(D167:I167)<>J165),CONCATENATE("Error: Your good faith allocations must total $",J165),"")) -> 
D169: Less available credit from current year's overpayment | I169: =IF(Data!B25=TRUE,Data!B66,0) -> 0
D171: Estimate tax due after credit | I171: =Data!E83-I169:J169 -> 0
B173: =IF((I171+'Print Return'!L53)>0,Data!E66,"Your return indicates that your credits were sufficient to cover your current year's tax and next year's estimated taxes. No payment is required with your return.") -> Your return indicates that your credits were sufficient to cover your current year's tax and next year's estimated taxes. No payment is required with your return.
B205: Municipal Income Tax Computation Worksheet
B206: Part II | C206: Adjustments Required of Non-C Corporations Under ORC §718.01(A)(1)(g)
B207: Income from Federal Return | F207: From Line 1 above | H207: =+H63+1 -> 21 | I207: =IF(OR(Data!$B$12=TRUE,Data!$B$13=TRUE),"",I42) -> 0
B208: Amount paid or accrued to an owner or owner-employee qualified self-employed retirement plans | F208: From Line 11 above | H208: =+H207+1 -> 22 | I208: =IF(OR(Data!$B$12=TRUE,Data!$B$13=TRUE),"",I56) -> 0
B209: Amount paid or accrued for owner or owner-employee health insurance | F209: From Line 12 above | H209: =+H208+1 -> 23 | I209: =IF(OR(Data!$B$12=TRUE,Data!$B$13=TRUE),"",I57) -> 0
B210: Amount paid or accrued for owner or owner-employee life insurance | F210: From Line 13 above | H210: =+H209+1 -> 24 | I210: =IF(OR(Data!$B$12=TRUE,Data!$B$13=TRUE),"",I58) -> 0
B211: Federal Income Adjusted Per ORC §718.01(A)(1)(g) | F211: Add Lines 18 through 22 | H211: =+H210+1 -> 25 | I211: =IF(OR(Data!$B$12=TRUE,Data!$B$13=TRUE),"",SUM(I207:J210)) -> 0
B213: Part III | C213: Adjustments Required of Taxpayers Who Are Not Individuals Under ORC §718.01(A)(1)
B214: Deduct intangible income included in federal income that is not related to the sale, exchange or disposition of intangible property | F214: Combine Lns 3, 4 & 5 above | H214: =+H211+1 -> 26 | I214: =-SUM(I43:J45) -> 0
B215: Add an amount equal to 5% of intangible income not generated by the sale, exchange or other disposition of intangible property | F215: Multiply Line 24 by 0.05 | H215: =+H214+1 -> 27 | I215: =ROUND(I214*0.05,0) -> 0
B216: Add any federal losses allowed on the sale, exchange or other disposition of §1221 or §1231 property | F216: Combine the Losses Shown on Lines 6, 7 & 8 above | H216: =+H215+1 -> 28 | I216: =-Data!C95 -> 0
B217: Deduct income & gain directly related to the sale, exchange or other disposition of §1221 or §1231 property, but exclude §1245 and §1250 income and gains | F217: Combine the gains shown on Lines 6, 7 & 8 above, less… | H217: =+H216+1 -> 29
D221: End

Sheet Print Return
K1: Contact us toll free at:
A2: Form 27 | K2: Cleveland | M2: 800.860.7482
D3: Regional Income Tax Agency | K3: Columbus | M3: 866.721.7482
K4: Youngstown | M4: 866.750.7482
D5: RITA Net Profit Tax Return | K5: TDD | M5: 440.526.5332
I6: =+'Complete This Page'!J1 -> NPAC v2024.0 | K6: Fax | M6: 440.922.3536
A8: FOR CALENDAR YEAR | E8: =IF('Complete This Page'!G11<>0,'Complete This Page'!G11,"") ->  | F8: OR FISCAL YEAR BEGINNING | I8: =IF('Complete This Page'!H11<>"",'Complete This Page'!H11,"") ->  | K8: AND ENDING | M8: =IF('Complete This Page'!J11<>"",'Complete This Page'!J11,"") -> 
A9: The federal return MUST be attached to be considered a complete tax return. Please also attach all applicable schedules and 1099-MISC to avoid delays.
A11: Check if: | J11: =IF(Data!B168=TRUE,Data!C168,"") -> 
J12: =IF(Data!B166=TRUE,Data!C166,"") -> 
A16: BUSINESS TYPE: | I16: Federal Business Activity Code #: | M16: =IF('Complete This Page'!G5<>"",'Complete This Page'!G5,"") -> 
I17: Business Activity: | K17: =IF('Complete This Page'!G7<>"",'Complete This Page'!G7,"") -> 
A21: Company Name | I21: Federal Idenification Number
A22: =IF('Complete This Page'!B3<>"",'Complete This Page'!B3,"Error: No Company Name Entered") -> Error: No Company Name Entered | I22: =IF('Complete This Page'!G3<>"",'Complete This Page'!G3,"Error: No EIN Entered") -> Error: No EIN Entered
A23: Address # | D23: Street Name | I23: Suite No.
A24: =IF('Complete This Page'!B5<>"",'Complete This Page'!B5,"") ->  | D24: =IF('Complete This Page'!C5<>"",'Complete This Page'!C5,"Error: No Street Name Entered") -> Error: No Street Name Entered | I24: =IF('Complete This Page'!E5<>"",CONCATENATE("Ste ",'Complete This Page'!E5),"") -> 
A25: City | I25: State | J25: Zip Code
A26: =IF('Complete This Page'!B7<>"",'Complete This Page'!B7,"Error: No City Name Entered") -> Error: No City Name Entered | I26: =IF('Complete This Page'!D7<>"",'Complete This Page'!D7,"") ->  | J26: =IF('Complete This Page'!E7<>"",'Complete This Page'!E7,"") -> 
A29: 1 | B29: INCOME PER ATTACHED FEDERAL RETURN | K29: =+A29 -> 1 | L29: =+L185 -> 0
B30: =CONCATENATE("(per attached ",References!C258,")") -> (per attached No guidance available)
A31: 2 | B31: A. | C31: ITEMS NOT DEDUCTIBLE (From Page 3, Schedule X, Line G) | J31: Add 2A | L31: =L153 -> 0
B33: B. | C33: ITEMS NOT TAXABLE (From Page 3, Schedule X, Line Q) | I33: Deduct 2B | L33: =L168 -> 0
B35: C. | C35: ENTER EXCESS OF LINE 2A or 2B | K35: 2C | L35: =IF(L31>L33,L31-L33,L33-L31) -> 0
A37: 3 | B37: A. | C37: ADJUSTED FEDERAL TAXABLE INCOME | K37: 3A | L37: =+L29+L31-L33 -> 0
C38: (Line 1 plus or minus line 2C) if Schedule X is used
B39: B. | C39: PRE-APPORTIONED LOSSES Checkbox | J39: u | L39: Check this box when using different Net Operating Losses for different municipalities and attach your Net Operating Losses worksheet. See Form 27 Instructions for 3B(ii) through Line 4.
C42: i. | D42: This line intentionally left blank
C43: ii. | D43: PRE-APPORTIONED LOSSES FROM TAX YEARS BEGINNING ON OR AFTER 1/1/18 UTILIZED IN THIS TAX YEAR | J43: u | K43: 3B(ii) | L43: =IF(Overflow!F112>0,Overflow!F112,'Complete This Page'!K110) -> 0
C45: iii. | D45: INCOME/LOSS SUBJECT TO APPORTIONMENT | J45: u | K45: 3B(iii) | L45: =L37-L43 -> 0
B47: C. | C47: AMOUNT ALLOCABLE TO RITA | K47: 3C | L47: =IF(ISNUMBER(F48)=TRUE,F48*L45,L37) -> 0
C48: If Schedule Y, Page 4 is used | F48: =IF(Data!B49=TRUE,1,IF(ISNUMBER(Data!C279)=TRUE,Data!C279,"")) -> 0 | G48: of Line 3B(iii) | L48: =IF(Overflow!D66>0,"",IF(Data!B49=TRUE,"",Data!C60)) -> 
B49: D. | C49: POST APPORTIONED LOSSES FOR TYs BEGINNING BEFORE 1/1/17 | J49: u | K49: 3D | L49: 0
A51: 4 | B51: AMOUNT SUBJECT TO MUNICIPAL INCOME TAX | J51: u | K51: 4 | L51: =Data!F279 -> 0
B52: Line 3B(ii) multiplied by Line 3C %
A53: 5 | B53: MUNICIPAL TAX DUE (See Instructions) | J53: u | K53: 5 | L53: =SUM(L79:L87) -> 0
B54: NOTE: Must complete Schedule B on Page 2
A55: 6 | B55: A. | C55: =CONCATENATE("ESTIMATED MUNICIPAL TAX PAYMENTS FOR THE YEAR ",E8) -> ESTIMATED MUNICIPAL TAX PAYMENTS FOR THE YEAR | K55: 6A | L55: ='Complete This Page'!I19 -> 0
B57: B. | C57: AMOUNT OF PREVIOUS YEAR CREDIT | K57: 6B | L57: ='Complete This Page'!I16 -> 0
B59: C. | C59: TOTAL CREDITS ALLOWABLE (Line 6A + 6B) | J59: u | K59: 6C | L59: =+L55+L57 -> 0
A61: 7 | B61: A. | C61: BALANCE DUE (Line 5 less Line 6C) | J61: u | K61: 7A | L61: =IF(L53<L59,0,L53-L59) -> 0
C62: AMOUNT PAYABLE TO RITA MUST ACCOMPANY THIS FORM
C63: CHECK #: ___________________
B64: B. | C64: OVERPAYMENT CLAIMED | K64: 7B | L64: =IF(L59>L53,L59-L53,0) -> 0
C65: (If Line 6C exceeds Line 5 enter the difference here and check the desired box)
C66: (Overpayments cannot be split between refund and credit.)
F67: Refund …………… | H67: Credit…………… | N67: Page
N68: 1
N69: 27F21
F70: FORM 27 | J70: =A22 -> Error: No Company Name Entered
M71: =I22 -> Error: No EIN Entered
A73: SCHEDULE B - DISTRIBUTION OF TAX WITHHIN RITA MUNICIPALITIES
A74: TOTAL TAX DISTRIBUTED BELOW MUST EQUAL AMOUNT FROM PAGE 1, LINE 5
A75: Note: For each separate municipality listed below, if Tax Due is $10 or less, enter -0-
A76: (If more space is needed, attach additional schedule.)
A77: Municipality Name | F77: Taxable Income/Loss | I77: Tax Rate | L77: Tax Due
A79: =IF(Overflow!D66>0,"See Schedule",IF(Data!$A$40<>0,Data!$A$40,"")) ->  | F79: =Data!F273 -> 0 | I79: =Data!C262 -> 0 | L79: =IF(A79="See Schedule",Data!H279,ROUND(F79*I79,0)) -> 0
A81: =IF(Data!$A$41<>0,Data!$A$41,"") ->  | F81: =Data!F274 -> 0 | I81: =Data!C263 -> 0 | L81: =IF(I81=0,0,IF(AND(F81>0,OR(F81*I81>10,$E$8<2016)),ROUND(F81*I81,0),0)) -> 0
A83: =IF(Data!$A$42<>0,Data!$A$42,"") ->  | F83: =Data!F275 -> 0 | I83: =Data!C264 -> 0 | L83: =IF(I83=0,0,IF(AND(F83>0,OR(F83*I83>10, $E$8<2016)),ROUND(F83*I83,0),0)) -> 0
A85: =IF(Data!$A$43<>0,Data!$A$43,"") ->  | F85: =Data!F276 -> 0 | I85: =Data!C265 -> 0 | L85: =IF(I85=0,0,IF(AND(F85>0,OR(F85*I85>10, $E$8<2016)),ROUND(F85*I85,0),0)) -> 0
A87: =IF(Data!$A$44<>0,Data!$A$44,"") ->  | F87: =Data!F277 -> 0 | I87: =Data!C266 -> 0 | L87: =IF(I87=0,0,IF(AND(F87>0, OR(F87*I87>10, $E$8<2016)),ROUND(F87*I87,0),0)) -> 0
A89: COMPUTATION OF ESTIMATED TAX
A91: ESTIMATED TAX DISTRIBUTION TOTAL TO LINE 8A
A92: (If more space is needed, attach additional schedule.)
A93: Municipality Name | F93: Taxable Income | I93: Tax Rate | L93: Tax Due
A95: =IF(Data!$A$40<>0,Data!$A$40,"") ->  | F95: =IF(I95=0,0,ROUND(Data!E78/I95,0)) -> 0 | I95: =LOOKUP(Data!$B$33,Cities!$A$3:$A$453,Cities!$E$3:$E$453) -> 0 | L95: =IF(AND(F95>0, F95*I95>200),ROUND(F95*I95,0),0) -> 0
A97: =IF(Data!$A$41<>0,Data!$A$41,"") ->  | F97: =IF(I97=0,0,ROUND(Data!E79/I97,0)) -> 0 | I97: =LOOKUP(Data!$B$34,Cities!$A$3:$A$453,Cities!$E$3:$E$453) -> 0 | L97: =IF(AND(F97>0, F97*I97> 200),ROUND(F97*I97,0),0) -> 0
A99: =IF(Data!$A$42<>0,Data!$A$42,"") ->  | F99: =IF(I99=0,0,ROUND(Data!E80/I99,0)) -> 0 | I99: =LOOKUP(Data!$B$35,Cities!$A$3:$A$453,Cities!$E$3:$E$453) -> 0 | L99: =IF(AND(F99>0, F99*I99>200),ROUND(F99*I99,0),0) -> 0
A101: =IF(Data!$A$43<>0,Data!$A$43,"") ->  | F101: =IF(I101=0,0,ROUND(Data!E81/I101,0)) -> 0 | I101: =LOOKUP(Data!$B$36,Cities!$A$3:$A$453,Cities!$E$3:$E$453) -> 0 | L101: =IF(AND(F101>0, F101*I101>200),ROUND(F101*I101,0),0) -> 0
A103: =IF(Data!$A$44<>0,Data!$A$44,"") ->  | F103: =IF(I103=0,0,ROUND(Data!E82/I103,0)) -> 0 | I103: =LOOKUP(Data!$B$37,Cities!$A$3:$A$453,Cities!$E$3:$E$453) -> 0 | L103: =IF(AND(F103>0, F103*I103>200),ROUND(F103*I103,0),0) -> 0
B105: 8 | C105: A. | D105: Estimated Tax (from allocation/distribution above) | J105: u | K105: 8A | L105: =SUM(L95:N103) -> 0
C107: B. | D107: Credit (if any) From Prior Year (Page 1, Line 7B) | K107: 8B | L107: =IF(Data!B25=TRUE,L64,0) -> 0
C109: C. | D109: Subtract Line 8B from Line 8A | K109: 8C | L109: =+L105-L107 -> 0
C111: D. | D111: AMOUNT PAID: Total AMOUNT DUE and based on when the return is filed at least 1/4 of estimated tax due, less any CREDIT. Estimated tax payments are due on the fifteenth (15th) day of the fourth (4th), sixth (6th) ninth (9th) and twelfth (12th) months of each fiscal year. | K111: 8D | L111: =IF('Complete This Page'!I173="",Data!C74,'Complete This Page'!I173) -> 0
B113: 9 | C113: TOTAL AMOUNT DUE (COMBINE LINES 7A & 8D) | K113: 9 | L113: =L61+L111 -> 0
A115: MAKE CHECKS PAYABLE TO RITA
A116: The federal return with applicable schedules and 1099's MUST be attached to be considered a complete tax return.
A118: I CERTIFY I HAVE EXAMINED THIS RETURN, INCLUDING ACCOMPANYING SCHEDULES AND STATEMENTS, AND TO THE BEST OF MY KNOWLEDGE AND BELIEF IT IS TRUE, CORRECT AND COMPLETE, AND THAT THE FIGURES USED HEREIN ARE THE SAME AS USED FOR FEDERAL INCOME TAX PURPOSES.
A120: SIGNATURE OF OFFICER OR PARTNER | H120: PREPARER'S SIGNATURE
H122: =IF('Complete This Page'!G35="","",CONCATENATE('Complete This Page'!G35,", ",'Complete This Page'!G36)) -> 
A123: PRINT NAME | H123: PREPARER'S ADDRESS
D124: =+'Complete This Page'!I26 -> 0 | H124: =+'Complete This Page'!D36 -> 0 | K124: =IF('Complete This Page'!G34="","",'Complete This Page'!G34) -> 
A125: TITLE | D125: PHONE | F125: DATE | H125: PREPARER'S PHONE | K125: FIRM NAME
A126: May RITA discuss this return with the preparer shown above?
A127: Without Payment | F127: With Payment | I127: With Refund | N127: Page 2
A128: REGIONAL INCOME TAX AGENCY | F128: REGIONAL INCOME TAX AGENCY | I128: REGIONAL INCOME TAX AGENCY
A129: PO BOX 89475 | F129: PO BOX 94582 | I129: PO BOX 94652
A130: CLEVELAND OH 44101-6475 | F130: CLEVELAND OH 44101-6475 | I130: CLEVELAND OH 44101-4652 | N130: =+N69 -> 27F21
F132: FORM 27 | J132: =A22 -> Error: No Company Name Entered
M133: =I22 -> Error: No EIN Entered
A135: Schedule X – ADJUSTMENT TO FEDERAL INCOME TAX RETURN
B137: ITEMS NOT DEDUCTIBLE
A139: A. | B139: LOSSES DIRECTLY RELATED TO THE SALE, EXCHANGE, OR OTHER DISPOSITION OF AN ASSET DESCRIBED IN §1221 OR §1231 OF THE INTERNAL REVENUE CODE | H139: §1221 S-T | I139: =IF(Data!C92=0,"",-Data!C92) -> 
H140: §1221 L-T | I140: =IF(Data!C93=0,"",-Data!C93) -> 
H141: §1231 | I141: =IF(Data!C94=0,"",-Data!C94) ->  | K141: A | L141: =-Data!C95 -> 0
A143: B. | B143: TAXES BASED ON INCOME | K143: B | L143: ='Complete This Page'!I47 -> 0
A145: C. | B145: 5% OF THE AMOUNT DEDUCTED AS INTANGIBLE INCOME NOT DIRECTLY RELATED TO THE SALE, EXCHANGE OR OTHER DISPOSITION OF IRC §1221 INTANGIBLE PROPERTY (Multiply Schedule X, Line O below by 0.05) | K145: C | L145: =ROUND(L164*0.05,0) -> 0
A147: D. | B147: TAXPAYERS THAT ARE NOT C CORPORATIONS ONLY— AMOUNTS PAID OR ACCRUED TO QUALIFIED SELF-EMPLOYED RETIREMENT, HEALTH & LIFE INSURANCE PLANS FOR OWNERS OR OWNER-EMPLOYEES | K147: D | L147: =IF(AND(Data!B12=FALSE,Data!B13=FALSE),SUM('Complete This Page'!I56:I58),0) -> 0
A149: E. | B149: REGULATED INVESTMENT COMPANIES ONLY— (See Instructions) | K149: E | L149: 0
A151: F. | B151: OTHER: | D151: =IF(L151<>0,"Amounts similar to guaranteed payments per ORC 718.01(A)(1)(g)","") ->  | K151: F | L151: =+'Complete This Page'!I59 -> 0
A153: G. | B153: TOTAL ADDITIONS (Add lines A through F. Enter here and on Form 27, Page 1, Line 2A) | K153: G | L153: =SUM(L140:L152) -> 0
B155: ITEMS NOT TAXABLE
A157: N. | B157: INCOME AND GAINS DIRECTLY RELATED TO THE SALE, EXCHANGE OR OTHER DISPOSITION OF §1221 OR §1231 PROPERTY, BUT EXCLUDING §1245 AND §1250 INCOME AND GAINS (All taxpayers must exclude §291 income as if they were C Corporations) | H157: §1221 S-T | I157: =IF(Data!C100=0,"",Data!C100) -> 
H158: §1221 L-T | I158: =IF(Data!C101=0,"",Data!C101) -> 
H159: §1231 | I159: =IF(Data!C102=0,"",Data!C102) -> 
H160: §291 Adj | I160: =IF('291 Worksheet'!I51>0,-'291 Worksheet'!I51,IF(Data!C111=0,"",-Data!C111)) ->  | K160: N | L160: =Data!C103-Data!C111-'291 Worksheet'!I51 -> 0
A162: O. | B162: INTANGIBLE INCOME SUCH AS INTEREST, DIVIDENDS, ROYALTIES FROM COPYRIGHTS, AND OTHER INTANGIBLE INCOME NOT RELATED TO THE SALE, EXCHANGE OR OTHER DISPOSITION OF §1221 INTANGIBLE PROPERTY | H162: Interest | I162: =IF('Complete This Page'!I43:J43=0,"",'Complete This Page'!I43:J43) -> 
H163: Dividends | I163: =IF('Complete This Page'!I44:J44=0,"",'Complete This Page'!I44:J44) -> 
H164: Royalties | I164: =IF('Complete This Page'!I45:J45=0,"",'Complete This Page'!I45:J45) ->  | K164: O | L164: =SUM('Complete This Page'!I43:I45) -> 0
A166: P. | B166: OTHER: | D166: =IF(L166<>0,"Income (loss) of or from pass-through entities","") ->  | K166: P | L166: =+'Complete This Page'!I46 -> 0
A168: Q. | B168: TOTAL DEDUCTIONS (Add lines N through P. Enter here and on Form 27, Page 1, Line 2B) | K168: Q | L168: =SUM(L159:L167) -> 0
A170: FEDERAL TAXABLE INCOME WORKSHEET
A171: For use by taxpayers that are not C Corporations
A173: a) | B173: Income before net operating losses and special deductions | K173: a) | L173: ='Complete This Page'!I42 -> 0
A175: b) | B175: Capital losses in excess of capital gains not eliminated in Schedule X above | K175: b) | L175: =IF(Data!F9=TRUE,0,0) -> 0
A177: c) | B177: Charitable contributions in excess of C Corporation limits or (carryovers used) | K177: c) | L177: =IF(Data!F9=TRUE,0,Data!C148) -> 0
A179: d) | B179: Section 179 deductions in excess of C Corporation limits or (carryovers used) | K179: d) | L179: =IF(Data!F9=TRUE,0,Data!C159) -> 0
B181: Compensation in excess of $1 million to a "covered employee" | L181: 0
B183: Other: | D183: =IF('Complete This Page'!I64="","","Domestic Production Activities Deduction") -> Domestic Production Activities Deduction | L183: =IF('Complete This Page'!I64="",0,-'Complete This Page'!I64) -> 0
A185: e) | B185: FEDERAL TAXABLE INCOME computed as if a C Corporation | K185: e) | L185: =SUM(L173:L184) -> 0
B186: (except for capital loss limitations since Schedule X, Line A eliminates the need to make such an adjustment) Enter here on on Form 27, Page 1, Line 1
N187: Page
N188: 3
N189: =+N69 -> 27F21
A190: Form 27
A191: =+References!C1 -> 1900 | D191: =A22 -> Error: No Company Name Entered | L191: =I22 -> Error: No EIN Entered
A192: Schedule Y: Business Apportionment Formula (See Instructions)
C193: =Data!B281 -> Check this box if electing to apportion income based on the guidelines in ORC 718.021 and will be situsing any payroll, property or sales from a qualifying remote employee or owner at the individual’s qualifying remote work location to that individual’s qualifying reporting location.
A194: Part I | C194: Business Wide Apportionment Factors
A195: 1 | B195: Average original cost of real and tangible property wherever situated | K195: =+A195 -> 1 | L195: =IF(Data!B$49=TRUE,0,ROUND((('Complete This Page'!I$74+'Complete This Page'!I$75+'Complete This Page'!I$76+'Complete This Page'!I$78+'Complete This Page'!I$80)+('Complete This Page'!I$77+'Complete This Page'!I$79+'Complete This Page'!I$81))/2,0)) -> 0
A196: 2 | B196: Gross annual rents paid wherever situated multiplied by 8 | K196: =+A196 -> 2 | L196: =IF(Data!B$49=TRUE,0,SUM('Complete This Page'!I$72:I$73)*8) -> 0
A197: 3 | B197: Add lines 1 and 2 | K197: =+A197 -> 3 | L197: =+L195+L196 -> 0
A198: 4 | B198: Total wages, commissions and other compensation paid to employees, wherever their services are performed | K198: =+A198 -> 4 | L198: =IF(Data!B$49=TRUE,0,SUM('Complete This Page'!I$68:I$71)) -> 0
A199: 5 | B199: Gross receipts from sales and services performed, wherever made or performed | K199: =+A199 -> 5 | L199: =IF(Data!B$49=TRUE,0,'Complete This Page'!I$67) -> 0
A201: Part II | C201: Calculation of Apportionment Denominator
A202: 6 | B202: If line 3 is zero or blank, enter -0-. Otherwise enter a one (1) on this line. | K202: =+A202 -> 6 | L202: =IF(L197>0,1,0) -> 0
A203: 7 | B203: If line 4 is zero or blank, enter -0-. Otherwise enter a one (1) on this line. | K203: =+A203 -> 7 | L203: =IF(L198>0,1,0) -> 0
A204: 8 | B204: If line 5 is zero or blank, enter -0-. Otherwise enter a one (1) on this line. | K204: =+A204 -> 8 | L204: =IF(L199>0,1,0) -> 0
A205: 9 | B205: Add lines 6 through 8. If the amount cannot be less than 1 or greater than 3. | K205: =+A205 -> 9 | L205: =SUM(L202:L204) -> 0
A207: Part III | C207: Calculation of Local Apportionment Factors
B208: A | E208: B | F208: C | G208: D | H208: E | I208: F | J208: G | K208: H | M208: I | N208: J
B209: Municipality | E209: Local Prop Costs | F209: Local Rents x 8 | G209: Local Property | H209: Property % | I209: Local Wages | J209: Wage % | K209: Local Receipts | M209: Receipts % | N209: Average %
A210: 10 | B210: =IF(Overflow!D66>0,"See Schedule",IF(Data!$A$40<>0,Data!$A$40,"")) ->  | E210: =IF(B210="","",IF(L$202=0,"",'Complete This Page'!D$84)) ->  | F210: =IF(B210="","",IF(L$202=0,"",'Complete This Page'!D$85)) ->  | G210: =IF(B210="","",IF(L$202=0,"",+E210+F210)) ->  | H210: =IF(B210="","",IF(L$202=0,"",ROUND(G210/L$197,6))) ->  | I210: =IF(B210="","",IF(L$203=0,"",'Complete This Page'!D$87)) ->  | J210: =IF(B210="","",IF(L$203=0,"",ROUND(I210/L$198,6))) ->  | K210: =IF(B210="","",IF(L$204=0,"",'Complete This Page'!D$88)) ->  | M210: =IF(B210="","",IF(L$204=0,"",ROUND(K210/L$199,6))) ->  | N210: =IF(OR(B210="",B210="See Schedule",Data!B49=TRUE),"",Data!O3) -> 
A211: 11 | B211: =IF(Data!$A$41<>0,Data!$A$41,"") ->  | E211: =IF(B211="","",IF(L$202=0,"",'Complete This Page'!E$84)) ->  | F211: =IF(B211="","",IF(L$202=0,"",'Complete This Page'!E$85)) ->  | G211: =IF(B211="","",IF(L$202=0,"",+E211+F211)) ->  | H211: =IF(B211="","",IF(L$202=0,"",ROUND(G211/L$197,6))) ->  | I211: =IF(B211="","",IF(L$203=0,"",'Complete This Page'!E$87)) ->  | J211: =IF(B211="","",IF(L$203=0,"",ROUND(I211/L$198,6))) ->  | K211: =IF(B211="","",IF(L$204=0,"",'Complete This Page'!E$88)) ->  | M211: =IF(B211="","",IF(L$204=0,"",ROUND(K211/L$199,6))) ->  | N211: =IF(B211="","",Data!O4) -> 
A212: 12 | B212: =IF(Data!$A$42<>0,Data!$A$42,"") ->  | E212: =IF(B212="","",IF(L$202=0,"",'Complete This Page'!F$84)) ->  | F212: =IF(B212="","",IF(L$202=0,"",'Complete This Page'!F$85)) ->  | G212: =IF(B212="","",IF(L$202=0,"",+E212+F212)) ->  | H212: =IF(B212="","",IF(L$202=0,"",ROUND(G212/L$197,6))) ->  | I212: =IF(B212="","",IF(L$203=0,"",'Complete This Page'!F$87)) ->  | J212: =IF(B212="","",IF(L$203=0,"",ROUND(I212/L$198,6))) ->  | K212: =IF(B212="","",IF(L$204=0,"",'Complete This Page'!F$88)) ->  | M212: =IF(B212="","",IF(L$204=0,"",ROUND(K212/L$199,6))) ->  | N212: =IF(B212="","",Data!O5) -> 
A213: 13 | B213: =IF(Data!$A$43<>0,Data!$A$43,"") ->  | E213: =IF(B213="","",IF(L$202=0,"",'Complete This Page'!G$84)) ->  | F213: =IF(B213="","",IF(L$202=0,"",'Complete This Page'!G$85)) ->  | G213: =IF(B213="","",IF(L$202=0,"",+E213+F213)) ->  | H213: =IF(B213="","",IF(L$202=0,"",ROUND(G213/L$197,6))) ->  | I213: =IF(B213="","",IF(L$203=0,"",'Complete This Page'!G$87)) ->  | J213: =IF(B213="","",IF(L$203=0,"",ROUND(I213/L$198,6))) ->  | K213: =IF(B213="","",IF(L$204=0,"",'Complete This Page'!G$88)) ->  | M213: =IF(B213="","",IF(L$204=0,"",ROUND(K213/L$199,6))) ->  | N213: =IF(B213="","",Data!O6) -> 
A214: 14 | B214: =IF(Data!$A$44<>0,Data!$A$44,"") ->  | E214: =IF(B214="","",IF(L$202=0,"",'Complete This Page'!H$84)) ->  | F214: =IF(B214="","",IF(L$202=0,"",'Complete This Page'!H$85)) ->  | G214: =IF(B214="","",IF(L$202=0,"",+E214+F214)) ->  | H214: =IF(B214="","",IF(L$202=0,"",ROUND(G214/L$197,6))) ->  | I214: =IF(B214="","",IF(L$203=0,"",'Complete This Page'!H$87)) ->  | J214: =IF(B214="","",IF(L$203=0,"",ROUND(I214/L$198,6))) ->  | K214: =IF(B214="","",IF(L$204=0,"",'Complete This Page'!H$88)) ->  | M214: =IF(B214="","",IF(L$204=0,"",ROUND(K214/L$199,6))) ->  | N214: =IF(B214="","",Data!O7) -> 
A215: 15 | B215: Combine the amounts in column J for lines 10 through 14. Enter the total here and on page 1, line 3B. | N215: =SUM(N210:N214) -> 0
A218: Schedule Y-1: Reconciliation of Schedule Y Wages to Withholding Returns
A219: 1 | B219: Total workplace wages per your withholding tax returns filed for the year covered by this return. | M219: =IF(Data!B174=TRUE,'Complete This Page'!I138,SUM('Complete This Page'!E142:E146)) -> 0
A220: 2 | B220: Attach explanation of any difference between total wages remitted and total wages shown on Schedule Y above.
B221: =IF('Complete This Page'!B149="","",'Complete This Page'!B149) -> 
A223: 3 | B223: Provide the Company Name and Federal Identification Number under which the withholding tax was remitted, if different than information on page 1.
B224: Company Name | K224: Federal Identification Number
B225: =IF('Complete This Page'!$F$152="","",'Complete This Page'!$F$152) ->  | K225: =IF('Complete This Page'!$C$152="","",'Complete This Page'!$C$152) -> 
D227: SCHEDULE Z: PASS-THROUGH DISTRIBUTIVE SHARES OF NET INCOME Attach a schedule of each partner's/shareholder's name, social security number, distributive share, guaranteed payments (if applicable) and taxable percentage.
D230: SCHEDULE ZZ: CONSOLIDATED RETURN INFORMATION If filing a consolidated return, you must attach Federal Form 851 or a schedule listing each name, address and employer identification number.
A238: Without Payment | F238: With Payment | J238: Web Address: www.ritaohio.com
A239: REGIONAL INCOME TAX AGENCY | F239: REGIONAL INCOME TAX AGENCY
A240: PO BOX 89475 | F240: PO BOX 94582 | N240: Page
A241: CLEVELAND OH 44101-6475 | F241: CLEVELAND OH 44101-6475 | N241: 4
N242: =+N69 -> 27F21

Sheet Print Schedules
A1: Attachment to Form | C1: 27 | D1: Supporting Schedules | K1: =IF('Complete This Page'!G11="",YEAR('Complete This Page'!H11),'Complete This Page'!G11) -> 1900
A2: Regional Income Tax Agency | K2: =+'Complete This Page'!J1 -> NPAC v2024.0
A3: Name shown on return | J3: Identifying Number
B4: =+'Complete This Page'!B3 -> 0 | J4: ='Complete This Page'!G3 -> 0
A6: Part I | C6: Municipal Net Operating Loss Carryovers
A8: NOTE: Municipal NOLs generated during tax years beginning on or after 1/1/17 may be carried over for 5 years.
D10: Municipal NOLs
D11: =+'Complete This Page'!D98 ->  | E11: =+'Complete This Page'!E98 ->  | F11: =+'Complete This Page'!F98 ->  | G11: =+'Complete This Page'!G98 ->  | I11: =+'Complete This Page'!H98 ->  | J11: Total
A12: NOL Generated | D12: ='Complete This Page'!D108 -> 0 | E12: ='Complete This Page'!E108 -> 0 | F12: ='Complete This Page'!F108 -> 0 | G12: ='Complete This Page'!G108 -> 0 | I12: ='Complete This Page'!H108 -> 0 | J12: ='Complete This Page'!J108 -> 0
A13: NOL Utilized on this return | D13: =MIN(D12,J13) -> 0 | E13: =MIN(D15,E12) -> 0 | F13: =MIN(E15,F12) -> 0 | G13: =MIN(F15,G12) -> 0 | I13: =MIN(I12,G15) -> 0 | J13: =IF('Complete This Page'!$K$108<>"",'Complete This Page'!$K$108,MAX(MIN('Print Return'!$L$37,'Complete This Page'!$J$108),0)) -> 0
A14: Remaining NOL Available | D14: =SUM(D12,-D13) -> 0 | E14: =SUM(E12,-E13) -> 0 | F14: 0 | G14: =SUM(G12,-G13) -> 0 | I14: =SUM(I12,-I13) -> 0 | J14: =MAX(SUM(J12,-J13),0) -> 0
A15: Remaining of J13 | D15: =J13-D13 -> 0 | E15: =D15-E13 -> 0 | F15: =E15-F13 -> 0 | G15: =F15-G13 -> 0 | I15: =G15-I13 -> 0 | J15: =0 -> 0
A16: =+'Complete This Page'!B103 ->  | J16: =0 -> 0
A33: Part II | C33: Federal Carryover Information | L33: =IF(Data!F9=TRUE,"C Corp","") -> 
A35: For use by taxpayers that are not C corporations. C corporations should attach copies of their federal schedules for charitable contribution carryovers, captial loss carryovers, and unrecovered 1231 loss carryovers to their RITA returns.
A37: Federal Carryovers | D37: Year Carryover Generated | L37: Available
A38: Beginning of Year | D38: =+D11 ->  | E38: =+E11 ->  | F38: =+F11 ->  | G38: =+G11 ->  | I38: =+I11 ->  | J38: Current
A39: =+'Fed Carryovers'!A7 -> Charitable Contributions | D39: =+'Fed Carryovers'!C7 -> 0 | E39: =+'Fed Carryovers'!D7 -> 0 | F39: =+'Fed Carryovers'!E7 -> 0 | G39: =+'Fed Carryovers'!F7 -> 0 | I39: =+'Fed Carryovers'!G7 -> 0 | J39: =+'Fed Carryovers'!H7 -> 0 | L39: =SUM(D39:K39) -> 0
A40: =+'Fed Carryovers'!A8 -> Capital Loss Carryovers | D40: =+'Fed Carryovers'!C8 -> 0 | E40: =+'Fed Carryovers'!D8 -> 0 | F40: =+'Fed Carryovers'!E8 -> 0 | G40: =+'Fed Carryovers'!F8 -> 0 | I40: =+'Fed Carryovers'!G8 -> 0 | J40: =+K69 -> 0 | L40: =SUM(D40:K40) -> 0
A41: =+'Fed Carryovers'!A9 -> Unrecovered §1231 Losses | D41: =+'Fed Carryovers'!C9 -> 0 | E41: =+'Fed Carryovers'!D9 -> 0 | F41: =+'Fed Carryovers'!E9 -> 0 | G41: =+'Fed Carryovers'!F9 -> 0 | I41: =+'Fed Carryovers'!G9 -> 0 | J41: =IF('Complete This Page'!I50<0,-'Complete This Page'!I50,0) -> 0 | L41: =SUM(D41:K41) -> 0
A42: =+'Fed Carryovers'!A10 -> Federal Net Operating Losses | D42: =+'Fed Carryovers'!C10 -> 0 | E42: =+'Fed Carryovers'!D10 -> 0 | F42: =+'Fed Carryovers'!E10 -> 0 | G42: =+'Fed Carryovers'!F10 -> 0 | I42: =+'Fed Carryovers'!G10 -> 0 | L42: =SUM(D42:K42) -> 0
A43: =+'Fed Carryovers'!A11 -> Section 179 | D43: =+'Fed Carryovers'!C11 -> 0 | E43: =+'Fed Carryovers'!D11 -> 0 | F43: =+'Fed Carryovers'!E11 -> 0 | G43: =+'Fed Carryovers'!F11 -> 0 | I43: =+'Fed Carryovers'!G11 -> 0 | L43: =SUM(D43:K43) -> 0
A45: Federal Carryovers | D45: Year Carryover Generated | L45: Available
A46: End of Year | D46: =+D11 ->  | E46: =+E11 ->  | F46: =+F11 ->  | G46: =+G11 ->  | I46: =+I11 ->  | J46: Current
A47: =+A39 -> Charitable Contributions | D47: =IF($L47-SUM(E47:$K47)=0,0,IF(D39<$L47-SUM(E47:$K47),D39,$L47-SUM(E47:$K47))) -> 0 | E47: =IF($L47-SUM(F47:$K47)=0,0,IF(E39<$L47-SUM(F47:$K47),E39,$L47-SUM(F47:$K47))) -> 0 | F47: =IF($L47-SUM(G47:$K47)=0,0,IF(F39<$L47-SUM(G47:$K47),F39,$L47-SUM(G47:$K47))) -> 0 | G47: =IF($L47-SUM(I47:$K47)=0,0,IF(G39<$L47-SUM(I47:$K47),G39,L47-SUM(I47:$K47))) -> 0 | I47: =IF($L47-SUM(J47:$K47)=0,0,IF(I39<$L47-SUM(J47:$K47),I39,L47-SUM(J47:$K47))) -> 0 | J47: =IF(J39<L47,J39,L47) -> 0 | L47: =+L39-K89 -> 0
A48: =+A40 -> Capital Loss Carryovers | D48: =IF($L48-SUM(E48:$K48)=0,0,IF(D40<$L48-SUM(E48:$K48),D40,$L48-SUM(E48:$K48))) -> 0 | E48: =IF($L48-SUM(F48:$K48)=0,0,IF(E40<$L48-SUM(F48:$K48),E40,$L48-SUM(F48:$K48))) -> 0 | F48: =IF($L48-SUM(G48:$K48)=0,0,IF(F40<$L48-SUM(G48:$K48),F40,$L48-SUM(G48:$K48))) -> 0 | G48: =IF($L48-SUM(I48:$K48)=0,0,IF(G40<$L48-SUM(I48:$K48),G40,L48-SUM(I48:$K48))) -> 0 | I48: =IF($L48-SUM(J48:$K48)=0,0,IF(I40<$L48-SUM(J48:$K48),I40,L48-SUM(J48:$K48))) -> 0 | J48: =IF(J40<L48,J40,L48) -> 0 | L48: =+L40-K106 -> 0
A49: =+A41 -> Unrecovered §1231 Losses | D49: =IF($L49-SUM(E49:$K49)=0,0,IF(D41<$L49-SUM(E49:$K49),D41,$L49-SUM(E49:$K49))) -> 0 | E49: =IF($L49-SUM(F49:$K49)=0,0,IF(E41<$L49-SUM(F49:$K49),E41,$L49-SUM(F49:$K49))) -> 0 | F49: =IF($L49-SUM(G49:$K49)=0,0,IF(F41<$L49-SUM(G49:$K49),F41,$L49-SUM(G49:$K49))) -> 0 | G49: =IF($L49-SUM(I49:$K49)=0,0,IF(G41<$L49-SUM(I49:$K49),G41,L49-SUM(I49:$K49))) -> 0 | I49: =IF($L49-SUM(J49:$K49)=0,0,IF(I41<$L49-SUM(J49:$K49),I41,L49-SUM(J49:$K49))) -> 0 | J49: =IF(J41<L49,J41,L49) -> 0 | L49: =+L41-H98 -> 0
A50: =+A42 -> Federal Net Operating Losses | D50: =IF($L50-SUM(E50:$K50)=0,0,IF(D42<$L50-SUM(E50:$K50),D42,$L50-SUM(E50:$K50))) -> 0 | E50: =IF($L50-SUM(F50:$K50)=0,0,IF(E42<$L50-SUM(F50:$K50),E42,$L50-SUM(F50:$K50))) -> 0 | F50: =IF($L50-SUM(G50:$K50)=0,0,IF(F42<$L50-SUM(G50:$K50),F42,$L50-SUM(G50:$K50))) -> 0 | G50: =IF($L50-SUM(I50:$K50)=0,0,IF(G42<$L50-SUM(I50:$K50),G42,L50-SUM(I50:$K50))) -> 0 | I50: =IF($L50-SUM(J50:$K50)=0,0,IF(I42<$L50-SUM(J50:$K50),I42,L50-SUM(J50:$K50))) -> 0 | J50: =+J42 -> 0 | L50: =+L42-K84 -> 0
A51: =+A43 -> Section 179 | D51: =IF($L51-SUM(E51:$K51)=0,0,IF(D43<$L51-SUM(E51:$K51),D43,$L51-SUM(E51:$K51))) -> 0 | E51: =IF($L51-SUM(F51:$K51)=0,0,IF(E43<$L51-SUM(F51:$K51),E43,$L51-SUM(F51:$K51))) -> 0 | F51: =IF($L51-SUM(G51:$K51)=0,0,IF(F43<$L51-SUM(G51:$K51),F43,$L51-SUM(G51:$K51))) -> 0 | G51: =IF($L51-SUM(I51:$K51)=0,0,IF(G43<$L51-SUM(I51:$K51),G43,L51-SUM(I51:$K51))) -> 0 | I51: =IF($L51-SUM(J51:$K51)=0,0,IF(I43<$L51-SUM(J51:$K51),I43,L51-SUM(J51:$K51))) -> 0 | J51: =+J43 -> 0 | L51: =+L43-K80 -> 0
A54: Attachment to Form | C54: 27 | D54: Supporting Schedules | K54: =+K1 -> 1900
A55: Regional Income Tax Agency | K55: =+'Complete This Page'!J1 -> NPAC v2024.0
A56: Name shown on return | J56: Identifying Number
B57: =+B4 -> 0 | J57: =+J4 -> 0
A58: Part III | C58: Adjusted Federal Taxable Income Calculation
A59: For use by taxpayers that are not C Corporations
A60: Part A: Federal Taxable Income as if a C Corporation
A61: 1 | B61: Income before net operating losses and special deductions | J61: =+A61 -> 1 | K61: =+'Fed Carryovers'!H21 -> 0
A62: =+A61+1 -> 2 | B62: Qualified self-employed retirement plan for owners | G62: =+A62 -> 2 | H62: =+'Fed Carryovers'!F22 -> 0
A63: =+A62+1 -> 3 | B63: Health insurance paid or accrued for owners | G63: =+A63 -> 3 | H63: =+'Fed Carryovers'!F23 -> 0
A64: 4 | B64: Life insurance paid or accrued for owners | G64: =+A64 -> 4 | H64: =+'Fed Carryovers'!F24 -> 0
A65: 5 | B65: =CONCATENATE("Deductions not permitted by §718.01(A)(1)(g). Combine lines ",A62," - ",A64) -> Deductions not permitted by §718.01(A)(1)(g). Combine lines 2 - 4 | K65: =SUM(H62:H64) -> 0
A66: 6 | B66: =CONCATENATE("Combine lines ",A61," and ",A65) -> Combine lines 1 and 5 | J66: =+A66 -> 6 | K66: =+K61+K65 -> 0
A67: 7 | B67: =CONCATENATE("Allowable prior year capital losses. Enter the amount from line ",A106) -> Allowable prior year capital losses. Enter the amount from line 38 | J67: =+A67 -> 7 | K67: =+K106 -> 0
A68: 8 | B68: =CONCATENATE("Subtract line ",A67," from ",A66) -> Subtract line 7 from 6 | J68: =+A68 -> 8 | K68: =+K66-K67 -> 0
A69: 9 | B69: =CONCATENATE("Capital losses in excess of capital gains. Enter the amount from line ",A109) -> Capital losses in excess of capital gains. Enter the amount from line 40 | J69: =+A69 -> 9 | K69: =+K109 -> 0
A70: 10 | B70: =CONCATENATE("Add line ",A69," from ",A68) -> Add line 9 from 8 | J70: =+A70 -> 10 | K70: =+K68+K69 -> 0
A71: =+A70+1 -> 11 | B71: Section 179 deduction in the current year | G71: =+A71 -> 11 | H71: =+'Fed Carryovers'!F31 -> 0
A72: 12 | B72: Charitable contributions deducted in the current year | G72: =+A72 -> 12 | H72: =+'Fed Carryovers'!F32 -> 0
A73: 13 | B73: =CONCATENATE("Combine lines ",A71," and ",A72) -> Combine lines 11 and 12 | J73: =+A73 -> 13 | K73: =SUM(H71:H72) -> 0
A74: 14 | B74: =CONCATENATE("'C-Corp' Income before contributions, §179, and NOL. Add lines ",A70," and ",A73) -> 'C-Corp' Income before contributions, §179, and NOL. Add lines 10 and 13 | J74: =+A74 -> 14 | K74: =+K70+K73 -> 0
A76: =+A74+1 -> 15 | B76: =CONCATENATE("Enter the amount on line ",A74,". If line ",A74," is less than zero, enter zero") -> Enter the amount on line 14. If line 14 is less than zero, enter zero | J76: =+A76 -> 15 | K76: =IF(K74<0,0,K74) -> 0
A77: 16 | B77: =CONCATENATE("Allowable current year §179 deduction. Enter the lesser of line ",A71," or line ",A76) -> Allowable current year §179 deduction. Enter the lesser of line 11 or line 15 | J77: 16 | K77: =IF(H71<K76,H71,K76) -> 0
A78: 17 | B78: =CONCATENATE("Subtract line ",A77," from line ",A74) -> Subtract line 16 from line 14 | J78: 17 | K78: =+K74-K77 -> 0
A79: =+A78+1 -> 18 | B79: =CONCATENATE("Enter the amount on line ",A78,". If line ",A78," is less than zero, enter zero") -> Enter the amount on line 17. If line 17 is less than zero, enter zero | J79: 18 | K79: =IF(K78<0,0,K78) -> 0
A80: =+A79+1 -> 19 | B80: =CONCATENATE("Enter the lesser of line ",A79," or the unused §179 carryover") -> Enter the lesser of line 18 or the unused §179 carryover | J80: 19 | K80: =+'Fed Carryovers'!H40 -> 0
A81: =+A80+1 -> 20 | B81: =CONCATENATE("Federal 'C-Corp' income before contribution deduction and NOL. Subtract line ",A80," from ",A78) -> Federal 'C-Corp' income before contribution deduction and NOL. Subtract line 19 from 17 | J81: 20 | K81: =+K78-K80 -> 0
A83: =+A81+1 -> 21 | B83: =CONCATENATE("Enter the amount on line ",A81,". If line ",A81," is less than zero, enter zero") -> Enter the amount on line 20. If line 20 is less than zero, enter zero | J83: =+A83 -> 21 | K83: =IF(K81<0,0,K81) -> 0
A84: 22 | B84: =CONCATENATE("Enter the lesser of line ",A83," or the federal net operating loss carryover") -> Enter the lesser of line 21 or the federal net operating loss carryover | J84: =+A84 -> 22 | K84: =+'Fed Carryovers'!H44 -> 0
A85: 23 | B85: =CONCATENATE("Federal 'C-Corp' income before contribution deduction. Subtract line ",A84," from ",A81) -> Federal 'C-Corp' income before contribution deduction. Subtract line 22 from 20 | J85: =+A85 -> 23 | K85: =+K81-K84 -> 0
A87: =+A85+1 -> 24 | B87: =CONCATENATE("Enter the amount on line ",A85,". If line ",A85," is less than zero, enter zero") -> Enter the amount on line 23. If line 23 is less than zero, enter zero | J87: =+A87 -> 24 | K87: =IF(K85<0,0,K85) -> 0
A88: =+A87+1 -> 25 | B88: =CONCATENATE("Multiply line ",A87," by 0.10") -> Multiply line 24 by 0.10 | J88: =+A88 -> 25 | K88: =ROUND(K87*0.1,0) -> 0
A89: =+A88+1 -> 26 | B89: =CONCATENATE("Enter the lesser of line ",A88," or the available contribution deduction and carryovers") -> Enter the lesser of line 25 or the available contribution deduction and carryovers | J89: =+A89 -> 26 | K89: =+'Fed Carryovers'!H49 -> 0
A90: =+A89+1 -> 27 | B90: =CONCATENATE("Federal income as if taxpayer was an 'C-Corp'. Subtract line ",A89," from ",A85) -> Federal income as if taxpayer was an 'C-Corp'. Subtract line 26 from 23 | J90: =+A90 -> 27 | K90: =+K85-K89 -> 0
A92: =+A90+1 -> 28 | B92: =CONCATENATE("Federal income before net operating losses as if taxpayer was a 'C-Corp'. Add lines ",A84," and ",A90) -> Federal income before net operating losses as if taxpayer was a 'C-Corp'. Add lines 22 and 27 | J92: =+A92 -> 28 | K92: =+K84+K90 -> 0
A94: =+A92+1 -> 29 | B94: =CONCATENATE("Income before NOL's & Schedule X adjustments. Subtract lines ",A65," & ",A69," from the total of lines ",A92," & ",A67) -> Income before NOL's & Schedule X adjustments. Subtract lines 5 & 9 from the total of lines 28 & 7 | J94: =+A94 -> 29 | K94: =+K92-K65-K69+K67 -> 0
A96: Part B: Capital Losses
A97: =+A94+1 -> 30 | B97: Net section 1231 gain (attach Form 4797) | G97: =+A97 -> 30 | H97: =+'Fed Carryovers'!F53 -> 0
A98: =+A97+1 -> 31 | B98: =CONCATENATE("Enter the lesser of line ",A97," or the nonrecaptured 1231 losses") -> Enter the lesser of line 30 or the nonrecaptured 1231 losses | G98: =+A98 -> 31 | H98: =+'Fed Carryovers'!F54 -> 0
A99: 32 | B99: =CONCATENATE("'C Corp' 1231 capital gain. Subtract line ",A98," from line ",G97) -> 'C Corp' 1231 capital gain. Subtract line 31 from line 30 | J99: =+A99 -> 32 | K99: =+H97-H98 -> 0
A100: 33 | B100: Net short-term capital gain (loss) (attach Sched D) | G100: =+A100 -> 33 | H100: =+'Fed Carryovers'!F56 -> 0
A101: 34 | B101: Net long-term capital gain (loss) (attach Sched D) | G101: =+A101 -> 34 | H101: =+'Fed Carryovers'!F57 -> 0
A102: 35 | B102: =CONCATENATE("Schedule D capital gain (loss). Combine lines ",A100," and ",A101) -> Schedule D capital gain (loss). Combine lines 33 and 34 | J102: =+A102 -> 35 | K102: =SUM(H100:H101) -> 0
A103: 36 | B103: =CONCATENATE("Current year capital gain (loss). Combine lines ",A99," and ",A102) -> Current year capital gain (loss). Combine lines 32 and 35 | K103: =+K99+K102 -> 0
A105: =+A103+1 -> 37 | B105: =CONCATENATE("If the amount on line ",A103," is a gain, enter the gain here") -> If the amount on line 36 is a gain, enter the gain here | J105: =+A105 -> 37 | K105: =IF(K103>0,K103,0) -> 0
A106: =+A105+1 -> 38 | B106: =CONCATENATE("Enter the lesser of line ",A105," or the capital loss carryover") -> Enter the lesser of line 37 or the capital loss carryover | J106: =+A106 -> 38 | K106: =+'Fed Carryovers'!H62 -> 0
A107: =+A106+1 -> 39 | B107: =CONCATENATE("'C Corp' net capital gains & losses. Subtract line ",A106," from ",A105) -> 'C Corp' net capital gains & losses. Subtract line 38 from 37 | J107: =+A107 -> 39 | K107: =+K105-K106 -> 0
A109: =+A107+1 -> 40 | B109: =CONCATENATE("Capital losses in excess of capital gains. If line ",A103," is a loss, enter the loss here") -> Capital losses in excess of capital gains. If line 36 is a loss, enter the loss here | J109: =+A109 -> 40 | K109: =IF(K103<0,-K103,0) -> 0
A110: Attachment to Form | C110: 27 | D110: Supporting Schedules | K110: =+K1 -> 1900
A111: Regional Income Tax Agency | K111: =+'Complete This Page'!J1 -> NPAC v2024.0
A112: Name shown on return | J112: Identifying Number
B113: =+B4 -> 0 | J113: =+J4 -> 0
A114: For use by taxpayers that are not C Corporations
A116: Schedule Z | D116: Pass-Through Distributive Shares of Net Income
A117: (From federal Schedule K for federal Form 1065 or 1120S. Attach additional schedules if more space is needed.)
A118: Partner/Shareholder | D118: SSN/EIN | F118: Ownership Percentage | G118: Federal Pass-Through Income (Loss) | I118: Guaranteed Pymts | J118: RITA Pass-Through Income (Loss) | L118: Share of RITA Tax Paid
A119: =IF(AND(Data!$B$11=TRUE,'Complete This Page'!$B$129<>""),'Complete This Page'!$B$129,"") ->  | D119: =IF(AND(Data!$B$11=TRUE,'Complete This Page'!$B$129<>""),'Complete This Page'!$F$129,"") ->  | F119: =IF(AND(Data!$B$11=TRUE,'Complete This Page'!$B$129<>""),'Complete This Page'!$G$129,"") ->  | G119: =IF(AND(Data!$B$11=TRUE,'Complete This Page'!$B$129<>""),'Complete This Page'!$H$129,"") ->  | I119: =IF(AND(Data!$B$11=TRUE,'Complete This Page'!$B$129<>""),'Complete This Page'!$J$129,"") ->  | J119: =IF(AND(Data!$B$11=TRUE,'Complete This Page'!$B129<>""),ROUND('Print Return'!$L$51*$F119,0),"") ->  | L119: =IF(AND(Data!$B$11=TRUE,'Complete This Page'!$B129<>""),ROUND('Print Return'!$L$53*$F119,0),"") -> 
A120: =IF(AND(Data!$B$11=TRUE,'Complete This Page'!$B$130<>""),'Complete This Page'!$B$130,"") ->  | D120: =IF(AND(Data!$B$11=TRUE,'Complete This Page'!$B$130<>""),'Complete This Page'!$F$130,"") ->  | F120: =IF(AND(Data!$B$11=TRUE,'Complete This Page'!$B$130<>""),'Complete This Page'!$G$130,"") ->  | G120: =IF(AND(Data!$B$11=TRUE,'Complete This Page'!$B$130<>""),'Complete This Page'!$H$130,"") ->  | I120: =IF(AND(Data!$B$11=TRUE,'Complete This Page'!$B$130<>""),'Complete This Page'!$J$130,"") ->  | J120: =IF(AND(Data!$B$11=TRUE,'Complete This Page'!$B130<>""),ROUND('Print Return'!$L$51*$F120,0),"") ->  | L120: =IF(AND(Data!$B$11=TRUE,'Complete This Page'!$B130<>""),ROUND('Print Return'!$L$53*$F120,0),"") -> 
A121: =IF(AND(Data!$B$11=TRUE,'Complete This Page'!$B$131<>""),'Complete This Page'!$B$131,"") ->  | D121: =IF(AND(Data!$B$11=TRUE,'Complete This Page'!$B$131<>""),'Complete This Page'!$F$131,"") ->  | F121: =IF(AND(Data!$B$11=TRUE,'Complete This Page'!$B$131<>""),'Complete This Page'!$G$131,"") ->  | G121: =IF(AND(Data!$B$11=TRUE,'Complete This Page'!$B$131<>""),'Complete This Page'!$H$131,"") ->  | I121: =IF(AND(Data!$B$11=TRUE,'Complete This Page'!$B$131<>""),'Complete This Page'!$J$131,"") ->  | J121: =IF(AND(Data!$B$11=TRUE,'Complete This Page'!$B131<>""),ROUND('Print Return'!$L$51*$F121,0),"") ->  | L121: =IF(AND(Data!$B$11=TRUE,'Complete This Page'!$B131<>""),ROUND('Print Return'!$L$53*$F121,0),"") -> 
A122: =IF(AND(Data!$B$11=TRUE,'Complete This Page'!$B$132<>""),'Complete This Page'!$B$132,"") ->  | D122: =IF(AND(Data!$B$11=TRUE,'Complete This Page'!$B$132<>""),'Complete This Page'!$F$132,"") ->  | F122: =IF(AND(Data!$B$11=TRUE,'Complete This Page'!$B$132<>""),'Complete This Page'!$G$132,"") ->  | G122: =IF(AND(Data!$B$11=TRUE,'Complete This Page'!$B$132<>""),'Complete This Page'!$H$132,"") ->  | I122: =IF(AND(Data!$B$11=TRUE,'Complete This Page'!$B$132<>""),'Complete This Page'!$J$132,"") ->  | J122: =IF(AND(Data!$B$11=TRUE,'Complete This Page'!$B132<>""),ROUND('Print Return'!$L$51*$F122,0),"") ->  | L122: =IF(AND(Data!$B$11=TRUE,'Complete This Page'!$B132<>""),ROUND('Print Return'!$L$53*$F122,0),"") -> 
A123: =IF(AND(Data!$B$11=TRUE,'Complete This Page'!$B$133<>""),'Complete This Page'!$B$133,"") ->  | D123: =IF(AND(Data!$B$11=TRUE,'Complete This Page'!$B$133<>""),'Complete This Page'!$F$133,"") ->  | F123: =IF(AND(Data!$B$11=TRUE,'Complete This Page'!$B$133<>""),'Complete This Page'!$G$133,"") ->  | G123: =IF(AND(Data!$B$11=TRUE,'Complete This Page'!$B$133<>""),'Complete This Page'!$H$133,"") ->  | I123: =IF(AND(Data!$B$11=TRUE,'Complete This Page'!$B$133<>""),'Complete This Page'!$J$133,"") ->  | J123: =IF(AND(Data!$B$11=TRUE,'Complete This Page'!$B133<>""),ROUND('Print Return'!$L$51*$F123,0),"") ->  | L123: =IF(AND(Data!$B$11=TRUE,'Complete This Page'!$B133<>""),ROUND('Print Return'!$L$53*$F123,0),"") -> 

Sheet Tax Rates (hidden)
A1: Index | B1: City Code | C1: City Name | D1: Tax Rate 1 | I1: Tax Rate 2 | N1: Tax Rate 3 | S1: Tax Rate 4 | X1: Tax Rate 5 | AC1: Tax Rate 6 | AH1: Tax Rate 7 | AM1: Tax Rate 8 | AR1: Tax Rate 9 | AW1: Tax Rate 10
D2: Rate | E2: Credit | F2: Credit Limit | G2: Start | H2: End | I2: Rate | J2: Credit | K2: Credit Limit | L2: Start | M2: End | N2: Rate | O2: Credit | P2: Credit Limit | Q2: Start | R2: End | S2: Rate | T2: Credit | U2: Credit Limit | V2: Start | W2: End | X2: Rate | Y2: Credit | Z2: Credit Limit | AA2: Start | AB2: End | AC2: Rate | AD2: Credit | AE2: Credit Limit | AF2: Start | AG2: End | AH2: Rate | AI2: Credit | AJ2: Credit Limit | AK2: Start | AL2: End | AM2: Rate | AN2: Credit | AO2: Credit Limit | AP2: Start | AQ2: End | AR2: Rate | AS2: Credit | AT2: Credit Limit | AU2: Start | AV2: End | AW2: Rate | AX2: Credit | AY2: Credit Limit | AZ2: Start | BA2: End
A3: 1 | B3: 0
A4: =+A3+1 -> 2 | B4: 23 | C4: Aberdeen | D4: 0 | G4: 2004-01-01 | H4: 2004-12-31 | I4: 0.01 | L4: 2005-01-01
A5: =+A4+1 -> 3 | B5: 4 | C5: Ada | D5: 0.0115 | G5: 2004-01-01 | H5: 2011-06-30 | I5: 0.0165 | L5: 2011-07-01
A6: 4 | B6: 18 | C6: Addyston | D6: 0.01 | G6: 2004-01-01 | H6: 2012-12-31 | I6: 0.015 | L6: 2013-01-01
A7: 5 | B7: 22 | C7: Adelphi | D7: 0 | G7: 2004-01-01 | H7: 2009-12-31 | I7: 0.01 | L7: 2010-01-01
A8: 6 | B8: 43 | C8: Alexandria | D8: 0 | G8: 2004-01-01 | H8: 2019-12-31 | I8: 0.01 | L8: 2020-01-01
A9: 7 | B9: 24 | C9: Alger | D9: 0 | G9: 2004-01-01 | H9: 2006-12-31 | I9: 0.01 | L9: 2007-01-01
A10: 8 | B10: 44 | C10: Amanda | D10: 0 | G10: 2004-01-01 | H10: 2015-08-31 | I10: 0.01 | L10: 2015-09-01
A11: 9 | B11: 42 | C11: Amelia | D11: 0 | G11: 2004-01-01 | H11: 2018-06-30 | I11: 0.01 | L11: 2018-07-01 | M11: 2020-12-31 | N11: 0 | Q11: 2021-01-01
A12: 10 | B12: 39 | C12: Amsterdam | D12: 0 | G12: 2004-01-01 | H12: 2014-06-30 | I12: 0.01 | L12: 2014-07-01
A13: 11 | B13: 15 | C13: Andover | D13: 0.015 | G13: 2004-01-01
A14: 12 | B14: 31 | C14: Antwerp | D14: 0 | G14: 2004-01-01 | H14: 2006-09-11 | I14: 0.01 | L14: 2006-09-12
A15: 13 | B15: 32 | C15: Apple Creek | D15: 0 | G15: 2004-01-01 | H15: 2004-12-31 | I15: 0.01 | L15: 2005-01-01
A16: 14 | B16: 47 | C16: Apple Creek-East Union TWP JEDD II | D16: 0 | G16: 2004-01-01 | H16: 2015-08-02 | I16: 0.01 | L16: 2015-08-03
A17: 15 | B17: 13 | C17: Arlington Heights | D17: 0.021 | G17: 2004-01-01
A18: 16 | B18: 41 | C18: Ashley | D18: 0 | G18: 2004-01-01 | H18: 2015-12-31 | I18: 0.01 | L18: 2016-01-01
A19: 17 | B19: 6 | C19: Ashville | D19: 0.005 | G19: 2004-01-01 | H19: 2007-12-31 | I19: 0.01 | L19: 2008-01-01
A20: 18 | B20: 10 | C20: Aurora | D20: 0.02 | G20: 2004-01-01
A21: 19 | B21: 20 | C21: Avon | D21: 0.015 | G21: 2004-01-01 | H21: 2007-12-31 | I21: 0.0175 | L21: 2008-01-01
A22: 20 | B22: 21 | C22: Avon Lake | D22: 0.015 | G22: 2004-01-01
A23: 21 | B23: 919 | C23: Bainbridge Twp Aurora JEDD | D23: 0 | G23: 2004-01-01 | H23: 2024-12-31 | I23: 0.02 | L23: 2025-01-01
A24: 22 | B24: 37 | C24: Bainbridge Twp / Solon JEDD | D24: 0 | G24: 2004-01-01 | H24: 2006-12-31 | I24: 0.02 | L24: 2007-01-01
A25: 23 | B25: 33 | C25: Baltic | D25: 0 | G25: 2004-01-01 | H25: 2004-12-31 | I25: 0.01 | L25: 2005-01-01 | M25: 2015-12-31 | N25: 0.015 | Q25: 2016-01-01
A26: 24 | B26: 29 | C26: Baltimore | D26: 0.01 | G26: 2004-01-01
A27: 25 | B27: 28 | C27: Barberton | D27: 0.02 | G27: 2004-01-01 | H27: 2013-12-31 | I27: 0.0225 | L27: 2014-01-01
A28: 26 | B28: 34 | C28: Barnesville | D28: 0 | G28: 2004-01-01 | H28: 2004-12-31 | I28: 0.01 | L28: 2005-01-01
A29: 27 | B29: 61 | C29: Barnesville JEDD 1 | D29: 0 | G29: 2004-01-01 | H29: 2008-11-30 | I29: 0.01 | L29: 2008-12-01
A30: 28 | B30: 62 | C30: Barnesville JEDD 2 | D30: 0 | G30: 2004-01-01 | H30: 2012-06-17 | I30: 0.01 | L30: 2012-06-18
A31: 29 | B31: 35 | C31: Batavia | D31: 0 | G31: 2004-01-01 | H31: 2019-06-30 | I31: 0.01 | L31: 2019-07-01
A32: 30 | B32: 40 | C32: Bay Village | D32: 0.015 | G32: 2004-01-01
A33: 31 | B33: 50 | C33: Beachwood | D33: 0.015 | G33: 2004-01-01 | H33: 2010-12-31 | I33: 0.02 | L33: 2011-01-01
A34: 32 | B34: 54 | C34: Beaverdam | D34: 0 | G34: 2004-01-01 | H34: 2009-12-31 | I34: 0.01 | L34: 2010-01-01
A35: 33 | B35: 60 | C35: Bedford | D35: 0.0225 | G35: 2004-01-01 | H35: 2017-12-31 | I35: 0.03 | L35: 2018-01-01
A36: 34 | B36: 65 | C36: Bedford Heights | D36: 0.02 | G36: 2004-01-01
A37: 35 | B37: 83 | C37: Belle Center | D37: 0.01 | G37: 2004-01-01
A38: 36 | B38: 87 | C38: Bellefontaine | D38: 0.013333 | G38: 2004-01-01 | H38: 2024-06-30 | I38: 0.016 | L38: 2024-07-01
A39: 37 | B39: 86 | C39: Bellevue | D39: 0.015 | G39: 2004-01-01 | H39: 2018-06-30 | I39: 0.02 | L39: 2018-07-01
A40: 38 | B40: 88 | C40: Bellville | D40: 0 | G40: 2004-01-01 | H40: 2019-06-30 | I40: 0.01 | L40: 2019-07-01
A41: 39 | B41: 89 | C41: Belpre | D41: 0 | G41: 2004-01-01 | H41: 2004-12-31 | I41: 0.01 | L41: 2005-01-01
A42: 40 | B42: 90 | C42: Bentleyville | D42: 0.01 | G42: 2004-01-01
A43: 41 | B43: 100 | C43: Berea | D43: 0.02 | G43: 2004-01-01
A44: 42 | B44: 116 | C44: Bethel | D44: 0 | G44: 2004-01-01 | H44: 2019-06-30 | I44: 0.005 | L44: 2019-07-01 | M44: 2023-12-31 | N44: 0.01 | Q44: 2024-01-01
A45: 43 | B45: 102 | C45: Bettsville | D45: 0 | G45: 2004-01-01 | H45: 2006-12-31 | I45: 0.01 | L45: 2007-01-01
A46: 44 | B46: 103 | C46: Beverly | D46: 0.01 | G46: 2004-01-01 | H46: 2022-12-31 | I46: 0.0125 | L46: 2023-01-01
A47: 45 | B47: 104 | C47: Bexley | D47: 0.02 | G47: 2004-01-01 | H47: 2011-12-31 | I47: 0.025 | L47: 2012-01-01
A48: 46 | B48: 118 | C48: Blanchester | D48: 0 | G48: 2004-01-01 | H48: 2024-06-30 | I48: 0.01 | L48: 2024-07-01
A49: 47 | B49: 96 | C49: Bloomdale | D49: 0.01 | G49: 2004-01-01
A50: 48 | B50: 95 | C50: Bloomingdale | D50: 0 | G50: 2004-01-01 | H50: 2007-12-31 | I50: 0.01 | L50: 2008-01-01
A51: 49 | B51: 123 | C51: Bloomville | D51: 0 | G51: 2004-01-01 | H51: 2018-12-31 | I51: 0.01 | L51: 2019-01-01
A52: 50 | B52: 110 | C52: Boston Heights | D52: 0.015 | G52: 2004-01-01 | H52: 2004-12-31 | I52: 0.02 | L52: 2005-01-01
A53: 51 | B53: 117 | C53: Boston Twp / Peninsula JEDD | D53: 0 | G53: 2004-01-01 | H53: 2011-12-31 | I53: 0.02 | L53: 2012-01-01
A54: 52 | B54: 112 | C54: Bradford | D54: 0 | G54: 2004-01-01 | H54: 2004-12-31 | I54: 0.01 | L54: 2005-01-01
A55: 53 | B55: 120 | C55: Bratenahl | D55: 0.015 | G55: 2004-01-01 | H55: 2019-05-31 | I55: 0.02 | L55: 2019-06-01
A56: 54 | B56: 130 | C56: Brecksville | D56: 0.02 | G56: 2004-01-01
A57: 55 | B57: 132 | C57: Bremen | D57: 0 | G57: 2004-01-01 | H57: 2004-12-31 | I57: 0.01 | L57: 2005-01-01
A58: 56 | B58: 136 | C58: Brice | D58: 0 | G58: 2004-01-01 | H58: 2018-12-31 | I58: 0.02 | L58: 2019-01-01
A59: 57 | B59: 156 | C59: Bridgeport | D59: 0 | G59: 2004-01-01 | H59: 2019-07-31 | I59: 0.01 | L59: 2019-08-01
A60: 58 | B60: 137 | C60: Brimfield Twp / Tallmadge JEDD | D60: 0.0025 | G60: 2004-01-01 | H60: 2005-12-31 | I60: 0.005 | L60: 2006-01-01 | M60: 2008-12-31 | N60: 0.0075 | Q60: 2009-01-01 | R60: 2011-12-31 | S60: 0.01 | V60: 2012-01-01 | W60: 2014-12-31 | X60: 0.0125 | AA60: 2015-01-01 | AB60: 2018-12-31 | AC60: 0.015 | AF60: 2019-01-01 | AG60: 2021-12-31 | AH60: 0.0175 | AK60: 2022-01-01
A61: 59 | B61: 140 | C61: Broadview Heights | D61: 0.02 | G61: 2004-01-01
A62: 60 | B62: 150 | C62: Brooklyn | D62: 0.02 | G62: 2004-01-01 | H62: 2009-05-31 | I62: 0.025 | L62: 2009-06-01
A63: 61 | B63: 160 | C63: Brooklyn Heights | D63: 0.02 | G63: 2004-01-01 | H63: 2018-06-30 | I63: 0.025 | L63: 2018-07-01
A64: 62 | B64: 172 | C64: Bryan | D64: 0.013 | G64: 2004-01-01 | H64: 2014-11-30 | I64: 0.018 | L64: 2014-12-01
A65: 63 | B65: 154 | C65: Buckland | D65: 0 | G65: 2004-01-01 | H65: 2013-06-30 | I65: 0.01 | L65: 2013-07-01
A66: 64 | B66: 125 | C66: Burbank | D66: 0 | G66: 2004-01-01 | H66: 2022-06-30 | I66: 0.01 | L66: 2022-07-01
A67: 65 | B67: 163 | C67: Butler | D67: 0 | G67: 2004-01-01 | H67: 2005-06-23 | I67: 0.01 | L67: 2005-06-24
A68: 66 | B68: 91 | C68: Butler County Annexation | D68: 0 | G68: 2004-01-01 | H68: 2004-12-31 | I68: 0.02 | L68: 2005-01-01
A69: 67 | B69: 162 | C69: Cairo | D69: 0 | G69: 2004-01-01 | H69: 2006-03-31 | I69: 0.01 | L69: 2006-04-01 | M69: 2007-06-30 | N69: 0.005 | Q69: 2007-07-01
A70: 68 | B70: 158 | C70: Caldwell | D70: 0 | G70: 2004-01-01 | H70: 2017-12-31 | I70: 0.01 | L70: 2018-01-01
A71: 69 | B71: 232 | C71: Camden | D71: 0 | G71: 2004-01-01 | H71: 2013-12-31 | I71: 0.01 | L71: 2014-01-01
A72: 70 | B72: 167 | C72: Campbell | D72: 0.02 | G72: 2004-01-01 | H72: 2004-12-31 | I72: 0.025 | L72: 2005-01-01
A73: 71 | B73: 175 | C73: Canal Winchester | D73: 0.02 | G73: 2004-01-01
A74: 72 | B74: 168 | C74: Cardington | D74: 0.01 | G74: 2004-01-01
A75: 73 | B75: 202 | C75: Carroll | D75: 0 | G75: 2004-01-01 | H75: 2004-12-31 | I75: 0.0075 | L75: 2005-01-01
A76: 74 | B76: 203 | C76: Carrollton | D76: 0 | G76: 2004-01-01 | H76: 2004-12-31 | I76: 0.01 | L76: 2005-01-01
A77: 75 | B77: 204 | C77: Catawba | D77: 0 | G77: 2004-01-01 | H77: 2004-12-31 | I77: 0.01 | L77: 2005-01-01
A78: =+A77+1 -> 76 | B78: 195 | C78: Cecil | D78: 0.01 | G78: 2004-01-01
A79: 77 | B79: 192 | C79: Cedarville | D79: 0.01 | G79: 2004-01-01 | H79: 2015-06-30 | I79: 0.0125 | L79: 2015-07-01
A80: 78 | B80: 194 | C80: Centerburg | D80: 0.01 | G80: 2004-01-01
A81: 79 | B81: 180 | C81: Chagrin Falls | D81: 0.015 | G81: 2004-01-01 | H81: 2016-12-31 | I81: 0.0185 | L81: 2017-01-01
A82: 80 | B82: 185 | C82: Chardon | D82: 0.01 | G82: 2004-01-01 | H82: 2004-12-31 | I82: 0.02 | L82: 2005-01-01
A83: 81 | B83: 126 | C83: Chesterville | D83: 0 | G83: 2004-01-01 | H83: 2018-06-30 | I83: 0.01 | L83: 2018-07-01
A84: 82 | B84: 190 | C84: Circleville | D84: 0.015 | G84: 2004-01-01 | H84: 2014-12-31 | I84: 0.02 | L84: 2015-01-01 | M84: 2019-12-31 | N84: 0.025 | Q84: 2020-01-01 | R84: 2024-12-31 | S84: 0.02 | V84: 2025-01-01
A85: 83 | B85: 151 | C85: Circleville-Pickaway Twp JEDD | D85: 0 | G85: 2004-01-01 | H85: 2016-10-31 | I85: 0.02 | L85: 2016-11-01 | M85: 2019-12-31 | N85: 0.025 | Q85: 2020-01-01
A86: 84 | B86: 237 | C86: Clarksville | D86: 0 | G86: 2004-01-01 | H86: 2016-06-30 | I86: 0.01 | L86: 2016-07-01
A87: 85 | B87: 210 | C87: Cleveland Heights | D87: 0.02 | G87: 2004-01-01 | H87: 2015-12-31 | I87: 0.0225 | L87: 2016-01-01
A88: 86 | B88: 159 | C88: Clinton | D88: 0 | G88: 2004-01-01 | H88: 2011-12-31 | I88: 0.01 | L88: 2012-01-01
A89: 87 | B89: 293 | C89: Clinton Twp/Grandview Hts JEDZ | D89: 0 | G89: 2004-01-01 | H89: 2014-03-31 | I89: 0.025 | L89: 2014-04-01
A90: 88 | B90: 207 | C90: Coal Grove | D90: 0.01 | G90: 2004-01-01
A91: 89 | B91: 155 | C91: College Corner | D91: 0 | G91: 2004-01-01 | H91: 2024-06-30 | I91: 0.01 | L91: 2024-07-01
A92: 90 | B92: 211 | C92: Columbiana | D92: 0.01 | G92: 2004-01-01
A93: 91 | B93: 224 | C93: Commercial Point | D93: 0 | G93: 2004-01-01 | H93: 2008-12-31 | I93: 0.01 | L93: 2009-01-01 | M93: 2014-12-31 | N93: 0.0075 | Q93: 2015-01-01
A94: 92 | B94: 236 | C94: Conesville | D94: 0 | G94: 2004-01-01 | H94: 2014-12-31 | I94: 0.01 | L94: 2015-01-01 | M94: 2018-12-31 | N94: 0.005 | Q94: 2019-01-01
A95: 93 | B95: 226 | C95: Continental | D95: 0 | G95: 2004-01-01 | H95: 2011-12-31 | I95: 0.01 | L95: 2012-01-01
A96: 94 | B96: 223 | C96: Corwin | D96: 0.015 | G96: 2004-01-01 | H96: 2004-12-31 | I96: 0.005 | L96: 2005-01-01
A97: 95 | B97: 227 | C97: Crestline | D97: 0.02 | G97: 2004-01-01
A98: 96 | B98: 228 | C98: Creston | D98: 0.01 | G98: 2004-01-01
A99: 97 | B99: 230 | C99: Crooksville | D99: 0 | G99: 2004-01-01 | H99: 2004-12-31 | I99: 0.015 | L99: 2005-01-01
A100: 98 | B100: 220 | C100: Cuyahoga Falls | D100: 0.02 | G100: 2004-01-01
A101: 99 | B101: 135 | C101: Cuyahoga Falls Boston Twp JEDD | D101: 0.02 | G101: 2004-01-01
A102: 100 | B102: 250 | C102: Cuyahoga Heights | D102: 0.02 | G102: 2004-01-01 | H102: 2016-12-31 | I102: 0.025 | L102: 2017-01-01
A103: 101 | B103: 251 | C103: Danville | D103: 0.01 | G103: 2004-01-01 | H103: 2015-12-31 | I103: 0.015 | L103: 2016-01-01
A104: 102 | B104: 152 | C104: Darbyville | D104: 0 | G104: 2004-01-01 | H104: 2016-09-30 | I104: 0.01 | L104: 2016-10-01
A105: 103 | B105: 249 | C105: Degraff | D105: 0.01 | G105: 2004-01-01
A106: 104 | B106: 256 | C106: Dennison | D106: 0.02 | G106: 2004-01-01
A107: 105 | B107: 141 | C107: Dorr Street JEDD | D107: 0 | G107: 2004-01-01 | H107: 2019-12-31 | I107: 0.02 | L107: 2020-01-01
A108: 106 | B108: 261 | C108: Doylestown | D108: 0.015 | G108: 2004-01-01 | H108: 2007-12-31 | I108: 0.02 | L108: 2008-01-01
A109: 107 | B109: 262 | C109: Dresden | D109: 0.01 | G109: 2004-01-01
A110: 108 | B110: 264 | C110: Dunkirk | D110: 0 | G110: 2004-01-01 | H110: 2011-12-31 | I110: 0.01 | L110: 2012-01-01
A111: 109 | B111: 270 | C111: East Cleveland | D111: 0.02 | G111: 2004-01-01
A112: 110 | B112: 268 | C112: East Palestine | D112: 0.01 | G112: 2004-01-01 | H112: 2019-12-31 | I112: 0.015 | L112: 2020-01-01
A113: 111 | B113: 247 | C113: East Union TWP-Apple Creek JEDD | D113: 0 | G113: 2004-01-01 | H113: 2007-08-19 | I113: 0.01 | L113: 2007-08-20
A114: 112 | B114: 273 | C114: Eastlake | D114: 0.02 | G114: 2004-01-01
A115: 113 | B115: 246 | C115: Eaton | D115: 0 | G115: 2004-01-01 | H115: 2004-12-31 | I115: 0.015 | L115: 2005-01-01
A116: 114 | B116: 292 | C116: Eaton JEDD (Lorain Co) | D116: 0 | G116: 2004-01-01 | H116: 2011-12-31 | I116: 0.0175 | L116: 2012-01-01 | M116: 2016-06-30 | N116: 0.0225 | Q116: 2016-07-01
A117: 115 | B117: 248 | C117: Edgerton | D117: 0.01 | G117: 2004-01-01 | H117: 2014-12-31 | I117: 0.0175 | L117: 2015-01-01
A118: 116 | B118: 271 | C118: Edison | D118: 0 | G118: 2004-01-01 | H118: 2008-12-31 | I118: 0.005 | L118: 2009-01-01
A119: 117 | B119: 272 | C119: Elmore | D119: 0.01 | G119: 2004-01-01 | H119: 2005-12-31 | I119: 0.0175 | L119: 2006-01-01
A120: 118 | B120: 269 | C120: Elmwood Place | D120: 0.02 | G120: 2004-01-01
A121: 119 | B121: 277 | C121: Elyria | D121: 0.0175 | G121: 2004-01-01 | H121: 2016-06-30 | I121: 0.0225 | L121: 2016-07-01
A122: 120 | B122: 282 | C122: Elyria Twp / Elyria JEDD | D122: 0.0175 | G122: 2004-01-01 | H122: 2016-06-30 | I122: 0.0225 | L122: 2016-07-01
A123: 121 | B123: 235 | C123: Empire | D123: 0 | G123: 2004-01-01 | H123: 2014-12-31 | I123: 0.01 | L123: 2015-01-01
A124: 122 | B124: 145 | C124: Etna-Reynoldsburg JEDD 1 | D124: 0 | G124: 2004-01-01 | H124: 2018-08-20 | I124: 0.015 | L124: 2018-08-21 | M124: 2018-09-24 | N124: 0.02 | Q124: 2018-09-25
A125: 123 | B125: 146 | C125: Etna-Reynoldsburg JEDD 2 | D125: 0 | G125: 2004-01-01 | H125: 2018-08-20 | I125: 0.015 | L125: 2018-08-21 | M125: 2018-09-24 | N125: 0.02 | Q125: 2018-09-25
A126: 124 | B126: 147 | C126: Etna-Reynoldsburg JEDD 3 | D126: 0 | G126: 2004-01-01 | H126: 2018-08-20 | I126: 0.02 | L126: 2018-08-21
A127: 125 | B127: 144 | C127: Etna-Reynoldsburg JEDD 4 | D127: 0 | G127: 2004-01-01 | H127: 2019-08-29 | I127: 0.02 | L127: 2019-08-30
A128: 126 | B128: 139 | C128: Etna-Reynoldsburg JEDD 7 | D128: 0 | G128: 2004-01-01 | H128: 2021-08-30 | I128: 0.02 | L128: 2021-08-31
A129: 127 | B129: 280 | C129: Euclid | D129: 0.0285 | G129: 2004-01-01
A130: 128 | B130: 287 | C130: Fairborn | D130: 0.01 | G130: 2004-01-01 | H130: 2004-12-31 | I130: 0.015 | L130: 2005-01-01 | M130: 2020-12-31 | N130: 0.02 | Q130: 2021-01-01
A131: 129 | B131: 291 | C131: Fairport Harbor | D131: 0.02 | G131: 2004-01-01
A132: 130 | B132: 300 | C132: Fairview Park | D132: 0.015 | G132: 2004-01-01 | H132: 2005-03-15 | I132: 0.02 | L132: 2005-03-16
A133: 131 | B133: 295 | C133: Fayette | D133: 0 | G133: 2004-01-01 | H133: 2004-12-31 | I133: 0.015 | L133: 2005-01-01
A134: 132 | B134: 242 | C134: Fayetteville | D134: 0 | G134: 2004-01-01 | H134: 2022-12-31 | I134: 0.01 | L134: 2023-01-01
A135: 133 | B135: 296 | C135: Felicity | D135: 0 | G135: 2004-01-01 | H135: 2004-12-31 | I135: 0.01 | L135: 2005-01-01
A136: 134 | B136: 297 | C136: Forest | D136: 0 | G136: 2004-01-01 | H136: 2004-12-31 | I136: 0.0125 | L136: 2005-01-01
A137: 135 | B137: 304 | C137: Fort Jennings | D137: 0.01 | G137: 2004-01-01
A138: 136 | B138: 305 | C138: Fostoria | D138: 0.02 | G138: 2004-01-01
A139: 137 | B139: 309 | C139: Frazeysburg | D139: 0 | G139: 2004-01-01 | H139: 2004-12-31 | I139: 0.01 | L139: 2005-01-01
A140: 138 | B140: 308 | C140: Fredericktown | D140: 0.01 | G140: 2004-01-01
A141: 139 | B141: 310 | C141: Fremont | D141: 0.015 | G141: 2004-01-01
A142: =+A141+1 -> 140 | B142: 143 | C142: Fulton | D142: 0 | G142: 2004-01-01 | H142: 2019-12-31 | I142: 0.01 | L142: 2020-01-01
A143: 141 | B143: 316 | C143: Gahanna | D143: 0.015 | G143: 2004-01-01 | H143: 2019-06-30 | I143: 0.025 | L143: 2019-07-01
A144: 142 | B144: 319 | C144: Galena | D144: 0.01 | G144: 2004-01-01
A145: 143 | B145: 317 | C145: Galion | D145: 0.015 | G145: 2004-01-01 | H145: 2006-06-30 | I145: 0.02 | L145: 2006-07-01
A146: 144 | B146: 320 | C146: Garfield Heights | D146: 0.02 | G146: 2004-01-01
A147: 145 | B147: 330 | C147: Gates Mills | D147: 0.01 | G147: 2004-01-01
A148: 146 | B148: 348 | C148: Genoa | D148: 0.015 | G148: 2004-01-01
A149: 147 | B149: 679 | C149: Gettysburg | D149: 0 | G149: 2004-01-01 | H149: 2016-12-31 | I149: 0.01 | L149: 2017-01-01
A150: 148 | B150: 342 | C150: Gibsonburg | D150: 0.01 | G150: 2004-01-01
A151: 149 | B151: 346 | C151: Girard | D151: 0.02 | G151: 2004-01-01
A152: 150 | B152: 138 | C152: Glenmont | D152: 0 | G152: 2004-01-01 | H152: 2024-06-30 | I152: 0.01 | L152: 2024-07-01
A153: 151 | B153: 347 | C153: Glenwillow | D153: 0.02 | G153: 2004-01-01
A154: 152 | B154: 332 | C154: Golf Manor | D154: 0.017 | G154: 2004-01-01
A155: 153 | B155: 350 | C155: Grafton | D155: 0.015 | G155: 2004-01-01
A156: 154 | B156: 357 | C156: Grandview Heights | D156: 0.02 | G156: 2004-01-01 | H156: 2005-06-30 | I156: 0.025 | L156: 2005-07-01 | M156: 2008-12-31 | N156: 0.0225 | Q156: 2009-01-01 | R156: 2010-06-30 | S156: 0.025 | V156: 2010-07-01
A157: 155 | B157: 294 | C157: Gratis | D157: 0 | G157: 2004-01-01 | H157: 2013-12-31 | I157: 0.01 | L157: 2014-01-01
A158: 156 | B158: 334 | C158: Greenfield | D158: 0.01625 | G158: 2004-01-01
A159: 157 | B159: 337 | C159: Greenhills | D159: 0 | G159: 2004-01-01 | H159: 2005-12-31 | I159: 0.015 | L159: 2006-01-01
A160: 158 | B160: 358 | C160: Grove City | D160: 0.02 | G160: 2004-01-01
A161: 159 | B161: 361 | C161: Groveport | D161: 0.02 | G161: 2004-01-01
A162: 160 | B162: 360 | C162: Hamilton | D162: 0.02 | G162: 2004-01-01
A163: 161 | B163: 417 | C163: Ham Fair TWP Jedd I | D163: 0 | G163: 2004-01-01 | H163: 2014-12-31 | I163: 0.02 | L163: 2005-01-01
A164: 162 | B164: 80 | C164: Ham Fair TWP Jedd II | D164: 0.02 | G164: 2004-01-01
A165: 163 | B165: 81 | C165: Ham Fair TWP Jedd III | D165: 0 | G165: 2004-01-01 | H165: 2016-12-31 | I165: 0.02 | L165: 2017-01-01
A166: 164 | B166: 921 | C166: Hamersville | D166: 0 | G166: 2004-01-01 | H166: 2024-12-31 | I166: 0.01 | L166: 2025-01-01
A167: 165 | B167: 238 | C167: Hanover | D167: 0 | G167: 2004-01-01 | H167: 2016-12-31 | I167: 0.01 | L167: 2017-01-01
A168: 166 | B168: 325 | C168: Harrisburg | D168: 0 | G168: 2004-01-01 | H168: 2018-12-31 | I168: 0.01 | L168: 2019-01-01
A169: 167 | B169: 339 | C169: Harrison | D169: 0.01 | G169: 2004-01-01
A170: 168 | B170: 329 | C170: Harrison Twp JEDD | D170: 0.01 | G170: 2004-01-01
A171: 169 | B171: 326 | C171: Harrod | D171: 0 | G171: 2004-01-01 | H171: 2011-12-31 | I171: 0.01 | L171: 2012-01-01
A172: 170 | B172: 364 | C172: Haskins | D172: 0.01 | G172: 2004-01-01
A173: 171 | B173: 683 | C173: Helena | D173: 0 | G173: 2004-01-01 | H173: 2020-12-31 | I173: 0.01 | L173: 2021-01-01
A174: 172 | B174: 370 | C174: Highland Heights | D174: 0.015 | G174: 2004-01-01 | H174: 2006-12-31 | I174: 0.02 | L174: 2007-01-01
A175: 173 | B175: 371 | C175: Hilliard | D175: 0.02 | G175: 2004-01-01 | H175: 2021-12-31 | I175: 0.025 | L175: 2022-01-01
A176: 174 | B176: 375 | C176: Hiram | D176: 0.02 | G176: 2004-01-01 | H176: 2018-06-30 | I176: 0.0225 | L176: 2018-07-01
A177: 175 | B177: 381 | C177: Holland | D177: 0.0225 | G177: 2004-01-01
A178: 176 | B178: 381 | C178: Holland Springfield Twp JEDZ | D178: 0 | G178: 2004-01-01 | H178: 2015-06-30 | I178: 0.015 | L178: 2015-07-01
A179: 177 | B179: 328 | C179: Holmesville | D179: 0 | G179: 2004-01-01 | H179: 2024-06-30 | I179: 0.01 | L179: 2024-07-01
A180: 178 | B180: 431 | C180: Hopedale | D180: 0.01 | G180: 2004-01-01
A181: 179 | B181: 378 | C181: Hudson | D181: 0.01 | G181: 2004-01-01 | H181: 2004-12-31 | I181: 0.02 | L181: 2005-01-01
A182: 180 | B182: 385 | C182: Huron | D182: 0.01 | G182: 2004-01-01
A183: 181 | B183: 390 | C183: Independence | D183: 0.02 | G183: 2004-01-01
A184: 182 | B184: 374 | C184: Jackson | D184: 0 | G184: 2004-01-01 | H184: 2018-06-30 | I184: 0.01 | L184: 2018-07-01 | M184: 2018-11-23 | N184: 0 | Q184: 2018-11-24 | R184: 2020-12-31 | S184: 0.015 | V184: 2021-01-01
A185: 183 | B185: 340 | C185: Jackson Center | D185: 0.015 | G185: 2004-01-01
A186: 184 | B186: 438 | C186: Jeffersonville | D186: 0.01 | G186: 2004-01-01
A187: 185 | B187: 313 | C187: Jerry City | D187: 0 | G187: 2004-01-01 | H187: 2012-12-31 | I187: 0.01 | L187: 2013-01-01
A188: 186 | B188: 377 | C188: Jewett | D188: 0.01 | G188: 2004-01-01
A189: 187 | B189: 386 | C189: Johnstown | D189: 0.01 | G189: 2004-01-01
A190: 188 | B190: 392 | C190: Kent | D190: 0.02 | G190: 2004-01-01 | H190: 2013-12-31 | I190: 0.0225 | L190: 2014-01-01
A191: 189 | B191: 412 | C191: Killbuck | D191: 0 | G191: 2004-01-01 | H191: 2009-12-31 | I191: 0.01 | L191: 2010-01-01
A192: 190 | B192: 681 | C192: Kirkersville | D192: 0 | G192: 2004-01-01 | H192: 2017-06-30 | I192: 0.01 | L192: 2017-07-01
A193: 191 | B193: 394 | C193: Kirtland | D193: 0.02 | G193: 2004-01-01
A194: 192 | B194: 398 | C194: LaGrange | D194: 0.015 | G194: 2004-01-01
A195: 193 | B195: 327 | C195: Lakeline | D195: 0 | G195: 2004-01-01 | H195: 2011-12-31 | I195: 0.01 | L195: 2012-01-01
A196: 194 | B196: 401 | C196: Lakemore | D196: 0.02 | G196: 2004-01-01 | H196: 2017-12-31 | I196: 0.0225 | L196: 2018-01-01
A197: 195 | B197: 684 | C197: Latty | D197: 0 | G197: 2004-01-01 | H197: 2020-12-31 | I197: 0.01 | L197: 2021-01-01
A198: 196 | B198: 411 | C198: Leesburg | D198: 0.005 | G198: 2004-01-01 | H198: 2004-12-31 | I198: 0.01 | L198: 2005-01-01
A199: 197 | B199: 443 | C199: Leetonia | D199: 0 | G199: 2004-01-01 | H199: 2004-12-31 | I199: 0.015 | L199: 2005-01-01
A200: 198 | B200: 444 | C200: Liberty Center | D200: 0.01 | G200: 2004-01-01
... 253 more rows

Sheet Cities (hidden)
C1: Tax Year Used for Rates: | D1: =IF(References!C2<2004,2004,References!C2) -> 2023
A2: Index | B2: City Code | C2: City Name | D2: Tax Rate | E2: Est Rate | F2: 2004 | G2: 2005 | H2: 2006 | I2: 2007 | J2: 2008 | K2: 2009 | L2: 2010 | M2: 2011 | N2: 2012 | O2: 2013 | P2: 2014 | Q2: 2015 | R2: 2016 | S2: 2017 | T2: 2018 | U2: 2019 | V2: 2020 | W2: 2021 | X2: 2022 | Y2: 2023 | Z2: 2024 | AA2: 2025 | AB2: 2026 | AC2: NOL Years | AD2: NOL Type | AE2: Custom Warning | AF2: Consolidated | AG2: Confirmed | AH2: Last Year of 0% tax rate
A3: 1 | B3: 0
A4: =+A3+1 -> 2 | B4: 23 | C4: Aberdeen | D4: =HLOOKUP(D$1,F$2:AB$499,(A4+1),FALSE) -> 0.01 | E4: =HLOOKUP(D$1+1,F$2:AB$499,(A4+1),FALSE) -> 0.01 | F4: 0 | G4: 0.01 | H4: 0.01 | I4: 0.01 | J4: 0.01 | K4: 0.01 | L4: 0.01 | M4: 0.01 | N4: 0.01 | O4: 0.01 | P4: 0.01 | Q4: 0.01 | R4: 0.01 | S4: 0.01 | T4: 0.01 | U4: 0.01 | V4: 0.01 | W4: 0.01 | X4: 0.01 | Y4: =X4 -> 0.01 | Z4: =Y4 -> 0.01 | AA4: =Z4 -> 0.01 | AB4: =AA4 -> 0.01 | AC4: 5 | AD4: Carryover | AH4: =_xlfn.IFNA(MATCH(0,F4:Y4,1),-23) + F$2 -1 -> 2004
A5: 3 | B5: 4 | C5: Ada | D5: 0.0165 | E5: 0.0165 | F5: 0.0115 | G5: 0.0115 | H5: 0.0115 | I5: 0.0115 | J5: 0.0115 | K5: 0.0115 | L5: 0.0115 | M5: 0.014 | N5: 0.0165 | O5: 0.0165 | P5: 0.0165 | Q5: 0.0165 | R5: 0.0165 | S5: 0.0165 | T5: 0.0165 | U5: 0.0165 | V5: 0.0165 | W5: 0.0165 | X5: 0.0165 | Y5: =X5 -> 0.0165 | Z5: 0.0165 | AA5: 0.0165 | AB5: 0.0165 | AC5: 5 | AD5: Carryover | AE5: Blended tax rate for 2011 | AH5: =_xlfn.IFNA(MATCH(0,F5:Y5,1),-23) + F$2 -1 -> 1980
A6: 4 | B6: 18 | C6: Addyston | D6: 0.015 | E6: 0.015 | F6: 0.01 | G6: 0.01 | H6: 0.01 | I6: 0.01 | J6: 0.01 | K6: 0.01 | L6: 0.01 | M6: 0.01 | N6: 0.01 | O6: 0.015 | P6: 0.015 | Q6: 0.015 | R6: 0.015 | S6: 0.015 | T6: 0.015 | U6: 0.015 | V6: 0.015 | W6: 0.015 | X6: 0.015 | Y6: 0.015 | Z6: 0.015 | AA6: 0.015 | AB6: 0.015 | AC6: 5 | AD6: Carryover | AH6: =_xlfn.IFNA(MATCH(0,F6:Y6,1),-23) + F$2 -1 -> 1980
A7: 5 | B7: 22 | C7: Adelphi | D7: 0.01 | E7: 0.01 | F7: 0 | G7: 0 | H7: 0 | I7: 0 | J7: 0 | K7: 0 | L7: 0.01 | M7: 0.01 | N7: 0.01 | O7: 0.01 | P7: 0.01 | Q7: 0.01 | R7: 0.01 | S7: 0.01 | T7: 0.01 | U7: 0.01 | V7: 0.01 | W7: 0.01 | X7: 0.01 | Y7: 0.01 | Z7: 0.01 | AA7: 0.01 | AB7: 0.01 | AC7: 5 | AD7: Carryover | AH7: 2009
A8: 6 | B8: 43 | C8: Alexandria | D8: 0.01 | E8: 0.01 | F8: 0 | G8: 0 | H8: 0 | I8: 0 | J8: 0 | K8: 0 | L8: 0 | M8: 0 | N8: 0 | O8: 0 | P8: 0 | Q8: 0 | R8: 0 | S8: 0 | T8: 0 | U8: 0 | V8: 0.01 | W8: 0.01 | X8: 0.01 | Y8: 0.01 | Z8: 0.01 | AA8: 0.01 | AB8: 0.01 | AC8: 5 | AD8: Carryover | AE8: Blended tax rate for 2015 | AH8: 2019
A9: 7 | B9: 24 | C9: Alger | D9: 0.01 | E9: 0.01 | F9: 0 | G9: 0 | H9: 0 | I9: 0.01 | J9: 0.01 | K9: 0.01 | L9: 0.01 | M9: 0.01 | N9: 0.01 | O9: 0.01 | P9: 0.01 | Q9: 0.01 | R9: 0.01 | S9: 0.01 | T9: 0.01 | U9: 0.01 | V9: 0.01 | W9: 0.01 | X9: 0.01 | Y9: 0.01 | Z9: 0.01 | AA9: 0.01 | AB9: 0.01 | AC9: 5 | AD9: Carryover | AH9: 2006
A10: 8 | B10: 44 | C10: Amanda | D10: 0.01 | E10: 0.01 | F10: 0 | G10: 0 | H10: 0 | I10: 0 | J10: 0 | K10: 0 | L10: 0 | M10: 0 | N10: 0 | O10: 0 | P10: 0 | Q10: 0.0033 | R10: 0.01 | S10: 0.01 | T10: 0.01 | U10: 0.01 | V10: 0.01 | W10: 0.01 | X10: 0.01 | Y10: 0.01 | Z10: 0.01 | AA10: 0.01 | AB10: 0.01 | AC10: 5 | AD10: Carryover | AE10: Blended tax rate for 2015 | AH10: 2014
A11: 9 | B11: 42 | C11: Amelia | D11: 0 | E11: 0 | F11: 0 | G11: 0 | H11: 0 | I11: 0 | J11: 0 | K11: 0 | L11: 0 | M11: 0 | N11: 0 | O11: 0 | P11: 0 | Q11: 0 | R11: 0 | S11: 0 | T11: 0.005 | U11: 0.01 | V11: 0.01 | W11: 0 | X11: 0 | Y11: 0 | Z11: 0 | AA11: 0 | AB11: 0 | AC11: 5 | AD11: Carryover | AE11: Blended tax rate for 2018 | AH11: 2017
A12: 10 | B12: 39 | C12: Amsterdam | D12: 0.01 | E12: 0.01 | F12: 0 | G12: 0 | H12: 0 | I12: 0 | J12: 0 | K12: 0 | L12: 0 | M12: 0 | N12: 0 | O12: 0 | P12: 0.005 | Q12: 0.01 | R12: 0.01 | S12: 0.01 | T12: 0.01 | U12: 0.01 | V12: 0.01 | W12: 0.01 | X12: 0.01 | Y12: 0.01 | Z12: 0.01 | AA12: 0.01 | AB12: 0.01 | AC12: 5 | AD12: Carryover | AE12: Blended tax rate for 2014 | AH12: 2013
A13: 11 | B13: 15 | C13: Andover | D13: 0.015 | E13: 0.015 | F13: 0.015 | G13: 0.015 | H13: 0.015 | I13: 0.015 | J13: 0.015 | K13: 0.015 | L13: 0.015 | M13: 0.015 | N13: 0.015 | O13: 0.015 | P13: 0.015 | Q13: 0.015 | R13: 0.015 | S13: 0.015 | T13: 0.015 | U13: 0.015 | V13: 0.015 | W13: 0.015 | X13: 0.015 | Y13: 0.015 | Z13: 0.015 | AA13: 0.015 | AB13: 0.015 | AC13: 5 | AD13: Carryover | AH13: 1980
A14: 12 | B14: 31 | C14: Antwerp | D14: 0.01 | E14: 0.01 | F14: 0 | G14: 0 | H14: 0.01 | I14: 0.01 | J14: 0.01 | K14: 0.01 | L14: 0.01 | M14: 0.01 | N14: 0.01 | O14: 0.01 | P14: 0.01 | Q14: 0.01 | R14: 0.01 | S14: 0.01 | T14: 0.01 | U14: 0.01 | V14: 0.01 | W14: 0.01 | X14: 0.01 | Y14: 0.01 | Z14: 0.01 | AA14: 0.01 | AB14: 0.01 | AC14: 5 | AD14: Carryover | AH14: 2005
A15: 13 | B15: 32 | C15: Apple Creek | D15: 0.01 | E15: 0.01 | F15: 0 | G15: 0.01 | H15: 0.01 | I15: 0.01 | J15: 0.01 | K15: 0.01 | L15: 0.01 | M15: 0.01 | N15: 0.01 | O15: 0.01 | P15: 0.01 | Q15: 0.01 | R15: 0.01 | S15: 0.01 | T15: 0.01 | U15: 0.01 | V15: 0.01 | W15: 0.01 | X15: 0.01 | Y15: 0.01 | Z15: 0.01 | AA15: 0.01 | AB15: 0.01 | AC15: 5 | AD15: Carryover | AH15: 2004
A16: 14 | B16: 47 | C16: Apple Creek-East Union TWP JEDD II | D16: 0.01 | E16: 0.01 | F16: 0 | G16: 0 | H16: 0 | I16: 0 | J16: 0 | K16: 0 | L16: 0 | M16: 0 | N16: 0 | O16: 0 | P16: 0 | Q16: 0.0041 | R16: 0.01 | S16: 0.01 | T16: 0.01 | U16: 0.01 | V16: 0.01 | W16: 0.01 | X16: 0.01 | Y16: 0.01 | Z16: 0.01 | AA16: 0.01 | AB16: 0.01 | AC16: 5 | AD16: Carryover | AE16: Blended tax rate for 2015 | AH16: 2014
A17: 15 | B17: 13 | C17: Arlington Heights | D17: 0.021 | E17: 0.021 | F17: 0.021 | G17: 0.021 | H17: 0.021 | I17: 0.021 | J17: 0.021 | K17: 0.021 | L17: 0.021 | M17: 0.021 | N17: 0.021 | O17: 0.021 | P17: 0.021 | Q17: 0.021 | R17: 0.021 | S17: 0.021 | T17: 0.021 | U17: 0.021 | V17: 0.021 | W17: 0.021 | X17: 0.021 | Y17: 0.021 | Z17: 0.021 | AA17: 0.021 | AB17: 0.021 | AC17: 5 | AD17: Carryover | AH17: 1980
A18: 16 | B18: 41 | C18: Ashley | D18: 0.01 | E18: 0.01 | F18: 0 | G18: 0 | H18: 0 | I18: 0 | J18: 0 | K18: 0 | L18: 0 | M18: 0 | N18: 0 | O18: 0 | P18: 0 | Q18: 0 | R18: 0.01 | S18: 0.01 | T18: 0.01 | U18: 0.01 | V18: 0.01 | W18: 0.01 | X18: 0.01 | Y18: 0.01 | Z18: 0.01 | AA18: 0.01 | AB18: 0.01 | AC18: 5 | AD18: Carryover | AH18: 2015
A19: 17 | B19: 6 | C19: Ashville | D19: 0.01 | E19: 0.01 | F19: 0.005 | G19: 0.005 | H19: 0.005 | I19: 0.005 | J19: 0.01 | K19: 0.01 | L19: 0.01 | M19: 0.01 | N19: 0.01 | O19: 0.01 | P19: 0.01 | Q19: 0.01 | R19: 0.01 | S19: 0.01 | T19: 0.01 | U19: 0.01 | V19: 0.01 | W19: 0.01 | X19: 0.01 | Y19: 0.01 | Z19: 0.01 | AA19: 0.01 | AB19: 0.01 | AC19: 5 | AD19: Carryover | AH19: 1980
A20: 18 | B20: 10 | C20: Aurora | D20: 0.02 | E20: 0.02 | F20: 0.02 | G20: 0.02 | H20: 0.02 | I20: 0.02 | J20: 0.02 | K20: 0.02 | L20: 0.02 | M20: 0.02 | N20: 0.02 | O20: 0.02 | P20: 0.02 | Q20: 0.02 | R20: 0.02 | S20: 0.02 | T20: 0.02 | U20: 0.02 | V20: 0.02 | W20: 0.02 | X20: 0.02 | Y20: 0.02 | Z20: 0.02 | AA20: 0.02 | AB20: 0.02 | AC20: 5 | AD20: Carryover | AH20: 1980
A21: 19 | B21: 20 | C21: Avon | D21: 0.0175 | E21: 0.0175 | F21: 0.015 | G21: 0.015 | H21: 0.015 | I21: 0.015 | J21: 0.0175 | K21: 0.0175 | L21: 0.0175 | M21: 0.0175 | N21: 0.0175 | O21: 0.0175 | P21: 0.0175 | Q21: 0.0175 | R21: 0.0175 | S21: 0.0175 | T21: 0.0175 | U21: 0.0175 | V21: 0.0175 | W21: 0.0175 | X21: 0.0175 | Y21: 0.0175 | Z21: 0.0175 | AA21: 0.0175 | AB21: 0.0175 | AC21: 5 | AD21: Carryover | AH21: 1980
A22: 20 | B22: 21 | C22: Avon Lake | D22: 0.015 | E22: 0.015 | F22: 0.015 | G22: 0.015 | H22: 0.015 | I22: 0.015 | J22: 0.015 | K22: 0.015 | L22: 0.015 | M22: 0.015 | N22: 0.015 | O22: 0.015 | P22: 0.015 | Q22: 0.015 | R22: 0.015 | S22: 0.015 | T22: 0.015 | U22: 0.015 | V22: 0.015 | W22: 0.015 | X22: 0.015 | Y22: 0.015 | Z22: 0.015 | AA22: 0.015 | AB22: 0.015 | AC22: 5 | AD22: Carryover | AH22: 1980
A23: 21 | B23: 919 | C23: Bainbridge Twp Aurora JEDD | D23: 0 | E23: 0 | F23: 0 | G23: 0 | H23: 0 | I23: 0 | J23: 0 | K23: 0 | L23: 0 | M23: 0 | N23: 0 | O23: 0 | P23: 0 | Q23: 0 | R23: 0 | S23: 0 | T23: 0 | U23: 0 | V23: 0 | W23: 0 | X23: 0 | Y23: 0 | Z23: 0 | AA23: 0.02 | AB23: 0.02 | AC23: 5 | AD23: Carryover
A24: 22 | B24: 37 | C24: Bainbridge Twp / Solon JEDD | D24: 0.02 | E24: 0.02 | F24: 0 | G24: 0 | H24: 0 | I24: 0.02 | J24: 0.02 | K24: 0.02 | L24: 0.02 | M24: 0.02 | N24: 0.02 | O24: 0.02 | P24: 0.02 | Q24: 0.02 | R24: 0.02 | S24: 0.02 | T24: 0.02 | U24: 0.02 | V24: 0.02 | W24: 0.02 | X24: 0.02 | Y24: 0.02 | Z24: 0.02 | AA24: 0.02 | AB24: 0.02 | AC24: 5 | AD24: Carryover | AH24: 2006
A25: 23 | B25: 33 | C25: Baltic | D25: 0.015 | E25: 0.015 | F25: 0 | G25: 0.01 | H25: 0.01 | I25: 0.01 | J25: 0.01 | K25: 0.01 | L25: 0.01 | M25: 0.01 | N25: 0.01 | O25: 0.01 | P25: 0.01 | Q25: 0.01 | R25: 0.015 | S25: 0.015 | T25: 0.015 | U25: 0.015 | V25: 0.015 | W25: 0.015 | X25: 0.015 | Y25: 0.015 | Z25: 0.015 | AA25: 0.015 | AB25: 0.015 | AC25: 5 | AD25: Carryover | AH25: 2004
A26: 24 | B26: 29 | C26: Baltimore | D26: 0.01 | E26: 0.01 | F26: 0.01 | G26: 0.01 | H26: 0.01 | I26: 0.01 | J26: 0.01 | K26: 0.01 | L26: 0.01 | M26: 0.01 | N26: 0.01 | O26: 0.01 | P26: 0.01 | Q26: 0.01 | R26: 0.01 | S26: 0.01 | T26: 0.01 | U26: 0.01 | V26: 0.01 | W26: 0.01 | X26: 0.01 | Y26: 0.01 | Z26: 0.01 | AA26: 0.01 | AB26: 0.01 | AC26: 1 | AD26: Carryover | AH26: 1980
A27: 25 | B27: 28 | C27: Barberton | D27: 0.0225 | E27: 0.0225 | F27: 0.02 | G27: 0.02 | H27: 0.02 | I27: 0.02 | J27: 0.02 | K27: 0.02 | L27: 0.02 | M27: 0.02 | N27: 0.02 | O27: 0.02 | P27: 0.0225 | Q27: 0.0225 | R27: 0.0225 | S27: 0.0225 | T27: 0.0225 | U27: 0.0225 | V27: 0.0225 | W27: 0.0225 | X27: 0.0225 | Y27: 0.0225 | Z27: 0.0225 | AA27: 0.0225 | AB27: 0.0225 | AC27: 5 | AD27: Carryover | AH27: 1980
A28: 26 | B28: 34 | C28: Barnesville | D28: 0.01 | E28: 0.01 | F28: 0 | G28: 0.01 | H28: 0.01 | I28: 0.01 | J28: 0.01 | K28: 0.01 | L28: 0.01 | M28: 0.01 | N28: 0.01 | O28: 0.01 | P28: 0.01 | Q28: 0.01 | R28: 0.01 | S28: 0.01 | T28: 0.01 | U28: 0.01 | V28: 0.01 | W28: 0.01 | X28: 0.01 | Y28: 0.01 | Z28: 0.01 | AA28: 0.01 | AB28: 0.01 | AC28: 5 | AD28: Carryover | AH28: 2004
A29: 27 | B29: 61 | C29: Barnesville JEDD 1 | D29: 0.01 | E29: 0.01 | F29: 0 | G29: 0 | H29: 0 | I29: 0 | J29: 0.0008 | K29: 0.01 | L29: 0.01 | M29: 0.01 | N29: 0.01 | O29: 0.01 | P29: 0.01 | Q29: 0.01 | R29: 0.01 | S29: 0.01 | T29: 0.01 | U29: 0.01 | V29: 0.01 | W29: 0.01 | X29: 0.01 | Y29: 0.01 | Z29: 0.01 | AA29: 0.01 | AB29: 0.01 | AC29: 5 | AD29: Carryover | AE29: Blended tax rate for 2008 | AH29: 2007
A30: 28 | B30: 62 | C30: Barnesville JEDD 2 | D30: 0.01 | E30: 0.01 | F30: 0 | G30: 0 | H30: 0 | I30: 0 | J30: 0 | K30: 0 | L30: 0 | M30: 0 | N30: 0.0054 | O30: 0.01 | P30: 0.01 | Q30: 0.01 | R30: 0.01 | S30: 0.01 | T30: 0.01 | U30: 0.01 | V30: 0.01 | W30: 0.01 | X30: 0.01 | Y30: 0.01 | Z30: 0.01 | AA30: 0.01 | AB30: 0.01 | AC30: 5 | AD30: Carryover | AE30: Blended tax rate for 2012 | AH30: 2011
A31: 29 | B31: 35 | C31: Batavia | D31: 0.01 | E31: 0.01 | F31: 0 | G31: 0.01 | H31: 0.01 | I31: 0.01 | J31: 0.01 | K31: 0.01 | L31: 0.01 | M31: 0.01 | N31: 0.01 | O31: 0.01 | P31: 0.01 | Q31: 0.01 | R31: 0.01 | S31: 0.01 | T31: 0.01 | U31: 0.01 | V31: 0.01 | W31: 0.01 | X31: 0.01 | Y31: 0.01 | Z31: 0.01 | AA31: 0.01 | AB31: 0.01 | AC31: 5 | AD31: Carryover | AH31: 2004
A32: 30 | B32: 40 | C32: Bay Village | D32: 0.015 | E32: 0.015 | F32: 0.015 | G32: 0.015 | H32: 0.015 | I32: 0.015 | J32: 0.015 | K32: 0.015 | L32: 0.015 | M32: 0.015 | N32: 0.015 | O32: 0.015 | P32: 0.015 | Q32: 0.015 | R32: 0.015 | S32: 0.015 | T32: 0.015 | U32: 0.015 | V32: 0.015 | W32: 0.015 | X32: 0.015 | Y32: 0.015 | Z32: 0.015 | AA32: 0.015 | AB32: 0.015 | AC32: 5 | AD32: Carryover | AH32: 1980
A33: 31 | B33: 50 | C33: Beachwood | D33: 0.02 | E33: 0.02 | F33: 0.015 | G33: 0.015 | H33: 0.015 | I33: 0.015 | J33: 0.015 | K33: 0.015 | L33: 0.015 | M33: 0.02 | N33: 0.02 | O33: 0.02 | P33: 0.02 | Q33: 0.02 | R33: 0.02 | S33: 0.02 | T33: 0.02 | U33: 0.02 | V33: 0.02 | W33: 0.02 | X33: 0.02 | Y33: 0.02 | Z33: 0.02 | AA33: 0.02 | AB33: 0.02 | AC33: 5 | AD33: Carryover | AH33: 1980
A34: 32 | B34: 54 | C34: Beaverdam | D34: 0.01 | E34: 0.01 | F34: 0 | G34: 0 | H34: 0 | I34: 0 | J34: 0 | K34: 0 | L34: 0.01 | M34: 0.01 | N34: 0.01 | O34: 0.01 | P34: 0.01 | Q34: 0.01 | R34: 0.01 | S34: 0.01 | T34: 0.01 | U34: 0.01 | V34: 0.01 | W34: 0.01 | X34: 0.01 | Y34: 0.01 | Z34: 0.01 | AA34: 0.01 | AB34: 0.01 | AC34: 5 | AD34: Carryover | AH34: 2009
A35: 33 | B35: 60 | C35: Bedford | D35: 0.03 | E35: 0.03 | F35: 0.0225 | G35: 0.0225 | H35: 0.0225 | I35: 0.0225 | J35: 0.0225 | K35: 0.0225 | L35: 0.0225 | M35: 0.0225 | N35: 0.0225 | O35: 0.0225 | P35: 0.0225 | Q35: 0.0225 | R35: 0.0225 | S35: 0.0225 | T35: 0.03 | U35: 0.03 | V35: 0.03 | W35: 0.03 | X35: 0.03 | Y35: 0.03 | Z35: 0.03 | AA35: 0.03 | AB35: 0.03 | AC35: 0 | AD35: n/a | AH35: 1980
A36: 34 | B36: 65 | C36: Bedford Heights | D36: 0.02 | E36: 0.02 | F36: 0.02 | G36: 0.02 | H36: 0.02 | I36: 0.02 | J36: 0.02 | K36: 0.02 | L36: 0.02 | M36: 0.02 | N36: 0.02 | O36: 0.02 | P36: 0.02 | Q36: 0.02 | R36: 0.02 | S36: 0.02 | T36: 0.02 | U36: 0.02 | V36: 0.02 | W36: 0.02 | X36: 0.02 | Y36: 0.02 | Z36: 0.02 | AA36: 0.02 | AB36: 0.02 | AC36: 5 | AD36: Carryover | AH36: 1980
A37: 35 | B37: 83 | C37: Belle Center | D37: 0.01 | E37: 0.01 | F37: 0.01 | G37: 0.01 | H37: 0.01 | I37: 0.01 | J37: 0.01 | K37: 0.01 | L37: 0.01 | M37: 0.01 | N37: 0.01 | O37: 0.01 | P37: 0.01 | Q37: 0.01 | R37: 0.01 | S37: 0.01 | T37: 0.01 | U37: 0.01 | V37: 0.01 | W37: 0.01 | X37: 0.01 | Y37: 0.01 | Z37: 0.01 | AA37: 0.01 | AB37: 0.01 | AC37: 0 | AD37: n/a | AH37: 1980
A38: 36 | B38: 87 | C38: Bellefontaine | D38: 0.013333 | E38: 0.0146 | F38: 0.013333 | G38: 0.013333 | H38: 0.013333 | I38: 0.013333 | J38: 0.013333 | K38: 0.013333 | L38: 0.013333 | M38: 0.013333 | N38: 0.013333 | O38: 0.013333 | P38: 0.013333 | Q38: 0.013333 | R38: 0.013333 | S38: 0.013333 | T38: 0.013333 | U38: 0.013333 | V38: 0.013333 | W38: 0.013333 | X38: 0.013333 | Y38: 0.013333 | Z38: 0.0146 | AA38: 0.0146 | AB38: 0.0146 | AC38: 0 | AD38: n/a | AE38: Blended tax rate for 2024 | AH38: 1980
A39: 37 | B39: 86 | C39: Bellevue | D39: 0.02 | E39: 0.02 | F39: 0.015 | G39: 0.015 | H39: 0.015 | I39: 0.015 | J39: 0.015 | K39: 0.015 | L39: 0.015 | M39: 0.015 | N39: 0.015 | O39: 0.015 | P39: 0.015 | Q39: 0.015 | R39: 0.015 | S39: 0.015 | T39: 0.0175 | U39: 0.02 | V39: 0.02 | W39: 0.02 | X39: 0.02 | Y39: 0.02 | Z39: 0.02 | AA39: 0.02 | AB39: 0.02 | AC39: 1 | AD39: Carryover | AE39: Blended tax rate for 2018 | AH39: 1980
A40: 38 | B40: 88 | C40: Bellville | D40: 0.01 | E40: 0.01 | F40: 0 | G40: 0.01 | H40: 0.01 | I40: 0.01 | J40: 0.01 | K40: 0.01 | L40: 0.01 | M40: 0.01 | N40: 0.01 | O40: 0.01 | P40: 0.01 | Q40: 0.01 | R40: 0.01 | S40: 0.01 | T40: 0.01 | U40: 0.01 | V40: 0.01 | W40: 0.01 | X40: 0.01 | Y40: 0.01 | Z40: 0.01 | AA40: 0.01 | AB40: 0.01 | AC40: 5 | AD40: Carryover | AH40: 2004
A41: 39 | B41: 89 | C41: Belpre | D41: 0.01 | E41: 0.01 | F41: 0 | G41: 0.01 | H41: 0.01 | I41: 0.01 | J41: 0.01 | K41: 0.01 | L41: 0.01 | M41: 0.01 | N41: 0.01 | O41: 0.01 | P41: 0.01 | Q41: 0.01 | R41: 0.01 | S41: 0.01 | T41: 0.01 | U41: 0.01 | V41: 0.01 | W41: 0.01 | X41: 0.01 | Y41: 0.01 | Z41: 0.01 | AA41: 0.01 | AB41: 0.01 | AC41: 5 | AD41: Carryover | AH41: 2004
A42: 40 | B42: 90 | C42: Bentleyville | D42: 0.01 | E42: 0.01 | F42: 0.01 | G42: 0.01 | H42: 0.01 | I42: 0.01 | J42: 0.01 | K42: 0.01 | L42: 0.01 | M42: 0.01 | N42: 0.01 | O42: 0.01 | P42: 0.01 | Q42: 0.01 | R42: 0.01 | S42: 0.01 | T42: 0.01 | U42: 0.01 | V42: 0.01 | W42: 0.01 | X42: 0.01 | Y42: 0.01 | Z42: 0.01 | AA42: 0.01 | AB42: 0.01 | AC42: 5 | AD42: Carryover | AH42: 1980
A43: 41 | B43: 100 | C43: Berea | D43: 0.02 | E43: 0.02 | F43: 0.02 | G43: 0.02 | H43: 0.02 | I43: 0.02 | J43: 0.02 | K43: 0.02 | L43: 0.02 | M43: 0.02 | N43: 0.02 | O43: 0.02 | P43: 0.02 | Q43: 0.02 | R43: 0.02 | S43: 0.02 | T43: 0.02 | U43: 0.02 | V43: 0.02 | W43: 0.02 | X43: 0.02 | Y43: 0.02 | Z43: 0.02 | AA43: 0.02 | AB43: 0.02 | AC43: 5 | AD43: Carryover | AH43: 1980
A44: 42 | B44: 116 | C44: Bethel | D44: 0.005 | E44: 0.01 | F44: 0 | G44: 0 | H44: 0 | I44: 0 | J44: 0 | K44: 0 | L44: 0 | M44: 0 | N44: 0 | O44: 0 | P44: 0 | Q44: 0 | R44: 0 | S44: 0 | T44: 0 | U44: 0.0025 | V44: 0.005 | W44: 0.005 | X44: 0.005 | Y44: 0.005 | Z44: 0.01 | AA44: 0.01 | AB44: 0.01 | AC44: 5 | AD44: Carryover | AE44: Blended tax rate for 2019 | AH44: 2018
A45: 43 | B45: 102 | C45: Bettsville | D45: 0.01 | E45: 0.01 | F45: 0 | G45: 0 | H45: 0 | I45: 0.01 | J45: 0.01 | K45: 0.01 | L45: 0.01 | M45: 0.01 | N45: 0.01 | O45: 0.01 | P45: 0.01 | Q45: 0.01 | R45: 0.01 | S45: 0.01 | T45: 0.01 | U45: 0.01 | V45: 0.01 | W45: 0.01 | X45: 0.01 | Y45: 0.01 | Z45: 0.01 | AA45: 0.01 | AB45: 0.01 | AC45: 5 | AD45: Carryover | AH45: 2006
A46: 44 | B46: 103 | C46: Beverly | D46: 0.0125 | E46: 0.0125 | F46: 0.01 | G46: 0.01 | H46: 0.01 | I46: 0.01 | J46: 0.01 | K46: 0.01 | L46: 0.01 | M46: 0.01 | N46: 0.01 | O46: 0.01 | P46: 0.01 | Q46: 0.01 | R46: 0.01 | S46: 0.01 | T46: 0.01 | U46: 0.01 | V46: 0.01 | W46: 0.01 | X46: 0.01 | Y46: 0.0125 | Z46: 0.0125 | AA46: 0.0125 | AB46: 0.0125 | AC46: 5 | AD46: Carryover | AH46: 2003
A47: 45 | B47: 104 | C47: Bexley | D47: 0.025 | E47: 0.025 | F47: 0.02 | G47: 0.02 | H47: 0.02 | I47: 0.02 | J47: 0.02 | K47: 0.02 | L47: 0.02 | M47: 0.02 | N47: 0.025 | O47: 0.025 | P47: 0.025 | Q47: 0.025 | R47: 0.025 | S47: 0.025 | T47: 0.025 | U47: 0.025 | V47: 0.025 | W47: 0.025 | X47: 0.025 | Y47: 0.025 | Z47: 0.025 | AA47: 0.025 | AB47: 0.025 | AC47: 0 | AD47: n/a | AH47: 1980
A48: 46 | B48: 118 | C48: Blanchester | D48: 0 | E48: 0.005 | F48: 0 | G48: 0 | H48: 0 | I48: 0 | J48: 0 | K48: 0 | L48: 0 | M48: 0 | N48: 0 | O48: 0 | P48: 0 | Q48: 0 | R48: 0 | S48: 0 | T48: 0 | U48: 0 | V48: 0 | W48: 0 | X48: 0 | Y48: 0 | Z48: 0.005 | AA48: 0.005 | AB48: 0.005 | AC48: 5 | AD48: Carryover | AE48: Blended tax rate for 2024 | AH48: 2023
A49: 47 | B49: 96 | C49: Bloomdale | D49: 0.01 | E49: 0.01 | F49: 0.01 | G49: 0.01 | H49: 0.01 | I49: 0.01 | J49: 0.01 | K49: 0.01 | L49: 0.01 | M49: 0.01 | N49: 0.01 | O49: 0.01 | P49: 0.01 | Q49: 0.01 | R49: 0.01 | S49: 0.01 | T49: 0.01 | U49: 0.01 | V49: 0.01 | W49: 0.01 | X49: 0.01 | Y49: 0.01 | Z49: 0.01 | AA49: 0.01 | AB49: 0.01 | AC49: 5 | AD49: Carryover | AH49: 1980
A50: 48 | B50: 95 | C50: Bloomingdale | D50: 0.01 | E50: 0.01 | F50: 0 | G50: 0 | H50: 0 | I50: 0 | J50: 0.01 | K50: 0.01 | L50: 0.01 | M50: 0.01 | N50: 0.01 | O50: 0.01 | P50: 0.01 | Q50: 0.01 | R50: 0.01 | S50: 0.01 | T50: 0.01 | U50: 0.01 | V50: 0.01 | W50: 0.01 | X50: 0.01 | Y50: 0.01 | Z50: 0.01 | AA50: 0.01 | AB50: 0.01 | AC50: 5 | AD50: Carryover | AH50: 2007
A51: 49 | B51: 123 | C51: Bloomville | D51: 0.01 | E51: 0.01 | F51: 0 | G51: 0 | H51: 0 | I51: 0 | J51: 0 | K51: 0 | L51: 0 | M51: 0 | N51: 0 | O51: 0 | P51: 0 | Q51: 0 | R51: 0 | S51: 0 | T51: 0 | U51: 0.01 | V51: 0.01 | W51: 0.01 | X51: 0.01 | Y51: 0.01 | Z51: 0.01 | AA51: 0.01 | AB51: 0.01 | AC51: 5 | AD51: Carryover | AH51: 2018
A52: 50 | B52: 110 | C52: Boston Heights | D52: 0.02 | E52: 0.02 | F52: 0.015 | G52: 0.02 | H52: 0.02 | I52: 0.02 | J52: 0.02 | K52: 0.02 | L52: 0.02 | M52: 0.02 | N52: 0.02 | O52: 0.02 | P52: 0.02 | Q52: 0.02 | R52: 0.02 | S52: 0.02 | T52: 0.02 | U52: 0.02 | V52: 0.02 | W52: 0.02 | X52: 0.02 | Y52: 0.02 | Z52: 0.02 | AA52: 0.02 | AB52: 0.02 | AC52: 3 | AD52: Carryover | AH52: 1980
A53: 51 | B53: 117 | C53: Boston Twp / Peninsula JEDD | D53: 0.02 | E53: 0.02 | F53: 0 | G53: 0 | H53: 0 | I53: 0 | J53: 0 | K53: 0 | L53: 0 | M53: 0 | N53: 0.02 | O53: 0.02 | P53: 0.02 | Q53: 0.02 | R53: 0.02 | S53: 0.02 | T53: 0.02 | U53: 0.02 | V53: 0.02 | W53: 0.02 | X53: 0.02 | Y53: 0.02 | Z53: 0.02 | AA53: 0.02 | AB53: 0.02 | AC53: 5 | AD53: Carryover | AH53: 2011
A54: 52 | B54: 112 | C54: Bradford | D54: 0.01 | E54: 0.01 | F54: 0 | G54: 0.01 | H54: 0.01 | I54: 0.01 | J54: 0.01 | K54: 0.01 | L54: 0.01 | M54: 0.01 | N54: 0.01 | O54: 0.01 | P54: 0.01 | Q54: 0.01 | R54: 0.01 | S54: 0.01 | T54: 0.01 | U54: 0.01 | V54: 0.01 | W54: 0.01 | X54: 0.01 | Y54: 0.01 | Z54: 0.01 | AA54: 0.01 | AB54: 0.01 | AC54: 5 | AD54: Carryover | AH54: =_xlfn.IFNA(MATCH(0,F54:Y54,1),-23) + F$2 -1 -> 2004
A55: 53 | B55: 120 | C55: Bratenahl | D55: 0.02 | E55: 0.02 | F55: 0.015 | G55: 0.015 | H55: 0.015 | I55: 0.015 | J55: 0.015 | K55: 0.015 | L55: 0.015 | M55: 0.015 | N55: 0.015 | O55: 0.015 | P55: 0.015 | Q55: 0.015 | R55: 0.015 | S55: 0.015 | T55: 0.015 | U55: 0.01792 | V55: 0.02 | W55: 0.02 | X55: 0.02 | Y55: 0.02 | Z55: 0.02 | AA55: 0.02 | AB55: 0.02 | AC55: 5 | AD55: Carryover | AE55: Blended tax rate for 2019 | AH55: 1980
A56: 54 | B56: 130 | C56: Brecksville | D56: 0.02 | E56: 0.02 | F56: 0.02 | G56: 0.02 | H56: 0.02 | I56: 0.02 | J56: 0.02 | K56: 0.02 | L56: 0.02 | M56: 0.02 | N56: 0.02 | O56: 0.02 | P56: 0.02 | Q56: 0.02 | R56: 0.02 | S56: 0.02 | T56: 0.02 | U56: 0.02 | V56: 0.02 | W56: 0.02 | X56: 0.02 | Y56: 0.02 | Z56: 0.02 | AA56: 0.02 | AB56: 0.02 | AC56: 5 | AD56: Carryover | AH56: 1980
A57: 55 | B57: 132 | C57: Bremen | D57: 0.01 | E57: 0.01 | F57: 0 | G57: 0.01 | H57: 0.01 | I57: 0.01 | J57: 0.01 | K57: 0.01 | L57: 0.01 | M57: 0.01 | N57: 0.01 | O57: 0.01 | P57: 0.01 | Q57: 0.01 | R57: 0.01 | S57: 0.01 | T57: 0.01 | U57: 0.01 | V57: 0.01 | W57: 0.01 | X57: 0.01 | Y57: 0.01 | Z57: 0.01 | AA57: 0.01 | AB57: 0.01 | AC57: 5 | AD57: Carryover | AH57: 2004
A58: 56 | B58: 136 | C58: Brice | D58: 0.02 | E58: 0.02 | F58: 0 | G58: 0 | H58: 0 | I58: 0 | J58: 0 | K58: 0 | L58: 0 | M58: 0 | N58: 0 | O58: 0 | P58: 0 | Q58: 0 | R58: 0 | S58: 0 | T58: 0 | U58: 0.02 | V58: 0.02 | W58: 0.02 | X58: 0.02 | Y58: 0.02 | Z58: 0.02 | AA58: 0.02 | AB58: 0.02 | AC58: 5 | AD58: Carryover | AH58: 2018
A59: 57 | B59: 156 | C59: Bridgeport | D59: 0.01 | E59: 0.01 | F59: 0 | G59: 0 | H59: 0 | I59: 0 | J59: 0 | K59: 0 | L59: 0 | M59: 0 | N59: 0 | O59: 0 | P59: 0 | Q59: 0 | R59: 0 | S59: 0 | T59: 0 | U59: 0.004167 | V59: 0.01 | W59: 0.01 | X59: 0.01 | Y59: 0.01 | Z59: 0.01 | AA59: 0.01 | AB59: 0.01 | AC59: 5 | AD59: Carryover | AH59: 2018
A60: 58 | B60: 137 | C60: Brimfield Twp / Tallmadge JEDD | D60: 0.0175 | E60: 0.0175 | F60: 0.0025 | G60: 0.0025 | H60: 0.005 | I60: 0.005 | J60: 0.005 | K60: 0.0075 | L60: 0.0075 | M60: 0.0075 | N60: 0.01 | O60: 0.01 | P60: 0.01 | Q60: 0.0125 | R60: 0.0125 | S60: 0.0125 | T60: 0.0125 | U60: 0.015 | V60: 0.015 | W60: 0.015 | X60: 0.0175 | Y60: 0.0175 | Z60: 0.0175 | AA60: 0.0175 | AB60: 0.0175 | AC60: 0 | AD60: n/a | AH60: 1980
A61: 59 | B61: 140 | C61: Broadview Heights | D61: 0.02 | E61: 0.02 | F61: 0.02 | G61: 0.02 | H61: 0.02 | I61: 0.02 | J61: 0.02 | K61: 0.02 | L61: 0.02 | M61: 0.02 | N61: 0.02 | O61: 0.02 | P61: 0.02 | Q61: 0.02 | R61: 0.02 | S61: 0.02 | T61: 0.02 | U61: 0.02 | V61: 0.02 | W61: 0.02 | X61: 0.02 | Y61: 0.02 | Z61: 0.02 | AA61: 0.02 | AB61: 0.02 | AC61: 5 | AD61: Carryover | AH61: 1980
A62: 60 | B62: 150 | C62: Brooklyn | D62: 0.025 | E62: 0.025 | F62: 0.02 | G62: 0.02 | H62: 0.02 | I62: 0.02 | J62: 0.02 | K62: 0.025 | L62: 0.025 | M62: 0.025 | N62: 0.025 | O62: 0.025 | P62: 0.025 | Q62: 0.025 | R62: 0.025 | S62: 0.025 | T62: 0.025 | U62: 0.025 | V62: 0.025 | W62: 0.025 | X62: 0.025 | Y62: 0.025 | Z62: 0.025 | AA62: 0.025 | AB62: 0.025 | AC62: 5 | AD62: Carryover | AH62: 1980
A63: 61 | B63: 160 | C63: Brooklyn Heights | D63: 0.025 | E63: 0.025 | F63: 0.02 | G63: 0.02 | H63: 0.02 | I63: 0.02 | J63: 0.02 | K63: 0.02 | L63: 0.02 | M63: 0.02 | N63: 0.02 | O63: 0.02 | P63: 0.02 | Q63: 0.02 | R63: 0.02 | S63: 0.02 | T63: 0.0225 | U63: 0.025 | V63: 0.025 | W63: 0.025 | X63: 0.025 | Y63: 0.025 | Z63: 0.025 | AA63: 0.025 | AB63: 0.025 | AC63: 5 | AD63: Carryover | AE63: Blended tax rate for 2018 | AH63: 1980
A64: 62 | B64: 172 | C64: Bryan | D64: 0.018 | E64: 0.018 | F64: 0.013 | G64: 0.013 | H64: 0.013 | I64: 0.013 | J64: 0.013 | K64: 0.013 | L64: 0.013 | M64: 0.013 | N64: 0.013 | O64: 0.013 | P64: 0.01342 | Q64: 0.018 | R64: 0.018 | S64: 0.018 | T64: 0.018 | U64: 0.018 | V64: 0.018 | W64: 0.018 | X64: 0.018 | Y64: 0.018 | Z64: 0.018 | AA64: 0.018 | AB64: 0.018 | AC64: 5 | AD64: Carryover | AH64: 1980
A65: 63 | B65: 154 | C65: Buckland | D65: 0.01 | E65: 0.01 | F65: 0 | G65: 0 | H65: 0 | I65: 0 | J65: 0 | K65: 0 | L65: 0 | M65: 0 | N65: 0 | O65: 0.005 | P65: 0.01 | Q65: 0.01 | R65: 0.01 | S65: 0.01 | T65: 0.01 | U65: 0.01 | V65: 0.01 | W65: 0.01 | X65: 0.01 | Y65: 0.01 | Z65: 0.01 | AA65: 0.01 | AB65: 0.01 | AC65: 5 | AD65: Carryover | AE65: Blended tax rate for 2013 | AH65: 2012
A66: 64 | B66: 125 | C66: Burbank | D66: 0.01 | E66: 0.01 | F66: 0 | G66: 0 | H66: 0 | I66: 0 | J66: 0 | K66: 0 | L66: 0 | M66: 0 | N66: 0 | O66: 0 | P66: 0 | Q66: 0 | R66: 0 | S66: 0 | T66: 0 | U66: 0 | V66: 0 | W66: 0 | X66: 0.005 | Y66: 0.01 | Z66: 0.01 | AA66: 0.01 | AB66: 0.01 | AC66: 5 | AD66: Carryover | AE66: Blended tax rate for 2022 | AH66: 2021
A67: 65 | B67: 163 | C67: Butler | D67: 0.01 | E67: 0.01 | F67: 0 | G67: 0.0052 | H67: 0.01 | I67: 0.01 | J67: 0.01 | K67: 0.01 | L67: 0.01 | M67: 0.01 | N67: 0.01 | O67: 0.01 | P67: 0.01 | Q67: 0.01 | R67: 0.01 | S67: 0.01 | T67: 0.01 | U67: 0.01 | V67: 0.01 | W67: 0.01 | X67: 0.01 | Y67: 0.01 | Z67: 0.01 | AA67: 0.01 | AB67: 0.01 | AC67: 5 | AD67: Carryover | AH67: 2004
A68: 66 | B68: 91 | C68: Butler County Annexation | D68: =HLOOKUP(D$1,F$2:AB$499,(A68+1),FALSE) -> 0.02 | E68: =HLOOKUP(D$1+1,F$2:AB$499,(A68+1),FALSE) -> 0.02 | F68: 0 | G68: 0.02 | H68: 0.02 | I68: 0.02 | J68: 0.02 | K68: 0.02 | L68: 0.02 | M68: 0.02 | N68: 0.02 | O68: 0.02 | P68: 0.02 | Q68: 0.02 | R68: 0.02 | S68: 0.02 | T68: 0.02 | U68: 0.02 | V68: 0.02 | W68: 0.02 | X68: 0.02 | Y68: 0.02 | Z68: 0.02 | AA68: 0.02 | AB68: 0.02 | AC68: 3 | AD68: Carryover | AH68: 2004
A69: 67 | B69: 162 | C69: Cairo | D69: 0.005 | E69: 0.005 | F69: 0 | G69: 0 | H69: 0.01 | I69: 0.005 | J69: 0.005 | K69: 0.005 | L69: 0.005 | M69: 0.005 | N69: 0.005 | O69: 0.005 | P69: 0.005 | Q69: 0.005 | R69: 0.005 | S69: 0.005 | T69: 0.005 | U69: 0.005 | V69: 0.005 | W69: 0.005 | X69: 0.005 | Y69: 0.005 | Z69: 0.005 | AA69: 0.005 | AB69: 0.005 | AC69: 5 | AD69: Carryover | AH69: 2005
A70: 68 | B70: 158 | C70: Caldwell | D70: 0.01 | E70: 0.01 | F70: 0 | G70: 0 | H70: 0 | I70: 0 | J70: 0 | K70: 0 | L70: 0 | M70: 0 | N70: 0 | O70: 0 | P70: 0 | Q70: 0 | R70: 0 | S70: 0 | T70: 0.01 | U70: 0.01 | V70: 0.01 | W70: 0.01 | X70: 0.01 | Y70: 0.01 | Z70: 0.01 | AA70: 0.01 | AB70: 0.01 | AC70: 5 | AD70: Carryover | AH70: 2017
A71: 69 | B71: 232 | C71: Camden | D71: 0.01 | E71: 0.01 | F71: 0 | G71: 0 | H71: 0 | I71: 0 | J71: 0 | K71: 0 | L71: 0 | M71: 0 | N71: 0 | O71: 0 | P71: 0.01 | Q71: 0.01 | R71: 0.01 | S71: 0.01 | T71: 0.01 | U71: 0.01 | V71: 0.01 | W71: 0.01 | X71: 0.01 | Y71: 0.01 | Z71: 0.01 | AA71: 0.01 | AB71: 0.01 | AC71: 5 | AD71: Carryover | AH71: 2013
A72: 70 | B72: 167 | C72: Campbell | D72: 0.025 | E72: 0.025 | F72: 0.02 | G72: 0.025 | H72: 0.025 | I72: 0.025 | J72: 0.025 | K72: 0.025 | L72: 0.025 | M72: 0.025 | N72: 0.025 | O72: 0.025 | P72: 0.025 | Q72: 0.025 | R72: 0.025 | S72: 0.025 | T72: 0.025 | U72: 0.025 | V72: 0.025 | W72: 0.025 | X72: 0.025 | Y72: 0.025 | Z72: 0.025 | AA72: 0.025 | AB72: 0.025 | AC72: 5 | AD72: Carryover | AH72: 1980
A73: 71 | B73: 175 | C73: Canal Winchester | D73: 0.02 | E73: 0.02 | F73: 0.02 | G73: 0.02 | H73: 0.02 | I73: 0.02 | J73: 0.02 | K73: 0.02 | L73: 0.02 | M73: 0.02 | N73: 0.02 | O73: 0.02 | P73: 0.02 | Q73: 0.02 | R73: 0.02 | S73: 0.02 | T73: 0.02 | U73: 0.02 | V73: 0.02 | W73: 0.02 | X73: 0.02 | Y73: 0.02 | Z73: 0.02 | AA73: 0.02 | AB73: 0.02 | AC73: 5 | AD73: Carryover | AH73: 1980
A74: 72 | B74: 168 | C74: Cardington | D74: 0.01 | E74: 0.01 | F74: 0.01 | G74: 0.01 | H74: 0.01 | I74: 0.01 | J74: 0.01 | K74: 0.01 | L74: 0.01 | M74: 0.01 | N74: 0.01 | O74: 0.01 | P74: 0.01 | Q74: 0.01 | R74: 0.01 | S74: 0.01 | T74: 0.01 | U74: 0.01 | V74: 0.01 | W74: 0.01 | X74: 0.01 | Y74: 0.01 | Z74: 0.01 | AA74: 0.01 | AB74: 0.01 | AC74: 5 | AD74: Carryover | AH74: 1980
A75: 73 | B75: 202 | C75: Carroll | D75: 0.0075 | E75: 0.0075 | F75: 0 | G75: 0.0075 | H75: 0.0075 | I75: 0.0075 | J75: 0.0075 | K75: 0.0075 | L75: 0.0075 | M75: 0.0075 | N75: 0.0075 | O75: 0.0075 | P75: 0.0075 | Q75: 0.0075 | R75: 0.0075 | S75: 0.0075 | T75: 0.0075 | U75: 0.0075 | V75: 0.0075 | W75: 0.0075 | X75: 0.0075 | Y75: 0.0075 | Z75: 0.0075 | AA75: 0.0075 | AB75: 0.0075 | AC75: 5 | AD75: Carryover | AH75: 2004
A76: 74 | B76: 203 | C76: Carrollton | D76: 0.01 | E76: 0.01 | F76: 0 | G76: 0.01 | H76: 0.01 | I76: 0.01 | J76: 0.01 | K76: 0.01 | L76: 0.01 | M76: 0.01 | N76: 0.01 | O76: 0.01 | P76: 0.01 | Q76: 0.01 | R76: 0.01 | S76: 0.01 | T76: 0.01 | U76: 0.01 | V76: 0.01 | W76: 0.01 | X76: 0.01 | Y76: =X76 -> 0.01 | Z76: 0.01 | AA76: 0.01 | AB76: 0.01 | AC76: 5 | AD76: Carryover | AH76: 2004
A77: 75 | B77: 204 | C77: Catawba | D77: 0.01 | E77: 0.01 | F77: 0 | G77: 0.01 | H77: 0.01 | I77: 0.01 | J77: 0.01 | K77: 0.01 | L77: 0.01 | M77: 0.01 | N77: 0.01 | O77: 0.01 | P77: 0.01 | Q77: 0.01 | R77: 0.01 | S77: 0.01 | T77: 0.01 | U77: 0.01 | V77: 0.01 | W77: 0.01 | X77: 0.01 | Y77: 0.01 | Z77: 0.01 | AA77: 0.01 | AB77: 0.01 | AC77: 5 | AD77: Carryover | AH77: =_xlfn.IFNA(MATCH(0,F77:Y77,1),-23) + F$2 -1 -> 2004
A78: 76 | B78: 195 | C78: Cecil | D78: 0.01 | E78: 0.01 | F78: 0.01 | G78: 0.01 | H78: 0.01 | I78: 0.01 | J78: 0.01 | K78: 0.01 | L78: 0.01 | M78: 0.01 | N78: 0.01 | O78: 0.01 | P78: 0.01 | Q78: 0.01 | R78: 0.01 | S78: 0.01 | T78: 0.01 | U78: 0.01 | V78: 0.01 | W78: 0.01 | X78: 0.01 | Y78: 0.01 | Z78: 0.01 | AA78: 0.01 | AB78: 0.01 | AC78: 5 | AD78: Carryover | AH78: 1980
A79: 77 | B79: 192 | C79: Cedarville | D79: 0.0125 | E79: 0.0125 | F79: 0.01 | G79: 0.01 | H79: 0.01 | I79: 0.01 | J79: 0.01 | K79: 0.01 | L79: 0.01 | M79: 0.01 | N79: 0.01 | O79: 0.01 | P79: 0.01 | Q79: 0.01125 | R79: 0.0125 | S79: 0.0125 | T79: 0.0125 | U79: 0.0125 | V79: 0.0125 | W79: 0.0125 | X79: 0.0125 | Y79: 0.0125 | Z79: 0.0125 | AA79: 0.0125 | AB79: 0.0125 | AC79: 5 | AD79: Carryover | AE79: Blended tax rate for 2015 | AH79: 1980
A80: 78 | B80: 194 | C80: Centerburg | D80: 0.01 | E80: 0.01 | F80: 0.01 | G80: 0.01 | H80: 0.01 | I80: 0.01 | J80: 0.01 | K80: 0.01 | L80: 0.01 | M80: 0.01 | N80: 0.01 | O80: 0.01 | P80: 0.01 | Q80: 0.01 | R80: 0.01 | S80: 0.01 | T80: 0.01 | U80: 0.01 | V80: 0.01 | W80: 0.01 | X80: 0.01 | Y80: 0.01 | Z80: 0.01 | AA80: 0.01 | AB80: 0.01 | AC80: 5 | AD80: Carryover | AH80: 1980
A81: 79 | B81: 180 | C81: Chagrin Falls | D81: 0.0185 | E81: 0.0185 | F81: 0.015 | G81: 0.015 | H81: 0.015 | I81: 0.015 | J81: 0.015 | K81: 0.015 | L81: 0.015 | M81: 0.015 | N81: 0.015 | O81: 0.015 | P81: 0.015 | Q81: 0.015 | R81: 0.015 | S81: 0.0185 | T81: 0.0185 | U81: 0.0185 | V81: 0.0185 | W81: 0.0185 | X81: 0.0185 | Y81: 0.0185 | Z81: 0.0185 | AA81: 0.0185 | AB81: 0.0185 | AC81: 5 | AD81: Carryover | AE81: Rate Changed 1/01/17 | AH81: 1980
A82: 80 | B82: 185 | C82: Chardon | D82: 0.02 | E82: 0.02 | F82: 0.01 | G82: 0.02 | H82: 0.02 | I82: 0.02 | J82: 0.02 | K82: 0.02 | L82: 0.02 | M82: 0.02 | N82: 0.02 | O82: 0.02 | P82: 0.02 | Q82: 0.02 | R82: 0.02 | S82: 0.02 | T82: 0.02 | U82: 0.02 | V82: 0.02 | W82: 0.02 | X82: 0.02 | Y82: 0.02 | Z82: 0.02 | AA82: 0.02 | AB82: 0.02 | AC82: 5 | AD82: Carryover | AH82: 1980
A83: 81 | B83: 126 | C83: Chesterville | D83: 0.01 | E83: 0.01 | F83: 0 | G83: 0 | H83: 0 | I83: 0 | J83: 0 | K83: 0 | L83: 0 | M83: 0 | N83: 0 | O83: 0 | P83: 0 | Q83: 0 | R83: 0 | S83: 0 | T83: 0.005 | U83: 0.01 | V83: 0.01 | W83: 0.01 | X83: 0.01 | Y83: 0.01 | Z83: 0.01 | AA83: 0.01 | AB83: 0.01 | AC83: 5 | AD83: Carryover | AE83: Blended tax rate for 2018 | AH83: 2017
A84: =+A83+1 -> 82 | B84: 190 | C84: Circleville | D84: 0.025 | E84: 0.025 | F84: 0.015 | G84: 0.015 | H84: 0.015 | I84: 0.015 | J84: 0.015 | K84: 0.015 | L84: 0.015 | M84: 0.015 | N84: 0.015 | O84: 0.015 | P84: 0.015 | Q84: 0.02 | R84: 0.02 | S84: 0.02 | T84: 0.02 | U84: 0.02 | V84: 0.025 | W84: 0.025 | X84: 0.025 | Y84: 0.025 | Z84: 0.025 | AA84: 0.02 | AB84: 0.02 | AC84: 0 | AD84: n/a | AH84: 1980
A85: 83 | B85: 151 | C85: Circleville-Pickaway Twp JEDD | D85: 0.025 | E85: 0.025 | F85: 0 | G85: 0 | H85: 0 | I85: 0 | J85: 0 | K85: 0 | L85: 0 | M85: 0 | N85: 0 | O85: 0 | P85: 0 | Q85: 0 | R85: 0.0033 | S85: 0.02 | T85: 0.02 | U85: 0.02 | V85: 0.025 | W85: 0.025 | X85: 0.025 | Y85: 0.025 | Z85: 0.025 | AA85: 0.025 | AB85: 0.025 | AC85: 5 | AD85: Carryover | AE85: Blended tax rate for 2016 | AH85: 2015
A86: 84 | B86: 237 | C86: Clarksville | D86: 0.01 | E86: 0.01 | F86: 0 | G86: 0 | H86: 0 | I86: 0 | J86: 0 | K86: 0 | L86: 0 | M86: 0 | N86: 0 | O86: 0 | P86: 0 | Q86: 0 | R86: 0.005 | S86: 0.01 | T86: 0.01 | U86: 0.01 | V86: 0.01 | W86: 0.01 | X86: 0.01 | Y86: 0.01 | Z86: 0.01 | AA86: 0.01 | AB86: 0.01 | AC86: 5 | AD86: Carryover | AE86: Blended tax rate for 2016 | AH86: 2015
A87: 85 | B87: 210 | C87: Cleveland Heights | D87: 0.0225 | E87: 0.0225 | F87: 0.02 | G87: 0.02 | H87: 0.02 | I87: 0.02 | J87: 0.02 | K87: 0.02 | L87: 0.02 | M87: 0.02 | N87: 0.02 | O87: 0.02 | P87: 0.02 | Q87: 0.02 | R87: 0.0225 | S87: 0.0225 | T87: 0.0225 | U87: 0.0225 | V87: 0.0225 | W87: 0.0225 | X87: 0.0225 | Y87: 0.0225 | Z87: 0.0225 | AA87: 0.0225 | AB87: 0.0225 | AC87: 5 | AD87: Carryover | AE87: Rate Changed 1/01/16 | AH87: 1980
A88: 86 | B88: 159 | C88: Clinton | D88: 0.01 | E88: 0.01 | F88: 0 | G88: 0 | H88: 0 | I88: 0 | J88: 0 | K88: 0 | L88: 0 | M88: 0 | N88: 0.01 | O88: 0.01 | P88: 0.01 | Q88: 0.01 | R88: 0.01 | S88: 0.01 | T88: 0.01 | U88: 0.01 | V88: 0.01 | W88: 0.01 | X88: 0.01 | Y88: 0.01 | Z88: 0.01 | AA88: 0.01 | AB88: 0.01 | AC88: 0 | AD88: n/a | AH88: 2011
A89: 87 | B89: 293 | C89: Clinton Twp/Grandview Hts JEDZ | D89: 0.025 | E89: 0.025 | F89: 0 | G89: 0 | H89: 0 | I89: 0 | J89: 0 | K89: 0 | L89: 0 | M89: 0 | N89: 0 | O89: 0 | P89: 0.01875 | Q89: 0.025 | R89: 0.025 | S89: 0.025 | T89: 0.025 | U89: 0.025 | V89: 0.025 | W89: 0.025 | X89: 0.025 | Y89: 0.025 | Z89: 0.025 | AA89: 0.025 | AB89: 0.025 | AC89: 0 | AD89: n/a | AE89: Blended tax rate for 2014 | AH89: 2013
A90: 88 | B90: 207 | C90: Coal Grove | D90: 0.01 | E90: 0.01 | F90: 0 | G90: 0 | H90: 0 | I90: 0 | J90: 0.01 | K90: 0.01 | L90: 0.01 | M90: 0.01 | N90: 0.01 | O90: 0.01 | P90: 0.01 | Q90: 0.01 | R90: 0.01 | S90: 0.01 | T90: 0.01 | U90: 0.01 | V90: 0.01 | W90: 0.01 | X90: 0.01 | Y90: 0.01 | Z90: =Y90 -> 0.01 | AA90: 0.01 | AB90: 0.01 | AC90: 5 | AD90: Carryover | AH90: =_xlfn.IFNA(MATCH(0,F90:Y90,1),-23) + F$2 -1 -> 2007
A91: 89 | B91: 155 | C91: College Corner | D91: 0 | E91: 0.005 | F91: 0 | G91: 0 | H91: 0 | I91: 0 | J91: 0 | K91: 0 | L91: 0 | M91: 0 | N91: 0 | O91: 0 | P91: 0 | Q91: 0 | R91: 0 | S91: 0 | T91: 0 | U91: 0 | V91: 0 | W91: 0 | X91: 0 | Y91: 0 | Z91: 0.005 | AA91: 0.005 | AB91: 0.005 | AC91: 5 | AD91: Carryover | AE91: Blended tax rate for 2024 | AH91: 2023
A92: 90 | B92: 211 | C92: Columbiana | D92: 0.01 | E92: 0.01 | F92: 0.01 | G92: 0.01 | H92: 0.01 | I92: 0.01 | J92: 0.01 | K92: 0.01 | L92: 0.01 | M92: 0.01 | N92: 0.01 | O92: 0.01 | P92: 0.01 | Q92: 0.01 | R92: 0.01 | S92: 0.01 | T92: 0.01 | U92: 0.01 | V92: 0.01 | W92: 0.01 | X92: 0.01 | Y92: 0.01 | Z92: 0.01 | AA92: 0.01 | AB92: 0.01 | AC92: 0 | AD92: n/a | AH92: 1980
A93: 91 | B93: 224 | C93: Commercial Point | D93: 0.0075 | E93: 0.0075 | F93: 0 | G93: 0 | H93: 0 | I93: 0 | J93: 0 | K93: 0.01 | L93: 0.01 | M93: 0.01 | N93: 0.01 | O93: 0.01 | P93: 0.01 | Q93: 0.0075 | R93: 0.0075 | S93: 0.0075 | T93: 0.0075 | U93: 0.0075 | V93: 0.0075 | W93: 0.0075 | X93: 0.0075 | Y93: 0.0075 | Z93: 0.0075 | AA93: 0.0075 | AB93: 0.0075 | AC93: 5 | AD93: Carryover | AH93: 2008
A94: 92 | B94: 236 | C94: Conesville | D94: 0.005 | E94: 0.005 | F94: 0 | G94: 0 | H94: 0 | I94: 0 | J94: 0 | K94: 0 | L94: 0 | M94: 0 | N94: 0 | O94: 0 | P94: 0 | Q94: 0.01 | R94: 0.01 | S94: 0.01 | T94: 0.01 | U94: 0.005 | V94: 0.005 | W94: 0.005 | X94: 0.005 | Y94: 0.005 | Z94: 0.005 | AA94: 0.005 | AB94: 0.005 | AC94: 5 | AD94: Carryover | AH94: 2014
A95: 93 | B95: 226 | C95: Continental | D95: 0.01 | E95: 0.01 | F95: 0 | G95: 0 | H95: 0 | I95: 0 | J95: 0 | K95: 0 | L95: 0 | M95: 0 | N95: 0.01 | O95: 0.01 | P95: 0.01 | Q95: 0.01 | R95: 0.01 | S95: 0.01 | T95: 0.01 | U95: 0.01 | V95: 0.01 | W95: 0.01 | X95: 0.01 | Y95: 0.01 | Z95: 0.01 | AA95: 0.01 | AB95: 0.01 | AC95: 5 | AD95: Carryover | AH95: 2011
A96: 94 | B96: 223 | C96: Corwin | D96: 0.005 | E96: 0.005 | F96: 0.015 | G96: 0.005 | H96: 0.005 | I96: 0.005 | J96: 0.005 | K96: 0.005 | L96: 0.005 | M96: 0.005 | N96: 0.005 | O96: 0.005 | P96: 0.005 | Q96: 0.005 | R96: 0.005 | S96: 0.005 | T96: 0.005 | U96: 0.005 | V96: 0.005 | W96: 0.005 | X96: 0.005 | Y96: 0.005 | Z96: 0.005 | AA96: 0.005 | AB96: 0.005 | AC96: 3 | AD96: Carryover | AH96: 1980
A97: 95 | B97: 227 | C97: Crestline | D97: 0.02 | E97: 0.02 | F97: 0.02 | G97: 0.02 | H97: 0.02 | I97: 0.02 | J97: 0.02 | K97: 0.02 | L97: 0.02 | M97: 0.02 | N97: 0.02 | O97: 0.02 | P97: 0.02 | Q97: 0.02 | R97: 0.02 | S97: 0.02 | T97: 0.02 | U97: 0.02 | V97: 0.02 | W97: 0.02 | X97: 0.02 | Y97: 0.02 | Z97: 0.02 | AA97: 0.02 | AB97: 0.02 | AC97: 5 | AD97: Carryover | AH97: 1980
A98: 96 | B98: 228 | C98: Creston | D98: 0.01 | E98: 0.01 | F98: 0.01 | G98: 0.01 | H98: 0.01 | I98: 0.01 | J98: 0.01 | K98: 0.01 | L98: 0.01 | M98: 0.01 | N98: 0.01 | O98: 0.01 | P98: 0.01 | Q98: 0.01 | R98: 0.01 | S98: 0.01 | T98: 0.01 | U98: 0.01 | V98: 0.01 | W98: 0.01 | X98: 0.01 | Y98: 0.01 | Z98: 0.01 | AA98: 0.01 | AB98: 0.01 | AC98: 5 | AD98: Carryover | AH98: 2003
A99: 97 | B99: 230 | C99: Crooksville | D99: 0.015 | E99: 0.015 | F99: 0 | G99: 0.015 | H99: 0.015 | I99: 0.015 | J99: 0.015 | K99: 0.015 | L99: 0.015 | M99: 0.015 | N99: 0.015 | O99: 0.015 | P99: 0.015 | Q99: 0.015 | R99: 0.015 | S99: 0.015 | T99: 0.015 | U99: 0.015 | V99: 0.015 | W99: 0.015 | X99: 0.015 | Y99: 0.015 | Z99: 0.015 | AA99: 0.015 | AB99: 0.015 | AC99: 5 | AD99: Carryover | AH99: 2004
A100: 98 | B100: 220 | C100: Cuyahoga Falls | D100: 0.02 | E100: 0.02 | F100: 0.02 | G100: 0.02 | H100: 0.02 | I100: 0.02 | J100: 0.02 | K100: 0.02 | L100: 0.02 | M100: 0.02 | N100: 0.02 | O100: 0.02 | P100: 0.02 | Q100: 0.02 | R100: 0.02 | S100: 0.02 | T100: 0.02 | U100: 0.02 | V100: 0.02 | W100: 0.02 | X100: 0.02 | Y100: 0.02 | Z100: 0.02 | AA100: 0.02 | AB100: 0.02 | AC100: 5 | AD100: Carryover | AH100: 1980
A101: 99 | B101: 135 | C101: Cuyahoga Falls Boston Twp JEDD | D101: 0.02 | E101: 0.02 | F101: 0.02 | G101: 0.02 | H101: 0.02 | I101: 0.02 | J101: 0.02 | K101: 0.02 | L101: 0.02 | M101: 0.02 | N101: 0.02 | O101: 0.02 | P101: 0.02 | Q101: 0.02 | R101: 0.02 | S101: 0.02 | T101: 0.02 | U101: 0.02 | V101: 0.02 | W101: 0.02 | X101: 0.02 | Y101: 0.02 | Z101: 0.02 | AA101: 0.02 | AB101: 0.02 | AC101: 5 | AD101: Carryover | AH101: 1980
A102: 100 | B102: 250 | C102: Cuyahoga Heights | D102: 0.025 | E102: 0.025 | F102: 0.02 | G102: 0.02 | H102: 0.02 | I102: 0.02 | J102: 0.02 | K102: 0.02 | L102: 0.02 | M102: 0.02 | N102: 0.02 | O102: 0.02 | P102: 0.02 | Q102: 0.02 | R102: 0.02 | S102: 0.025 | T102: 0.025 | U102: 0.025 | V102: 0.025 | W102: 0.025 | X102: 0.025 | Y102: 0.025 | Z102: 0.025 | AA102: 0.025 | AB102: 0.025 | AC102: 5 | AD102: Carryover | AH102: 1980
A103: 101 | B103: 251 | C103: Danville | D103: 0.015 | E103: 0.015 | F103: 0.01 | G103: 0.01 | H103: 0.01 | I103: 0.01 | J103: 0.01 | K103: 0.01 | L103: 0.01 | M103: 0.01 | N103: 0.01 | O103: 0.01 | P103: 0.01 | Q103: 0.01 | R103: 0.015 | S103: 0.015 | T103: 0.015 | U103: 0.015 | V103: 0.015 | W103: 0.015 | X103: 0.015 | Y103: 0.015 | Z103: 0.015 | AA103: 0.015 | AB103: 0.015 | AC103: 0 | AD103: n/a | AE103: Rate Changed 1/01/16 | AH103: 1980
A104: 102 | B104: 152 | C104: Darbyville | D104: 0.01 | E104: 0.01 | F104: 0 | G104: 0 | H104: 0 | I104: 0 | J104: 0 | K104: 0 | L104: 0 | M104: 0 | N104: 0 | O104: 0 | P104: 0 | Q104: 0 | R104: 0.0025 | S104: 0.01 | T104: 0.01 | U104: 0.01 | V104: 0.01 | W104: 0.01 | X104: 0.01 | Y104: 0.01 | Z104: 0.01 | AA104: 0.01 | AB104: 0.01 | AC104: 5 | AD104: Carryover | AE104: Blended tax rate for 2016 | AH104: 2015
A105: 103 | B105: 249 | C105: Degraff | D105: 0.01 | E105: 0.01 | F105: 0.01 | G105: 0.01 | H105: 0.01 | I105: 0.01 | J105: 0.01 | K105: 0.01 | L105: 0.01 | M105: 0.01 | N105: 0.01 | O105: 0.01 | P105: 0.01 | Q105: 0.01 | R105: 0.01 | S105: 0.01 | T105: 0.01 | U105: 0.01 | V105: 0.01 | W105: 0.01 | X105: 0.01 | Y105: 0.01 | Z105: 0.01 | AA105: 0.01 | AB105: 0.01 | AC105: 0 | AD105: Carryover | AH105: 1980
A106: 104 | B106: 256 | C106: Dennison | D106: 0.02 | E106: 0.02 | F106: 0.02 | G106: 0.02 | H106: 0.02 | I106: 0.02 | J106: 0.02 | K106: 0.02 | L106: 0.02 | M106: 0.02 | N106: 0.02 | O106: 0.02 | P106: 0.02 | Q106: 0.02 | R106: 0.02 | S106: 0.02 | T106: 0.02 | U106: 0.02 | V106: 0.02 | W106: 0.02 | X106: 0.02 | Y106: 0.02 | Z106: 0.02 | AA106: 0.02 | AB106: 0.02 | AC106: 0 | AD106: n/a | AH106: 1980
A107: 105 | B107: 141 | C107: Dorr Street JEDD | D107: 0.02 | E107: 0.02 | F107: 0 | G107: 0 | H107: 0 | I107: 0 | J107: 0 | K107: 0 | L107: 0 | M107: 0 | N107: 0 | O107: 0 | P107: 0 | Q107: 0 | R107: 0 | S107: 0 | T107: 0 | U107: 0 | V107: 0.02 | W107: 0.02 | X107: 0.02 | Y107: 0.02 | Z107: 0.02 | AA107: 0.02 | AB107: 0.02 | AC107: 5 | AD107: Carryover | AH107: 2019
A108: 106 | B108: 261 | C108: Doylestown | D108: 0.02 | E108: 0.02 | F108: 0.015 | G108: 0.015 | H108: 0.015 | I108: 0.015 | J108: 0.02 | K108: 0.02 | L108: 0.02 | M108: 0.02 | N108: 0.02 | O108: 0.02 | P108: 0.02 | Q108: 0.02 | R108: 0.02 | S108: 0.02 | T108: 0.02 | U108: 0.02 | V108: 0.02 | W108: 0.02 | X108: 0.02 | Y108: 0.02 | Z108: 0.02 | AA108: 0.02 | AB108: 0.02 | AC108: 5 | AD108: Carryover | AH108: 1980
A109: 107 | B109: 262 | C109: Dresden | D109: 0.01 | E109: 0.01 | F109: 0.01 | G109: 0.01 | H109: 0.01 | I109: 0.01 | J109: 0.01 | K109: 0.01 | L109: 0.01 | M109: 0.01 | N109: 0.01 | O109: 0.01 | P109: 0.01 | Q109: 0.01 | R109: 0.01 | S109: 0.01 | T109: 0.01 | U109: 0.01 | V109: 0.01 | W109: 0.01 | X109: 0.01 | Y109: 0.01 | Z109: 0.01 | AA109: 0.01 | AB109: 0.01 | AC109: 5 | AD109: Carryover
A110: 108 | B110: 264 | C110: Dunkirk | D110: 0.01 | E110: 0.01 | F110: 0 | G110: 0 | H110: 0 | I110: 0 | J110: 0 | K110: 0 | L110: 0 | M110: 0 | N110: 0 | O110: 0 | P110: 0 | Q110: 0 | R110: 0.01 | S110: 0.01 | T110: 0.01 | U110: 0.01 | V110: 0.01 | W110: 0.01 | X110: 0.01 | Y110: 0.01 | Z110: 0.01 | AA110: 0.01 | AB110: 0.01 | AC110: 5 | AD110: Carryover | AH110: 2015
A111: 109 | B111: 270 | C111: East Cleveland | D111: 0.02 | E111: 0.02 | F111: 0.02 | G111: 0.02 | H111: 0.02 | I111: 0.02 | J111: 0.02 | K111: 0.02 | L111: 0.02 | M111: 0.02 | N111: 0.02 | O111: 0.02 | P111: 0.02 | Q111: 0.02 | R111: 0.02 | S111: 0.02 | T111: 0.02 | U111: 0.02 | V111: 0.02 | W111: 0.02 | X111: 0.02 | Y111: 0.02 | Z111: 0.02 | AA111: 0.02 | AB111: 0.02 | AC111: 5 | AD111: Carryover | AH111: 1980
A112: 110 | B112: 268 | C112: East Palestine | D112: 0.015 | E112: 0.015 | F112: 0.01 | G112: 0.01 | H112: 0.01 | I112: 0.01 | J112: 0.01 | K112: 0.01 | L112: 0.01 | M112: 0.01 | N112: 0.01 | O112: 0.01 | P112: 0.01 | Q112: 0.01 | R112: 0.01 | S112: 0.01 | T112: 0.01 | U112: 0.01 | V112: 0.015 | W112: 0.015 | X112: 0.015 | Y112: 0.015 | Z112: 0.015 | AA112: 0.015 | AB112: 0.015 | AC112: 0 | AD112: n/a | AH112: 1980
A113: 111 | B113: 247 | C113: East Union TWP-Apple Creek JEDD | D113: 0.01 | E113: 0.01 | F113: 0 | G113: 0 | H113: 0 | I113: 0.0036 | J113: 0.01 | K113: 0.01 | L113: 0.01 | M113: 0.01 | N113: 0.01 | O113: 0.01 | P113: 0.01 | Q113: 0.01 | R113: 0.01 | S113: 0.01 | T113: 0.01 | U113: 0.01 | V113: 0.01 | W113: 0.01 | X113: 0.01 | Y113: 0.01 | Z113: 0.01 | AA113: 0.01 | AB113: 0.01 | AC113: 5 | AD113: Carryover | AE113: Blended tax rate for 2007 | AH113: 2006
A114: 112 | B114: 273 | C114: Eastlake | D114: 0.02 | E114: 0.02 | F114: 0.02 | G114: 0.02 | H114: 0.02 | I114: 0.02 | J114: 0.02 | K114: 0.02 | L114: 0.02 | M114: 0.02 | N114: 0.02 | O114: 0.02 | P114: 0.02 | Q114: 0.02 | R114: 0.02 | S114: 0.02 | T114: 0.02 | U114: 0.02 | V114: 0.02 | W114: 0.02 | X114: 0.02 | Y114: 0.02 | Z114: 0.02 | AA114: 0.02 | AB114: 0.02 | AC114: 1 | AD114: Carryover | AH114: 1980
A115: 113 | B115: 246 | C115: Eaton | D115: 0.015 | E115: 0.015 | F115: 0 | G115: 0.015 | H115: 0.015 | I115: 0.015 | J115: 0.015 | K115: 0.015 | L115: 0.015 | M115: 0.015 | N115: 0.015 | O115: 0.015 | P115: 0.015 | Q115: 0.015 | R115: 0.015 | S115: 0.015 | T115: 0.015 | U115: 0.015 | V115: 0.015 | W115: 0.015 | X115: 0.015 | Y115: 0.015 | Z115: 0.015 | AA115: 0.015 | AB115: 0.015 | AC115: 0 | AD115: n/a | AH115: 2004
A116: 114 | B116: 292 | C116: Eaton JEDD (Lorain Co) | D116: 0.0225 | E116: 0.0225 | F116: 0 | G116: 0 | H116: 0 | I116: 0 | J116: 0 | K116: 0 | L116: 0 | M116: 0 | N116: 0.0175 | O116: 0.0175 | P116: 0.0175 | Q116: 0.0175 | R116: 0.02 | S116: 0.0225 | T116: 0.0225 | U116: 0.0225 | V116: 0.0225 | W116: 0.0225 | X116: 0.0225 | Y116: 0.0225 | Z116: 0.0225 | AA116: 0.0225 | AB116: 0.0225 | AC116: 5 | AD116: Carryover | AE116: Blended tax rate for 2016 | AH116: 2011
A117: 115 | B117: 248 | C117: Edgerton | D117: 0.0175 | E117: 0.0175 | F117: 0 | G117: 0 | H117: 0 | I117: 0 | J117: 0 | K117: 0 | L117: 0 | M117: 0 | N117: 0 | O117: 0 | P117: 0 | Q117: 0.0175 | R117: 0.0175 | S117: 0.0175 | T117: 0.0175 | U117: 0.0175 | V117: 0.0175 | W117: 0.0175 | X117: 0.0175 | Y117: 0.0175 | Z117: 0.0175 | AA117: 0.0175 | AB117: 0.0175 | AC117: 5 | AD117: Carryover | AH117: 2014
A118: 116 | B118: 271 | C118: Edison | D118: 0.005 | E118: 0.005 | F118: 0 | G118: 0 | H118: 0 | I118: 0 | J118: 0 | K118: 0.005 | L118: 0.005 | M118: 0.005 | N118: 0.005 | O118: 0.005 | P118: 0.005 | Q118: 0.005 | R118: 0.005 | S118: 0.005 | T118: 0.005 | U118: 0.005 | V118: 0.005 | W118: 0.005 | X118: 0.005 | Y118: 0.005 | Z118: 0.005 | AA118: 0.005 | AB118: 0.005 | AC118: 0 | AD118: n/a | AH118: 2008
A119: 117 | B119: 272 | C119: Elmore | D119: 0.0175 | E119: 0.0175 | F119: 0.01 | G119: 0.01 | H119: 0.0175 | I119: 0.0175 | J119: 0.0175 | K119: 0.0175 | L119: 0.0175 | M119: 0.0175 | N119: 0.0175 | O119: 0.0175 | P119: 0.0175 | Q119: 0.0175 | R119: 0.0175 | S119: 0.0175 | T119: 0.0175 | U119: 0.0175 | V119: 0.0175 | W119: 0.0175 | X119: 0.0175 | Y119: 0.0175 | Z119: 0.0175 | AA119: 0.0175 | AB119: 0.0175 | AC119: 5 | AD119: Carryover | AH119: 1980
A120: 118 | B120: 269 | C120: Elmwood Place | D120: 0.02 | E120: 0.02 | F120: 0.02 | G120: 0.02 | H120: 0.02 | I120: 0.02 | J120: 0.02 | K120: 0.02 | L120: 0.02 | M120: 0.02 | N120: 0.02 | O120: 0.02 | P120: 0.02 | Q120: 0.02 | R120: 0.02 | S120: 0.02 | T120: 0.02 | U120: 0.02 | V120: 0.02 | W120: 0.02 | X120: 0.02 | Y120: 0.02 | Z120: 0.02 | AA120: 0.02 | AB120: 0.02 | AC120: 5 | AD120: Carryover | AH120: 1980
A121: 119 | B121: 277 | C121: Elyria | D121: 0.0225 | E121: 0.0225 | F121: 0.0175 | G121: 0.0175 | H121: 0.0175 | I121: 0.0175 | J121: 0.0175 | K121: 0.0175 | L121: 0.0175 | M121: 0.0175 | N121: 0.0175 | O121: 0.0175 | P121: 0.0175 | Q121: 0.0175 | R121: 0.02 | S121: 0.0225 | T121: 0.0225 | U121: 0.0225 | V121: 0.0225 | W121: 0.0225 | X121: 0.0225 | Y121: 0.0225 | Z121: 0.0225 | AA121: 0.0225 | AB121: 0.0225 | AC121: 5 | AD121: Carryover | AE121: Blended tax rate for 2016 | AH121: 1980
A122: 120 | B122: 282 | C122: Elyria Twp / Elyria JEDD | D122: 0.0225 | E122: 0.0225 | F122: 0.0175 | G122: 0.0175 | H122: 0.0175 | I122: 0.0175 | J122: 0.0175 | K122: 0.0175 | L122: 0.0175 | M122: 0.0175 | N122: 0.0175 | O122: 0.0175 | P122: 0.0175 | Q122: 0.0175 | R122: 0.02 | S122: 0.0225 | T122: 0.0225 | U122: 0.0225 | V122: 0.0225 | W122: 0.0225 | X122: 0.0225 | Y122: 0.0225 | Z122: 0.0225 | AA122: 0.0225 | AB122: 0.0225 | AC122: 5 | AD122: Carryover | AE122: Blended tax rate for 2016 | AH122: 1980
A123: 121 | B123: 235 | C123: Empire | D123: 0.01 | E123: 0.01 | F123: 0 | G123: 0 | H123: 0 | I123: 0 | J123: 0 | K123: 0 | L123: 0 | M123: 0 | N123: 0 | O123: 0 | P123: 0 | Q123: 0.01 | R123: 0.01 | S123: 0.01 | T123: 0.01 | U123: 0.01 | V123: 0.01 | W123: 0.01 | X123: 0.01 | Y123: 0.01 | Z123: 0.01 | AA123: 0.01 | AB123: 0.01 | AC123: 5 | AD123: Carryover | AH123: 2014
A124: 122 | B124: 145 | C124: Etna-Reynoldsburg JEDD 1 | D124: 0.02 | E124: 0.02 | F124: 0 | G124: 0 | H124: 0 | I124: 0 | J124: 0 | K124: 0 | L124: 0 | M124: 0 | N124: 0 | O124: 0 | P124: 0 | Q124: 0 | R124: 0 | S124: 0 | T124: 0.0063 | U124: 0.02 | V124: 0.02 | W124: 0.02 | X124: 0.02 | Y124: 0.02 | Z124: 0.02 | AA124: 0.02 | AB124: 0.02 | AC124: 0 | AD124: n/a | AH124: 2017
A125: 123 | B125: 146 | C125: Etna-Reynoldsburg JEDD 2 | D125: 0.02 | E125: 0.02 | F125: 0 | G125: 0 | H125: 0 | I125: 0 | J125: 0 | K125: 0 | L125: 0 | M125: 0 | N125: 0 | O125: 0 | P125: 0 | Q125: 0 | R125: 0 | S125: 0 | T125: 0.0063 | U125: 0.02 | V125: 0.02 | W125: 0.02 | X125: 0.02 | Y125: 0.02 | Z125: 0.02 | AA125: 0.02 | AB125: 0.02 | AC125: 0 | AD125: n/a | AH125: 2017
A126: 124 | B126: 147 | C126: Etna-Reynoldsburg JEDD 3 | D126: 0.02 | E126: 0.02 | F126: 0 | G126: 0 | H126: 0 | I126: 0 | J126: 0 | K126: 0 | L126: 0 | M126: 0 | N126: 0 | O126: 0 | P126: 0 | Q126: 0 | R126: 0 | S126: 0 | T126: 0.0063 | U126: 0.02 | V126: 0.02 | W126: 0.02 | X126: 0.02 | Y126: 0.02 | Z126: 0.02 | AA126: 0.02 | AB126: 0.02 | AC126: 0 | AD126: n/a | AH126: 2017
A127: 125 | B127: 144 | C127: Etna-Reynoldsburg JEDD 4 | D127: 0.02 | E127: 0.02 | F127: 0 | G127: 0 | H127: 0 | I127: 0 | J127: 0 | K127: 0 | L127: 0 | M127: 0 | N127: 0 | O127: 0 | P127: 0 | Q127: 0 | R127: 0 | S127: 0 | T127: 0 | U127: 0.006667 | V127: 0.02 | W127: 0.02 | X127: 0.02 | Y127: 0.02 | Z127: 0.02 | AA127: 0.02 | AB127: 0.02 | AC127: 0 | AD127: n/a | AH127: 2018
A128: 126 | B128: 139 | C128: Etna-Reynoldsburg JEDD 7 | D128: 0.02 | E128: 0.02 | F128: 0 | G128: 0 | H128: 0 | I128: 0 | J128: 0 | K128: 0 | L128: 0 | M128: 0 | N128: 0 | O128: 0 | P128: 0 | Q128: 0 | R128: 0 | S128: 0 | T128: 0 | U128: 0 | V128: 0 | W128: 0.0066 | X128: 0.02 | Y128: 0.02 | Z128: 0.02 | AA128: 0.02 | AB128: 0.02 | AC128: 5 | AD128: Carryover | AE128: Blended tax rate for 2021 | AH128: 2020
A129: 127 | B129: 280 | C129: Euclid | D129: 0.0285 | E129: 0.0285 | F129: 0.0285 | G129: 0.0285 | H129: 0.0285 | I129: 0.0285 | J129: 0.0285 | K129: 0.0285 | L129: 0.0285 | M129: 0.0285 | N129: 0.0285 | O129: 0.0285 | P129: 0.0285 | Q129: 0.0285 | R129: 0.0285 | S129: 0.0285 | T129: 0.0285 | U129: 0.0285 | V129: 0.0285 | W129: 0.0285 | X129: 0.0285 | Y129: 0.0285 | Z129: 0.0285 | AA129: 0.0285 | AB129: 0.0285 | AC129: 5 | AD129: Carryover | AH129: 1980
A130: 128 | B130: 287 | C130: Fairborn | D130: 0.02 | E130: 0.02 | F130: 0.01 | G130: 0.015 | H130: 0.015 | I130: 0.015 | J130: 0.015 | K130: 0.015 | L130: 0.015 | M130: 0.015 | N130: 0.015 | O130: 0.015 | P130: 0.015 | Q130: 0.015 | R130: 0.015 | S130: 0.015 | T130: 0.015 | U130: 0.015 | V130: 0.015 | W130: 0.02 | X130: 0.02 | Y130: 0.02 | Z130: 0.02 | AA130: 0.02 | AB130: 0.02 | AC130: 0 | AD130: n/a | AH130: 1980
A131: 129 | B131: 291 | C131: Fairport Harbor | D131: 0.02 | E131: 0.02 | F131: 0.02 | G131: 0.02 | H131: 0.02 | I131: 0.02 | J131: 0.02 | K131: 0.02 | L131: 0.02 | M131: 0.02 | N131: 0.02 | O131: 0.02 | P131: 0.02 | Q131: 0.02 | R131: 0.02 | S131: 0.02 | T131: 0.02 | U131: 0.02 | V131: 0.02 | W131: 0.02 | X131: 0.02 | Y131: 0.02 | Z131: 0.02 | AA131: 0.02 | AB131: 0.02 | AC131: 5 | AD131: Carryover | AH131: 1980
A132: 130 | B132: 300 | C132: Fairview Park | D132: =HLOOKUP(D$1,F$2:AB$499,(A132+1),FALSE) -> 0.02 | E132: =HLOOKUP(D$1+1,F$2:AB$499,(A132+1),FALSE) -> 0.02 | F132: 0.015 | G132: 0.02 | H132: 0.02 | I132: 0.02 | J132: 0.02 | K132: 0.02 | L132: 0.02 | M132: 0.02 | N132: 0.02 | O132: 0.02 | P132: 0.02 | Q132: 0.02 | R132: 0.02 | S132: 0.02 | T132: 0.02 | U132: 0.02 | V132: 0.02 | W132: 0.02 | X132: 0.02 | Y132: 0.02 | Z132: 0.02 | AA132: 0.02 | AB132: 0.02 | AC132: 5 | AD132: Carryover | AH132: 1980
A133: 131 | B133: 295 | C133: Fayette | D133: 0.015 | E133: 0.015 | F133: 0 | G133: 0.015 | H133: 0.015 | I133: 0.015 | J133: 0.015 | K133: 0.015 | L133: 0.015 | M133: 0.015 | N133: 0.015 | O133: 0.015 | P133: 0.015 | Q133: 0.015 | R133: 0.015 | S133: 0.015 | T133: 0.015 | U133: 0.015 | V133: 0.015 | W133: 0.015 | X133: 0.015 | Y133: 0.015 | Z133: 0.015 | AA133: 0.015 | AB133: 0.015 | AC133: 5 | AD133: Carryover | AH133: 2004
A134: 132 | B134: 242 | C134: Fayetteville | D134: 0.01 | E134: 0.01 | F134: 0 | G134: 0 | H134: 0 | I134: 0 | J134: 0 | K134: 0 | L134: 0 | M134: 0 | N134: 0 | O134: 0 | P134: 0 | Q134: 0 | R134: 0 | S134: 0 | T134: 0 | U134: 0 | V134: 0 | W134: 0 | X134: 0 | Y134: 0.01 | Z134: 0.01 | AA134: 0.01 | AB134: 0.01 | AC134: 5 | AD134: Carryover | AH134: 2022
A135: 133 | B135: 296 | C135: Felicity | D135: 0.01 | E135: 0.01 | F135: 0 | G135: 0.01 | H135: 0.01 | I135: 0.01 | J135: 0.01 | K135: 0.01 | L135: 0.01 | M135: 0.01 | N135: 0.01 | O135: 0.01 | P135: 0.01 | Q135: 0.01 | R135: 0.01 | S135: 0.01 | T135: 0.01 | U135: 0.01 | V135: 0.01 | W135: 0.01 | X135: 0.01 | Y135: 0.01 | Z135: 0.01 | AA135: 0.01 | AB135: 0.01 | AC135: 5 | AD135: Carryover | AH135: 2004
A136: 134 | B136: 297 | C136: Forest | D136: 0.0125 | E136: 0.0125 | F136: 0 | G136: 0.0125 | H136: 0.0125 | I136: 0.0125 | J136: 0.0125 | K136: 0.0125 | L136: 0.0125 | M136: 0.0125 | N136: 0.0125 | O136: 0.0125 | P136: 0.0125 | Q136: 0.0125 | R136: 0.0125 | S136: 0.0125 | T136: 0.0125 | U136: 0.0125 | V136: 0.0125 | W136: 0.0125 | X136: 0.0125 | Y136: 0.0125 | Z136: 0.0125 | AA136: 0.0125 | AB136: 0.0125 | AC136: 3 | AD136: Carryover | AH136: 2004
A137: 135 | B137: 304 | C137: Fort Jennings | D137: 0.01 | E137: 0.01 | F137: 0.01 | G137: 0.01 | H137: 0.01 | I137: 0.01 | J137: 0.01 | K137: 0.01 | L137: 0.01 | M137: 0.01 | N137: 0.01 | O137: 0.01 | P137: 0.01 | Q137: 0.01 | R137: 0.01 | S137: 0.01 | T137: 0.01 | U137: 0.01 | V137: 0.01 | W137: 0.01 | X137: 0.01 | Y137: 0.01 | Z137: 0.01 | AA137: 0.01 | AB137: 0.01 | AC137: 5 | AD137: Carryover | AH137: 1980
A138: 136 | B138: 305 | C138: Fostoria | D138: 0.02 | E138: 0.02 | F138: 0.02 | G138: 0.02 | H138: 0.02 | I138: 0.02 | J138: 0.02 | K138: 0.02 | L138: 0.02 | M138: 0.02 | N138: 0.02 | O138: 0.02 | P138: 0.02 | Q138: 0.02 | R138: 0.02 | S138: 0.02 | T138: 0.02 | U138: 0.02 | V138: 0.02 | W138: 0.02 | X138: 0.02 | Y138: 0.02 | Z138: 0.02 | AA138: 0.02 | AB138: 0.02 | AC138: 5 | AD138: Carryover | AH138: 1980
A139: 137 | B139: 309 | C139: Frazeysburg | D139: 0.01 | E139: 0.01 | F139: 0 | G139: 0.01 | H139: 0.01 | I139: 0.01 | J139: 0.01 | K139: 0.01 | L139: 0.01 | M139: 0.01 | N139: 0.01 | O139: 0.01 | P139: 0.01 | Q139: 0.01 | R139: 0.01 | S139: 0.01 | T139: 0.01 | U139: 0.01 | V139: 0.01 | W139: 0.01 | X139: 0.01 | Y139: =X139 -> 0.01 | Z139: =Y139 -> 0.01 | AA139: =Z139 -> 0.01 | AB139: =AA139 -> 0.01 | AC139: 5 | AD139: Carryover | AH139: =_xlfn.IFNA(MATCH(0,F139:Y139,1),-23) + F$2 -1 -> 2004
A140: 138 | B140: 308 | C140: Fredericktown | D140: 0.01 | E140: 0.01 | F140: 0.01 | G140: 0.01 | H140: 0.01 | I140: 0.01 | J140: 0.01 | K140: 0.01 | L140: 0.01 | M140: 0.01 | N140: 0.01 | O140: 0.01 | P140: 0.01 | Q140: 0.01 | R140: 0.01 | S140: 0.01 | T140: 0.01 | U140: 0.01 | V140: 0.01 | W140: 0.01 | X140: 0.01 | Y140: 0.01 | Z140: 0.01 | AA140: 0.01 | AB140: 0.01 | AC140: 0 | AD140: n/a | AH140: 1980
A141: 139 | B141: 310 | C141: Fremont | D141: 0.015 | E141: 0.015 | F141: 0.015 | G141: 0.015 | H141: 0.015 | I141: 0.015 | J141: 0.015 | K141: 0.015 | L141: 0.015 | M141: 0.015 | N141: 0.015 | O141: 0.015 | P141: 0.015 | Q141: 0.015 | R141: 0.015 | S141: 0.015 | T141: 0.015 | U141: 0.015 | V141: 0.015 | W141: 0.015 | X141: 0.015 | Y141: 0.015 | Z141: 0.015 | AA141: 0.015 | AB141: 0.015 | AC141: 0 | AD141: n/a | AH141: 1980
A142: 140 | B142: 143 | C142: Fulton | D142: 0.01 | E142: 0.01 | F142: 0.015 | G142: 0 | H142: 0 | I142: 0 | J142: 0 | K142: 0 | L142: 0 | M142: 0 | N142: 0 | O142: 0 | P142: 0 | Q142: 0 | R142: 0 | S142: 0 | T142: 0 | U142: 0 | V142: 0.01 | W142: 0.01 | X142: 0.01 | Y142: 0.01 | Z142: 0.01 | AA142: 0.01 | AB142: 0.01 | AC142: 0 | AD142: n/a | AH142: 2019
A143: 141 | B143: 316 | C143: Gahanna | D143: 0.025 | E143: 0.025 | F143: 0.015 | G143: 0.015 | H143: 0.015 | I143: 0.015 | J143: 0.015 | K143: 0.015 | L143: 0.015 | M143: 0.015 | N143: 0.015 | O143: 0.015 | P143: 0.015 | Q143: 0.015 | R143: 0.015 | S143: 0.015 | T143: 0.015 | U143: 0.02 | V143: 0.025 | W143: 0.025 | X143: 0.025 | Y143: 0.025 | Z143: 0.025 | AA143: 0.025 | AB143: 0.025 | AC143: 0 | AD143: n/a | AH143: 1980
A144: 142 | B144: 319 | C144: Galena | D144: 0.01 | E144: 0.01 | F144: 0.01 | G144: 0.01 | H144: 0.01 | I144: 0.01 | J144: 0.01 | K144: 0.01 | L144: 0.01 | M144: 0.01 | N144: 0.01 | O144: 0.01 | P144: 0.01 | Q144: 0.01 | R144: 0.01 | S144: 0.01 | T144: 0.01 | U144: 0.01 | V144: 0.01 | W144: 0.01 | X144: 0.01 | Y144: 0.01 | Z144: 0.01 | AA144: 0.01 | AB144: 0.01 | AC144: 5 | AD144: Carryover | AH144: 1980
A145: 143 | B145: 317 | C145: Galion | D145: 0.02 | E145: 0.02 | F145: 0.015 | G145: 0.015 | H145: 0.02 | I145: 0.02 | J145: 0.02 | K145: 0.02 | L145: 0.02 | M145: 0.02 | N145: 0.02 | O145: 0.02 | P145: 0.02 | Q145: 0.02 | R145: 0.02 | S145: 0.02 | T145: 0.02 | U145: 0.02 | V145: 0.02 | W145: 0.02 | X145: 0.02 | Y145: 0.02 | Z145: 0.02 | AA145: 0.02 | AB145: =AA145 -> 0.02 | AC145: 0 | AD145: n/a | AH145: 1980
A146: 144 | B146: 320 | C146: Garfield Heights | D146: 0.02 | E146: 0.02 | F146: 0.02 | G146: 0.02 | H146: 0.02 | I146: 0.02 | J146: 0.02 | K146: 0.02 | L146: 0.02 | M146: 0.02 | N146: 0.02 | O146: 0.02 | P146: 0.02 | Q146: 0.02 | R146: 0.02 | S146: 0.02 | T146: 0.02 | U146: 0.02 | V146: 0.02 | W146: 0.02 | X146: 0.02 | Y146: 0.02 | Z146: 0.02 | AA146: 0.02 | AB146: 0.02 | AC146: 5 | AD146: Carryover | AH146: 1980
A147: 145 | B147: 330 | C147: Gates Mills | D147: 0.01 | E147: 0.01 | F147: 0.01 | G147: 0.01 | H147: 0.01 | I147: 0.01 | J147: 0.01 | K147: 0.01 | L147: 0.01 | M147: 0.01 | N147: 0.01 | O147: 0.01 | P147: 0.01 | Q147: 0.01 | R147: 0.01 | S147: 0.01 | T147: 0.01 | U147: 0.01 | V147: 0.01 | W147: 0.01 | X147: 0.01 | Y147: 0.01 | Z147: 0.01 | AA147: 0.01 | AB147: 0.01 | AC147: 5 | AD147: Carryover | AH147: 1980
A148: =+A147+1 -> 146 | B148: 348 | C148: Genoa | D148: 0.015 | E148: 0.015 | F148: 0.015 | G148: 0.015 | H148: 0.015 | I148: 0.015 | J148: 0.015 | K148: 0.015 | L148: 0.015 | M148: 0.015 | N148: 0.015 | O148: 0.015 | P148: 0.015 | Q148: 0.015 | R148: 0.015 | S148: 0.015 | T148: 0.015 | U148: 0.015 | V148: 0.015 | W148: 0.015 | X148: 0.015 | Y148: =X148 -> 0.015 | Z148: 0.015 | AA148: 0.015 | AB148: 0.015 | AC148: 5 | AD148: Carryover | AH148: 1980
A149: 147 | B149: 679 | C149: Gettysburg | D149: 0.01 | E149: 0.01 | F149: 0 | G149: 0 | H149: 0 | I149: 0 | J149: 0 | K149: 0 | L149: 0 | M149: 0 | N149: 0 | O149: 0 | P149: 0 | Q149: 0 | R149: 0 | S149: 0.01 | T149: 0.01 | U149: 0.01 | V149: 0.01 | W149: 0.01 | X149: 0.01 | Y149: 0.01 | Z149: 0.01 | AA149: 0.01 | AB149: 0.01 | AC149: 5 | AD149: Carryover | AH149: =_xlfn.IFNA(MATCH(0,F149:Y149,1),-23) + F$2 -1 -> 2016
A150: 148 | B150: 342 | C150: Gibsonburg | D150: 0.01 | E150: 0.01 | F150: 0.01 | G150: 0.01 | H150: 0.01 | I150: 0.01 | J150: 0.01 | K150: 0.01 | L150: 0.01 | M150: 0.01 | N150: 0.01 | O150: 0.01 | P150: 0.01 | Q150: 0.01 | R150: 0.01 | S150: 0.01 | T150: 0.01 | U150: 0.01 | V150: 0.01 | W150: 0.01 | X150: 0.01 | Y150: 0.01 | Z150: 0.01 | AA150: 0.01 | AB150: 0.01 | AC150: 5 | AD150: Carryover | AH150: 1980
A151: 149 | B151: 346 | C151: Girard | D151: 0.02 | E151: 0.02 | F151: 0.02 | G151: 0.02 | H151: 0.02 | I151: 0.02 | J151: 0.02 | K151: 0.02 | L151: 0.02 | M151: 0.02 | N151: 0.02 | O151: 0.02 | P151: 0.02 | Q151: 0.02 | R151: 0.02 | S151: 0.02 | T151: 0.02 | U151: 0.02 | V151: 0.02 | W151: 0.02 | X151: 0.02 | Y151: 0.02 | Z151: 0.02 | AA151: 0.02 | AB151: 0.02 | AC151: 0 | AD151: n/a | AH151: 1980
A152: 150 | B152: 138 | C152: Glenmont | D152: 0 | E152: 0.005 | F152: 0 | G152: 0 | H152: 0 | I152: 0 | J152: 0 | K152: 0 | L152: 0 | M152: 0 | N152: 0 | O152: 0 | P152: 0 | Q152: 0 | R152: 0 | S152: 0 | T152: 0 | U152: 0 | V152: 0 | W152: 0 | X152: 0 | Y152: 0 | Z152: 0.005 | AA152: 0.005 | AB152: 0.005 | AC152: 5 | AD152: Carryover | AE152: Blended tax rate for 2024 | AH152: =_xlfn.IFNA(MATCH(0,F152:Y152,1),-23) + F$2 -1 -> 2023
A153: 151 | B153: 347 | C153: Glenwillow | D153: 0.02 | E153: 0.02 | F153: 0.02 | G153: 0.02 | H153: 0.02 | I153: 0.02 | J153: 0.02 | K153: 0.02 | L153: 0.02 | M153: 0.02 | N153: 0.02 | O153: 0.02 | P153: 0.02 | Q153: 0.02 | R153: 0.02 | S153: 0.02 | T153: 0.02 | U153: 0.02 | V153: 0.02 | W153: 0.02 | X153: 0.02 | Y153: 0.02 | Z153: 0.02 | AA153: 0.02 | AB153: 0.02 | AC153: 5 | AD153: Carryover | AH153: 1980
A154: 152 | B154: 332 | C154: Golf Manor | D154: 0.017 | E154: 0.017 | F154: 0.017 | G154: 0.017 | H154: 0.017 | I154: 0.017 | J154: 0.017 | K154: 0.017 | L154: 0.017 | M154: 0.017 | N154: 0.017 | O154: 0.017 | P154: 0.017 | Q154: 0.017 | R154: 0.017 | S154: 0.017 | T154: 0.017 | U154: 0.017 | V154: 0.017 | W154: 0.017 | X154: 0.017 | Y154: 0.017 | Z154: 0.017 | AA154: 0.017 | AB154: 0.017 | AC154: 0 | AD154: n/a | AH154: 1980
A155: 153 | B155: 350 | C155: Grafton | D155: 0.015 | E155: 0.015 | F155: 0.015 | G155: 0.015 | H155: 0.015 | I155: 0.015 | J155: 0.015 | K155: 0.015 | L155: 0.015 | M155: 0.015 | N155: 0.015 | O155: 0.015 | P155: 0.015 | Q155: 0.015 | R155: 0.015 | S155: 0.015 | T155: 0.015 | U155: 0.015 | V155: 0.015 | W155: 0.015 | X155: 0.015 | Y155: 0.015 | Z155: 0.015 | AA155: 0.015 | AB155: 0.015 | AC155: 0 | AD155: n/a | AH155: 1980
A156: 154 | B156: 357 | C156: Grandview Heights | D156: 0.025 | E156: 0.025 | F156: 0.02 | G156: 0.025 | H156: 0.025 | I156: 0.025 | J156: 0.025 | K156: 0.0225 | L156: 0.025 | M156: 0.025 | N156: 0.025 | O156: 0.025 | P156: 0.025 | Q156: 0.025 | R156: 0.025 | S156: 0.025 | T156: 0.025 | U156: 0.025 | V156: 0.025 | W156: 0.025 | X156: 0.025 | Y156: 0.025 | Z156: 0.025 | AA156: 0.025 | AB156: 0.025 | AC156: 0 | AD156: n/a | AH156: 1980
A157: 155 | B157: 294 | C157: Gratis | D157: 0.01 | E157: 0.01 | F157: 0 | G157: 0 | H157: 0 | I157: 0 | J157: 0 | K157: 0 | L157: 0 | M157: 0 | N157: 0 | O157: 0 | P157: 0.01 | Q157: 0.01 | R157: 0.01 | S157: 0.01 | T157: 0.01 | U157: 0.01 | V157: 0.01 | W157: 0.01 | X157: 0.01 | Y157: 0.01 | Z157: 0.01 | AA157: 0.01 | AB157: 0.01 | AC157: 5 | AD157: Carryover | AH157: 2013
A158: 156 | B158: 334 | C158: Greenfield | D158: 0.01625 | E158: 0.01625 | F158: 0.01625 | G158: 0.01625 | H158: 0.01625 | I158: 0.01625 | J158: 0.01625 | K158: 0.01625 | L158: 0.01625 | M158: 0.01625 | N158: 0.01625 | O158: 0.01625 | P158: 0.01625 | Q158: 0.01625 | R158: 0.01625 | S158: 0.01625 | T158: 0.01625 | U158: 0.01625 | V158: 0.01625 | W158: 0.01625 | X158: 0.01625 | Y158: 0.01625 | Z158: 0.01625 | AA158: 0.01625 | AB158: 0.01625 | AC158: 5 | AD158: Carryover | AH158: 1980
A159: 157 | B159: 337 | C159: Greenhills | D159: 0.015 | E159: 0.015 | F159: 0 | G159: 0 | H159: 0.015 | I159: 0.015 | J159: 0.015 | K159: 0.015 | L159: 0.015 | M159: 0.015 | N159: 0.015 | O159: 0.015 | P159: 0.015 | Q159: 0.015 | R159: 0.015 | S159: 0.015 | T159: 0.015 | U159: 0.015 | V159: 0.015 | W159: 0.015 | X159: 0.015 | Y159: 0.015 | Z159: 0.015 | AA159: 0.015 | AB159: 0.015 | AC159: 3 | AD159: Carryover | AH159: 2005
A160: 158 | B160: 358 | C160: Grove City | D160: 0.02 | E160: 0.02 | F160: 0.02 | G160: 0.02 | H160: 0.02 | I160: 0.02 | J160: 0.02 | K160: 0.02 | L160: 0.02 | M160: 0.02 | N160: 0.02 | O160: 0.02 | P160: 0.02 | Q160: 0.02 | R160: 0.02 | S160: 0.02 | T160: 0.02 | U160: 0.02 | V160: 0.02 | W160: 0.02 | X160: 0.02 | Y160: 0.02 | Z160: 0.02 | AA160: 0.02 | AB160: 0.02 | AC160: 0 | AD160: n/a | AH160: 1980
A161: 159 | B161: 361 | C161: Groveport | D161: 0.02 | E161: 0.02 | F161: 0.02 | G161: 0.02 | H161: 0.02 | I161: 0.02 | J161: 0.02 | K161: 0.02 | L161: 0.02 | M161: 0.02 | N161: 0.02 | O161: 0.02 | P161: 0.02 | Q161: 0.02 | R161: 0.02 | S161: 0.02 | T161: 0.02 | U161: 0.02 | V161: 0.02 | W161: 0.02 | X161: 0.02 | Y161: 0.02 | Z161: 0.02 | AA161: 0.02 | AB161: 0.02 | AC161: 0 | AD161: n/a | AH161: 1980
A162: 160 | B162: 360 | C162: Hamilton | D162: 0.02 | E162: 0.02 | F162: 0.02 | G162: 0.02 | H162: 0.02 | I162: 0.02 | J162: 0.02 | K162: 0.02 | L162: 0.02 | M162: 0.02 | N162: 0.02 | O162: 0.02 | P162: 0.02 | Q162: 0.02 | R162: 0.02 | S162: 0.02 | T162: 0.02 | U162: 0.02 | V162: 0.02 | W162: 0.02 | X162: 0.02 | Y162: 0.02 | Z162: 0.02 | AA162: 0.02 | AB162: 0.02 | AC162: 3 | AD162: Carryover | AH162: 1980
A163: 161 | B163: 417 | C163: Ham Fair TWP Jedd I | D163: 0.02 | E163: 0.02 | F163: 0 | G163: 0.02 | H163: 0.02 | I163: 0.02 | J163: 0.02 | K163: 0.02 | L163: 0.02 | M163: 0.02 | N163: 0.02 | O163: 0.02 | P163: 0.02 | Q163: 0.02 | R163: 0.02 | S163: 0.02 | T163: 0.02 | U163: 0.02 | V163: 0.02 | W163: 0.02 | X163: 0.02 | Y163: 0.02 | Z163: 0.02 | AA163: 0.02 | AB163: 0.02 | AC163: 3 | AD163: Carryover | AH163: 2004
A164: 162 | B164: 80 | C164: Ham Fair TWP Jedd II | D164: 0.02 | E164: 0.02 | F164: 0.02 | G164: 0.02 | H164: 0.02 | I164: 0.02 | J164: 0.02 | K164: 0.02 | L164: 0.02 | M164: 0.02 | N164: 0.02 | O164: 0.02 | P164: 0.02 | Q164: 0.02 | R164: 0.02 | S164: 0.02 | T164: 0.02 | U164: 0.02 | V164: 0.02 | W164: 0.02 | X164: 0.02 | Y164: 0.02 | Z164: 0.02 | AA164: 0.02 | AB164: 0.02 | AC164: 3 | AD164: Carryover | AH164: 1980
A165: 163 | B165: 81 | C165: Ham Fair TWP Jedd III | D165: 0.02 | E165: 0.02 | F165: 0 | G165: 0 | H165: 0 | I165: 0 | J165: 0 | K165: 0 | L165: 0 | M165: 0 | N165: 0 | O165: 0 | P165: 0 | Q165: 0 | R165: 0 | S165: 0.02 | T165: 0.02 | U165: 0.02 | V165: 0.02 | W165: 0.02 | X165: 0.02 | Y165: 0.02 | Z165: 0.02 | AA165: 0.02 | AB165: 0.02 | AC165: 3 | AD165: Carryover | AH165: 2016
A166: 164 | B166: 921 | C166: Hamersville | D166: 0 | E166: 0 | F166: 0 | G166: 0 | H166: 0 | I166: 0 | J166: 0 | K166: 0 | L166: 0 | M166: 0 | N166: 0 | O166: 0 | P166: 0 | Q166: 0 | R166: 0 | S166: 0 | T166: 0 | U166: 0 | V166: 0 | W166: 0 | X166: 0 | Y166: 0 | Z166: 0 | AA166: 0.01 | AB166: =AA166 -> 0.01 | AC166: 0 | AD166: n/a
A167: 165 | B167: 238 | C167: Hanover | D167: 0.01 | E167: 0.01 | F167: 0 | G167: 0 | H167: 0 | I167: 0 | J167: 0 | K167: 0 | L167: 0 | M167: 0 | N167: 0 | O167: 0 | P167: 0 | Q167: 0 | R167: 0 | S167: 0.01 | T167: 0.01 | U167: 0.01 | V167: 0.01 | W167: 0.01 | X167: 0.01 | Y167: 0.01 | Z167: 0.01 | AA167: 0.01 | AB167: 0.01 | AC167: 5 | AD167: Carryover | AH167: 2016
A168: 166 | B168: 325 | C168: Harrisburg | D168: 0.01 | E168: 0.01 | F168: 0 | G168: 0 | H168: 0 | I168: 0 | J168: 0 | K168: 0 | L168: 0 | M168: 0 | N168: 0 | O168: 0 | P168: 0 | Q168: 0 | R168: 0 | S168: 0 | T168: 0 | U168: 0.01 | V168: 0.01 | W168: 0.01 | X168: 0.01 | Y168: 0.01 | Z168: 0.01 | AA168: 0.01 | AB168: 0.01 | AC168: 3 | AD168: Carryover | AH168: 2018
A169: 167 | B169: 339 | C169: Harrison | D169: 0.01 | E169: 0.01 | F169: 0.01 | G169: 0.01 | H169: 0.01 | I169: 0.01 | J169: 0.01 | K169: 0.01 | L169: 0.01 | M169: 0.01 | N169: 0.01 | O169: 0.01 | P169: 0.01 | Q169: 0.01 | R169: 0.01 | S169: 0.01 | T169: 0.01 | U169: 0.01 | V169: 0.01 | W169: 0.01 | X169: 0.01 | Y169: 0.01 | Z169: 0.01 | AA169: 0.01 | AB169: 0.01 | AC169: 3 | AD169: Carryover | AH169: 1980
A170: 168 | B170: 329 | C170: Harrison Twp JEDD | D170: 0.01 | E170: 0.01 | F170: 0.01 | G170: 0.01 | H170: 0.01 | I170: 0.01 | J170: 0.01 | K170: 0.01 | L170: 0.01 | M170: 0.01 | N170: 0.01 | O170: 0.01 | P170: 0.01 | Q170: 0.01 | R170: 0.01 | S170: 0.01 | T170: 0.01 | U170: 0.01 | V170: 0.01 | W170: 0.01 | X170: 0.01 | Y170: 0.01 | Z170: 0.01 | AA170: 0.01 | AB170: 0.01 | AC170: 3 | AD170: Carryover | AH170: 1980
A171: 169 | B171: 326 | C171: Harrod | D171: 0.01 | E171: 0.01 | F171: 0 | G171: 0 | H171: 0 | I171: 0 | J171: 0 | K171: 0 | L171: 0 | M171: 0 | N171: 0.01 | O171: 0.01 | P171: 0.01 | Q171: 0.01 | R171: 0.01 | S171: 0.01 | T171: 0.01 | U171: 0.01 | V171: 0.01 | W171: 0.01 | X171: 0.01 | Y171: 0.01 | Z171: 0.01 | AA171: 0.01 | AB171: 0.01 | AC171: 5 | AD171: Carryover | AH171: 2011
A172: 170 | B172: 364 | C172: Haskins | D172: 0.01 | E172: 0.01 | F172: 0.01 | G172: 0.01 | H172: 0.01 | I172: 0.01 | J172: 0.01 | K172: 0.01 | L172: 0.01 | M172: 0.01 | N172: 0.01 | O172: 0.01 | P172: 0.01 | Q172: 0.01 | R172: 0.01 | S172: 0.01 | T172: 0.01 | U172: 0.01 | V172: 0.01 | W172: 0.01 | X172: 0.01 | Y172: 0.01 | Z172: 0.01 | AA172: 0.01 | AB172: 0.01 | AC172: 5 | AD172: Carryover | AH172: 1980
A173: 171 | B173: 683 | C173: Helena | D173: 0.01 | E173: 0.01 | F173: 0 | G173: 0 | H173: 0 | I173: 0 | J173: 0 | K173: 0 | L173: 0 | M173: 0 | N173: 0 | O173: 0 | P173: 0 | Q173: 0 | R173: 0 | S173: 0 | T173: 0 | U173: 0 | V173: 0 | W173: 0.01 | X173: 0.01 | Y173: 0.01 | Z173: 0.01 | AA173: 0.01 | AB173: 0.01 | AC173: 5 | AD173: Carryover | AH173: 2020
A174: 172 | B174: 370 | C174: Highland Heights | D174: 0.02 | E174: 0.02 | F174: 0.015 | G174: 0.015 | H174: 0.015 | I174: 0.02 | J174: 0.02 | K174: 0.02 | L174: 0.02 | M174: 0.02 | N174: 0.02 | O174: 0.02 | P174: 0.02 | Q174: 0.02 | R174: 0.02 | S174: 0.02 | T174: 0.02 | U174: 0.02 | V174: 0.02 | W174: 0.02 | X174: 0.02 | Y174: 0.02 | Z174: 0.02 | AA174: 0.02 | AB174: 0.02 | AC174: 5 | AD174: Carryover | AH174: 1980
A175: 173 | B175: 371 | C175: Hilliard | D175: 0.025 | E175: 0.025 | F175: 0.02 | G175: 0.02 | H175: 0.02 | I175: 0.02 | J175: 0.02 | K175: 0.02 | L175: 0.02 | M175: 0.02 | N175: 0.02 | O175: 0.02 | P175: 0.02 | Q175: 0.02 | R175: 0.02 | S175: 0.02 | T175: 0.02 | U175: 0.02 | V175: 0.02 | W175: 0.02 | X175: 0.025 | Y175: 0.025 | Z175: 0.025 | AA175: 0.025 | AB175: 0.025 | AC175: 0 | AD175: n/a | AH175: 1980
A176: 174 | B176: 375 | C176: Hiram | D176: 0.0225 | E176: 0.0225 | F176: 0.02 | G176: 0.02 | H176: 0.02 | I176: 0.02 | J176: 0.02 | K176: 0.02 | L176: 0.02 | M176: 0.02 | N176: 0.02 | O176: 0.02 | P176: 0.02 | Q176: 0.02 | R176: 0.02 | S176: 0.02 | T176: 0.02125 | U176: 0.0225 | V176: 0.0225 | W176: 0.0225 | X176: 0.0225 | Y176: 0.0225 | Z176: 0.0225 | AA176: 0.0225 | AB176: 0.0225 | AC176: 0 | AD176: n/a | AE176: Blended tax rate for 2018 | AH176: 1980
A177: 175 | B177: 381 | C177: Holland | D177: 0.0225 | E177: 0.0225 | F177: 0.0225 | G177: 0.0225 | H177: 0.0225 | I177: 0.0225 | J177: 0.0225 | K177: 0.0225 | L177: 0.0225 | M177: 0.0225 | N177: 0.0225 | O177: 0.0225 | P177: 0.0225 | Q177: 0.0225 | R177: 0.0225 | S177: 0.0225 | T177: 0.0225 | U177: 0.0225 | V177: 0.0225 | W177: 0.0225 | X177: 0.0225 | Y177: 0.0225 | Z177: 0.0225 | AA177: 0.0225 | AB177: 0.0225 | AC177: 5 | AD177: Carryover | AH177: 1980
A178: 176 | B178: 244 | C178: Holland Springfield Twp JEDZ | D178: 0.015 | E178: 0.015 | F178: 0 | G178: 0 | H178: 0 | I178: 0 | J178: 0 | K178: 0 | L178: 0 | M178: 0 | N178: 0 | O178: 0 | P178: 0 | Q178: 0.00075 | R178: 0.015 | S178: 0.015 | T178: 0.015 | U178: 0.015 | V178: 0.015 | W178: 0.015 | X178: 0.015 | Y178: 0.015 | Z178: 0.015 | AA178: 0.015 | AB178: 0.015 | AC178: 5 | AD178: Carryover | AE178: Blended tax rate for 2015 | AH178: 2014
A179: 177 | B179: 328 | C179: Holmesville | D179: 0 | E179: 0.005 | F179: 0 | G179: 0 | H179: 0 | I179: 0 | J179: 0 | K179: 0 | L179: 0 | M179: 0 | N179: 0 | O179: 0 | P179: 0 | Q179: 0 | R179: 0 | S179: 0 | T179: 0 | U179: 0 | V179: 0 | W179: 0 | X179: 0 | Y179: 0 | Z179: 0.005 | AA179: 0.005 | AB179: 0.005 | AC179: 5 | AD179: Carryover | AE179: Blended tax rate for 2024 | AH179: =_xlfn.IFNA(MATCH(0,F179:Y179,1),-23) + F$2 -1 -> 2023
A180: 178 | B180: 431 | C180: Hopedale | D180: 0.01 | E180: 0.01 | F180: 0.01 | G180: 0.01 | H180: 0.01 | I180: 0.01 | J180: 0.01 | K180: 0.01 | L180: 0.01 | M180: 0.01 | N180: 0.01 | O180: 0.01 | P180: 0.01 | Q180: 0.01 | R180: 0.01 | S180: 0.01 | T180: 0.01 | U180: 0.01 | V180: 0.01 | W180: 0.01 | X180: 0.01 | Y180: 0.01 | Z180: 0.01 | AA180: 0.01 | AB180: 0.01 | AC180: 5 | AD180: Carryover | AH180: 1980
A181: 179 | B181: 378 | C181: Hudson | D181: 0.02 | E181: 0.02 | F181: 0.01 | G181: 0.02 | H181: 0.02 | I181: 0.02 | J181: 0.02 | K181: 0.02 | L181: 0.02 | M181: 0.02 | N181: 0.02 | O181: 0.02 | P181: 0.02 | Q181: 0.02 | R181: 0.02 | S181: 0.02 | T181: 0.02 | U181: 0.02 | V181: 0.02 | W181: 0.02 | X181: 0.02 | Y181: 0.02 | Z181: 0.02 | AA181: 0.02 | AB181: 0.02 | AC181: 5 | AD181: Carryover | AH181: 1980
A182: 180 | B182: 385 | C182: Huron | D182: 0.01 | E182: 0.01 | F182: 0.01 | G182: 0.01 | H182: 0.01 | I182: 0.01 | J182: 0.01 | K182: 0.01 | L182: 0.01 | M182: 0.01 | N182: 0.01 | O182: 0.01 | P182: 0.01 | Q182: 0.01 | R182: 0.01 | S182: 0.01 | T182: 0.01 | U182: 0.01 | V182: 0.01 | W182: 0.01 | X182: 0.01 | Y182: 0.01 | Z182: 0.01 | AA182: 0.01 | AB182: 0.01 | AC182: 5 | AD182: Carryover | AH182: 1980
A183: 181 | B183: 390 | C183: Independence | D183: 0.02 | E183: 0.02 | F183: 0.02 | G183: 0.02 | H183: 0.02 | I183: 0.02 | J183: 0.02 | K183: 0.02 | L183: 0.02 | M183: 0.02 | N183: 0.02 | O183: 0.02 | P183: 0.02 | Q183: 0.02 | R183: 0.02 | S183: 0.02 | T183: 0.02 | U183: 0.02 | V183: 0.02 | W183: 0.02 | X183: 0.02 | Y183: 0.02 | Z183: 0.02 | AA183: 0.02 | AB183: 0.02 | AC183: 5 | AD183: Carryover | AH183: 1980
A184: 182 | B184: 374 | C184: Jackson | D184: 0.015 | E184: 0.015 | F184: 0 | G184: 0 | H184: 0 | I184: 0 | J184: 0 | K184: 0 | L184: 0 | M184: 0 | N184: 0 | O184: 0 | P184: 0 | Q184: 0 | R184: 0 | S184: 0 | T184: 0.005 | U184: 0 | V184: 0 | W184: 0.015 | X184: 0.015 | Y184: 0.015 | Z184: 0.015 | AA184: 0.015 | AB184: 0.015 | AC184: 5 | AD184: Carryover | AE184: Blended tax rate for 2018 | AH184: 2017
A185: 183 | B185: 340 | C185: Jackson Center | D185: 0.015 | E185: 0.015 | F185: 0.015 | G185: 0.015 | H185: 0.015 | I185: 0.015 | J185: 0.015 | K185: 0.015 | L185: 0.015 | M185: 0.015 | N185: 0.015 | O185: 0.015 | P185: 0.015 | Q185: 0.015 | R185: 0.015 | S185: 0.015 | T185: 0.015 | U185: 0.015 | V185: 0.015 | W185: 0.015 | X185: 0.015 | Y185: 0.015 | Z185: 0.015 | AA185: 0.015 | AB185: 0.015 | AC185: 5 | AD185: Carryover | AH185: 1980
A186: 184 | B186: 438 | C186: Jeffersonville | D186: 0.01 | E186: 0.01 | F186: 0.01 | G186: 0.01 | H186: 0.01 | I186: 0.01 | J186: 0.01 | K186: 0.01 | L186: 0.01 | M186: 0.01 | N186: 0.01 | O186: 0.01 | P186: 0.01 | Q186: 0.01 | R186: 0.01 | S186: 0.01 | T186: 0.01 | U186: 0.01 | V186: 0.01 | W186: 0.01 | X186: 0.01 | Y186: 0.01 | Z186: 0.01 | AA186: 0.01 | AB186: 0.01 | AC186: 5 | AD186: Carryover | AH186: 1980
A187: 185 | B187: 313 | C187: Jerry City | D187: 0.01 | E187: 0.01 | F187: 0 | G187: 0 | H187: 0 | I187: 0 | J187: 0 | K187: 0 | L187: 0 | M187: 0 | N187: 0 | O187: 0.01 | P187: 0.01 | Q187: 0.01 | R187: 0.01 | S187: 0.01 | T187: 0.01 | U187: 0.01 | V187: 0.01 | W187: 0.01 | X187: 0.01 | Y187: 0.01 | Z187: 0.01 | AA187: 0.01 | AB187: 0.01 | AC187: 5 | AD187: Carryover | AH187: 2012
A188: 186 | B188: 377 | C188: Jewett | D188: 0.01 | E188: 0.01 | F188: 0.01 | G188: 0.01 | H188: 0.01 | I188: 0.01 | J188: 0.01 | K188: 0.01 | L188: 0.01 | M188: 0.01 | N188: 0.01 | O188: 0.01 | P188: 0.01 | Q188: 0.01 | R188: 0.01 | S188: 0.01 | T188: 0.01 | U188: 0.01 | V188: 0.01 | W188: 0.01 | X188: 0.01 | Y188: 0.01 | Z188: 0.01 | AA188: 0.01 | AB188: 0.01 | AC188: 7 | AD188: Carryover | AH188: 1980
A189: 187 | B189: 386 | C189: Johnstown | D189: 0.01 | E189: 0.01 | F189: 0.01 | G189: 0.01 | H189: 0.01 | I189: 0.01 | J189: 0.01 | K189: 0.01 | L189: 0.01 | M189: 0.01 | N189: 0.01 | O189: 0.01 | P189: 0.01 | Q189: 0.01 | R189: 0.01 | S189: 0.01 | T189: 0.01 | U189: 0.01 | V189: 0.01 | W189: 0.01 | X189: 0.01 | Y189: 0.01 | Z189: 0.01 | AA189: 0.01 | AB189: 0.01 | AC189: 0 | AD189: n/a | AH189: 1980
A190: 188 | B190: 392 | C190: Kent | D190: 0.0225 | E190: 0.0225 | F190: 0.02 | G190: 0.02 | H190: 0.02 | I190: 0.02 | J190: 0.02 | K190: 0.02 | L190: 0.02 | M190: 0.02 | N190: 0.02 | O190: 0.02 | P190: 0.0225 | Q190: 0.0225 | R190: 0.0225 | S190: 0.0225 | T190: 0.0225 | U190: 0.0225 | V190: 0.0225 | W190: 0.0225 | X190: 0.0225 | Y190: 0.0225 | Z190: 0.0225 | AA190: 0.0225 | AB190: 0.0225 | AC190: 5 | AD190: Carryover | AH190: 1980
A191: 189 | B191: 412 | C191: Killbuck | D191: 0.01 | E191: 0.01 | F191: 0 | G191: 0 | H191: 0 | I191: 0 | J191: 0 | K191: 0 | L191: 0.01 | M191: 0.01 | N191: 0.01 | O191: 0.01 | P191: 0.01 | Q191: 0.01 | R191: 0.01 | S191: 0.01 | T191: 0.01 | U191: 0.01 | V191: 0.01 | W191: 0.01 | X191: 0.01 | Y191: 0.01 | Z191: 0.01 | AA191: 0.01 | AB191: 0.01 | AC191: 5 | AD191: Carryover | AH191: 2009
A192: 190 | B192: 681 | C192: Kirkersville | D192: 0.01 | E192: 0.01 | F192: 0 | G192: 0 | H192: 0 | I192: 0 | J192: 0 | K192: 0 | L192: 0 | M192: 0 | N192: 0 | O192: 0 | P192: 0 | Q192: 0 | R192: 0 | S192: 0.005 | T192: 0.01 | U192: 0.01 | V192: 0.01 | W192: 0.01 | X192: 0.01 | Y192: 0.01 | Z192: 0.01 | AA192: 0.01 | AB192: 0.01 | AC192: 5 | AD192: Carryover | AE192: Blended tax rate for 2017 | AH192: 2016
A193: 191 | B193: 394 | C193: Kirtland | D193: 0.02 | E193: 0.02 | F193: 0.02 | G193: 0.02 | H193: 0.02 | I193: 0.02 | J193: 0.02 | K193: 0.02 | L193: 0.02 | M193: 0.02 | N193: 0.02 | O193: 0.02 | P193: 0.02 | Q193: 0.02 | R193: 0.02 | S193: 0.02 | T193: 0.02 | U193: 0.02 | V193: 0.02 | W193: 0.02 | X193: 0.02 | Y193: 0.02 | Z193: 0.02 | AA193: 0.02 | AB193: 0.02 | AC193: 5 | AD193: Carryover | AH193: 1980
A194: 192 | B194: 398 | C194: Lagrange | D194: 0.015 | E194: 0.015 | F194: 0.015 | G194: 0.015 | H194: 0.015 | I194: 0.015 | J194: 0.015 | K194: 0.015 | L194: 0.015 | M194: 0.015 | N194: 0.015 | O194: 0.015 | P194: 0.015 | Q194: 0.015 | R194: 0.015 | S194: 0.015 | T194: 0.015 | U194: 0.015 | V194: 0.015 | W194: 0.015 | X194: 0.015 | Y194: 0.015 | Z194: 0.015 | AA194: 0.015 | AB194: 0.015 | AC194: 5 | AD194: Carryover | AH194: 1980
A195: 193 | B195: 327 | C195: Lakeline | D195: 0.01 | E195: 0.01 | F195: 0 | G195: 0 | H195: 0 | I195: 0 | J195: 0 | K195: 0 | L195: 0 | M195: 0 | N195: 0.01 | O195: 0.01 | P195: 0.01 | Q195: 0.01 | R195: 0.01 | S195: 0.01 | T195: 0.01 | U195: 0.01 | V195: 0.01 | W195: 0.01 | X195: 0.01 | Y195: 0.01 | Z195: 0.01 | AA195: 0.01 | AB195: 0.01 | AC195: 5 | AD195: Carryover | AH195: 2011
A196: 194 | B196: 401 | C196: Lakemore | D196: =HLOOKUP(D$1,F$2:AB$499,(A196+1),FALSE) -> 0.0225 | E196: =HLOOKUP(D$1+1,F$2:AB$499,(A196+1),FALSE) -> 0.0225 | F196: 0.02 | G196: 0.02 | H196: 0.02 | I196: 0.02 | J196: 0.02 | K196: 0.02 | L196: 0.02 | M196: 0.02 | N196: 0.02 | O196: 0.02 | P196: 0.02 | Q196: 0.02 | R196: 0.02 | S196: 0.02 | T196: 0.0225 | U196: 0.0225 | V196: 0.0225 | W196: 0.0225 | X196: 0.0225 | Y196: 0.0225 | Z196: 0.0225 | AA196: 0.0225 | AB196: 0.0225 | AC196: 0 | AD196: n/a | AH196: 1980
A197: 195 | B197: 684 | C197: Latty | D197: 0.01 | E197: 0.01 | F197: 0 | G197: 0 | H197: 0 | I197: 0 | J197: 0 | K197: 0 | L197: 0 | M197: 0 | N197: 0 | O197: 0 | P197: 0 | Q197: 0 | R197: 0 | S197: 0 | T197: 0 | U197: 0 | V197: 0 | W197: 0.01 | X197: 0.01 | Y197: 0.01 | Z197: 0.01 | AA197: 0.01 | AB197: 0.01 | AC197: 5 | AD197: Carryover | AH197: 2020
A198: 196 | B198: 411 | C198: Leesburg | D198: 0.01 | E198: 0.01 | F198: 0.005 | G198: 0.01 | H198: 0.01 | I198: 0.01 | J198: 0.01 | K198: 0.01 | L198: 0.01 | M198: 0.01 | N198: 0.01 | O198: 0.01 | P198: 0.01 | Q198: 0.01 | R198: 0.01 | S198: 0.01 | T198: 0.01 | U198: 0.01 | V198: 0.01 | W198: 0.01 | X198: 0.01 | Y198: 0.01 | Z198: 0.01 | AA198: 0.01 | AB198: 0.01 | AC198: 5 | AD198: Carryover | AH198: 1980
A199: 197 | B199: 443 | C199: Leetonia | D199: 0.015 | E199: 0.015 | F199: 0 | G199: 0.015 | H199: 0.015 | I199: 0.015 | J199: 0.015 | K199: 0.015 | L199: 0.015 | M199: 0.015 | N199: 0.015 | O199: 0.015 | P199: 0.015 | Q199: 0.015 | R199: 0.015 | S199: 0.015 | T199: 0.015 | U199: 0.015 | V199: 0.015 | W199: 0.015 | X199: 0.015 | Y199: 0.015 | Z199: 0.015 | AA199: 0.015 | AB199: 0.015 | AC199: 0 | AD199: n/a | AH199: 2004
A200: 198 | B200: 444 | C200: Liberty Center | D200: 0.01 | E200: 0.01 | F200: 0.01 | G200: 0.01 | H200: 0.01 | I200: 0.01 | J200: 0.01 | K200: 0.01 | L200: 0.01 | M200: 0.01 | N200: 0.01 | O200: 0.01 | P200: 0.01 | Q200: 0.01 | R200: 0.01 | S200: 0.01 | T200: 0.01 | U200: 0.01 | V200: 0.01 | W200: 0.01 | X200: 0.01 | Y200: 0.01 | Z200: 0.01 | AA200: 0.01 | AB200: 0.01 | AC200: 5 | AD200: n/a | AH200: 1980
... 253 more rows

Sheet Tax Rate Calc (hidden)
C1: Fiscal Year
B2: Tax Year | C2: Begin | D2: End
B3: ='Complete This Page'!$G$11 -> 0 | C3: =IF(ISBLANK('Complete This Page'!$H$11),DATE(B3,1,1),'Complete This Page'!$H$11) -> 1900-01-01 | D3: =IF(ISBLANK('Complete This Page'!$J$11),DATE(B3,12,31),'Complete This Page'!$J$11) -> 1900-12-31
D5: Start Rate Info | I5: End Rate Info
B6: Municipality | C6: Mn Index # | D6: Rate # | E6: Days | F6: Tax Rate | G6: Credit | H6: Cr Limit | I6: Rate # | J6: Days | K6: Tax Rate | L6: Credit | M6: Cr Limit | N6: Error Msg
B7: ='Complete This Page'!$B$16 ->  | C7: =IF(LEN(B7)<=2,1,INDEX('Tax Rates'!$A$3:$A$465,MATCH(B7,'Tax Rates'!$C$3:$C$465,0),1)) -> 1 | D7: =IF($C$3<$H15,IF($C$3<$E15,IF($C$3<$C15,0,IF($C$3<$D15,1,2)),IF($C$3<$F15,3,IF($C$3<$G15,4,5))),IF($C$3<$K15,IF($C$3<$I15,6,IF($C$3<$J15,7,8)),IF($C$3<$L15,9,10))) -> 0 | E7: =IF(D7=0,0,IF(INDEX(C15:L15,1,D7+1)>$D$3,$D$3-$C$3+1,INDEX(C15:L15,1,D7+1)-$C$3)) -> 0 | F7: =IF(D7=0,0,INDEX(C23:L23,1,D7)) -> 0 | G7: =IF(D7=0,0,INDEX(C31:L31,1,D7)) -> 0 | H7: =IF(D7=0,0,INDEX(C39:L39,1,D7)) -> 0 | I7: =IF($D$3<$H15,IF($D$3<$E15,IF($D$3<$C15,0,IF($D$3<$D15,1,2)),IF($D$3<$F15,3,IF($D$3<$G15,4,5))),IF($D$3<$K15,IF($D$3<$I15,6,IF($D$3<$J15,7,8)),IF($D$3<$L15,9,10))) -> 0 | J7: =IF(I7=0,0,IF(INDEX(C15:L15,1,I7)>$C$3,$D$3-INDEX(C15:L15,1,I7)+1,$D$3-$C$3+1)) -> 0 | K7: =IF(I7=0,0,INDEX(C23:L23,1,I7)) -> 0 | L7: =IF(I7=0,0,INDEX(C31:L31,1,I7)) -> 0 | M7: =IF(I7=0,0,INDEX(C39:L39,1,I7)) -> 0 | N7: =IF(ISNA(C7),"Please select a valid RITA city name from the drop down",IF(AND(D7=0,C7>1),CONCATENATE("You cannot use this Excel based form for ", B7, " because tax rates for this city are available starting from ", TEXT(C15,"mm/dd/yyyy")),IF(D7<>I7,CONCATENATE("You cannot use this Excel based form for ", B7, " due to tax rate change during business's fiscal year effective on ", TEXT(INDEX(C15:L15,1,I7),"mm/dd/yyyy")),""))) -> 
B8: ='Complete This Page'!$B$17 ->  | C8: =IF(LEN(B8)<=2,1,INDEX('Tax Rates'!$A$3:$A$465,MATCH(B8,'Tax Rates'!$C$3:$C$465,0),1)) -> 1 | D8: =IF($C$3<$H16,IF($C$3<$E16,IF($C$3<$C16,0,IF($C$3<$D16,1,2)),IF($C$3<$F16,3,IF($C$3<$G16,4,5))),IF($C$3<$K16,IF($C$3<$I16,6,IF($C$3<$J16,7,8)),IF($C$3<$L16,9,10))) -> 0 | E8: =IF(D8=0,0,IF(INDEX(C16:L16,1,D8+1)>$D$3,$D$3-$C$3+1,INDEX(C16:L16,1,D8+1)-$C$3)) -> 0 | F8: =IF(D8=0,0,INDEX(C24:L24,1,D8)) -> 0 | G8: =IF(D8=0,0,INDEX(C32:L32,1,D8)) -> 0 | H8: =IF(D8=0,0,INDEX(C40:L40,1,D8)) -> 0 | I8: =IF($D$3<$H16,IF($D$3<$E16,IF($D$3<$C16,0,IF($D$3<$D16,1,2)),IF($D$3<$F16,3,IF($D$3<$G16,4,5))),IF($D$3<$K16,IF($D$3<$I16,6,IF($D$3<$J16,7,8)),IF($D$3<$L16,9,10))) -> 0 | J8: =IF(I8=0,0,IF(INDEX(C16:L16,1,I8)>$C$3,$D$3-INDEX(C16:L16,1,I8)+1,$D$3-$C$3+1)) -> 0 | K8: =IF(I8=0,0,INDEX(C24:L24,1,I8)) -> 0 | L8: =IF(I8=0,0,INDEX(C32:L32,1,I8)) -> 0 | M8: =IF(I8=0,0,INDEX(C40:L40,1,I8)) -> 0 | N8: =IF(ISNA(C8),"Please select a valid RITA city name from the drop down",IF(AND(D8=0,C8>1),CONCATENATE("You cannot use this Excel based form for ", B8, " because tax rates for this city are available starting from ", TEXT(C16,"mm/dd/yyyy")),IF(D8<>I8,CONCATENATE("You cannot use this Excel based form for ", B8, " due to tax rate change during business's fiscal year effective on ", TEXT(INDEX(C16:L16,1,I8),"mm/dd/yyyy")),""))) -> 
B9: ='Complete This Page'!$B$18 ->  | C9: =IF(LEN(B9)<=2,1,INDEX('Tax Rates'!$A$3:$A$465,MATCH(B9,'Tax Rates'!$C$3:$C$465,0),1)) -> 1 | D9: =IF($C$3<$H17,IF($C$3<$E17,IF($C$3<$C17,0,IF($C$3<$D17,1,2)),IF($C$3<$F17,3,IF($C$3<$G17,4,5))),IF($C$3<$K17,IF($C$3<$I17,6,IF($C$3<$J17,7,8)),IF($C$3<$L17,9,10))) -> 0 | E9: =IF(D9=0,0,IF(INDEX(C17:L17,1,D9+1)>$D$3,$D$3-$C$3+1,INDEX(C17:L17,1,D9+1)-$C$3)) -> 0 | F9: =IF(D9=0,0,INDEX(C25:L25,1,D9)) -> 0 | G9: =IF(D9=0,0,INDEX(C33:L33,1,D9)) -> 0 | H9: =IF(D9=0,0,INDEX(C41:L41,1,D9)) -> 0 | I9: =IF($D$3<$H17,IF($D$3<$E17,IF($D$3<$C17,0,IF($D$3<$D17,1,2)),IF($D$3<$F17,3,IF($D$3<$G17,4,5))),IF($D$3<$K17,IF($D$3<$I17,6,IF($D$3<$J17,7,8)),IF($D$3<$L17,9,10))) -> 0 | J9: =IF(I9=0,0,IF(INDEX(C17:L17,1,I9)>$C$3,$D$3-INDEX(C17:L17,1,I9)+1,$D$3-$C$3+1)) -> 0 | K9: =IF(I9=0,0,INDEX(C25:L25,1,I9)) -> 0 | L9: =IF(I9=0,0,INDEX(C33:L33,1,I9)) -> 0 | M9: =IF(I9=0,0,INDEX(C41:L41,1,I9)) -> 0 | N9: =IF(ISNA(C9),"Please select a valid RITA city name from the drop down",IF(AND(D9=0,C9>1),CONCATENATE("You cannot use this Excel based form for ", B9, " because tax rates for this city are available starting from ", TEXT(C17,"mm/dd/yyyy")),IF(D9<>I9,CONCATENATE("You cannot use this Excel based form for ", B9, " due to tax rate change during business's fiscal year effective on ", TEXT(INDEX(C17:L17,1,I9),"mm/dd/yyyy")),""))) -> 
B10: ='Complete This Page'!$B$19 ->  | C10: =IF(LEN(B10)<=2,1,INDEX('Tax Rates'!$A$3:$A$465,MATCH(B10,'Tax Rates'!$C$3:$C$465,0),1)) -> 1 | D10: =IF($C$3<$H18,IF($C$3<$E18,IF($C$3<$C18,0,IF($C$3<$D18,1,2)),IF($C$3<$F18,3,IF($C$3<$G18,4,5))),IF($C$3<$K18,IF($C$3<$I18,6,IF($C$3<$J18,7,8)),IF($C$3<$L18,9,10))) -> 0 | E10: =IF(D10=0,0,IF(INDEX(C18:L18,1,D10+1)>$D$3,$D$3-$C$3+1,INDEX(C18:L18,1,D10+1)-$C$3)) -> 0 | F10: =IF(D10=0,0,INDEX(C26:L26,1,D10)) -> 0 | G10: =IF(D10=0,0,INDEX(C34:L34,1,D10)) -> 0 | H10: =IF(D10=0,0,INDEX(C42:L42,1,D10)) -> 0 | I10: =IF($D$3<$H18,IF($D$3<$E18,IF($D$3<$C18,0,IF($D$3<$D18,1,2)),IF($D$3<$F18,3,IF($D$3<$G18,4,5))),IF($D$3<$K18,IF($D$3<$I18,6,IF($D$3<$J18,7,8)),IF($D$3<$L18,9,10))) -> 0 | J10: =IF(I10=0,0,IF(INDEX(C18:L18,1,I10)>$C$3,$D$3-INDEX(C18:L18,1,I10)+1,$D$3-$C$3+1)) -> 0 | K10: =IF(I10=0,0,INDEX(C26:L26,1,I10)) -> 0 | L10: =IF(I10=0,0,INDEX(C34:L34,1,I10)) -> 0 | M10: =IF(I10=0,0,INDEX(C42:L42,1,I10)) -> 0 | N10: =IF(ISNA(C10),"Please select a valid RITA city name from the drop down",IF(AND(D10=0,C10>1),CONCATENATE("You cannot use this Excel based form for ", B10, " because tax rates for this city are available starting from ", TEXT(C18,"mm/dd/yyyy")),IF(D10<>I10,CONCATENATE("You cannot use this Excel based form for ", B10, " due to tax rate change during business's fiscal year effective on ", TEXT(INDEX(C18:L18,1,I10),"mm/dd/yyyy")),""))) -> 
B11: ='Complete This Page'!$B$20 ->  | C11: =IF(LEN(B11)<=2,1,INDEX('Tax Rates'!$A$3:$A$465,MATCH(B11,'Tax Rates'!$C$3:$C$465,0),1)) -> 1 | D11: =IF($C$3<$H19,IF($C$3<$E19,IF($C$3<$C19,0,IF($C$3<$D19,1,2)),IF($C$3<$F19,3,IF($C$3<$G19,4,5))),IF($C$3<$K19,IF($C$3<$I19,6,IF($C$3<$J19,7,8)),IF($C$3<$L19,9,10))) -> 0 | E11: =IF(D11=0,0,IF(INDEX(C19:L19,1,D11+1)>$D$3,$D$3-$C$3+1,INDEX(C19:L19,1,D11+1)-$C$3)) -> 0 | F11: =IF(D11=0,0,INDEX(C27:L27,1,D11)) -> 0 | G11: =IF(D11=0,0,INDEX(C35:L35,1,D11)) -> 0 | H11: =IF(D11=0,0,INDEX(C43:L43,1,D11)) -> 0 | I11: =IF($D$3<$H19,IF($D$3<$E19,IF($D$3<$C19,0,IF($D$3<$D19,1,2)),IF($D$3<$F19,3,IF($D$3<$G19,4,5))),IF($D$3<$K19,IF($D$3<$I19,6,IF($D$3<$J19,7,8)),IF($D$3<$L19,9,10))) -> 0 | J11: =IF(I11=0,0,IF(INDEX(C19:L19,1,I11)>$C$3,$D$3-INDEX(C19:L19,1,I11)+1,$D$3-$C$3+1)) -> 0 | K11: =IF(I11=0,0,INDEX(C27:L27,1,I11)) -> 0 | L11: =IF(I11=0,0,INDEX(C35:L35,1,I11)) -> 0 | M11: =IF(I11=0,0,INDEX(C43:L43,1,I11)) -> 0 | N11: =IF(ISNA(C11),"Please select a valid RITA city name from the drop down",IF(AND(D11=0,C11>1),CONCATENATE("You cannot use this Excel based form for ", B11, " because tax rates for this city are available starting from ", TEXT(C19,"mm/dd/yyyy")),IF(D11<>I11,CONCATENATE("You cannot use this Excel based form for ", B11, " due to tax rate change during business's fiscal year effective on ", TEXT(INDEX(C19:L19,1,I11),"mm/dd/yyyy")),""))) -> 
B13: Start Dates for Tax Rates
B14: Municipality | C14: Start Dt 1 | D14: Start Dt 2 | E14: Start Dt 3 | F14: Start Dt 4 | G14: Start Dt 5 | H14: Start Dt 6 | I14: Start Dt 7 | J14: Start Dt 8 | K14: Start Dt 9 | L14: Start Dt 10
A15: 1 | B15: =$B$7 ->  | C15: =IF(ISBLANK(LOOKUP($C$7,'Tax Rates'!$A$3:$A$515,'Tax Rates'!$G$3:$G$515)),DATE(2599,1,1),LOOKUP($C$7,'Tax Rates'!$A$3:$A$515,'Tax Rates'!$G$3:$G$515)) -> 2599-01-01 | D15: =IF(ISBLANK(LOOKUP($C$7,'Tax Rates'!$A$3:$A$515,'Tax Rates'!$L$3:$L$515)),DATE(2599,1,1),LOOKUP($C$7,'Tax Rates'!$A$3:$A$515,'Tax Rates'!$L$3:$L$515)) -> 2599-01-01 | E15: =IF(ISBLANK(LOOKUP($C$7,'Tax Rates'!$A$3:$A$515,'Tax Rates'!$Q$3:$Q$515)),DATE(2599,1,1),LOOKUP($C$7,'Tax Rates'!$A$3:$A$515,'Tax Rates'!$Q$3:$Q$515)) -> 2599-01-01 | F15: =IF(ISBLANK(LOOKUP($C$7,'Tax Rates'!$A$3:$A$515,'Tax Rates'!$V$3:$V$515)),DATE(2599,1,1),LOOKUP($C$7,'Tax Rates'!$A$3:$A$515,'Tax Rates'!$V$3:$V$515)) -> 2599-01-01 | G15: =IF(ISBLANK(LOOKUP($C$7,'Tax Rates'!$A$3:$A$515,'Tax Rates'!$AA$3:$AA$515)),DATE(2599,1,1),LOOKUP($C$7,'Tax Rates'!$A$3:$A$515,'Tax Rates'!$AA$3:$AA$515)) -> 2599-01-01 | H15: =IF(ISBLANK(LOOKUP($C$7,'Tax Rates'!$A$3:$A$515,'Tax Rates'!$AF$3:$AF$515)),DATE(2599,1,1),LOOKUP($C$7,'Tax Rates'!$A$3:$A$515,'Tax Rates'!$AF$3:$AF$515)) -> 2599-01-01 | I15: =IF(ISBLANK(LOOKUP($C$7,'Tax Rates'!$A$3:$A$515,'Tax Rates'!$AK$3:$AK$515)),DATE(2599,1,1),LOOKUP($C$7,'Tax Rates'!$A$3:$A$515,'Tax Rates'!$AK$3:$AK$515)) -> 2599-01-01 | J15: =IF(ISBLANK(LOOKUP($C$7,'Tax Rates'!$A$3:$A$515,'Tax Rates'!$AP$3:$AP$515)),DATE(2599,1,1),LOOKUP($C$7,'Tax Rates'!$A$3:$A$515,'Tax Rates'!$AP$3:$AP$515)) -> 2599-01-01 | K15: =IF(ISBLANK(LOOKUP($C$7,'Tax Rates'!$A$3:$A$515,'Tax Rates'!$AU$3:$AU$515)),DATE(2599,1,1),LOOKUP($C$7,'Tax Rates'!$A$3:$A$515,'Tax Rates'!$AU$3:$AU$515)) -> 2599-01-01 | L15: =IF(ISBLANK(LOOKUP($C$7,'Tax Rates'!$A$3:$A$515,'Tax Rates'!$AZ$3:$AZ$515)),DATE(2599,1,1),LOOKUP($C$7,'Tax Rates'!$A$3:$A$515,'Tax Rates'!$AZ$3:$AZ$515)) -> 2599-01-01
A16: 2 | B16: =$B$8 ->  | C16: =IF(ISBLANK(LOOKUP($C$8,'Tax Rates'!$A$3:$A$515,'Tax Rates'!$G$3:$G$515)),DATE(2599,1,1),LOOKUP($C$8,'Tax Rates'!$A$3:$A$515,'Tax Rates'!$G$3:$G$515)) -> 2599-01-01 | D16: =IF(ISBLANK(LOOKUP($C$8,'Tax Rates'!$A$3:$A$515,'Tax Rates'!$L$3:$L$515)),DATE(2599,1,1),LOOKUP($C$8,'Tax Rates'!$A$3:$A$515,'Tax Rates'!$L$3:$L$515)) -> 2599-01-01 | E16: =IF(ISBLANK(LOOKUP($C$8,'Tax Rates'!$A$3:$A$515,'Tax Rates'!$Q$3:$Q$515)),DATE(2599,1,1),LOOKUP($C$8,'Tax Rates'!$A$3:$A$515,'Tax Rates'!$Q$3:$Q$515)) -> 2599-01-01 | F16: =IF(ISBLANK(LOOKUP($C$8,'Tax Rates'!$A$3:$A$515,'Tax Rates'!$V$3:$V$515)),DATE(2599,1,1),LOOKUP($C$8,'Tax Rates'!$A$3:$A$515,'Tax Rates'!$V$3:$V$515)) -> 2599-01-01 | G16: =IF(ISBLANK(LOOKUP($C$8,'Tax Rates'!$A$3:$A$515,'Tax Rates'!$AA$3:$AA$515)),DATE(2599,1,1),LOOKUP($C$8,'Tax Rates'!$A$3:$A$515,'Tax Rates'!$AA$3:$AA$515)) -> 2599-01-01 | H16: =IF(ISBLANK(LOOKUP($C$8,'Tax Rates'!$A$3:$A$515,'Tax Rates'!$AF$3:$AF$515)),DATE(2599,1,1),LOOKUP($C$8,'Tax Rates'!$A$3:$A$515,'Tax Rates'!$AF$3:$AF$515)) -> 2599-01-01 | I16: =IF(ISBLANK(LOOKUP($C$8,'Tax Rates'!$A$3:$A$515,'Tax Rates'!$AK$3:$AK$515)),DATE(2599,1,1),LOOKUP($C$8,'Tax Rates'!$A$3:$A$515,'Tax Rates'!$AK$3:$AK$515)) -> 2599-01-01 | J16: =IF(ISBLANK(LOOKUP($C$8,'Tax Rates'!$A$3:$A$515,'Tax Rates'!$AP$3:$AP$515)),DATE(2599,1,1),LOOKUP($C$8,'Tax Rates'!$A$3:$A$515,'Tax Rates'!$AP$3:$AP$515)) -> 2599-01-01 | K16: =IF(ISBLANK(LOOKUP($C$8,'Tax Rates'!$A$3:$A$515,'Tax Rates'!$AU$3:$AU$515)),DATE(2599,1,1),LOOKUP($C$8,'Tax Rates'!$A$3:$A$515,'Tax Rates'!$AU$3:$AU$515)) -> 2599-01-01 | L16: =IF(ISBLANK(LOOKUP($C$8,'Tax Rates'!$A$3:$A$515,'Tax Rates'!$AZ$3:$AZ$515)),DATE(2599,1,1),LOOKUP($C$8,'Tax Rates'!$A$3:$A$515,'Tax Rates'!$AZ$3:$AZ$515)) -> 2599-01-01
A17: 3 | B17: =$B$9 ->  | C17: =IF(ISBLANK(LOOKUP($C$9,'Tax Rates'!$A$3:$A$515,'Tax Rates'!$G$3:$G$515)),DATE(2599,1,1),LOOKUP($C$9,'Tax Rates'!$A$3:$A$515,'Tax Rates'!$G$3:$G$515)) -> 2599-01-01 | D17: =IF(ISBLANK(LOOKUP($C$9,'Tax Rates'!$A$3:$A$515,'Tax Rates'!$L$3:$L$515)),DATE(2599,1,1),LOOKUP($C$9,'Tax Rates'!$A$3:$A$515,'Tax Rates'!$L$3:$L$515)) -> 2599-01-01 | E17: =IF(ISBLANK(LOOKUP($C$9,'Tax Rates'!$A$3:$A$515,'Tax Rates'!$Q$3:$Q$515)),DATE(2599,1,1),LOOKUP($C$9,'Tax Rates'!$A$3:$A$515,'Tax Rates'!$Q$3:$Q$515)) -> 2599-01-01 | F17: =IF(ISBLANK(LOOKUP($C$9,'Tax Rates'!$A$3:$A$515,'Tax Rates'!$V$3:$V$515)),DATE(2599,1,1),LOOKUP($C$9,'Tax Rates'!$A$3:$A$515,'Tax Rates'!$V$3:$V$515)) -> 2599-01-01 | G17: =IF(ISBLANK(LOOKUP($C$9,'Tax Rates'!$A$3:$A$515,'Tax Rates'!$AA$3:$AA$515)),DATE(2599,1,1),LOOKUP($C$9,'Tax Rates'!$A$3:$A$515,'Tax Rates'!$AA$3:$AA$515)) -> 2599-01-01 | H17: =IF(ISBLANK(LOOKUP($C$9,'Tax Rates'!$A$3:$A$515,'Tax Rates'!$AF$3:$AF$515)),DATE(2599,1,1),LOOKUP($C$9,'Tax Rates'!$A$3:$A$515,'Tax Rates'!$AF$3:$AF$515)) -> 2599-01-01 | I17: =IF(ISBLANK(LOOKUP($C$9,'Tax Rates'!$A$3:$A$515,'Tax Rates'!$AK$3:$AK$515)),DATE(2599,1,1),LOOKUP($C$9,'Tax Rates'!$A$3:$A$515,'Tax Rates'!$AK$3:$AK$515)) -> 2599-01-01 | J17: =IF(ISBLANK(LOOKUP($C$9,'Tax Rates'!$A$3:$A$515,'Tax Rates'!$AP$3:$AP$515)),DATE(2599,1,1),LOOKUP($C$9,'Tax Rates'!$A$3:$A$515,'Tax Rates'!$AP$3:$AP$515)) -> 2599-01-01 | K17: =IF(ISBLANK(LOOKUP($C$9,'Tax Rates'!$A$3:$A$515,'Tax Rates'!$AU$3:$AU$515)),DATE(2599,1,1),LOOKUP($C$9,'Tax Rates'!$A$3:$A$515,'Tax Rates'!$AU$3:$AU$515)) -> 2599-01-01 | L17: =IF(ISBLANK(LOOKUP($C$9,'Tax Rates'!$A$3:$A$515,'Tax Rates'!$AZ$3:$AZ$515)),DATE(2599,1,1),LOOKUP($C$9,'Tax Rates'!$A$3:$A$515,'Tax Rates'!$AZ$3:$AZ$515)) -> 2599-01-01
A18: 4 | B18: =$B$10 ->  | C18: =IF(ISBLANK(LOOKUP($C$10,'Tax Rates'!$A$3:$A$515,'Tax Rates'!$G$3:$G$515)),DATE(2599,1,1),LOOKUP($C$10,'Tax Rates'!$A$3:$A$515,'Tax Rates'!$G$3:$G$515)) -> 2599-01-01 | D18: =IF(ISBLANK(LOOKUP($C$10,'Tax Rates'!$A$3:$A$515,'Tax Rates'!$L$3:$L$515)),DATE(2599,1,1),LOOKUP($C$10,'Tax Rates'!$A$3:$A$515,'Tax Rates'!$L$3:$L$515)) -> 2599-01-01 | E18: =IF(ISBLANK(LOOKUP($C$10,'Tax Rates'!$A$3:$A$515,'Tax Rates'!$Q$3:$Q$515)),DATE(2599,1,1),LOOKUP($C$10,'Tax Rates'!$A$3:$A$515,'Tax Rates'!$Q$3:$Q$515)) -> 2599-01-01 | F18: =IF(ISBLANK(LOOKUP($C$10,'Tax Rates'!$A$3:$A$515,'Tax Rates'!$V$3:$V$515)),DATE(2599,1,1),LOOKUP($C$10,'Tax Rates'!$A$3:$A$515,'Tax Rates'!$V$3:$V$515)) -> 2599-01-01 | G18: =IF(ISBLANK(LOOKUP($C$10,'Tax Rates'!$A$3:$A$515,'Tax Rates'!$AA$3:$AA$515)),DATE(2599,1,1),LOOKUP($C$10,'Tax Rates'!$A$3:$A$515,'Tax Rates'!$AA$3:$AA$515)) -> 2599-01-01 | H18: =IF(ISBLANK(LOOKUP($C$10,'Tax Rates'!$A$3:$A$515,'Tax Rates'!$AF$3:$AF$515)),DATE(2599,1,1),LOOKUP($C$10,'Tax Rates'!$A$3:$A$515,'Tax Rates'!$AF$3:$AF$515)) -> 2599-01-01 | I18: =IF(ISBLANK(LOOKUP($C$10,'Tax Rates'!$A$3:$A$515,'Tax Rates'!$AK$3:$AK$515)),DATE(2599,1,1),LOOKUP($C$10,'Tax Rates'!$A$3:$A$515,'Tax Rates'!$AK$3:$AK$515)) -> 2599-01-01 | J18: =IF(ISBLANK(LOOKUP($C$10,'Tax Rates'!$A$3:$A$515,'Tax Rates'!$AP$3:$AP$515)),DATE(2599,1,1),LOOKUP($C$10,'Tax Rates'!$A$3:$A$515,'Tax Rates'!$AP$3:$AP$515)) -> 2599-01-01 | K18: =IF(ISBLANK(LOOKUP($C$10,'Tax Rates'!$A$3:$A$515,'Tax Rates'!$AU$3:$AU$515)),DATE(2599,1,1),LOOKUP($C$10,'Tax Rates'!$A$3:$A$515,'Tax Rates'!$AU$3:$AU$515)) -> 2599-01-01 | L18: =IF(ISBLANK(LOOKUP($C$10,'Tax Rates'!$A$3:$A$515,'Tax Rates'!$AZ$3:$AZ$515)),DATE(2599,1,1),LOOKUP($C$10,'Tax Rates'!$A$3:$A$515,'Tax Rates'!$AZ$3:$AZ$515)) -> 2599-01-01
A19: 5 | B19: =$B$11 ->  | C19: =IF(ISBLANK(LOOKUP($C$11,'Tax Rates'!$A$3:$A$515,'Tax Rates'!$G$3:$G$515)),DATE(2599,1,1),LOOKUP($C$11,'Tax Rates'!$A$3:$A$515,'Tax Rates'!$G$3:$G$515)) -> 2599-01-01 | D19: =IF(ISBLANK(LOOKUP($C$11,'Tax Rates'!$A$3:$A$515,'Tax Rates'!$L$3:$L$515)),DATE(2599,1,1),LOOKUP($C$11,'Tax Rates'!$A$3:$A$515,'Tax Rates'!$L$3:$L$515)) -> 2599-01-01 | E19: =IF(ISBLANK(LOOKUP($C$11,'Tax Rates'!$A$3:$A$515,'Tax Rates'!$Q$3:$Q$515)),DATE(2599,1,1),LOOKUP($C$11,'Tax Rates'!$A$3:$A$515,'Tax Rates'!$Q$3:$Q$515)) -> 2599-01-01 | F19: =IF(ISBLANK(LOOKUP($C$11,'Tax Rates'!$A$3:$A$515,'Tax Rates'!$V$3:$V$515)),DATE(2599,1,1),LOOKUP($C$11,'Tax Rates'!$A$3:$A$515,'Tax Rates'!$V$3:$V$515)) -> 2599-01-01 | G19: =IF(ISBLANK(LOOKUP($C$11,'Tax Rates'!$A$3:$A$515,'Tax Rates'!$AA$3:$AA$515)),DATE(2599,1,1),LOOKUP($C$11,'Tax Rates'!$A$3:$A$515,'Tax Rates'!$AA$3:$AA$515)) -> 2599-01-01 | H19: =IF(ISBLANK(LOOKUP($C$11,'Tax Rates'!$A$3:$A$515,'Tax Rates'!$AF$3:$AF$515)),DATE(2599,1,1),LOOKUP($C$11,'Tax Rates'!$A$3:$A$515,'Tax Rates'!$AF$3:$AF$515)) -> 2599-01-01 | I19: =IF(ISBLANK(LOOKUP($C$11,'Tax Rates'!$A$3:$A$515,'Tax Rates'!$AK$3:$AK$515)),DATE(2599,1,1),LOOKUP($C$11,'Tax Rates'!$A$3:$A$515,'Tax Rates'!$AK$3:$AK$515)) -> 2599-01-01 | J19: =IF(ISBLANK(LOOKUP($C$11,'Tax Rates'!$A$3:$A$515,'Tax Rates'!$AP$3:$AP$515)),DATE(2599,1,1),LOOKUP($C$11,'Tax Rates'!$A$3:$A$515,'Tax Rates'!$AP$3:$AP$515)) -> 2599-01-01 | K19: =IF(ISBLANK(LOOKUP($C$11,'Tax Rates'!$A$3:$A$515,'Tax Rates'!$AU$3:$AU$515)),DATE(2599,1,1),LOOKUP($C$11,'Tax Rates'!$A$3:$A$515,'Tax Rates'!$AU$3:$AU$515)) -> 2599-01-01 | L19: =IF(ISBLANK(LOOKUP($C$11,'Tax Rates'!$A$3:$A$515,'Tax Rates'!$AZ$3:$AZ$515)),DATE(2599,1,1),LOOKUP($C$11,'Tax Rates'!$A$3:$A$515,'Tax Rates'!$AZ$3:$AZ$515)) -> 2599-01-01
B21: Tax Rates
B22: Municipality | C22: Tax Rate 1 | D22: Tax Rate 2 | E22: Tax Rate 3 | F22: Tax Rate 4 | G22: Tax Rate 5 | H22: Tax Rate 6 | I22: Tax Rate 7 | J22: Tax Rate 8 | K22: Tax Rate 9 | L22: Tax Rate 10
A23: 1 | B23: =$B$7 ->  | C23: =IF(ISBLANK(LOOKUP($C$7,'Tax Rates'!$A$3:$A$515,'Tax Rates'!$D$3:$D$515)),0,LOOKUP($C$7,'Tax Rates'!$A$3:$A$515,'Tax Rates'!$D$3:$D$515)) -> 0 | D23: =IF(ISBLANK(LOOKUP($C$7,'Tax Rates'!$A$3:$A$515,'Tax Rates'!$I$3:$I$515)),0,LOOKUP($C$7,'Tax Rates'!$A$3:$A$515,'Tax Rates'!$I$3:$I$515)) -> 0 | E23: =IF(ISBLANK(LOOKUP($C$7,'Tax Rates'!$A$3:$A$515,'Tax Rates'!$N$3:$N$515)),0,LOOKUP($C$7,'Tax Rates'!$A$3:$A$515,'Tax Rates'!$N$3:$N$515)) -> 0 | F23: =IF(ISBLANK(LOOKUP($C$7,'Tax Rates'!$A$3:$A$515,'Tax Rates'!$S$3:$S$515)),0,LOOKUP($C$7,'Tax Rates'!$A$3:$A$515,'Tax Rates'!$S$3:$S$515)) -> 0 | G23: =IF(ISBLANK(LOOKUP($C$7,'Tax Rates'!$A$3:$A$515,'Tax Rates'!$X$3:$X$515)),0,LOOKUP($C$7,'Tax Rates'!$A$3:$A$515,'Tax Rates'!$X$3:$X$515)) -> 0 | H23: =IF(ISBLANK(LOOKUP($C$7,'Tax Rates'!$A$3:$A$515,'Tax Rates'!$AC$3:$AC$515)),0,LOOKUP($C$7,'Tax Rates'!$A$3:$A$515,'Tax Rates'!$AC$3:$AC$515)) -> 0 | I23: =IF(ISBLANK(LOOKUP($C$7,'Tax Rates'!$A$3:$A$515,'Tax Rates'!$AH$3:$AH$515)),0,LOOKUP($C$7,'Tax Rates'!$A$3:$A$515,'Tax Rates'!$AH$3:$AH$515)) -> 0 | J23: =IF(ISBLANK(LOOKUP($C$7,'Tax Rates'!$A$3:$A$515,'Tax Rates'!$AM$3:$AM$515)),0,LOOKUP($C$7,'Tax Rates'!$A$3:$A$515,'Tax Rates'!$AM$3:$AM$515)) -> 0 | K23: =IF(ISBLANK(LOOKUP($C$7,'Tax Rates'!$A$3:$A$515,'Tax Rates'!$AR$3:$AR$515)),0,LOOKUP($C$7,'Tax Rates'!$A$3:$A$515,'Tax Rates'!$AR$3:$AR$515)) -> 0 | L23: =IF(ISBLANK(LOOKUP($C$7,'Tax Rates'!$A$3:$A$515,'Tax Rates'!$AW$3:$AW$515)),0,LOOKUP($C$7,'Tax Rates'!$A$3:$A$515,'Tax Rates'!$AW$3:$AW$515)) -> 0
A24: 2 | B24: =$B$8 ->  | C24: =IF(ISBLANK(LOOKUP($C$8,'Tax Rates'!$A$3:$A$515,'Tax Rates'!$D$3:$D$515)),0,LOOKUP($C$8,'Tax Rates'!$A$3:$A$515,'Tax Rates'!$D$3:$D$515)) -> 0 | D24: =IF(ISBLANK(LOOKUP($C$8,'Tax Rates'!$A$3:$A$515,'Tax Rates'!$I$3:$I$515)),0,LOOKUP($C$8,'Tax Rates'!$A$3:$A$515,'Tax Rates'!$I$3:$I$515)) -> 0 | E24: =IF(ISBLANK(LOOKUP($C$8,'Tax Rates'!$A$3:$A$515,'Tax Rates'!$N$3:$N$515)),0,LOOKUP($C$8,'Tax Rates'!$A$3:$A$515,'Tax Rates'!$N$3:$N$515)) -> 0 | F24: =IF(ISBLANK(LOOKUP($C$8,'Tax Rates'!$A$3:$A$515,'Tax Rates'!$S$3:$S$515)),0,LOOKUP($C$8,'Tax Rates'!$A$3:$A$515,'Tax Rates'!$S$3:$S$515)) -> 0 | G24: =IF(ISBLANK(LOOKUP($C$8,'Tax Rates'!$A$3:$A$515,'Tax Rates'!$X$3:$X$515)),0,LOOKUP($C$8,'Tax Rates'!$A$3:$A$515,'Tax Rates'!$X$3:$X$515)) -> 0 | H24: =IF(ISBLANK(LOOKUP($C$8,'Tax Rates'!$A$3:$A$515,'Tax Rates'!$AC$3:$AC$515)),0,LOOKUP($C$8,'Tax Rates'!$A$3:$A$515,'Tax Rates'!$AC$3:$AC$515)) -> 0 | I24: =IF(ISBLANK(LOOKUP($C$8,'Tax Rates'!$A$3:$A$515,'Tax Rates'!$AH$3:$AH$515)),0,LOOKUP($C$8,'Tax Rates'!$A$3:$A$515,'Tax Rates'!$AH$3:$AH$515)) -> 0 | J24: =IF(ISBLANK(LOOKUP($C$8,'Tax Rates'!$A$3:$A$515,'Tax Rates'!$AM$3:$AM$515)),0,LOOKUP($C$8,'Tax Rates'!$A$3:$A$515,'Tax Rates'!$AM$3:$AM$515)) -> 0 | K24: =IF(ISBLANK(LOOKUP($C$8,'Tax Rates'!$A$3:$A$515,'Tax Rates'!$AR$3:$AR$515)),0,LOOKUP($C$8,'Tax Rates'!$A$3:$A$515,'Tax Rates'!$AR$3:$AR$515)) -> 0 | L24: =IF(ISBLANK(LOOKUP($C$8,'Tax Rates'!$A$3:$A$515,'Tax Rates'!$AW$3:$AW$515)),0,LOOKUP($C$8,'Tax Rates'!$A$3:$A$515,'Tax Rates'!$AW$3:$AW$515)) -> 0
A25: 3 | B25: =$B$9 ->  | C25: =IF(ISBLANK(LOOKUP($C$9,'Tax Rates'!$A$3:$A$515,'Tax Rates'!$D$3:$D$515)),0,LOOKUP($C$9,'Tax Rates'!$A$3:$A$515,'Tax Rates'!$D$3:$D$515)) -> 0 | D25: =IF(ISBLANK(LOOKUP($C$9,'Tax Rates'!$A$3:$A$515,'Tax Rates'!$I$3:$I$515)),0,LOOKUP($C$9,'Tax Rates'!$A$3:$A$515,'Tax Rates'!$I$3:$I$515)) -> 0 | E25: =IF(ISBLANK(LOOKUP($C$9,'Tax Rates'!$A$3:$A$515,'Tax Rates'!$N$3:$N$515)),0,LOOKUP($C$9,'Tax Rates'!$A$3:$A$515,'Tax Rates'!$N$3:$N$515)) -> 0 | F25: =IF(ISBLANK(LOOKUP($C$9,'Tax Rates'!$A$3:$A$515,'Tax Rates'!$S$3:$S$515)),0,LOOKUP($C$9,'Tax Rates'!$A$3:$A$515,'Tax Rates'!$S$3:$S$515)) -> 0 | G25: =IF(ISBLANK(LOOKUP($C$9,'Tax Rates'!$A$3:$A$515,'Tax Rates'!$X$3:$X$515)),0,LOOKUP($C$9,'Tax Rates'!$A$3:$A$515,'Tax Rates'!$X$3:$X$515)) -> 0 | H25: =IF(ISBLANK(LOOKUP($C$9,'Tax Rates'!$A$3:$A$515,'Tax Rates'!$AC$3:$AC$515)),0,LOOKUP($C$9,'Tax Rates'!$A$3:$A$515,'Tax Rates'!$AC$3:$AC$515)) -> 0 | I25: =IF(ISBLANK(LOOKUP($C$9,'Tax Rates'!$A$3:$A$515,'Tax Rates'!$AH$3:$AH$515)),0,LOOKUP($C$9,'Tax Rates'!$A$3:$A$515,'Tax Rates'!$AH$3:$AH$515)) -> 0 | J25: =IF(ISBLANK(LOOKUP($C$9,'Tax Rates'!$A$3:$A$515,'Tax Rates'!$AM$3:$AM$515)),0,LOOKUP($C$9,'Tax Rates'!$A$3:$A$515,'Tax Rates'!$AM$3:$AM$515)) -> 0 | K25: =IF(ISBLANK(LOOKUP($C$9,'Tax Rates'!$A$3:$A$515,'Tax Rates'!$AR$3:$AR$515)),0,LOOKUP($C$9,'Tax Rates'!$A$3:$A$515,'Tax Rates'!$AR$3:$AR$515)) -> 0 | L25: =IF(ISBLANK(LOOKUP($C$9,'Tax Rates'!$A$3:$A$515,'Tax Rates'!$AW$3:$AW$515)),0,LOOKUP($C$9,'Tax Rates'!$A$3:$A$515,'Tax Rates'!$AW$3:$AW$515)) -> 0
A26: 4 | B26: =$B$10 ->  | C26: =IF(ISBLANK(LOOKUP($C$10,'Tax Rates'!$A$3:$A$515,'Tax Rates'!$D$3:$D$515)),0,LOOKUP($C$10,'Tax Rates'!$A$3:$A$515,'Tax Rates'!$D$3:$D$515)) -> 0 | D26: =IF(ISBLANK(LOOKUP($C$10,'Tax Rates'!$A$3:$A$515,'Tax Rates'!$I$3:$I$515)),0,LOOKUP($C$10,'Tax Rates'!$A$3:$A$515,'Tax Rates'!$I$3:$I$515)) -> 0 | E26: =IF(ISBLANK(LOOKUP($C$10,'Tax Rates'!$A$3:$A$515,'Tax Rates'!$N$3:$N$515)),0,LOOKUP($C$10,'Tax Rates'!$A$3:$A$515,'Tax Rates'!$N$3:$N$515)) -> 0 | F26: =IF(ISBLANK(LOOKUP($C$10,'Tax Rates'!$A$3:$A$515,'Tax Rates'!$S$3:$S$515)),0,LOOKUP($C$10,'Tax Rates'!$A$3:$A$515,'Tax Rates'!$S$3:$S$515)) -> 0 | G26: =IF(ISBLANK(LOOKUP($C$10,'Tax Rates'!$A$3:$A$515,'Tax Rates'!$X$3:$X$515)),0,LOOKUP($C$10,'Tax Rates'!$A$3:$A$515,'Tax Rates'!$X$3:$X$515)) -> 0 | H26: =IF(ISBLANK(LOOKUP($C$10,'Tax Rates'!$A$3:$A$515,'Tax Rates'!$AC$3:$AC$515)),0,LOOKUP($C$10,'Tax Rates'!$A$3:$A$515,'Tax Rates'!$AC$3:$AC$515)) -> 0 | I26: =IF(ISBLANK(LOOKUP($C$10,'Tax Rates'!$A$3:$A$515,'Tax Rates'!$AH$3:$AH$515)),0,LOOKUP($C$10,'Tax Rates'!$A$3:$A$515,'Tax Rates'!$AH$3:$AH$515)) -> 0 | J26: =IF(ISBLANK(LOOKUP($C$10,'Tax Rates'!$A$3:$A$515,'Tax Rates'!$AM$3:$AM$515)),0,LOOKUP($C$10,'Tax Rates'!$A$3:$A$515,'Tax Rates'!$AM$3:$AM$515)) -> 0 | K26: =IF(ISBLANK(LOOKUP($C$10,'Tax Rates'!$A$3:$A$515,'Tax Rates'!$AR$3:$AR$515)),0,LOOKUP($C$10,'Tax Rates'!$A$3:$A$515,'Tax Rates'!$AR$3:$AR$515)) -> 0 | L26: =IF(ISBLANK(LOOKUP($C$10,'Tax Rates'!$A$3:$A$515,'Tax Rates'!$AW$3:$AW$515)),0,LOOKUP($C$10,'Tax Rates'!$A$3:$A$515,'Tax Rates'!$AW$3:$AW$515)) -> 0
A27: 5 | B27: =$B$11 ->  | C27: =IF(ISBLANK(LOOKUP($C$11,'Tax Rates'!$A$3:$A$515,'Tax Rates'!$D$3:$D$515)),0,LOOKUP($C$11,'Tax Rates'!$A$3:$A$515,'Tax Rates'!$D$3:$D$515)) -> 0 | D27: =IF(ISBLANK(LOOKUP($C$11,'Tax Rates'!$A$3:$A$515,'Tax Rates'!$I$3:$I$515)),0,LOOKUP($C$11,'Tax Rates'!$A$3:$A$515,'Tax Rates'!$I$3:$I$515)) -> 0 | E27: =IF(ISBLANK(LOOKUP($C$11,'Tax Rates'!$A$3:$A$515,'Tax Rates'!$N$3:$N$515)),0,LOOKUP($C$11,'Tax Rates'!$A$3:$A$515,'Tax Rates'!$N$3:$N$515)) -> 0 | F27: =IF(ISBLANK(LOOKUP($C$11,'Tax Rates'!$A$3:$A$515,'Tax Rates'!$S$3:$S$515)),0,LOOKUP($C$11,'Tax Rates'!$A$3:$A$515,'Tax Rates'!$S$3:$S$515)) -> 0 | G27: =IF(ISBLANK(LOOKUP($C$11,'Tax Rates'!$A$3:$A$515,'Tax Rates'!$X$3:$X$515)),0,LOOKUP($C$11,'Tax Rates'!$A$3:$A$515,'Tax Rates'!$X$3:$X$515)) -> 0 | H27: =IF(ISBLANK(LOOKUP($C$11,'Tax Rates'!$A$3:$A$515,'Tax Rates'!$AC$3:$AC$515)),0,LOOKUP($C$11,'Tax Rates'!$A$3:$A$515,'Tax Rates'!$AC$3:$AC$515)) -> 0 | I27: =IF(ISBLANK(LOOKUP($C$11,'Tax Rates'!$A$3:$A$515,'Tax Rates'!$AH$3:$AH$515)),0,LOOKUP($C$11,'Tax Rates'!$A$3:$A$515,'Tax Rates'!$AH$3:$AH$515)) -> 0 | J27: =IF(ISBLANK(LOOKUP($C$11,'Tax Rates'!$A$3:$A$515,'Tax Rates'!$AM$3:$AM$515)),0,LOOKUP($C$11,'Tax Rates'!$A$3:$A$515,'Tax Rates'!$AM$3:$AM$515)) -> 0 | K27: =IF(ISBLANK(LOOKUP($C$11,'Tax Rates'!$A$3:$A$515,'Tax Rates'!$AR$3:$AR$515)),0,LOOKUP($C$11,'Tax Rates'!$A$3:$A$515,'Tax Rates'!$AR$3:$AR$515)) -> 0 | L27: =IF(ISBLANK(LOOKUP($C$11,'Tax Rates'!$A$3:$A$515,'Tax Rates'!$AW$3:$AW$515)),0,LOOKUP($C$11,'Tax Rates'!$A$3:$A$515,'Tax Rates'!$AW$3:$AW$515)) -> 0
B29: Credits
B30: Municipality | C30: Credit 1 | D30: Credit 2 | E30: Credit 3 | F30: Credit 4 | G30: Credit 5 | H30: Credit 6 | I30: Credit 7 | J30: Credit 8 | K30: Credit 9 | L30: Credit 10
A31: 1 | B31: =$B$7 ->  | C31: =IF(ISBLANK(LOOKUP($C$7,'Tax Rates'!$A$3:$A$515,'Tax Rates'!$E$3:$E$515)),0,LOOKUP($C$7,'Tax Rates'!$A$3:$A$515,'Tax Rates'!$E$3:$E$515)) -> 0 | D31: =IF(ISBLANK(LOOKUP($C$7,'Tax Rates'!$A$3:$A$515,'Tax Rates'!$J$3:$J$515)),0,LOOKUP($C$7,'Tax Rates'!$A$3:$A$515,'Tax Rates'!$J$3:$J$515)) -> 0 | E31: =IF(ISBLANK(LOOKUP($C$7,'Tax Rates'!$A$3:$A$515,'Tax Rates'!$O$3:$O$515)),0,LOOKUP($C$7,'Tax Rates'!$A$3:$A$515,'Tax Rates'!$O$3:$O$515)) -> 0 | F31: =IF(ISBLANK(LOOKUP($C$7,'Tax Rates'!$A$3:$A$515,'Tax Rates'!$T$3:$T$515)),0,LOOKUP($C$7,'Tax Rates'!$A$3:$A$515,'Tax Rates'!$T$3:$T$515)) -> 0 | G31: =IF(ISBLANK(LOOKUP($C$7,'Tax Rates'!$A$3:$A$515,'Tax Rates'!$Y$3:$Y$515)),0,LOOKUP($C$7,'Tax Rates'!$A$3:$A$515,'Tax Rates'!$Y$3:$Y$515)) -> 0 | H31: =IF(ISBLANK(LOOKUP($C$7,'Tax Rates'!$A$3:$A$515,'Tax Rates'!$AD$3:$AD$515)),0,LOOKUP($C$7,'Tax Rates'!$A$3:$A$515,'Tax Rates'!$AD$3:$AD$515)) -> 0 | I31: =IF(ISBLANK(LOOKUP($C$7,'Tax Rates'!$A$3:$A$515,'Tax Rates'!$AI$3:$AI$515)),0,LOOKUP($C$7,'Tax Rates'!$A$3:$A$515,'Tax Rates'!$AI$3:$AI$515)) -> 0 | J31: =IF(ISBLANK(LOOKUP($C$7,'Tax Rates'!$A$3:$A$515,'Tax Rates'!$AN$3:$AN$515)),0,LOOKUP($C$7,'Tax Rates'!$A$3:$A$515,'Tax Rates'!$AN$3:$AN$515)) -> 0 | K31: =IF(ISBLANK(LOOKUP($C$7,'Tax Rates'!$A$3:$A$515,'Tax Rates'!$AS$3:$AS$515)),0,LOOKUP($C$7,'Tax Rates'!$A$3:$A$515,'Tax Rates'!$AS$3:$AS$515)) -> 0 | L31: =IF(ISBLANK(LOOKUP($C$7,'Tax Rates'!$A$3:$A$515,'Tax Rates'!$AX$3:$AX$515)),0,LOOKUP($C$7,'Tax Rates'!$A$3:$A$515,'Tax Rates'!$AX$3:$AX$515)) -> 0
A32: 2 | B32: =$B$8 ->  | C32: =IF(ISBLANK(LOOKUP($C$8,'Tax Rates'!$A$3:$A$515,'Tax Rates'!$E$3:$E$515)),0,LOOKUP($C$8,'Tax Rates'!$A$3:$A$515,'Tax Rates'!$E$3:$E$515)) -> 0 | D32: =IF(ISBLANK(LOOKUP($C$8,'Tax Rates'!$A$3:$A$515,'Tax Rates'!$J$3:$J$515)),0,LOOKUP($C$8,'Tax Rates'!$A$3:$A$515,'Tax Rates'!$J$3:$J$515)) -> 0 | E32: =IF(ISBLANK(LOOKUP($C$8,'Tax Rates'!$A$3:$A$515,'Tax Rates'!$O$3:$O$515)),0,LOOKUP($C$8,'Tax Rates'!$A$3:$A$515,'Tax Rates'!$O$3:$O$515)) -> 0 | F32: =IF(ISBLANK(LOOKUP($C$8,'Tax Rates'!$A$3:$A$515,'Tax Rates'!$T$3:$T$515)),0,LOOKUP($C$8,'Tax Rates'!$A$3:$A$515,'Tax Rates'!$T$3:$T$515)) -> 0 | G32: =IF(ISBLANK(LOOKUP($C$8,'Tax Rates'!$A$3:$A$515,'Tax Rates'!$Y$3:$Y$515)),0,LOOKUP($C$8,'Tax Rates'!$A$3:$A$515,'Tax Rates'!$Y$3:$Y$515)) -> 0 | H32: =IF(ISBLANK(LOOKUP($C$8,'Tax Rates'!$A$3:$A$515,'Tax Rates'!$AD$3:$AD$515)),0,LOOKUP($C$8,'Tax Rates'!$A$3:$A$515,'Tax Rates'!$AD$3:$AD$515)) -> 0 | I32: =IF(ISBLANK(LOOKUP($C$8,'Tax Rates'!$A$3:$A$515,'Tax Rates'!$AI$3:$AI$515)),0,LOOKUP($C$8,'Tax Rates'!$A$3:$A$515,'Tax Rates'!$AI$3:$AI$515)) -> 0 | J32: =IF(ISBLANK(LOOKUP($C$8,'Tax Rates'!$A$3:$A$515,'Tax Rates'!$AN$3:$AN$515)),0,LOOKUP($C$8,'Tax Rates'!$A$3:$A$515,'Tax Rates'!$AN$3:$AN$515)) -> 0 | K32: =IF(ISBLANK(LOOKUP($C$8,'Tax Rates'!$A$3:$A$515,'Tax Rates'!$AS$3:$AS$515)),0,LOOKUP($C$8,'Tax Rates'!$A$3:$A$515,'Tax Rates'!$AS$3:$AS$515)) -> 0 | L32: =IF(ISBLANK(LOOKUP($C$8,'Tax Rates'!$A$3:$A$515,'Tax Rates'!$AX$3:$AX$515)),0,LOOKUP($C$8,'Tax Rates'!$A$3:$A$515,'Tax Rates'!$AX$3:$AX$515)) -> 0
A33: 3 | B33: =$B$9 ->  | C33: =IF(ISBLANK(LOOKUP($C$9,'Tax Rates'!$A$3:$A$515,'Tax Rates'!$E$3:$E$515)),0,LOOKUP($C$9,'Tax Rates'!$A$3:$A$515,'Tax Rates'!$E$3:$E$515)) -> 0 | D33: =IF(ISBLANK(LOOKUP($C$9,'Tax Rates'!$A$3:$A$515,'Tax Rates'!$J$3:$J$515)),0,LOOKUP($C$9,'Tax Rates'!$A$3:$A$515,'Tax Rates'!$J$3:$J$515)) -> 0 | E33: =IF(ISBLANK(LOOKUP($C$9,'Tax Rates'!$A$3:$A$515,'Tax Rates'!$O$3:$O$515)),0,LOOKUP($C$9,'Tax Rates'!$A$3:$A$515,'Tax Rates'!$O$3:$O$515)) -> 0 | F33: =IF(ISBLANK(LOOKUP($C$9,'Tax Rates'!$A$3:$A$515,'Tax Rates'!$T$3:$T$515)),0,LOOKUP($C$9,'Tax Rates'!$A$3:$A$515,'Tax Rates'!$T$3:$T$515)) -> 0 | G33: =IF(ISBLANK(LOOKUP($C$9,'Tax Rates'!$A$3:$A$515,'Tax Rates'!$Y$3:$Y$515)),0,LOOKUP($C$9,'Tax Rates'!$A$3:$A$515,'Tax Rates'!$Y$3:$Y$515)) -> 0 | H33: =IF(ISBLANK(LOOKUP($C$9,'Tax Rates'!$A$3:$A$515,'Tax Rates'!$AD$3:$AD$515)),0,LOOKUP($C$9,'Tax Rates'!$A$3:$A$515,'Tax Rates'!$AD$3:$AD$515)) -> 0 | I33: =IF(ISBLANK(LOOKUP($C$9,'Tax Rates'!$A$3:$A$515,'Tax Rates'!$AI$3:$AI$515)),0,LOOKUP($C$9,'Tax Rates'!$A$3:$A$515,'Tax Rates'!$AI$3:$AI$515)) -> 0 | J33: =IF(ISBLANK(LOOKUP($C$9,'Tax Rates'!$A$3:$A$515,'Tax Rates'!$AN$3:$AN$515)),0,LOOKUP($C$9,'Tax Rates'!$A$3:$A$515,'Tax Rates'!$AN$3:$AN$515)) -> 0 | K33: =IF(ISBLANK(LOOKUP($C$9,'Tax Rates'!$A$3:$A$515,'Tax Rates'!$AS$3:$AS$515)),0,LOOKUP($C$9,'Tax Rates'!$A$3:$A$515,'Tax Rates'!$AS$3:$AS$515)) -> 0 | L33: =IF(ISBLANK(LOOKUP($C$9,'Tax Rates'!$A$3:$A$515,'Tax Rates'!$AX$3:$AX$515)),0,LOOKUP($C$9,'Tax Rates'!$A$3:$A$515,'Tax Rates'!$AX$3:$AX$515)) -> 0
A34: 4 | B34: =$B$10 ->  | C34: =IF(ISBLANK(LOOKUP($C$10,'Tax Rates'!$A$3:$A$515,'Tax Rates'!$E$3:$E$515)),0,LOOKUP($C$10,'Tax Rates'!$A$3:$A$515,'Tax Rates'!$E$3:$E$515)) -> 0 | D34: =IF(ISBLANK(LOOKUP($C$10,'Tax Rates'!$A$3:$A$515,'Tax Rates'!$J$3:$J$515)),0,LOOKUP($C$10,'Tax Rates'!$A$3:$A$515,'Tax Rates'!$J$3:$J$515)) -> 0 | E34: =IF(ISBLANK(LOOKUP($C$10,'Tax Rates'!$A$3:$A$515,'Tax Rates'!$O$3:$O$515)),0,LOOKUP($C$10,'Tax Rates'!$A$3:$A$515,'Tax Rates'!$O$3:$O$515)) -> 0 | F34: =IF(ISBLANK(LOOKUP($C$10,'Tax Rates'!$A$3:$A$515,'Tax Rates'!$T$3:$T$515)),0,LOOKUP($C$10,'Tax Rates'!$A$3:$A$515,'Tax Rates'!$T$3:$T$515)) -> 0 | G34: =IF(ISBLANK(LOOKUP($C$10,'Tax Rates'!$A$3:$A$515,'Tax Rates'!$Y$3:$Y$515)),0,LOOKUP($C$10,'Tax Rates'!$A$3:$A$515,'Tax Rates'!$Y$3:$Y$515)) -> 0 | H34: =IF(ISBLANK(LOOKUP($C$10,'Tax Rates'!$A$3:$A$515,'Tax Rates'!$AD$3:$AD$515)),0,LOOKUP($C$10,'Tax Rates'!$A$3:$A$515,'Tax Rates'!$AD$3:$AD$515)) -> 0 | I34: =IF(ISBLANK(LOOKUP($C$10,'Tax Rates'!$A$3:$A$515,'Tax Rates'!$AI$3:$AI$515)),0,LOOKUP($C$10,'Tax Rates'!$A$3:$A$515,'Tax Rates'!$AI$3:$AI$515)) -> 0 | J34: =IF(ISBLANK(LOOKUP($C$10,'Tax Rates'!$A$3:$A$515,'Tax Rates'!$AN$3:$AN$515)),0,LOOKUP($C$10,'Tax Rates'!$A$3:$A$515,'Tax Rates'!$AN$3:$AN$515)) -> 0 | K34: =IF(ISBLANK(LOOKUP($C$10,'Tax Rates'!$A$3:$A$515,'Tax Rates'!$AS$3:$AS$515)),0,LOOKUP($C$10,'Tax Rates'!$A$3:$A$515,'Tax Rates'!$AS$3:$AS$515)) -> 0 | L34: =IF(ISBLANK(LOOKUP($C$10,'Tax Rates'!$A$3:$A$515,'Tax Rates'!$AX$3:$AX$515)),0,LOOKUP($C$10,'Tax Rates'!$A$3:$A$515,'Tax Rates'!$AX$3:$AX$515)) -> 0
A35: 5 | B35: =$B$11 ->  | C35: =IF(ISBLANK(LOOKUP($C$11,'Tax Rates'!$A$3:$A$515,'Tax Rates'!$E$3:$E$515)),0,LOOKUP($C$11,'Tax Rates'!$A$3:$A$515,'Tax Rates'!$E$3:$E$515)) -> 0 | D35: =IF(ISBLANK(LOOKUP($C$11,'Tax Rates'!$A$3:$A$515,'Tax Rates'!$J$3:$J$515)),0,LOOKUP($C$11,'Tax Rates'!$A$3:$A$515,'Tax Rates'!$J$3:$J$515)) -> 0 | E35: =IF(ISBLANK(LOOKUP($C$11,'Tax Rates'!$A$3:$A$515,'Tax Rates'!$O$3:$O$515)),0,LOOKUP($C$11,'Tax Rates'!$A$3:$A$515,'Tax Rates'!$O$3:$O$515)) -> 0 | F35: =IF(ISBLANK(LOOKUP($C$11,'Tax Rates'!$A$3:$A$515,'Tax Rates'!$T$3:$T$515)),0,LOOKUP($C$11,'Tax Rates'!$A$3:$A$515,'Tax Rates'!$T$3:$T$515)) -> 0 | G35: =IF(ISBLANK(LOOKUP($C$11,'Tax Rates'!$A$3:$A$515,'Tax Rates'!$Y$3:$Y$515)),0,LOOKUP($C$11,'Tax Rates'!$A$3:$A$515,'Tax Rates'!$Y$3:$Y$515)) -> 0 | H35: =IF(ISBLANK(LOOKUP($C$11,'Tax Rates'!$A$3:$A$515,'Tax Rates'!$AD$3:$AD$515)),0,LOOKUP($C$11,'Tax Rates'!$A$3:$A$515,'Tax Rates'!$AD$3:$AD$515)) -> 0 | I35: =IF(ISBLANK(LOOKUP($C$11,'Tax Rates'!$A$3:$A$515,'Tax Rates'!$AI$3:$AI$515)),0,LOOKUP($C$11,'Tax Rates'!$A$3:$A$515,'Tax Rates'!$AI$3:$AI$515)) -> 0 | J35: =IF(ISBLANK(LOOKUP($C$11,'Tax Rates'!$A$3:$A$515,'Tax Rates'!$AN$3:$AN$515)),0,LOOKUP($C$11,'Tax Rates'!$A$3:$A$515,'Tax Rates'!$AN$3:$AN$515)) -> 0 | K35: =IF(ISBLANK(LOOKUP($C$11,'Tax Rates'!$A$3:$A$515,'Tax Rates'!$AS$3:$AS$515)),0,LOOKUP($C$11,'Tax Rates'!$A$3:$A$515,'Tax Rates'!$AS$3:$AS$515)) -> 0 | L35: =IF(ISBLANK(LOOKUP($C$11,'Tax Rates'!$A$3:$A$515,'Tax Rates'!$AX$3:$AX$515)),0,LOOKUP($C$11,'Tax Rates'!$A$3:$A$515,'Tax Rates'!$AX$3:$AX$515)) -> 0
B37: Credit Limits
B38: Municipality | C38: Cr Limit 1 | D38: Cr Limit 2 | E38: Cr Limit 3 | F38: Cr Limit 4 | G38: Cr Limit 5 | H38: Cr Limit 6 | I38: Cr Limit 7 | J38: Cr Limit 8 | K38: Cr Limit 9 | L38: Cr Limit 10
A39: 1 | B39: =$B$7 ->  | C39: =IF(ISBLANK(LOOKUP($C$7,'Tax Rates'!$A$3:$A$515,'Tax Rates'!$F$3:$F$515)),0,LOOKUP($C$7,'Tax Rates'!$A$3:$A$515,'Tax Rates'!$F$3:$F$515)) -> 0 | D39: =IF(ISBLANK(LOOKUP($C$7,'Tax Rates'!$A$3:$A$515,'Tax Rates'!$K$3:$K$515)),0,LOOKUP($C$7,'Tax Rates'!$A$3:$A$515,'Tax Rates'!$K$3:$K$515)) -> 0 | E39: =IF(ISBLANK(LOOKUP($C$7,'Tax Rates'!$A$3:$A$515,'Tax Rates'!$P$3:$P$515)),0,LOOKUP($C$7,'Tax Rates'!$A$3:$A$515,'Tax Rates'!$P$3:$P$515)) -> 0 | F39: =IF(ISBLANK(LOOKUP($C$7,'Tax Rates'!$A$3:$A$515,'Tax Rates'!$U$3:$U$515)),0,LOOKUP($C$7,'Tax Rates'!$A$3:$A$515,'Tax Rates'!$U$3:$U$515)) -> 0 | G39: =IF(ISBLANK(LOOKUP($C$7,'Tax Rates'!$A$3:$A$515,'Tax Rates'!$Z$3:$Z$515)),0,LOOKUP($C$7,'Tax Rates'!$A$3:$A$515,'Tax Rates'!$Z$3:$Z$515)) -> 0 | H39: =IF(ISBLANK(LOOKUP($C$7,'Tax Rates'!$A$3:$A$515,'Tax Rates'!$AE$3:$AE$515)),0,LOOKUP($C$7,'Tax Rates'!$A$3:$A$515,'Tax Rates'!$AE$3:$AE$515)) -> 0 | I39: =IF(ISBLANK(LOOKUP($C$7,'Tax Rates'!$A$3:$A$515,'Tax Rates'!$AJ$3:$AJ$515)),0,LOOKUP($C$7,'Tax Rates'!$A$3:$A$515,'Tax Rates'!$AJ$3:$AJ$515)) -> 0 | J39: =IF(ISBLANK(LOOKUP($C$7,'Tax Rates'!$A$3:$A$515,'Tax Rates'!$AO$3:$AO$515)),0,LOOKUP($C$7,'Tax Rates'!$A$3:$A$515,'Tax Rates'!$AO$3:$AO$515)) -> 0 | K39: =IF(ISBLANK(LOOKUP($C$7,'Tax Rates'!$A$3:$A$515,'Tax Rates'!$AT$3:$AT$515)),0,LOOKUP($C$7,'Tax Rates'!$A$3:$A$515,'Tax Rates'!$AT$3:$AT$515)) -> 0 | L39: =IF(ISBLANK(LOOKUP($C$7,'Tax Rates'!$A$3:$A$515,'Tax Rates'!$AY$3:$AY$515)),0,LOOKUP($C$7,'Tax Rates'!$A$3:$A$515,'Tax Rates'!$AY$3:$AY$515)) -> 0
A40: 2 | B40: =$B$8 ->  | C40: =IF(ISBLANK(LOOKUP($C$8,'Tax Rates'!$A$3:$A$515,'Tax Rates'!$F$3:$F$515)),0,LOOKUP($C$8,'Tax Rates'!$A$3:$A$515,'Tax Rates'!$F$3:$F$515)) -> 0 | D40: =IF(ISBLANK(LOOKUP($C$8,'Tax Rates'!$A$3:$A$515,'Tax Rates'!$K$3:$K$515)),0,LOOKUP($C$8,'Tax Rates'!$A$3:$A$515,'Tax Rates'!$K$3:$K$515)) -> 0 | E40: =IF(ISBLANK(LOOKUP($C$8,'Tax Rates'!$A$3:$A$515,'Tax Rates'!$P$3:$P$515)),0,LOOKUP($C$8,'Tax Rates'!$A$3:$A$515,'Tax Rates'!$P$3:$P$515)) -> 0 | F40: =IF(ISBLANK(LOOKUP($C$8,'Tax Rates'!$A$3:$A$515,'Tax Rates'!$U$3:$U$515)),0,LOOKUP($C$8,'Tax Rates'!$A$3:$A$515,'Tax Rates'!$U$3:$U$515)) -> 0 | G40: =IF(ISBLANK(LOOKUP($C$8,'Tax Rates'!$A$3:$A$515,'Tax Rates'!$Z$3:$Z$515)),0,LOOKUP($C$8,'Tax Rates'!$A$3:$A$515,'Tax Rates'!$Z$3:$Z$515)) -> 0 | H40: =IF(ISBLANK(LOOKUP($C$8,'Tax Rates'!$A$3:$A$515,'Tax Rates'!$AE$3:$AE$515)),0,LOOKUP($C$8,'Tax Rates'!$A$3:$A$515,'Tax Rates'!$AE$3:$AE$515)) -> 0 | I40: =IF(ISBLANK(LOOKUP($C$8,'Tax Rates'!$A$3:$A$515,'Tax Rates'!$AJ$3:$AJ$515)),0,LOOKUP($C$8,'Tax Rates'!$A$3:$A$515,'Tax Rates'!$AJ$3:$AJ$515)) -> 0 | J40: =IF(ISBLANK(LOOKUP($C$8,'Tax Rates'!$A$3:$A$515,'Tax Rates'!$AO$3:$AO$515)),0,LOOKUP($C$8,'Tax Rates'!$A$3:$A$515,'Tax Rates'!$AO$3:$AO$515)) -> 0 | K40: =IF(ISBLANK(LOOKUP($C$8,'Tax Rates'!$A$3:$A$515,'Tax Rates'!$AT$3:$AT$515)),0,LOOKUP($C$8,'Tax Rates'!$A$3:$A$515,'Tax Rates'!$AT$3:$AT$515)) -> 0 | L40: =IF(ISBLANK(LOOKUP($C$8,'Tax Rates'!$A$3:$A$515,'Tax Rates'!$AY$3:$AY$515)),0,LOOKUP($C$8,'Tax Rates'!$A$3:$A$515,'Tax Rates'!$AY$3:$AY$515)) -> 0
A41: 3 | B41: =$B$9 ->  | C41: =IF(ISBLANK(LOOKUP($C$9,'Tax Rates'!$A$3:$A$515,'Tax Rates'!$F$3:$F$515)),0,LOOKUP($C$9,'Tax Rates'!$A$3:$A$515,'Tax Rates'!$F$3:$F$515)) -> 0 | D41: =IF(ISBLANK(LOOKUP($C$9,'Tax Rates'!$A$3:$A$515,'Tax Rates'!$K$3:$K$515)),0,LOOKUP($C$9,'Tax Rates'!$A$3:$A$515,'Tax Rates'!$K$3:$K$515)) -> 0 | E41: =IF(ISBLANK(LOOKUP($C$9,'Tax Rates'!$A$3:$A$515,'Tax Rates'!$P$3:$P$515)),0,LOOKUP($C$9,'Tax Rates'!$A$3:$A$515,'Tax Rates'!$P$3:$P$515)) -> 0 | F41: =IF(ISBLANK(LOOKUP($C$9,'Tax Rates'!$A$3:$A$515,'Tax Rates'!$U$3:$U$515)),0,LOOKUP($C$9,'Tax Rates'!$A$3:$A$515,'Tax Rates'!$U$3:$U$515)) -> 0 | G41: =IF(ISBLANK(LOOKUP($C$9,'Tax Rates'!$A$3:$A$515,'Tax Rates'!$Z$3:$Z$515)),0,LOOKUP($C$9,'Tax Rates'!$A$3:$A$515,'Tax Rates'!$Z$3:$Z$515)) -> 0 | H41: =IF(ISBLANK(LOOKUP($C$9,'Tax Rates'!$A$3:$A$515,'Tax Rates'!$AE$3:$AE$515)),0,LOOKUP($C$9,'Tax Rates'!$A$3:$A$515,'Tax Rates'!$AE$3:$AE$515)) -> 0 | I41: =IF(ISBLANK(LOOKUP($C$9,'Tax Rates'!$A$3:$A$515,'Tax Rates'!$AJ$3:$AJ$515)),0,LOOKUP($C$9,'Tax Rates'!$A$3:$A$515,'Tax Rates'!$AJ$3:$AJ$515)) -> 0 | J41: =IF(ISBLANK(LOOKUP($C$9,'Tax Rates'!$A$3:$A$515,'Tax Rates'!$AO$3:$AO$515)),0,LOOKUP($C$9,'Tax Rates'!$A$3:$A$515,'Tax Rates'!$AO$3:$AO$515)) -> 0 | K41: =IF(ISBLANK(LOOKUP($C$9,'Tax Rates'!$A$3:$A$515,'Tax Rates'!$AT$3:$AT$515)),0,LOOKUP($C$9,'Tax Rates'!$A$3:$A$515,'Tax Rates'!$AT$3:$AT$515)) -> 0 | L41: =IF(ISBLANK(LOOKUP($C$9,'Tax Rates'!$A$3:$A$515,'Tax Rates'!$AY$3:$AY$515)),0,LOOKUP($C$9,'Tax Rates'!$A$3:$A$515,'Tax Rates'!$AY$3:$AY$515)) -> 0
A42: 4 | B42: =$B$10 ->  | C42: =IF(ISBLANK(LOOKUP($C$10,'Tax Rates'!$A$3:$A$515,'Tax Rates'!$F$3:$F$515)),0,LOOKUP($C$10,'Tax Rates'!$A$3:$A$515,'Tax Rates'!$F$3:$F$515)) -> 0 | D42: =IF(ISBLANK(LOOKUP($C$10,'Tax Rates'!$A$3:$A$515,'Tax Rates'!$K$3:$K$515)),0,LOOKUP($C$10,'Tax Rates'!$A$3:$A$515,'Tax Rates'!$K$3:$K$515)) -> 0 | E42: =IF(ISBLANK(LOOKUP($C$10,'Tax Rates'!$A$3:$A$515,'Tax Rates'!$P$3:$P$515)),0,LOOKUP($C$10,'Tax Rates'!$A$3:$A$515,'Tax Rates'!$P$3:$P$515)) -> 0 | F42: =IF(ISBLANK(LOOKUP($C$10,'Tax Rates'!$A$3:$A$515,'Tax Rates'!$U$3:$U$515)),0,LOOKUP($C$10,'Tax Rates'!$A$3:$A$515,'Tax Rates'!$U$3:$U$515)) -> 0 | G42: =IF(ISBLANK(LOOKUP($C$10,'Tax Rates'!$A$3:$A$515,'Tax Rates'!$Z$3:$Z$515)),0,LOOKUP($C$10,'Tax Rates'!$A$3:$A$515,'Tax Rates'!$Z$3:$Z$515)) -> 0 | H42: =IF(ISBLANK(LOOKUP($C$10,'Tax Rates'!$A$3:$A$515,'Tax Rates'!$AE$3:$AE$515)),0,LOOKUP($C$10,'Tax Rates'!$A$3:$A$515,'Tax Rates'!$AE$3:$AE$515)) -> 0 | I42: =IF(ISBLANK(LOOKUP($C$10,'Tax Rates'!$A$3:$A$515,'Tax Rates'!$AJ$3:$AJ$515)),0,LOOKUP($C$10,'Tax Rates'!$A$3:$A$515,'Tax Rates'!$AJ$3:$AJ$515)) -> 0 | J42: =IF(ISBLANK(LOOKUP($C$10,'Tax Rates'!$A$3:$A$515,'Tax Rates'!$AO$3:$AO$515)),0,LOOKUP($C$10,'Tax Rates'!$A$3:$A$515,'Tax Rates'!$AO$3:$AO$515)) -> 0 | K42: =IF(ISBLANK(LOOKUP($C$10,'Tax Rates'!$A$3:$A$515,'Tax Rates'!$AT$3:$AT$515)),0,LOOKUP($C$10,'Tax Rates'!$A$3:$A$515,'Tax Rates'!$AT$3:$AT$515)) -> 0 | L42: =IF(ISBLANK(LOOKUP($C$10,'Tax Rates'!$A$3:$A$515,'Tax Rates'!$AY$3:$AY$515)),0,LOOKUP($C$10,'Tax Rates'!$A$3:$A$515,'Tax Rates'!$AY$3:$AY$515)) -> 0
A43: 5 | B43: =$B$11 ->  | C43: =IF(ISBLANK(LOOKUP($C$11,'Tax Rates'!$A$3:$A$515,'Tax Rates'!$F$3:$F$515)),0,LOOKUP($C$11,'Tax Rates'!$A$3:$A$515,'Tax Rates'!$F$3:$F$515)) -> 0 | D43: =IF(ISBLANK(LOOKUP($C$11,'Tax Rates'!$A$3:$A$515,'Tax Rates'!$K$3:$K$515)),0,LOOKUP($C$11,'Tax Rates'!$A$3:$A$515,'Tax Rates'!$K$3:$K$515)) -> 0 | E43: =IF(ISBLANK(LOOKUP($C$11,'Tax Rates'!$A$3:$A$515,'Tax Rates'!$P$3:$P$515)),0,LOOKUP($C$11,'Tax Rates'!$A$3:$A$515,'Tax Rates'!$P$3:$P$515)) -> 0 | F43: =IF(ISBLANK(LOOKUP($C$11,'Tax Rates'!$A$3:$A$515,'Tax Rates'!$U$3:$U$515)),0,LOOKUP($C$11,'Tax Rates'!$A$3:$A$515,'Tax Rates'!$U$3:$U$515)) -> 0 | G43: =IF(ISBLANK(LOOKUP($C$11,'Tax Rates'!$A$3:$A$515,'Tax Rates'!$Z$3:$Z$515)),0,LOOKUP($C$11,'Tax Rates'!$A$3:$A$515,'Tax Rates'!$Z$3:$Z$515)) -> 0 | H43: =IF(ISBLANK(LOOKUP($C$11,'Tax Rates'!$A$3:$A$515,'Tax Rates'!$AE$3:$AE$515)),0,LOOKUP($C$11,'Tax Rates'!$A$3:$A$515,'Tax Rates'!$AE$3:$AE$515)) -> 0 | I43: =IF(ISBLANK(LOOKUP($C$11,'Tax Rates'!$A$3:$A$515,'Tax Rates'!$AJ$3:$AJ$515)),0,LOOKUP($C$11,'Tax Rates'!$A$3:$A$515,'Tax Rates'!$AJ$3:$AJ$515)) -> 0 | J43: =IF(ISBLANK(LOOKUP($C$11,'Tax Rates'!$A$3:$A$515,'Tax Rates'!$AO$3:$AO$515)),0,LOOKUP($C$11,'Tax Rates'!$A$3:$A$515,'Tax Rates'!$AO$3:$AO$515)) -> 0 | K43: =IF(ISBLANK(LOOKUP($C$11,'Tax Rates'!$A$3:$A$515,'Tax Rates'!$AT$3:$AT$515)),0,LOOKUP($C$11,'Tax Rates'!$A$3:$A$515,'Tax Rates'!$AT$3:$AT$515)) -> 0 | L43: =IF(ISBLANK(LOOKUP($C$11,'Tax Rates'!$A$3:$A$515,'Tax Rates'!$AY$3:$AY$515)),0,LOOKUP($C$11,'Tax Rates'!$A$3:$A$515,'Tax Rates'!$AY$3:$AY$515)) -> 0

Sheet Data (hidden)
A1: Business Type | C1: Error Check | E1: Form 27 Mod 1 | J1: 2011 Form Revisions Schedule Y Checks
A2: C Corporation | B2: =IF(OR(B12=TRUE,B13=TRUE),TRUE,FALSE) -> FALSE | C2: =IF(B2=TRUE,1,0) -> 0 | E2: (Per attached Federal Form 1120 (Page 1, Line 28)) | J2: Municipality | K2: Prop | L2: Wage | M2: Sales | N2: Total | O2: Avg %
A3: S Corporation | B3: =B15 -> FALSE | C3: =IF(B3=TRUE,1,0) -> 0 | E3: (Per attached Federal Form 1120S (Schedule K, Line 18)) | J3: =+'Print Return'!B210 ->  | K3: =IF('Print Return'!H210="",0,'Print Return'!H210) -> 0 | L3: =IF('Print Return'!J210="",0,'Print Return'!J210) -> 0 | M3: =IF('Print Return'!M210="",0,'Print Return'!M210) -> 0 | N3: =SUM(K3:M3) -> 0 | O3: =IF('Print Return'!L$205 <>0, ROUND(N3/'Print Return'!L$205,6), 0) -> 0
A4: Partnership | B4: FALSE | C4: =IF(B4=TRUE,1,0) -> 0 | E4: (Per attached Federal Form 1065 (Analysis of Net Income (Loss), line 1)) | J4: =+'Print Return'!B211 ->  | K4: =IF('Print Return'!H211="",0,'Print Return'!H211) -> 0 | L4: =IF('Print Return'!J211="",0,'Print Return'!J211) -> 0 | M4: =IF('Print Return'!M211="",0,'Print Return'!M211) -> 0 | N4: =SUM(K4:M4) -> 0 | O4: =IF('Print Return'!L$205 <>0, ROUND(N4/'Print Return'!L$205,6), 0) -> 0
A5: Other | B5: =IF(OR(B10=TRUE,B14=TRUE,B16=TRUE),TRUE,FALSE) -> FALSE | C5: =IF(B5=TRUE,1,0) -> 0 | E5: (Per attached Federal Form 1120 (Page 1, Line 28) or the equivalent) | J5: =+'Print Return'!B212 ->  | K5: =IF('Print Return'!H212="",0,'Print Return'!H212) -> 0 | L5: =IF('Print Return'!J212="",0,'Print Return'!J212) -> 0 | M5: =IF('Print Return'!M212="",0,'Print Return'!M212) -> 0 | N5: =SUM(K5:M5) -> 0 | O5: =IF('Print Return'!L$205 <>0, ROUND(N5/'Print Return'!L$205,6), 0) -> 0
A6: Error Check | B6: =COUNTIF(B2:B5,TRUE) -> 0 | C6: =SUM(C2:C5) -> 0 | E6: =IF(OR(B12=TRUE,B13=TRUE),E2,"(From the Federal Taxable Income Worksheet on Page 3)") -> (From the Federal Taxable Income Worksheet on Page 3) | J6: =+'Print Return'!B213 ->  | K6: =IF('Print Return'!H213="",0,'Print Return'!H213) -> 0 | L6: =IF('Print Return'!J213="",0,'Print Return'!J213) -> 0 | M6: =IF('Print Return'!M213="",0,'Print Return'!M213) -> 0 | N6: =SUM(K6:M6) -> 0 | O6: =IF('Print Return'!L$205 <>0, ROUND(N6/'Print Return'!L$205,6), 0) -> 0
J7: =+'Print Return'!B214 ->  | K7: =IF('Print Return'!H214="",0,'Print Return'!H214) -> 0 | L7: =IF('Print Return'!J214="",0,'Print Return'!J214) -> 0 | M7: =IF('Print Return'!M214="",0,'Print Return'!M214) -> 0 | N7: =SUM(K7:M7) -> 0 | O7: =IF('Print Return'!L$205 <>0, ROUND(N7/'Print Return'!L$205,6), 0) -> 0
A8: Federal Filing | O8: =IF('Print Return'!L$205 <>0, ROUND(N8/'Print Return'!L$205,6), 0) -> 0
A9: 1040 | B9: FALSE | E9: Is C-Corp? | F9: =IF(OR(B12=TRUE,B13=TRUE),TRUE,FALSE) -> FALSE
A10: 1041 | B10: FALSE | C10: Link to above
A11: 1065 | B11: FALSE | C11: to set check
A12: 1120 | B12: FALSE | C12: on printed
A13: 1120-A | B13: FALSE | C13: form after
A14: 1120-REIT | B14: FALSE | C14: locking print
A15: 1120S | B15: FALSE | C15: form
A16: Other | B16: FALSE
A17: Error Check | B17: =COUNTIF(B9:B16,TRUE) -> 0
A18: Error Message 0 | B18: No federal filing Business Type selected.
A19: Error Message >1 | B19: Too many federal filing Business types selected.
A20: Error Selected | B20: =IF(B17=0,B18,IF(B17>1,B19,IF(B9=TRUE,"Do not file on Form 27. File using Form 37.",""))) -> No federal filing Business Type selected.
A21: Small Business | B21: FALSE
A22: Amended? | B22: FALSE | E22: May RITA discuss this return with your preparer? -> | F22: FALSE | G22: FALSE
A23: Initial RITA Rtn? | B23: FALSE
A24: ORC 718.021 Election? | B24: FALSE
A25: Overpymt Credit? | B25: FALSE
A26: Overpymt Refund? | B26: FALSE
A27: Error Check | B27: =COUNTIF(B25:B26,TRUE) -> 0
A28: Error Message 0 | B28: You must choose whether to apply your overpayment as credit or have it refunded.
A29: Error Message >1 | B29: You cannot choose both a refund and a credit
A30: Error Selected | B30: =IF(AND(B66>0,B27=0),B28,IF(AND(B66>0,B27>1),B29,"")) -> 
A31: PRE-APPORTIONED LOSSES? | B31: FALSE
A32: Allocations | B32: Index # | C32: NOL Yrs | E32: Warning Formulas are here (really, they are) | F32: No NOL City Names | G32: 3yr NOL Cities | H32: 1yr NOL Cities | I32: Error Message
A33: City Index 1 | B33: ='Tax Rate Calc'!$C7 -> 1 | C33: =LOOKUP($B$33,Cities!$A$3:$A$453,Cities!$AC$3:$AC$453) -> 0 | D33: FALSE | E33: =IF(References!$C$1<2023,IF(AND(B33<>1,C33=0),CONCATENATE(A40,": Net operating loss carryovers not permitted."),IF(C33=3,CONCATENATE(A40,": Net operating loss carryovers restricted to three (3) years."),IF(C33=3000,CONCATENATE(A40,": Only the first $3,000 of a year's loss may be carried over as an NOL (5yrs)."),IF(C33=1,CONCATENATE(A40,": Net operating loss carryovers restricted to one (1) year."),"")))),"") ->  | F33: =IF(AND(B33>1,C33=0),A40,"") ->  | G33: =IF(AND(B33>1,C33=3),A40,"") ->  | H33: =IF(AND(B33>1,C33=1),A40,"") ->  | I33: ='Tax Rate Calc'!$N$7 -> 
A34: City Index 2 | B34: ='Tax Rate Calc'!$C8 -> 1 | C34: =LOOKUP(B34,Cities!A$3:A$453,Cities!AC$3:AC$453) -> 0 | D34: FALSE | E34: =IF(References!$C$1<2023,IF(AND(B34<>1,C34=0),CONCATENATE(A41,": Net operating loss carryovers not permitted."),IF(C34=3,CONCATENATE(A41,": Net operating loss carryovers restricted to three (3) years."),IF(C34=3000,CONCATENATE(A41,": Only the first $3,000 of a year's loss may be carried over as an NOL (5yrs)."),IF(C34=1,CONCATENATE(A41,": Net operating loss carryovers restricted to one (1) year."),"")))),"") ->  | F34: =IF(AND(B34>1,C34=0),A41,"") ->  | G34: =IF(AND(B34>1,C34=3),A41,"") ->  | H34: =IF(AND(B34>1,C34=1),A41,"") ->  | I34: ='Tax Rate Calc'!$N$8 -> 
A35: City Index 3 | B35: ='Tax Rate Calc'!$C9 -> 1 | C35: =LOOKUP(B35,Cities!A$3:A$453,Cities!AC$3:AC$453) -> 0 | D35: FALSE | E35: =IF(References!$C$1<2023,IF(AND(B35<>1,C35=0),CONCATENATE(A42,": Net operating loss carryovers not permitted."),IF(C35=3,CONCATENATE(A42,": Net operating loss carryovers restricted to three (3) years."),IF(C35=3000,CONCATENATE(A42,": Only the first $3,000 of a year's loss may be carried over as an NOL (5yrs)."),IF(C35=1,CONCATENATE(A42,": Net operating loss carryovers restricted to one (1) year."),"")))),"") ->  | F35: =IF(AND(B35>1,C35=0),A42,"") ->  | G35: =IF(AND(B35>1,C35=3),A42,"") ->  | H35: =IF(AND(B35>1,C35=1),A42,"") ->  | I35: ='Tax Rate Calc'!$N$9 -> 
A36: City Index 4 | B36: ='Tax Rate Calc'!$C10 -> 1 | C36: =LOOKUP(B36,Cities!A$3:A$453,Cities!AC$3:AC$453) -> 0 | D36: FALSE | E36: =IF(References!$C$1<2023,IF(AND(B36<>1,C36=0),CONCATENATE(A43,": Net operating loss carryovers not permitted."),IF(C36=3,CONCATENATE(A43,": Net operating loss carryovers restricted to three (3) years."),IF(C36=3000,CONCATENATE(A43,": Only the first $3,000 of a year's loss may be carried over as an NOL (5yrs)."),IF(C36=1,CONCATENATE(A43,": Net operating loss carryovers restricted to one (1) year."),"")))),"") ->  | F36: =IF(AND(B36>1,C36=0),A43,"") ->  | G36: =IF(AND(B36>1,C36=3),A43,"") ->  | H36: =IF(AND(B36>1,C36=1),A43,"") ->  | I36: ='Tax Rate Calc'!$N$10 -> 
A37: City Index 5 | B37: ='Tax Rate Calc'!$C11 -> 1 | C37: =LOOKUP(B37,Cities!A$3:A$453,Cities!AC$3:AC$453) -> 0 | D37: FALSE | E37: =IF(References!$C$1<2023,IF(AND(B37<>1,C37=0),CONCATENATE(A44,": Net operating loss carryovers not permitted."),IF(C37=3,CONCATENATE(A44,": Net operating loss carryovers restricted to three (3) years."),IF(C37=3000,CONCATENATE(A44,": Only the first $3,000 of a year's loss may be carried over as an NOL (5yrs)."),IF(C37=1,CONCATENATE(A44,": Net operating loss carryovers restricted to one (1) year."),"")))),"") ->  | F37: =IF(AND(B37>1,C37=0),A44,"") ->  | G37: =IF(AND(B37>1,C37=3),A44,"") ->  | H37: =IF(AND(B37>1,C37=1),A44,"") ->  | I37: ='Tax Rate Calc'!$N$11 -> 
A38: No City if this = 5 | B38: =SUM(B33:B37) -> 5
A39: City Names Below | F39: Build NOL City Name Strings are in yellow highlighted cells below
A40: =LOOKUP($B33,Cities!$A$2:$A$453,Cities!$C$2:$C$453) -> 0 | B40: =LOOKUP($B33,Cities!$A$3:$A$453,Cities!$AH$3:$AH$453) -> 0 | C40: Index Total: | D40: =B38 -> 5
A41: =LOOKUP($B34,Cities!$A$3:$A$453,Cities!$C$3:$C$453) -> 0 | B41: =LOOKUP($B34,Cities!$A$3:$A$453,Cities!$AH$3:$AH$453) -> 0 | C41: Index - 4 | D41: =D40-4 -> 1 | E41: If only one city is chose, this will be the index # | F41: =IF(AND(F33<>"",F34<>""),CONCATENATE(F33,", ",F34),CONCATENATE(F33,F34)) ->  | G41: =IF(AND(G33<>"",G34<>""),CONCATENATE(G33,", ",G34),CONCATENATE(G33,G34)) ->  | H41: =IF(AND(H33<>"",H34<>""),CONCATENATE(H33,", ",H34),CONCATENATE(H33,H34)) -> 
A42: =LOOKUP($B35,Cities!$A$3:$A$453,Cities!$C$3:$C$453) -> 0 | B42: =LOOKUP($B35,Cities!$A$3:$A$453,Cities!$AH$3:$AH$453) -> 0 | C42: =IF(B33=D$41,D$41,0) -> 1 | E42: If CityIndex1 = (IndexTotal - 4) give Index# else zero | F42: =IF(AND(F41<>"",F35<>""),CONCATENATE(F41,", ",F35),CONCATENATE(F41,F35)) -> 
A43: =LOOKUP($B36,Cities!$A$3:$A$453,Cities!$C$3:$C$453) -> 0 | B43: =LOOKUP($B36,Cities!$A$3:$A$453,Cities!$AH$3:$AH$453) -> 0 | C43: =IF(B34=D$41,D$41,0) -> 1
A44: =LOOKUP($B37,Cities!$A$3:$A$453,Cities!$C$3:$C$453) -> 0 | B44: =LOOKUP($B37,Cities!$A$3:$A$453,Cities!$AH$3:$AH$453) -> 0 | C44: =IF(B35=D$41,D$41,0) -> 1 | E44: Message for Questionaire
C45: =IF(B36=D$41,D$41,0) -> 1 | E45: =CONCATENATE("You have selected only ",A47," for RITA income allocation. If 100% of ",'Complete This Page'!B3,"'s income was earned in ",A47,", check this box. Make sure ",A47," appears in the first drop-down box.") -> You have selected only for RITA income allocation. If 100% of 's income was earned in , check this box. Make sure appears in the first drop-down box.
C46: =IF(B37=D$41,D$41,0) -> 1 | E46: City chosen must be in the top box!
A47: =IF(D41=C47,LOOKUP(C47,Cities!$A$3:$A$453,Cities!$C$3:$C$453),"") ->  | C47: =SUM(C42:C46) -> 5 | E47: if only one city chosen, name in Column A
A48: 100% One City | B48: FALSE
A49: Verifiy One City | B49: =IF(AND(B48=TRUE,A47<>""),TRUE,FALSE) -> FALSE
A50: Allocation Factors
A51: Property | B51: =IF('Print Return'!L202=0,0,1) -> 0
A52: Wages | B52: =IF('Print Return'!L203=0,0,1) -> 0
A53: Sales | B53: =IF('Print Return'!L204=0,0,1) -> 0
A54: Total | B54: =SUM(B51:B53) -> 0
A56: Allocation Rounding Errors
A57: Sum of Sched Y Inc Alloc | C57: =SUM('Print Return'!F79:F87) -> 0
A58: Page 1 Inc Alloc to RITA | C58: ='Print Return'!L51 -> 0 | E58: if actual formula used
A59: Absolute value of difference | C59: =ABS(C57-C58) -> 0 | E59: If greater than 3, sound alarm!!!
C60: =IF(C59>3,CONCATENATE("Rounding Error: $",C59),"") ->  | E60: <<-- Error Message Here
A62: Consolidated?
A64: Estimated Taxes | B64: ='Complete This Page'!I19 -> 0 | E64: Your return indicates an overpayment for the year. You must choose if you want your overpayment refunded or credited to the following year. Over-payments cannot be split between a refund and a credit.
A65: Credit Carryforwards | B65: ='Complete This Page'!I16 -> 0 | E65: Based on the tax liability for this year, RITA has calculated your estimated taxes due for next year as $xxx. If you wish to override this amount, enter your total estimate here:
A66: Overpayment | B66: ='Print Return'!L64 -> 0 | E66: =CONCATENATE("Based on todays date, $",C74," of your estimated taxes due should accompany your return. If you wish to pay a different amount with your return, please indicate the amount here:") -> Based on todays date, $0 of your estimated taxes due should accompany your return. If you wish to pay a different amount with your return, please indicate the amount here:
A67: Calculated Estimate | B67: ='Print Return'!L53 -> 0 | E67: Your return indicates a balance due of $XXXX.
A68: Override Estimate | B68: ='Complete This Page'!I162 -> 0 | C68: =IF('Complete This Page'!I162="",Data!B67,Data!B68) -> 0 | E68: =IF('Print Return'!L61=0," no tax due, and ",CONCATENATE(" tax due of $",'Print Return'!L61," and ")) -> no tax due, and
A69: Estimate after Credits | B69: =IF('Complete This Page'!I162="",Data!B67-'Print Return'!L107,Data!B68-'Print Return'!L107) -> 0 | E69: =IF(B66>0,CONCATENATE("an overpayment of $",B66,"."),"no overpayment for the current year.") -> no overpayment for the current year.
A70: Min Est Due? | C70: ck table
A71: Return Due Date | B71: =IF('Complete This Page'!J11="",DATE('Complete This Page'!G11,12,31),'Complete This Page'!J11) -> 1900-12-31 | E71: Total Estimates Due before Credit | F71: =IF('Complete This Page'!I162="",ROUND((Data!B67/4)*Data!B74,0),ROUND((B68/4)*Data!B74,0)) -> 0
A72: Today's Date | B72: =TODAY() -> 2025-03-04 | E72: Credit Available | F72: =IF(B25=TRUE,B66,0) -> 0
A73: Days Since Due Date | B73: =B72-B71 -> 45354 | E73: Estimates Due NOW after Credit | F73: =+F71-F72 -> 0
A74: Est Tax in Arrears | B74: =IF(B73>360,4,IF(B73>270,3,IF(B73>180,2,1))) -> 4 | C74: =IF(F73<0,0,F73) -> 0 | E74: Calc's number of estimates due & $ amt due AFTER CREDIT
A75: Estimated Tax Allocation Info
A76: Override Total Est? | B76: =IF('Complete This Page'!I162="",FALSE,TRUE) -> FALSE
A77: Override Auto-Alloc? | B77: =IF('Complete This Page'!J167>0,TRUE,FALSE) -> FALSE | E77: Checks for three possible cases <--- then adds up
A78: =IF(AND($B$76=FALSE,$B$77=FALSE),'Complete This Page'!D$165,0) -> 0 | B78: =IF(AND($B$76=TRUE,$B$77=FALSE),'Complete This Page'!D$166,0) -> 0 | C78: =IF($B$77=TRUE,'Complete This Page'!D$167,0) -> 0 | E78: =SUM(A78:D78) -> 0 | F78: =+A40 -> 0
A79: =IF(AND($B$76=FALSE,$B$77=FALSE),'Complete This Page'!E$165,0) -> 0 | B79: =IF(AND($B$76=TRUE,$B$77=FALSE),'Complete This Page'!E$166,0) -> 0 | C79: =IF($B$77=TRUE,'Complete This Page'!E$167,0) -> 0 | E79: =SUM(A79:D79) -> 0 | F79: =+A41 -> 0
A80: =IF(AND($B$76=FALSE,$B$77=FALSE),'Complete This Page'!F$165,0) -> 0 | B80: =IF(AND($B$76=TRUE,$B$77=FALSE),'Complete This Page'!F$166,0) -> 0 | C80: =IF($B$77=TRUE,'Complete This Page'!F$167,0) -> 0 | E80: =SUM(A80:D80) -> 0 | F80: =+A42 -> 0
A81: =IF(AND($B$76=FALSE,$B$77=FALSE),'Complete This Page'!G$165,0) -> 0 | B81: =IF(AND($B$76=TRUE,$B$77=FALSE),'Complete This Page'!G$166,0) -> 0 | C81: =IF($B$77=TRUE,'Complete This Page'!G$167,0) -> 0 | E81: =SUM(A81:D81) -> 0 | F81: =+A43 -> 0
A82: =IF(AND($B$76=FALSE,$B$77=FALSE),'Complete This Page'!H$165,0) -> 0 | B82: =IF(AND($B$76=TRUE,$B$77=FALSE),'Complete This Page'!H$166,0) -> 0 | C82: =IF($B$77=TRUE,'Complete This Page'!H$167,0) -> 0 | E82: =SUM(A82:D82) -> 0 | F82: =+A44 -> 0
A83: Using a Paid Preparer | B83: FALSE | D83: Total | E83: =SUM(E78:E82) -> 0
A91: Losses Under 718.01(A)(1)(c): 1221 & 1231 | E91: Losses directly related to sale, exchange, etc.
A92: If less than zero, put here | C92: =IF('Complete This Page'!I48<0,'Complete This Page'!I48,0) -> 0 | D92: =+References!D279 -> 22 | E92: =+References!B279 -> ST capital gain
A93: If less than zero, put here | C93: =IF('Complete This Page'!I49<0,'Complete This Page'!I49,0) -> 0 | D93: =+D92+1 -> 23 | E93: =+References!B280 -> LT capital gain
A94: If less than zero, put here | C94: =IF('Complete This Page'!I50<0,'Complete This Page'!I50,0) -> 0 | D94: =+D93+1 -> 24 | E94: =+References!B281 -> §1231 gain (loss)
C95: =SUM(C92:C94) -> 0
A99: Losses Under 718.01(A)(1)(d)(ii): 1221 & 1231 | E99: Income directly related to sales, exchanges, etc.
A100: If greater than zero, put here | C100: =IF('Complete This Page'!I48>0,'Complete This Page'!I48,0) -> 0 | D100: 19 | E100: =+References!B279 -> ST capital gain
A101: If greater than zero, put here | C101: =IF('Complete This Page'!I49>0,'Complete This Page'!I49,0) -> 0 | D101: =+D100+1 -> 20 | E101: =+References!B280 -> LT capital gain
A102: If greater than zero, put here | C102: =IF('Complete This Page'!I50>0,'Complete This Page'!I50,0) -> 0 | D102: =+D101+1 -> 21 | E102: =+References!B281 -> §1231 gain (loss)
C103: =SUM(C100:C102) -> 0
A106: virtual 1245 Gain on 1250 property | C106: ='Complete This Page'!I62 -> 0 | E106: Calculated at bottom of info entered from fed return
A107: actual 1250 Gains | C107: ='Complete This Page'!I63 -> 0 | E107: From last line of info entered from fed return
C108: =IF((C106-C107)>0,C106-C107,0) -> 0 | E108: Virtual 1245 gains on 1250 prop > the actual 1250 gains
A109: 1250 (291) Gains | C109: =ROUND(C108*0.2,0) -> 0 | E109: Section 291 gains for non C-Corps is 20% of line above
A111: Add-back reduction for non C-Corps | C111: =IF(OR(B12=TRUE,B13=TRUE),0,C109) -> 0 | E111: Checks return type flag so C-Corps are not screwed-up
A114: Federal Income for Limitations (Contributions, 179)
A116: Net Inc before NOL | C116: ='Complete This Page'!I42 -> 0
A117: Net Sched X Adj | C117: ='Print Return'!L31-'Print Return'!L35 -> 0
A118: Section 179 | B118: Claimed | C118: =-'Complete This Page'!I53 -> 0
A119: Contributions | B119: Claimed | C119: =-'Complete This Page'!I55 -> 0
A120: Inc For Limits | B120: Combine Above | C120: =SUM(C116:C119) -> 0 | E120: Current Year
A122: Section 179 | B122: Claimed | C122: ='Complete This Page'!I53 -> 0 | E122: Current Year Only
A123: Section 179 excess | E123: Current Year Only
A124: Total Current Yr 179 | C124: =SUM(C122:C123) -> 0
A125: Max current Yr 179 | C125: =IF(C124<C120,C124,C120) -> 0
A127: Inc Less Cur Yr 179 | C127: =+C120-C125 -> 0
A129: 179 Carryover Prior
A130: 179 Carryover 2nd Prior
A131: 179 Carryover 3rd Prior
A132: 179 Carryover 4th Prior
A133: 179 Carryover 5th Prior
A136: AFTI Income Adjustments
A138: Capital Losses | E138: Pulled directly from "Print Schedules" onto "Print Return" | F138: Interplay w/ Sched X
A140: Contributions
A141: Claimed Current | C141: =+'Print Schedules'!J39 -> 0
A142: Claimed Prior | C142: =SUM('Print Schedules'!D39:I39) -> 0
A143: Available | C143: =+C141+C142 -> 0
A144: Used Current | C144: =+'Print Schedules'!L39-'Print Schedules'!L47 -> 0
A146: Disallowed Current | C146: =IF(C144>C141,0,C141-C144) -> 0
A147: Prior Yr Amts Used | C147: =IF(C144>C141,C144-C141,0) -> 0
A148: AFTI Adjustment | C148: =+C146-C147 -> 0
A150: Section 179
A151: Claimed Current | C151: =+'Complete This Page'!I53 -> 0
A152: Current Disallowed | C152: =+'Complete This Page'!I54 -> 0
A153: Claimed Prior | C153: =SUM('Print Schedules'!D39:I39) -> 0
A154: Available | C154: =+C151+C153 -> 0
A155: Used Current | C155: =+'Print Schedules'!K77+'Print Schedules'!K80 -> 0
A157: Disallowed Current | C157: =IF(C155>C151,0,C151-C155) -> 0
A158: Prior Yr Amts Used | C158: =IF(C155>C151,C155-C151,0) -> 0
A159: AFTI Adjustment | C159: =+C157-C158 -> 0
A164: Reason for Final Return
A165: Extension | B165: FALSE
A166: Out of Business | B166: FALSE | C166: =+'Complete This Page'!I25 -> 00:00:00
A167: Alternate Method | B167: FALSE
A168: Moved Out of RITA | B168: FALSE | C168: =+'Complete This Page'!I24 -> 00:00:00
A169: Consolidated | B169: FALSE
A170: Consolidated Filer with 80% ownership of a Pass-Through Entity | B170: FALSE
A171: Wage Reconciliation
A173: Schedule Y Wages | B173: =IF(C173>0,TRUE,FALSE) -> FALSE | C173: ='Complete This Page'!J87 -> 0 | E173: =CONCATENATE("Complete this section to reconcile the local RITA wages reported on Schedule Y to the local RITA wages reported by your payroll department throughout the ",E176,E179,".") -> Complete this section to reconcile the local RITA wages reported on Schedule Y to the local RITA wages reported by your payroll department throughout the year .
A174: All Activity to 1 City | B174: =B49 -> FALSE
A175: Only 1 RITA City? | B175: =IF(A47="",FALSE,TRUE) -> FALSE | C175: =A47 -> 
A176: Fiscal Year? | B176: =IF('Complete This Page'!J11<>"",TRUE,FALSE) -> FALSE | C176: =IF(B176=TRUE,'Complete This Page'!H11,"") ->  | D176: x | E176: =IF(B176=FALSE,CONCATENATE("year ",'Complete This Page'!G11),"") -> year
C177: =IF(B176=TRUE,'Complete This Page'!J11,"") ->  | D177: x
C178: =IF(B176=TRUE,CONCATENATE(MONTH(C176),"/",DAY(C176),"/",YEAR(C176)), "") -> 
C179: =IF(B176=TRUE,CONCATENATE(MONTH(C177),"/",DAY(C177),"/",YEAR(C177)), "") ->  | E179: =IF(B176=TRUE,CONCATENATE("twelve months beginning ",C178," and ending ",C179),"") -> 
A180: Fed wage deduction? | B180: FALSE | E180: =CONCATENATE("Complete this section to reconcile the wages reported on your Federal return to the local RITA wages reported by your payroll department throughout the ",E176,E179,".") -> Complete this section to reconcile the wages reported on your Federal return to the local RITA wages reported by your payroll department throughout the year .
A181: Message to use | E181: =IF(B173=TRUE,E173,IF(B180=TRUE,E180,"Skip this section")) -> Skip this section
B182: Sched Y | C182: Form 11 | F182: $ Variances
A183: =IF('Complete This Page'!B142<>"",'Complete This Page'!B142,"No City Chosen") -> 0 | B183: =IF('Complete This Page'!D142="",0,'Complete This Page'!D142) -> 0 | C183: =IF('Complete This Page'!E142="",0,'Complete This Page'!E142) -> 0 | E183: These five lines prevent formula errors when an amount | F183: =+B183-C183 -> 0
A184: =IF('Complete This Page'!B143<>"",'Complete This Page'!B143,"No City Chosen") -> No City Chosen | B184: =IF('Complete This Page'!D143="",0,'Complete This Page'!D143) -> 0 | C184: =IF('Complete This Page'!E143="",0,'Complete This Page'!E143) -> 0 | E184: is "blank" instead of zero. | F184: =+B184-C184 -> 0
A185: =IF('Complete This Page'!B144<>"",'Complete This Page'!B144,"No City Chosen") -> No City Chosen | B185: =IF('Complete This Page'!D144="",0,'Complete This Page'!D144) -> 0 | C185: =IF('Complete This Page'!E144="",0,'Complete This Page'!E144) -> 0 | F185: =+B185-C185 -> 0
A186: =IF('Complete This Page'!B145<>"",'Complete This Page'!B145,"No City Chosen") -> No City Chosen | B186: =IF('Complete This Page'!D145="",0,'Complete This Page'!D145) -> 0 | C186: =IF('Complete This Page'!E145="",0,'Complete This Page'!E145) -> 0 | F186: =+B186-C186 -> 0
A187: =IF('Complete This Page'!B146<>"",'Complete This Page'!B146,"No City Chosen") -> No City Chosen | B187: =IF('Complete This Page'!D146="",0,'Complete This Page'!D146) -> 0 | C187: =IF('Complete This Page'!E146="",0,'Complete This Page'!E146) -> 0 | F187: =+B187-C187 -> 0
B189: Fed Rtn | C189: Form 11
A190: Only 1 RITA City | B190: =+'Complete This Page'!I138 -> 0 | C190: =+'Complete This Page'!I139 -> 0 | E190: This line prevent formula errors when an amount is blank | F190: =ABS(B190-C190) -> 0
E191: =IF(B174=TRUE,IF(AND(F190>4999,F191>0.05),CONCATENATE("You must provide an explanation of the wage variance for the municipality of: ",C175,"."),""),E200) ->  | F191: =ABS(IF(B190<>0,1-(C190/B190),IF(C190<>0,1-(B190/C190),0))) -> 0
A193: Variance Explanation Required? | F193: % Variances
A194: =IF('Complete This Page'!B142<>"",'Complete This Page'!B142,"No City Chosen") -> 0 | B194: =IF(AND(ABS(F194)>0.05,ABS(F183)>4999),TRUE,FALSE) -> FALSE | C194: =IF(B194=TRUE,CONCATENATE(A194,", "),"") ->  | E194: For a "True" result, variance must be > $4,999 & > 5% | F194: =IF(B183<>0,1-(C183/B183),IF(C183<>0,1-(B183/C183),0)) -> 0
A195: =IF('Complete This Page'!B143<>"",'Complete This Page'!B143,"No City Chosen") -> No City Chosen | B195: =IF(AND(ABS(F195)>0.05,ABS(F184)>4999),TRUE,FALSE) -> FALSE | C195: =IF(B195=TRUE,CONCATENATE(C194,A195,", "),IF(C194<>"",C194,"")) ->  | E195: (a $5,000 variance yields a $50 tax at 1%) | F195: =IF(B184<>0,1-(C184/B184),IF(C184<>0,1-(B184/C184),0)) -> 0
A196: =IF('Complete This Page'!B144<>"",'Complete This Page'!B144,"No City Chosen") -> No City Chosen | B196: =IF(AND(ABS(F196)>0.05,ABS(F185)>4999),TRUE,FALSE) -> FALSE | C196: =IF(B196=TRUE,CONCATENATE(C195,A196,", "),IF(C195<>"",C195,"")) ->  | F196: =IF(B185<>0,1-(C185/B185),IF(C185<>0,1-(B185/C185),0)) -> 0
A197: =IF('Complete This Page'!B145<>"",'Complete This Page'!B145,"No City Chosen") -> No City Chosen | B197: =IF(AND(ABS(F197)>0.05,ABS(F186)>4999),TRUE,FALSE) -> FALSE | C197: =IF(B197=TRUE,CONCATENATE(C196,A197,", "),IF(C196<>"",C196,"")) ->  | E197: Final City list Build is below | F197: =IF(B186<>0,1-(C186/B186),IF(C186<>0,1-(B186/C186),0)) -> 0
A198: =IF('Complete This Page'!B146<>"",'Complete This Page'!B146,"No City Chosen") -> No City Chosen | B198: =IF(AND(ABS(F198)>0.05,ABS(F187)>4999),TRUE,FALSE) -> FALSE | C198: =IF(B198=TRUE,CONCATENATE(C197,A198,", "),IF(C197<>"",C197,"")) ->  | E198: =IF(C198<>"",LEFT(C198,LEN(C198)-2),"") ->  | F198: =IF(B187<>0,1-(C187/B187),IF(C187<>0,1-(B187/C187),0)) -> 0
E200: =IF(E198<>"",CONCATENATE("You must provide an explanation of the variance(s) for the municipality(ies) of: ",E198,"."),"") -> 
E204: =SUM('Complete This Page'!I67:I81) -> 0 | F204: =SUM('Complete This Page'!I67:J81) -> 0
A206: Final Questions
A208: =CONCATENATE("Your return indicates a tax liability of $",'Print Return'!L53," before estimated tax payments and credit carryovers from prior years.") -> Your return indicates a tax liability of $0 before estimated tax payments and credit carryovers from prior years.
A210: =CONCATENATE("After appling your estimated tax payments of $",Data!B64," and credit carryovers from prior years of $",Data!B65,", your return indicates",Data!E68,Data!E69) -> After appling your estimated tax payments of $0 and credit carryovers from prior years of $0, your return indicates no tax due, and no overpayment for the current year.
A212: =IF(Data!B66>0,Data!E64,"Skip this question: your return does not indicate an overpayment for the year, and thus you have no overpayment to refund or credit.") -> Skip this question: your return does not indicate an overpayment for the year, and thus you have no overpayment to refund or credit.
A214: =CONCATENATE("Based on the current year, your estimated tax liability for next year has been calculated as $",Data!B67,". If your good faith estimate of the tax you will owe is different, enter it here:") -> Based on the current year, your estimated tax liability for next year has been calculated as $0. If your good faith estimate of the tax you will owe is different, enter it here:
A216: =IF((I160+'Print Return'!L53)>0,Data!E66,"Your return indicates that your credits were sufficient to cover your current year's tax and next year's estimated taxes. No payment is required with your return.") -> Your return indicates that your credits were sufficient to cover your current year's tax and next year's estimated taxes. No payment is required with your return.
A218: Error 1: | B218: =IF(B38=5,TRUE,FALSE) -> TRUE | C218: Error Msg 1: | E218: You must select at least one RITA municipality before continuing. Select RITA municipalities using the "Municipalities" drop-down lists near the top of this worksheet.
A219: Error 2: | B219: =IF(AND(B48=FALSE, B221=FALSE,B222=FALSE,B223=FALSE,B224=FALSE),TRUE,FALSE) -> TRUE | C219: Error Msg 2: | E219: You indicated above that 100% of your income could not be allocated to one RITA municipality. Therefore, you must complete the sections above necessary to allocate your income.
A220: Sched Y Local
A221: Property Owned? | B221: =IF(AND('Complete This Page'!D84="",'Complete This Page'!E84="",'Complete This Page'!F84="",'Complete This Page'!G84="",'Complete This Page'!H84=""),FALSE,TRUE) -> FALSE
A222: Property Rented? | B222: =IF(AND('Complete This Page'!D85="",'Complete This Page'!E85="",'Complete This Page'!F85="",'Complete This Page'!G85="",'Complete This Page'!H85=""),FALSE,TRUE) -> FALSE | E222: Note: Error 2 will not show until error 1 is cleared.
A223: Wages? | B223: =IF(AND('Complete This Page'!D87="",'Complete This Page'!E87="",'Complete This Page'!F87="",'Complete This Page'!G87="",'Complete This Page'!H87=""),FALSE,TRUE) -> FALSE
A224: Sales? | B224: =IF(AND('Complete This Page'!D88="",'Complete This Page'!E88="",'Complete This Page'!F88="",'Complete This Page'!G88="",'Complete This Page'!H88=""),FALSE,TRUE) -> FALSE
A227: Sched Y Error Prevention
A229: Everywhere Salaries | B229: =IF(B176="","",IF(Data!B$49=TRUE,0,SUM('Complete This Page'!I$68:I$71))) -> 0
A230: City 1 Local | B230: =IF('Complete This Page'!D$87<>"",'Complete This Page'!D$87,"") ->  | C230: =IF(B$229=0,"n/a",ROUND(B230/B$229,6)) -> n/a
A231: City 2 Local | B231: =IF('Complete This Page'!E$87<>"",'Complete This Page'!E$87,"") ->  | C231: =IF(B$229=0,"n/a",ROUND(B231/B$229,6)) -> n/a
A232: City 3 Local | B232: =IF('Complete This Page'!F$87<>"",'Complete This Page'!F$87,"") ->  | C232: =IF(B$229=0,"n/a",ROUND(B232/B$229,6)) -> n/a
A233: City 4 Local | B233: =IF('Complete This Page'!G$87<>"",'Complete This Page'!G$87,"") ->  | C233: =IF(B$229=0,"n/a",ROUND(B233/B$229,6)) -> n/a
A234: City 5 Local | B234: =IF('Complete This Page'!H$87<>"",'Complete This Page'!H$87,"") ->  | C234: =IF(B$229=0,"n/a",ROUND(B234/B$229,6)) -> n/a
A236: Everywhere Receipts | B236: =IF(B184="","",IF(Data!B$49=TRUE,0,'Complete This Page'!I$67)) -> 0
A237: City 1 Local | B237: =IF('Complete This Page'!D$88<>"",'Complete This Page'!D$88,"") ->  | C237: =IF(B$236=0,"n/a",ROUND(B237/B$236,6)) -> n/a
A238: City 2 Local | B238: =IF('Complete This Page'!E$88<>"",'Complete This Page'!E$88,"") ->  | C238: =IF(B$236=0,"n/a",ROUND(B238/B$236,6)) -> n/a
A239: City 3 Local | B239: =IF('Complete This Page'!F$88<>"",'Complete This Page'!F$88,"") ->  | C239: =IF(B$236=0,"n/a",ROUND(B239/B$236,6)) -> n/a
A240: City 4 Local | B240: =IF('Complete This Page'!G$88<>"",'Complete This Page'!G$88,"") ->  | C240: =IF(B$236=0,"n/a",ROUND(B240/B$236,6)) -> n/a
A241: City 5 Local | B241: =IF('Complete This Page'!H$88<>"",'Complete This Page'!H$88,"") ->  | C241: =IF(B$236=0,"n/a",ROUND(B241/B$236,6)) -> n/a
A245: Allocation Table Error Msg | E245: A one (1) indicates a column error. A zero (0) indicates things are okay
B246: Error 1
A247: Column 1 Error | B247: =IF('Complete This Page'!D$83<>"",0,IF(('Complete This Page'!D$84+'Complete This Page'!D$85+'Complete This Page'!D$87+'Complete This Page'!D$88)>0,1,0)) -> 0 | D247: 1 | E247: Warning: Municipality data entered in columns with no RITA Municipality indicated.
A248: Column 2 Error | B248: =IF('Complete This Page'!E$83<>"",0,IF(('Complete This Page'!E$84+'Complete This Page'!E$85+'Complete This Page'!E$87+'Complete This Page'!E$88)>0,1,0)) -> 0 | D248: 2 | E248: Warning: One or more municipal allocation percentages are greater than 100%.
A249: Column 3 Error | B249: =IF('Complete This Page'!F$83<>"",0,IF(('Complete This Page'!F$84+'Complete This Page'!F$85+'Complete This Page'!F$87+'Complete This Page'!F$88)>0,1,0)) -> 0
A250: Column 4 Error | B250: =IF('Complete This Page'!G$83<>"",0,IF(('Complete This Page'!G$84+'Complete This Page'!G$85+'Complete This Page'!G$87+'Complete This Page'!G$88)>0,1,0)) -> 0
A251: Column 5 Error | B251: =IF('Complete This Page'!H$83<>"",0,IF(('Complete This Page'!H$84+'Complete This Page'!H$85+'Complete This Page'!H$87+'Complete This Page'!H$88)>0,1,0)) -> 0
B252: =SUM(B247:B251) -> 0 | D252: err: | E252: =IF(B252>0,E247,IF(B254>0,E248,"")) -> 
A254: Error 2 Check | B254: =IF(OR('Complete This Page'!J$89>1.001,'Complete This Page'!J$90>1.001,'Complete This Page'!J$91>1.001),1,0) -> 0 | E254: Note: Error 1 must be cleared before error 2 will display
A258: Tax Rate Change Error Msg
... 26 more rows

Sheet Print NOL Worksheet
A3: NOTE: Municipal NOLs generated during tax years beginning on or after 1/1/17 may be carried over for 5 years.
A4: Municipal Carryover Information from Your Records
A6: Municipal | C6: Year Unused NOL Generated
A7: NOL Carryovers | C7: ='Complete This Page'!D98 ->  | D7: ='Complete This Page'!E98 ->  | E7: ='Complete This Page'!F98 ->  | F7: ='Complete This Page'!G98 ->  | G7: ='Complete This Page'!H98 ->  | H7: Utilized
A8: NOL Generated | C8: ='Complete This Page'!D108 -> 0 | D8: ='Complete This Page'!E108 -> 0 | E8: ='Complete This Page'!F108 -> 0 | F8: ='Complete This Page'!G108 -> 0 | G8: ='Complete This Page'!H108 -> 0 | H8: ='Complete This Page'!J108 -> 0
A9: NOL Utilized on this return | C9: =MIN(C8,H9) -> 0 | D9: =MIN(D8,C11) -> 0 | E9: =MIN(E8,D11) -> 0 | F9: 0 | G9: 0 | H9: =IF('Complete This Page'!$K$108<>"",'Complete This Page'!$K$108,MAX(MIN('Print Return'!$L$37,'Complete This Page'!$J$108),0)) -> 0
A10: Remaining NOL Available | C10: =SUM(C8,-C9) -> 0 | D10: =SUM(D8,-D9) -> 0 | E10: 0 | F10: 0 | G10: 0 | H10: =MAX(SUM(H8,-H9),0) -> 0
A11: Remaining of H10 | C11: =SUM(H9,-C9) -> 0 | D11: =SUM(C11,-D9) -> 0 | E11: =SUM(D11,-E9) -> 0 | F11: 0 | G11: 0 | H11: ='Complete This Page'!J102 -> 0
A14: =IF('Complete This Page'!K110>0,CONCATENATE(IF('Complete This Page'!B110=TRUE,CONCATENATE("The maximum value for NOL 'Utilized on this return' that can be entered in Complete This Page cell K108 cannot exceed ", TEXT('Complete This Page'!K110, "$#,##0"),"."), CONCATENATE("The maximum amount of NOL ", TEXT('Complete This Page'!K110, "$#,##0"), " was automatically applied. If you wish to enter a smaller NOL value, please type it in Complete This Page cell K108 to overwrite."))),"") -> 
A16: ="Local Tax Calc Worksheet is only applicable if ""Utilizing NOL incurred prior to 1/1/17 first"" is checked" -> Local Tax Calc Worksheet is only applicable if "Utilizing NOL incurred prior to 1/1/17 first" is checked
A17: City Name | B17: 1) AFTI (Form 27, Line 3A) | C17: 2) AFTI Allocation % (From Schedule Y, Part II, Column J) | D17: 3) Col 1 Multiplied by Col 2 | E17: 4) Post Apportioned Loss Utilized (from table above) | F17: 5) Col 3 minus Col 4 | G17: 6) Divide Col 5 by Col 2 | H17: 7) Pre-apportioned NOL from Form 27, Line 3B(i) | I17: 8) 50% of the lesser of Col 6 and Col 7 NOTE: Do not enter amounts from a RITA Municipality on the NOL-Phase-In exceptions list | J17: 9) Col 6 minus Col 8 (cannot be less then 0). If Row 8 is blank, enter the difference of Row 6 less Row 7 | K17: 10) Col 9 multiplied by Col 2 | L17: 11) Municipal Tax Rate | M17: 12) Col 10 multiplied by Col 11 (if $10 or less enter 0 on Sched B)
A18: =Data!A273 -> 0 | B18: ='Print Return'!L$37 -> 0 | C18: =IF(Data!B49=TRUE,1,Data!C273) ->  | D18: =B18*IF(ISNUMBER(C18)=TRUE,C18,0) -> 0 | E18: =Data!E273 -> 0 | F18: =D18-E18 -> 0 | G18: =IF(AND(ISNUMBER(C18)=TRUE, C18>0),F18 / C18,0) -> 0 | H18: ='Print Return'!L$41 -> 0 | I18: =IF(Data!B40<2015,MIN(G18,H18)/2,0) -> 0 | J18: =IF(Data!B40<2015,G18-I18,IF(G18-H18>0,G18-H18,0)) -> 0 | K18: =J18*IF(ISNUMBER(C18)=TRUE,C18,0) -> 0 | L18: =LOOKUP(Data!$B$33,Cities!$A$3:$A$453,Cities!$D$3:$D$453) -> 0 | M18: =ROUND(K18*L18,0) -> 0
A19: =Data!A274 -> 0 | B19: ='Print Return'!L$37 -> 0 | C19: =Data!C274 ->  | D19: =B19*IF(ISNUMBER(C19)=TRUE,C19,0) -> 0 | E19: =Data!E274 -> 0 | F19: =D19-E19 -> 0 | G19: =IF(AND(ISNUMBER(C19)=TRUE, C19>0),F19 / C19,0) -> 0 | H19: ='Print Return'!L$41 -> 0 | I19: =IF(Data!B41<2015,MIN(G19,H19)/2,0) -> 0 | J19: =IF(Data!B41<2015,G19-I19,IF(G19-H19>0,G19-H19,0)) -> 0 | K19: =J19*IF(ISNUMBER(C19)=TRUE,C19,0) -> 0 | L19: =LOOKUP(Data!$B$34,Cities!$A$3:$A$453,Cities!$D$3:$D$453) -> 0 | M19: =ROUND(K19*L19,0) -> 0
A20: =Data!A275 -> 0 | B20: ='Print Return'!L$37 -> 0 | C20: =Data!C275 ->  | D20: =B20*IF(ISNUMBER(C20)=TRUE,C20,0) -> 0 | E20: =Data!E275 -> 0 | F20: =D20-E20 -> 0 | G20: =IF(AND(ISNUMBER(C20)=TRUE, C20>0),F20 / C20,0) -> 0 | H20: ='Print Return'!L$41 -> 0 | I20: =IF(Data!B42<2015,MIN(G20,H20)/2,0) -> 0 | J20: =IF(Data!B42<2015,G20-I20,IF(G20-H20>0,G20-H20,0)) -> 0 | K20: =J20*IF(ISNUMBER(C20)=TRUE,C20,0) -> 0 | L20: =LOOKUP(Data!$B$35,Cities!$A$3:$A$453,Cities!$D$3:$D$453) -> 0 | M20: =ROUND(K20*L20,0) -> 0
A21: =Data!A276 -> 0 | B21: ='Print Return'!L$37 -> 0 | C21: =Data!C276 ->  | D21: =B21*IF(ISNUMBER(C21)=TRUE,C21,0) -> 0 | E21: =Data!E276 -> 0 | F21: =D21-E21 -> 0 | G21: =IF(AND(ISNUMBER(C21)=TRUE, C21>0),F21 / C21,0) -> 0 | H21: ='Print Return'!L$41 -> 0 | I21: =IF(Data!B43<2015,MIN(G21,H21)/2,0) -> 0 | J21: =IF(Data!B43<2015,G21-I21,IF(G21-H21>0,G21-H21,0)) -> 0 | K21: =J21*IF(ISNUMBER(C21)=TRUE,C21,0) -> 0 | L21: =LOOKUP(Data!$B$36,Cities!$A$3:$A$453,Cities!$D$3:$D$453) -> 0 | M21: =ROUND(K21*L21,0) -> 0
A22: =Data!A277 -> 0 | B22: ='Print Return'!L$37 -> 0 | C22: =Data!C277 ->  | D22: =B22*IF(ISNUMBER(C22)=TRUE,C22,0) -> 0 | E22: =Data!E277 -> 0 | F22: =D22-E22 -> 0 | G22: =IF(AND(ISNUMBER(C22)=TRUE, C22>0),F22 / C22,0) -> 0 | H22: ='Print Return'!L$41 -> 0 | I22: =IF(Data!B44<2015,MIN(G22,H22)/2,0) -> 0 | J22: =IF(Data!B44<2015,G22-I22,IF(G22-H22>0,G22-H22,0)) -> 0 | K22: =J22*IF(ISNUMBER(C22)=TRUE,C22,0) -> 0 | L22: =LOOKUP(Data!$B$37,Cities!$A$3:$A$453,Cities!$D$3:$D$453) -> 0 | M22: =ROUND(K22*L22,0) -> 0
A23: Totals | C23: Total Allocation % | E23: Total Utilized Post-Apportioned NOL | K23: Total Amt Allocatable to RITA | M23: Total Tax
C24: =SUM(C18:C22) -> 0 | E24: =SUM(E18:E22) -> 0 | H24: =IF(Overflow!F112>0,Overflow!F112, MAX(J18:J22)) -> 0 | I24: =IF('Overflows Worksheet'!J401>0,'Overflows Worksheet'!J401, FLOOR(MAX(I18:I22),1)) -> 0 | J24: =IF('Overflows Worksheet'!J401>0,'Overflows Worksheet'!J401, MAX(J18:J22)) -> 0 | K24: =IF(Overflow!F113>0,Overflow!F113,SUM(J18:J22)) -> 0 | M24: =SUM(M18:M22) -> 0

Sheet Muni Carryovers
A3: NOTE: Municipal NOLs generated during tax years beginning on or after 1/1/17 may be carried over for 5 years.
A4: Municipal Carryover Information from Your Records
A6: Municipal | C6: Year Unused NOL Generated
A7: NOL Carryovers | C7: ='Complete This Page'!D98 ->  | D7: ='Complete This Page'!E98 ->  | E7: ='Complete This Page'!F98 ->  | F7: ='Complete This Page'!G98 ->  | G7: ='Complete This Page'!H98 ->  | H7: Utilized
A8: NOL Generated | C8: ='Complete This Page'!D108 -> 0 | D8: ='Complete This Page'!E108 -> 0 | E8: ='Complete This Page'!F108 -> 0 | F8: ='Complete This Page'!G108 -> 0 | G8: ='Complete This Page'!H108 -> 0 | H8: ='Complete This Page'!J108 -> 0
A9: NOL Utilized on this return | C9: =MIN(C8,H9) -> 0 | D9: =MIN(D8,C11) -> 0 | E9: =MIN(E8,D11) -> 0 | F9: 0 | G9: 0 | H9: =IF('Complete This Page'!$K$108<>"",'Complete This Page'!$K$108,MAX(MIN('Print Return'!$L$37,'Complete This Page'!$J$108),0)) -> 0
A10: Remaining NOL Available | C10: =SUM(C8,-C9) -> 0 | D10: =SUM(D8,-D9) -> 0 | E10: 0 | F10: 0 | G10: 0 | H10: =MAX(SUM(H8,-H9),0) -> 0
A11: Remaining from H9 | C11: =H9-C9 -> 0 | D11: =SUM(C11,-D9) -> 0 | E11: =SUM(D11,-E9) -> 0 | F11: 0 | G11: 0 | H11: ='Complete This Page'!J102 -> 0
A12: ='Complete This Page'!B103 -> 
A16: Local Tax Calc Worksheet applicable if "Utilizing NOL incurred prior to 1/1/17 first" is checked
A17: City Name | B17: 1) AFTI (Form 27, Line 3A) | C17: 2) AFTI Allocation % (From Schedule Y, Part II, Column J) | D17: 3) Col 1 Multiplied by Col 2 | E17: 4) Post Apportioned Loss Utilized (from table above) | F17: 5) Col 3 minus Col 4 | G17: 6) Divide Col 5 by Col 2 | H17: 7) Pre-apportioned NOL from Form 27, Line 3B(i) | I17: 8) 50% of the lesser of Col 6 and Col 7 | J17: 9) Col 6 minus Col 8 (cannot be less then 0) | K17: 10) Col 9 multiplied by Col 2 | L17: 11) Municipal Tax Rate | M17: 12) Col 10 multiplied by Col 11 (if $10 or less enter 0 on Sched B)
A23: Totals | C23: Total Allocation % | E23: Total Utilized Post-Apportioned NOL | K23: Total Amt Allocatable to RITA | M23: Total Tax
A28: Local Tax Calc Worksheet
A29: City Name | B29: 1) Income Subject to Apportion-ment - Form 27, Line 3B(iii) | C29: 2) AFTI Allocation % | D29: 3) Col 1 Multiplied by Col 2 | E29: 4) Municipal Tax Rate | F29: 5) Col 3 multiplied by Col 4 (0 if $10 or less enter 0 on Sched B)
A30: =Data!A273 -> 0 | B30: ='Print Return'!$L$45 -> 0 | C30: =Data!C273 ->  | D30: =B30*IF(ISNUMBER(C30)=TRUE,C30,0) -> 0 | E30: =LOOKUP(Data!$B$33,Cities!$A$3:$A$453,Cities!$D$3:$D$453) -> 0 | F30: =IF(ROUND($D30*$E30,0)>10,ROUND($D30*$E30,0),0) -> 0
A31: =Data!A274 -> 0 | B31: ='Print Return'!$L$45 -> 0 | C31: =Data!C274 ->  | D31: =B31*IF(ISNUMBER(C31)=TRUE,C31,0) -> 0 | E31: =LOOKUP(Data!$B$34,Cities!$A$3:$A$453,Cities!$D$3:$D$453) -> 0 | F31: =IF(ROUND($D31*$E31,0)>10,ROUND($D31*$E31,0),0) -> 0
A32: =Data!A275 -> 0 | B32: ='Print Return'!$L$45 -> 0 | C32: =Data!C275 ->  | D32: =B32*IF(ISNUMBER(C32)=TRUE,C32,0) -> 0 | E32: =LOOKUP(Data!$B$35,Cities!$A$3:$A$453,Cities!$D$3:$D$453) -> 0 | F32: 0
A33: =Data!A276 -> 0 | B33: ='Print Return'!$L$45 -> 0 | C33: =Data!C276 ->  | D33: =B33*IF(ISNUMBER(C33)=TRUE,C33,0) -> 0 | E33: =LOOKUP(Data!$B$36,Cities!$A$3:$A$453,Cities!$D$3:$D$453) -> 0 | F33: 0
A34: =Data!A277 -> 0 | B34: ='Print Return'!$L$45 -> 0 | C34: =Data!C277 ->  | D34: =B34*IF(ISNUMBER(C34)=TRUE,C34,0) -> 0 | E34: =LOOKUP(Data!$B$37,Cities!$A$3:$A$453,Cities!$D$3:$D$453) -> 0 | F34: 0
A35: Totals | C35: Total Allocation % | D35: Tot Amt Alloc To RITA | F35: Total Tax
C36: =SUM(C30:C34) -> 0 | D36: =SUM(D30:D34) -> 0 | F36: =SUM(F30:F34) -> 0

Sheet Fed Carryovers (hidden)
A1: Federal Carryover Information from Your Records
A2: Charitiable contribution carryovers, section 179 carryovers, and capital loss carryovers are calculated based on your federal taxable income, and are not tracked by municipality. Since these amounts are always the same as a C corporation's federal taxable amounts, only taxpayers who are not C corporations and not individuals need to complete the schedule below. C corporation should attach copies of their federal carryover schedules to their municipal tax return. The amounts entered below by non-C corporations should match what would have claimed for federal tax purposes if the taxpayer was a C corporation.
A3: Unrecaptured §1231 losses and the federal net operating loss are need to convert a non-C corporation's income into a C corporation's income per ORC 718.01(A)(1)(g). The §1231 losses are used to determine the allowable capital losses, and the federal net operating loss is use in determining the allowable charitable contribution deduction.
A5: Carryovers | C5: Year Unused Contributions Generated | I5: Available | K5: Per Mark Taranto & Alicia Kline, contribution deductions & carryovers are based federal taxable income, and thus should always match the "c-corp" federal tax amounts.
C6: ='Complete This Page'!D118 ->  | D6: ='Complete This Page'!E118 ->  | E6: ='Complete This Page'!F118 ->  | F6: ='Complete This Page'!G118 ->  | G6: ='Complete This Page'!H118 ->  | H6: Current
A7: Charitable Contributions | C7: =+'Complete This Page'!D119 -> 0 | D7: =+'Complete This Page'!E119 -> 0 | E7: =+'Complete This Page'!F119 -> 0 | F7: =+'Complete This Page'!G119 -> 0 | G7: =+'Complete This Page'!H119 -> 0 | H7: =+'Complete This Page'!I55 -> 0 | I7: =SUM(C7:H7) -> 0 | K7: Per Mark Taranto & Alicia Kline, 179 deductions & carryovers are based federal taxable income, and thus should always match the "c-corp" federal tax amounts.
A8: Capital Loss Carryovers | C8: =+'Complete This Page'!D120 -> 0 | D8: =+'Complete This Page'!E120 -> 0 | E8: =+'Complete This Page'!F120 -> 0 | F8: =+'Complete This Page'!G120 -> 0 | G8: =+'Complete This Page'!H120 -> 0 | I8: =SUM(C8:H8) -> 0
A9: Unrecovered §1231 Losses | C9: =+'Complete This Page'!D121 -> 0 | D9: =+'Complete This Page'!E121 -> 0 | E9: =+'Complete This Page'!F121 -> 0 | F9: =+'Complete This Page'!G121 -> 0 | G9: =+'Complete This Page'!H121 -> 0 | I9: =SUM(C9:H9) -> 0 | K9: Per Mark Taranto & Alicia Kline, capital loss deduction & carryovers are based federal taxable income, and thus should always match the "c-corp" federal tax amounts.
A10: Federal Net Operating Losses | C10: =+'Complete This Page'!D122 -> 0 | D10: =+'Complete This Page'!E122 -> 0 | E10: =+'Complete This Page'!F122 -> 0 | F10: =+'Complete This Page'!G122 -> 0 | G10: =+'Complete This Page'!H122 -> 0 | I10: =SUM(C10:H10) -> 0
A11: Section 179 | C11: =+'Complete This Page'!D123 -> 0 | D11: =+'Complete This Page'!E123 -> 0 | E11: =+'Complete This Page'!F123 -> 0 | F11: =+'Complete This Page'!G123 -> 0 | G11: =+'Complete This Page'!H123 -> 0 | H11: =+'Complete This Page'!I53 -> 0 | I11: =SUM(C11:H11) -> 0 | K11: Need fed NOL to calc allowable charitable contribution deduction.
A12: Note: Fiscal year taxpayers use "fiscal year beginning in 20XX" when completing this schedule.
A17: FEDERAL TAXABLE INCOME CALCULATION
A18: For use by taxpayers that are not C Corporations
B20: Part I: Federal Taxable Income as if a C Corporation
A21: 1 | B21: Income before net operating losses and special deductions | H21: =+'Complete This Page'!I42 -> 0 | J21: =+A21 -> 1
A22: =+A21+1 -> 2 | B22: Qualified self-employed retirement plan for owners | F22: =+'Complete This Page'!I56 -> 0
A23: =+A22+1 -> 3 | B23: Health insurance paid or accrued for owners | F23: =+'Complete This Page'!I57 -> 0
A24: 4 | B24: Life insurance paid or accrued for owners | F24: =+'Complete This Page'!I58 -> 0
A25: 5 | B25: =CONCATENATE("Deductions not permitted by §718.01(A)(1)(g). Combine lines ",A22," - ",A24) -> Deductions not permitted by §718.01(A)(1)(g). Combine lines 2 - 4 | H25: =SUM(F22:F24) -> 0 | J25: =+A25 -> 5
A26: 6 | B26: =CONCATENATE("Combine lines ",A21," and ",A25) -> Combine lines 1 and 5 | H26: =+H21+H25 -> 0 | J26: 6
A27: 7 | B27: =CONCATENATE("Allowable prior year capital losses. Enter the amount from line ",A62) -> Allowable prior year capital losses. Enter the amount from line 36 | H27: =+H62 -> 0 | J27: 7
A28: 8 | B28: =CONCATENATE("Subtract line ",A27," from ",A26) -> Subtract line 7 from 6 | H28: =+H26-H27 -> 0 | J28: 8
A29: 9 | B29: =CONCATENATE("Capital losses in excess of capital gains. Enter the amount from line ",A65) -> Capital losses in excess of capital gains. Enter the amount from line 38 | H29: =+H65 -> 0 | J29: 9
A30: 10 | B30: =CONCATENATE("Add line ",A29," from ",A28) -> Add line 9 from 8 | H30: =+H28+H29 -> 0 | J30: 10
A31: =+A30+1 -> 11 | B31: Section 179 deduction in the current year | F31: =+H11 -> 0
A32: 12 | B32: Charitable contributions deducted in the current year | F32: =+H7 -> 0
A33: 13 | B33: =CONCATENATE("Combine lines ",A31," and ",A32) -> Combine lines 11 and 12 | H33: =SUM(F31:G32) -> 0 | J33: 13
A34: 14 | B34: =CONCATENATE("'C-Corp' Income before contributions, §179, and NOL. Add lines ",A30," and ",A33) -> 'C-Corp' Income before contributions, §179, and NOL. Add lines 10 and 13 | H34: =+H30+H33 -> 0 | J34: 14
A36: =+A34+1 -> 15 | B36: =CONCATENATE("Enter the amount on line ",A34,". If line ",A34," is less than zero, enter zero") -> Enter the amount on line 14. If line 14 is less than zero, enter zero | H36: =IF(H34<0,0,H34) -> 0 | J36: 15
A37: 16 | B37: =CONCATENATE("Allowable current year §179 deduction. Enter the lesser of line ",A31," or line ",A36) -> Allowable current year §179 deduction. Enter the lesser of line 11 or line 15 | H37: =IF(F31<H36,F31,H36) -> 0 | J37: 16
A38: 17 | B38: =CONCATENATE("Subtract line ",A37," from line ",A34) -> Subtract line 16 from line 14 | H38: =+H34-H37 -> 0 | J38: 17
A39: =+A38+1 -> 18 | B39: =CONCATENATE("Enter the amount on line ",A38,". If line ",A38," is less than zero, enter zero") -> Enter the amount on line 17. If line 17 is less than zero, enter zero | H39: =IF(H38<0,0,H38) -> 0 | J39: =+A39 -> 18
A40: =+A39+1 -> 19 | B40: =CONCATENATE("Enter the lesser of line ",A39," or the unused §179 carryover") -> Enter the lesser of line 18 or the unused §179 carryover | H40: =IF(SUM(C11:G11)<H39,SUM(C11:G11),H39) -> 0 | J40: =+A40 -> 19
A41: =+A40+1 -> 20 | B41: =CONCATENATE("Federal 'C-Corp' income before contribution deduction and NOL. Subtract line ",A40," from ",A38) -> Federal 'C-Corp' income before contribution deduction and NOL. Subtract line 19 from 17 | H41: =+H38-H40 -> 0 | J41: =+A41 -> 20
A43: =+A41+1 -> 21 | B43: =CONCATENATE("Enter the amount on line ",A41,". If line ",A41," is less than zero, enter zero") -> Enter the amount on line 20. If line 20 is less than zero, enter zero | H43: =IF(H41<0,0,H41) -> 0 | J43: 21
A44: 22 | B44: =CONCATENATE("Enter the lesser of line ",A43," or the federal net operating loss carryover") -> Enter the lesser of line 21 or the federal net operating loss carryover | H44: =IF(H43<I10,H43,I10) -> 0 | J44: 22
A45: 23 | B45: =CONCATENATE("Federal 'C-Corp' income before contribution deduction. Subtract line ",A44," from ",A41) -> Federal 'C-Corp' income before contribution deduction. Subtract line 22 from 20 | H45: =+H41-H44 -> 0 | J45: 23
A47: =+A45+1 -> 24 | B47: =CONCATENATE("Enter the amount on line ",A45,". If line ",A45," is less than zero, enter zero") -> Enter the amount on line 23. If line 23 is less than zero, enter zero | H47: =IF(H45<0,0,H45) -> 0 | J47: =+A47 -> 24
A48: =+A47+1 -> 25 | B48: =CONCATENATE("Multiply line ",A47," by 0.10") -> Multiply line 24 by 0.10 | H48: =ROUND(H47*0.1,0) -> 0 | J48: =+A48 -> 25
A49: =+A48+1 -> 26 | B49: =CONCATENATE("Enter the lesser of line ",A48," or the available contribution deduction and carryovers") -> Enter the lesser of line 25 or the available contribution deduction and carryovers | H49: =IF(H48<I7,H48,I7) -> 0 | J49: =+A49 -> 26
A50: =+A49+1 -> 27 | B50: =CONCATENATE("Federal income as if taxpayer was an 'C-Corp'. Subtract line ",A49," from ",A45) -> Federal income as if taxpayer was an 'C-Corp'. Subtract line 26 from 23 | H50: =+H45-H49 -> 0 | J50: =+A50 -> 27
B52: Part II: Capital Losses
A53: =+A50+1 -> 28 | B53: Net section 1231 gain (attach Form 4797) | F53: =IF('Complete This Page'!I50>0,'Complete This Page'!I50,0) -> 0
A54: =+A53+1 -> 29 | B54: =CONCATENATE("Enter the lesser of line ",A53," or the nonrecaptured 1231 losses") -> Enter the lesser of line 28 or the nonrecaptured 1231 losses | F54: =IF(I9<F53,I9,F53) -> 0
A55: 30 | B55: =CONCATENATE("'C Corp' 1231 capital gain. Subtract line ",A54," from line ",A58) -> 'C Corp' 1231 capital gain. Subtract line 29 from line 33 | H55: =+F53-F54 -> 0 | J55: =+A55 -> 30
A56: 31 | B56: Net short-term capital gain (loss) (attach Sched D) | F56: =+'Complete This Page'!I48 -> 0
A57: 32 | B57: Net long-term capital gain (loss) (attach Sched D) | F57: =+'Complete This Page'!I49 -> 0
A58: 33 | B58: =CONCATENATE("Schedule D capital gain (loss). Combine lines ",A56," and ",A57) -> Schedule D capital gain (loss). Combine lines 31 and 32 | H58: =SUM(F56:G57) -> 0 | J58: =+A58 -> 33
A59: 34 | B59: =CONCATENATE("Current year capital gain (loss). Combine lines ",A55," and ",A58) -> Current year capital gain (loss). Combine lines 30 and 33 | H59: =+H55+H58 -> 0 | J59: =+A59 -> 34
A61: =+A59+1 -> 35 | B61: =CONCATENATE("If the amount on line ",A59," is a gain, enter the gain here") -> If the amount on line 34 is a gain, enter the gain here | H61: =IF(H59>0,H59,0) -> 0 | J61: =+A61 -> 35
A62: =+A61+1 -> 36 | B62: =CONCATENATE("Enter the lesser of line ",A61," or the capital loss carryover") -> Enter the lesser of line 35 or the capital loss carryover | H62: =IF(H61<I8,H61,I8) -> 0 | J62: =+A62 -> 36
A63: =+A62+1 -> 37 | B63: =CONCATENATE("'C Corp' net capital gains & losses. Subtract line ",A62," from ",A61) -> 'C Corp' net capital gains & losses. Subtract line 36 from 35 | H63: =+H61-H62 -> 0 | J63: =+A63 -> 37
A65: =+A63+1 -> 38 | B65: =CONCATENATE("Capital losses in excess of capital gains. If line ",A59," is a loss, enter the loss here") -> Capital losses in excess of capital gains. If line 34 is a loss, enter the loss here | H65: =IF(H59<0,-H59,0) -> 0 | J65: =+A65 -> 38

Sheet Form 8903
A1: Form | B1: 8903 | C1: Domestic Production Activities Deduction | G1: =+'Print Schedules'!K1 -> 1900
A2: RITA Substitute Form | C2: Substitute Form for Use by Non-C-Corporations | G2: =+'Complete This Page'!J1 -> NPAC v2024.0
A3: Name(s) as shown on return | G3: Identifying number
B4: =+'Complete This Page'!B3 -> 0 | G4: =+'Complete This Page'!G3 -> 0
B5: Note. Do not complete column (a), unless you have oil-related production activities. Enter amounts for all activites in column (b), including oil-related production activities. | D5: (a) | G5: (b)
D6: Oil-related production activities | G6: All activities
A7: 1 | B7: Domestic production gross receipts (DPGR) | D7: =+A7 -> 1
A8: =+A7+1 -> 2 | B8: Allocable cost of good sold. If you are using the small business simplified overall method, skip lines 2 and 3. | D8: 2
A9: 3 | B9: Deductions and losses allocable to DPGR | D9: 3
A10: 4 | B10: If you are using the small business simplified overall method, enter the amount of cost of goods sold and other deductions or losses you ratably apportion to DPGR. All others, skip line 4 | D10: 4
A11: 5 | B11: Add lines 2 through 4 | D11: 5 | E11: =SUM(E8:E10) -> 0 | G11: =SUM(G8:G10) -> 0
A12: 6 | B12: Subtract Line 5 from line 1 | D12: 6 | E12: =+E7-E11 -> 0 | G12: =G7-G11 -> 0
A13: 7 | B13: Qualified production activities from estates, trusts, and certain partnerships and S corporations | D13: 7
A14: 8 | B14: Add lines 6 and 7. Estates & trusts go to line 9, all others skip line 9 and go to line 10 | D14: 8 | E14: =+E12+E13 -> 0 | G14: =+G12+G13 -> 0
A15: 9 | B15: Amount allocated to beneficiaries of the estate or trust | D15: 9 | E15: 0 | G15: 0
A16: 10a | B16: Oil-related qualified production activities income. Estates & trusts subtract line 9, column (a), from line 8, column (a), all others enter the amount from line 8, column (a). If zero or less, enter -0- here. | D16: 10a | E16: =IF(E14-E15 <0, 0, E14-E15) -> 0
A17: b | B17: Qualified production activities income. Estates & trusts subtract line 9, column (b), from line 8, column (b), all others enter the amount from line 8, column (b). If zero or less, enter -0- here, skip lines 1 through 21, and enter -0- on line 22. | D17: 10b | G17: =IF(G14-G15 <0, 0, G14-G15) -> 0
A18: 11 | B18: Income limitation. Enter taxable income before DPAD from line 32 below | F18: =+A18 -> 11 | G18: =+G46 -> 0
A19: 12 | B19: Enter the smaller of line 10b or 11. If zero or less, enter -0- here, skip lines 13 trhough 21,and enter -0- on line 22. | F19: 12 | G19: =IF(G18<0, 0, IF(G18<G17,G18,G17)) -> 0
A20: 13 | B20: =IF(G1<2010,"Enter 6% of line 12","Enter 9% of Line 12") -> Enter 6% of line 12 | F20: 13 | G20: =IF(G1<2010,ROUND(G19*0.06,0),ROUND(G19*0.09,0)) -> 0
A21: 14a | B21: Enter the smaller of line 10a or line 12 | D21: =+A21 -> 14a | E21: =IF(E16<G19, E16, G19) -> 0
A22: b | B22: Reduction for oil-related qualified production activities income. Multiply line 14a by 3% | F22: 14b | G22: =ROUND(E21*0.03,0) -> 0
A23: 15 | B23: Subtract line 14b from line 13 | F23: =+A23 -> 15 | G23: =+G20-G22 -> 0
A24: 16 | B24: Form W-2 wages allocable to DPGR | F24: 16
A25: 17 | B25: Form W-2 wages from estates, trusts, and certain partnerships and S corporations | F25: 17
A26: 18 | B26: Add lines 16 and 17. Estates & trusts go to line 19, all others, skip line 19 and go to line 20 | F26: 18 | G26: =+G24+G25 -> 0
A27: 19 | B27: Amount allocated to beneficiaries of the estate or trust | F27: 19 | G27: 0
A28: 20 | B28: Estates & trusts, subtract line 19 from line 18, all others, enter the amount from line 18 | F28: 20 | G28: =+G26-G27 -> 0
A29: 21 | B29: Form W-2 wages limitation. Enter 50% of line 20 | F29: 21 | G29: =ROUND(G28*0.5,0) -> 0
A30: 22 | B30: Enter the smaller of line 15 or line 21 | F30: 22 | G30: =IF(G29<G23, G29,G23) -> 0
A31: 23 | B31: Domestic production activities deduction from cooperatives (box 6 of Form 1099-PATR) | F31: 23
A32: 24 | B32: Expanded affiliated group allocation | F32: 24
A33: 25 | B33: Domestic production activities deduction. Combine lines 20 through 24. | F33: 25 | G33: =SUM(G30:G32) -> 0
A35: Federal Taxable Income for Income Limitiation
A36: 26 | B36: Federal taxable income before net operating losses and special deductions | F36: =+A36 -> 26 | G36: =+'Fed Carryovers'!H21 -> 0
A37: =+A36+1 -> 27 | B37: Federal net operating loss calculated as if a C-corporation | D37: =+A37 -> 27
A38: 28 | B38: Federal dividend & special deductions calculated as if a C-corporation | D38: =+A38 -> 28
A39: 29 | B39: Add Lines 27 and 28 | F39: =+A39 -> 29 | G39: =ABS(E37)+ABS(E38) -> 0
A40: 30 | B40: Federal taxable income calculated as if a C-corporation before required adjustments | F40: =+A40 -> 30 | G40: =+G36-G39 -> 0
A41: 31 | B41: Owner health, life or qualified self-employed retirement plan | D41: =+A41 -> 31 | E41: =+'Fed Carryovers'!H25 -> 0
A42: 32 | B42: Capital losses in excess of gains or (capital loss carryovers used) | D42: =+A42 -> 32 | E42: =+'Fed Carryovers'!H29-'Fed Carryovers'!H27 -> 0
A43: 33 | B43: Excess §179 deductions of (§179 carryovers used) | D43: =+A43 -> 33 | E43: =IF(Data!F9=TRUE,0,Data!C159) -> 0
A44: 34 | B44: Excess charitable contributions or (contribution carryovers used) | D44: =+A44 -> 34 | E44: =IF(Data!F9=TRUE,0,Data!C148) -> 0
A45: 35 | B45: =CONCATENATE("Combine lines ",A41," through ",A44) -> Combine lines 31 through 34 | F45: =+A45 -> 35 | G45: =SUM(E41:E44) -> 0
A46: 36 | B46: Federal taxable income calculated as if a C-Corporation per ORC 718.01(A)(1)(g) | F46: =+A46 -> 36 | G46: =+G40+G45 -> 0
A47: Note: Line 26 does not included a deduction for guaranteed payments and thus satisfies the requirements of ORC §718.01(A)(1)(g)(i).

Sheet Form 8903 (pre 2011) (hidden)
A1: Form | B1: 8903 | C1: Domestic Production Activities Deduction | H1: =+'Print Schedules'!K1 -> 1900
A2: RITA Substitute Form | C2: Substitute Form for Use by Non-C-Corporations | H2: =+'Complete This Page'!J1 -> NPAC v2024.0
A3: Name(s) as shown on return | G3: Identifying number
B4: =+'Complete This Page'!B3 -> 0 | H4: =+'Complete This Page'!G3 -> 0
A5: 1 | B5: Domestic production gross receipts (DPGR) | D5: =IF('Complete This Page'!I67="","",IF(H5>'Complete This Page'!I67,"Warning: DPGR exceeds Gross Receipts","")) ->  | G5: =+A5 -> 1
A6: =+A5+1 -> 2 | B6: Allocable cost of good sold (skip lines 2 & 3 if using small business method). | D6: =+A6 -> 2
A7: 3 | B7: Deductions and losses allocable to DPGR | D7: =+A7 -> 3
A8: 4 | B8: Small business method cost of goods sold & deductions | D8: =+A8 -> 4
A9: 5 | B9: Add lines 2 through 4 | G9: =+A9 -> 5 | H9: =SUM(E6:E8) -> 0
A10: 6 | B10: Subtract Line 5 from line 1 | G10: 6 | H10: =H5-H9 -> 0
A11: 7 | B11: Qualified production activities from estates, trusts, and certain partnerships & s-corps | G11: 7
A12: 8 | B12: Add lines 6 and 7. Estates & trusts go to line 9, all others skip line 9 & go to line 10 | G12: 8 | H12: =+H10+H11 -> 0
A13: 9 | B13: Amount allocated to beneficiaries of the estate or trust | G13: 9 | H13: 0
A14: 10 | B14: Qualified production activities income. Estates & trusts subtract line 9 from line 8, all other enter the amount from line 8. If zero or less, enter -0- here and on line 20 | G14: 10 | H14: =IF(H12-H13 <0, 0, H12-H13) -> 0
A15: 11 | B15: Income limitation. Enter taxable income before DPAD from line 30 below | G15: 11 | H15: =+H40 -> 0
A16: 12 | B16: Enter the smaller of line 10 or 11. If zero or less, enter -0- here and on line 20 | G16: 12 | H16: =IF(H15<0, 0, IF(H15<H14,H15,H14)) -> 0
A17: 13 | B17: =IF(H1<2010,"Enter 6% of line 12","Enter 9% of Line 12") -> Enter 6% of line 12 | G17: 13 | H17: =IF(H1<2010,ROUND(H16*0.06,0),ROUND(H16*0.09,0)) -> 0
A18: 14 | B18: Form W-2 wages allocable to DPGR | D18: =IF(SUM('Complete This Page'!I68:I70) = 0,"",IF(H18>SUM('Complete This Page'!I68:I70),"Warning: Wages exceed total wages","")) ->  | G18: 14
A19: 15 | B19: Form W-2 wages from estates, trusts, and certain partnerships & s-corps | G19: 15
A20: 16 | B20: Add lines 14 and 15. Estates & trusts go to line 17, all other skip line 17 & go to line 18 | G20: 16 | H20: =+H18+H19 -> 0
A21: 17 | B21: Amount allocated to beneficiaries of the estate or trust | G21: 17 | H21: 0
A22: 18 | B22: Estates & trusts, subtract line 17 from line 16, all other enter the amount from line 16 | G22: 18 | H22: =+H20-H21 -> 0
A23: 19 | B23: Form W-2 wages limitation. Enter 50% of line 18 | G23: 19 | H23: =ROUND(H22*0.5,0) -> 0
A24: 20 | B24: Enter the smaller of line 13 or line 19 | G24: 20 | H24: =IF(H23<H17, H23,H17) -> 0
A25: 21 | B25: Domestic production activities deduction from cooperatives (box 6 of Form 1099-PATR) | G25: 21
A26: 22 | B26: Expanded affiliated group allocation | G26: 22
A27: 23 | B27: Domestic production activities deduction. Combine lines 20 through 22. | G27: 23 | H27: =SUM(H24:H26) -> 0
A29: Federal Taxable Income for Income Limitiation
A30: 24 | B30: Federal taxable income before net operating losses and special deductions | G30: =+A30 -> 24 | H30: =+'Fed Carryovers'!H21 -> 0
A31: =+A30+1 -> 25 | B31: Federal net operating loss calculated as if a C-corporation | D31: =+A31 -> 25
A32: 26 | B32: Federal dividend & special deductions calculated as if a C-corporation | D32: =+A32 -> 26
A33: 27 | B33: Add Lines 27 and 28 | G33: =+A33 -> 27 | H33: =+ABS(E31)+ABS(E32) -> 0
A34: 28 | B34: Federal taxable income calculated as if a C-corporation before required adjustments | G34: =+A34 -> 28 | H34: =+H30-H33 -> 0
A35: 29 | B35: Owner health, life or qualified self-employed retirement plan | D35: =+A35 -> 29 | E35: =+'Fed Carryovers'!H25 -> 0
A36: 30 | B36: Capital losses in excess of gains or (loss carryovers used) | D36: =+A36 -> 30 | E36: =+'Fed Carryovers'!H29-'Fed Carryovers'!H27 -> 0
A37: 31 | B37: Excess §179 deductions of (§179 carryovers used) | D37: =+A37 -> 31 | E37: =IF(Data!F9=TRUE,0,Data!C159) -> 0
A38: 32 | B38: Excess charitable contributions or (contribution carryovers used) | D38: =+A38 -> 32 | E38: =IF(Data!F9=TRUE,0,Data!C148) -> 0
A39: 33 | B39: =CONCATENATE("Combine lines ",A35," through ",A38) -> Combine lines 29 through 32 | G39: =+A39 -> 33 | H39: =SUM(E35:E38) -> 0
A40: 34 | B40: Federal taxable income calculated as if a C-Corporation per ORC 718.01(A)(1)(g) | G40: =+A40 -> 34 | H40: =+H34+H39 -> 0
A41: Note: Line 24 does not included a deduction for guaranteed payments and thus satisfies the requirements of ORC §718.01(A)(1)(g)(i).

Sheet References (hidden)
B1: Tax Year Selected: | C1: =IF('Complete This Page'!G11="",YEAR('Complete This Page'!H11),'Complete This Page'!G11) -> 1900
B2: Tax Year Used for References: | C2: =IF(C1<2024,2023,C1) -> 2023
B3: Form Selected: | C3: =IF(Data!B9=TRUE,1040,IF(Data!B10=TRUE,1041,IF(Data!B11=TRUE,1065,IF(Data!B12=TRUE,1120,IF(Data!B13=TRUE,"1120-A",IF(Data!B14=TRUE,"1120-REIT",IF(Data!B15=TRUE,"1120S","Other"))))))) -> Other
E4: 2003 | F4: 2004 | G4: 2005 | H4: 2006 | I4: 2007 | J4: 2008 | K4: 2009 | L4: 2010 | M4: 2011 | N4: 2012 | O4: 2013 | P4: 2014 | Q4: 2015 | R4: 2016 | S4: 2017 | T4: 2018 | U4: 2019 | V4: 2020 | W4: 2021 | X4: 2022 | Y4: 2023 | Z4: 2024
A5: Indx | B5: Worksheet References 1041 | E5: 2003 | F5: 2004 | G5: 2005 | H5: 2006 | I5: 2007 | J5: 2008 | K5: 2009 | L5: 2010 | M5: 2011 | N5: 2012 | O5: 2013 | P5: 2014 | Q5: 2015 | R5: 2016 | S5: 2017 | T5: 2018 | U5: 2019 | V5: 2020 | W5: 2021 | X5: 2022 | Y5: 2023 | Z5: 2024
A6: 2 | B6: Federal Income | C6: =HLOOKUP($C$2,$E$5:$Z$255,$A6,FALSE) -> Form 1041, Pg 1, Ln 17 | D6: 1 | E6: Year not supported | F6: Form 1041, Pg 1, Ln 17 | G6: Form 1041, Pg 1, Ln 17 | H6: Form 1041, Pg 1, Ln 17 | I6: Form 1041, Pg 1, Ln 17 | J6: Form 1041, Pg 1, Ln 17 | K6: Form 1041, Pg 1, Ln 17 | L6: Form 1041, Pg 1, Ln 17 | M6: Form 1041, Pg 1, Ln 17 | N6: Form 1041, Pg 1, Ln 17 | O6: Form 1041, Pg 1, Ln 17 | P6: Form 1041, Pg 1, Ln 17 | Q6: Form 1041, Pg 1, Ln 17 | R6: Form 1041, Pg 1, Ln 17 | S6: Form 1041, Pg 1, Ln 17 | T6: Form 1041, Pg 1, Ln 17 | U6: Form 1041, Pg 1, Ln 17 | V6: Form 1041, Pg 1, Ln 17 | W6: Form 1041, Pg 1, Ln 17 | X6: Form 1041, Pg 1, Ln 17 | Y6: Form 1041, Pg 1, Ln 17 | Z6: Form 1041, Pg 1, Ln 17
A7: =+A6+1 -> 3 | B7: Gross Receipts/Sales | C7: =HLOOKUP($C$2,$E$5:$Z$255,$A7,FALSE) -> From Schedules C, E & F | D7: =+D6+1 -> 2 | E7: Year not supported | F7: Form 1041, Pg 1, Lns 3, 5 & 6 | G7: Form 1041, Pg 1, Lns 3, 5 & 6 | H7: Form 1041, Pg 1, Lns 3, 5 & 6 | I7: Form 1041, Pg 1, Lns 3, 5 & 6 | J7: From Schedules C, E & F | K7: From Schedules C, E & F | L7: From Schedules C, E & F | M7: From Schedules C, E & F | N7: From Schedules C, E & F | O7: From Schedules C, E & F | P7: From Schedules C, E & F | Q7: From Schedules C, E & F | R7: From Schedules C, E & F | S7: From Schedules C, E & F | T7: From Schedules C, E & F | U7: From Schedules C, E & F | V7: From Schedules C, E & F | W7: From Schedules C, E & F | X7: From Schedules C, E & F | Y7: From Schedules C, E & F | Z7: From Schedules C, E & F
A8: =+A7+1 -> 4 | B8: Interest Income | C8: Form 1041, Pg 1, Ln 1 | D8: 3 | E8: Year not supported | F8: Form 1041, Pg 1, Ln 1 | G8: Form 1041, Pg 1, Ln 1 | H8: Form 1041, Pg 1, Ln 1 | I8: Form 1041, Pg 1, Ln 1 | J8: Form 1041, Pg 1, Ln 1 | K8: Form 1041, Pg 1, Ln 1 | L8: Form 1041, Pg 1, Ln 1 | M8: Form 1041, Pg 1, Ln 1 | N8: Form 1041, Pg 1, Ln 1 | O8: Form 1041, Pg 1, Ln 1 | P8: Form 1041, Pg 1, Ln 1 | Q8: Form 1041, Pg 1, Ln 1 | R8: Form 1041, Pg 1, Ln 1 | S8: Form 1041, Pg 1, Ln 1 | T8: Form 1041, Pg 1, Ln 1 | U8: Form 1041, Pg 1, Ln 1 | V8: Form 1041, Pg 1, Ln 1 | W8: Form 1041, Pg 1, Ln 1 | X8: Form 1041, Pg 1, Ln 1 | Y8: Form 1041, Pg 1, Ln 1 | Z8: Form 1041, Pg 1, Ln 1
A9: 5 | B9: Dividends | C9: Form 1041, Pg 1, Ln 2a | D9: 4 | E9: Year not supported | F9: Form 1041, Pg 1, Ln 2a | G9: Form 1041, Pg 1, Ln 2a | H9: Form 1041, Pg 1, Ln 2a | I9: Form 1041, Pg 1, Ln 2a | J9: Form 1041, Pg 1, Ln 2a | K9: Form 1041, Pg 1, Ln 2a | L9: Form 1041, Pg 1, Ln 2a | M9: Form 1041, Pg 1, Ln 2a | N9: Form 1041, Pg 1, Ln 2a | O9: Form 1041, Pg 1, Ln 2a | P9: Form 1041, Pg 1, Ln 2a | Q9: Form 1041, Pg 1, Ln 2a | R9: Form 1041, Pg 1, Ln 2a | S9: Form 1041, Pg 1, Ln 2a | T9: Form 1041, Pg 1, Ln 2a | U9: Form 1041, Pg 1, Ln 2a | V9: Form 1041, Pg 1, Ln 2a | W9: Form 1041, Pg 1, Ln 2a | X9: Form 1041, Pg 1, Ln 2a | Y9: Form 1041, Pg 1, Ln 2a | Z9: Form 1041, Pg 1, Ln 2a
A10: 6 | B10: Royalties | C10: Part of Form 1041, Pg 1, Ln 5 | D10: 5 | E10: Year not supported | F10: Part of Form 1041, Pg 1, Ln 5 | G10: Part of Form 1041, Pg 1, Ln 5 | H10: Part of Form 1041, Pg 1, Ln 5 | I10: Part of Form 1041, Pg 1, Ln 5 | J10: Part of Form 1041, Pg 1, Ln 5 | K10: Part of Form 1041, Pg 1, Ln 5 | L10: Part of Form 1041, Pg 1, Ln 5 | M10: Part of Form 1041, Pg 1, Ln 5 | N10: Part of Form 1041, Pg 1, Ln 5 | O10: Part of Form 1041, Pg 1, Ln 5 | P10: Part of Form 1041, Pg 1, Ln 5 | Q10: Part of Form 1041, Pg 1, Ln 5 | R10: Part of Form 1041, Pg 1, Ln 5 | S10: Part of Form 1041, Pg 1, Ln 5 | T10: Part of Form 1041, Pg 1, Ln 5 | U10: Part of Form 1041, Pg 1, Ln 5 | V10: Part of Form 1041, Pg 1, Ln 5 | W10: Part of Form 1041, Pg 1, Ln 5 | X10: Part of Form 1041, Pg 1, Ln 5 | Y10: Part of Form 1041, Pg 1, Ln 5 | Z10: Part of Form 1041, Pg 1, Ln 5
A11: 7 | B11: Pass-Thru Income | C11: Part of Form 1041, Pg 1, Ln 5 | D11: 6 | E11: Year not supported | F11: Part of Form 1041, Pg 1, Ln 5 | G11: Part of Form 1041, Pg 1, Ln 5 | H11: Part of Form 1041, Pg 1, Ln 5 | I11: Part of Form 1041, Pg 1, Ln 5 | J11: Part of Form 1041, Pg 1, Ln 5 | K11: Part of Form 1041, Pg 1, Ln 5 | L11: Part of Form 1041, Pg 1, Ln 5 | M11: Part of Form 1041, Pg 1, Ln 5 | N11: Part of Form 1041, Pg 1, Ln 5 | O11: Part of Form 1041, Pg 1, Ln 5 | P11: Part of Form 1041, Pg 1, Ln 5 | Q11: Part of Form 1041, Pg 1, Ln 5 | R11: Part of Form 1041, Pg 1, Ln 5 | S11: Part of Form 1041, Pg 1, Ln 5 | T11: Part of Form 1041, Pg 1, Ln 5 | U11: Part of Form 1041, Pg 1, Ln 5 | V11: Part of Form 1041, Pg 1, Ln 5 | W11: Part of Form 1041, Pg 1, Ln 5 | X11: Part of Form 1041, Pg 1, Ln 5 | Y11: Part of Form 1041, Pg 1, Ln 5 | Z11: Part of Form 1041, Pg 1, Ln 5
A12: 8 | B12: Officer's Comp | C12: Not Applicable | D12: 7 | E12: Year not supported | F12: Not Applicable | G12: Not Applicable | H12: Not Applicable | I12: Not Applicable | J12: Not Applicable | K12: Not Applicable | L12: Not Applicable | M12: Not Applicable | N12: Not Applicable | O12: Not Applicable | P12: Not Applicable | Q12: Not Applicable | R12: Not Applicable | S12: Not Applicable | T12: Not Applicable | U12: Not Applicable | V12: Not Applicable | W12: Not Applicable | X12: Not Applicable | Y12: Not Applicable | Z12: Not Applicable
A13: 9 | B13: Salaries & Wages | C13: From Schedules C, E & F | D13: 8 | E13: Year not supported | F13: From Schedules C, E & F | G13: From Schedules C, E & F | H13: From Schedules C, E & F | I13: From Schedules C, E & F | J13: From Schedules C, E & F | K13: From Schedules C, E & F | L13: From Schedules C, E & F | M13: From Schedules C, E & F | N13: From Schedules C, E & F | O13: From Schedules C, E & F | P13: From Schedules C, E & F | Q13: From Schedules C, E & F | R13: From Schedules C, E & F | S13: From Schedules C, E & F | T13: From Schedules C, E & F | U13: From Schedules C, E & F | V13: From Schedules C, E & F | W13: From Schedules C, E & F | X13: From Schedules C, E & F | Y13: From Schedules C, E & F | Z13: From Schedules C, E & F
A14: 10 | B14: Cost of Labor | C14: Not Applicable | D14: 9 | E14: Year not supported | F14: Not Applicable | G14: Not Applicable | H14: Not Applicable | I14: Not Applicable | J14: Not Applicable | K14: Not Applicable | L14: Not Applicable | M14: Not Applicable | N14: Not Applicable | O14: Not Applicable | P14: Not Applicable | Q14: Not Applicable | R14: Not Applicable | S14: Not Applicable | T14: Not Applicable | U14: Not Applicable | V14: Not Applicable | W14: Not Applicable | X14: Not Applicable | Y14: Not Applicable | Z14: Not Applicable
A15: 11 | B15: Other Wages | C15: Not Applicable | D15: 10 | E15: Year not supported | F15: Not Applicable | G15: Not Applicable | H15: Not Applicable | I15: Not Applicable | J15: Not Applicable | K15: Not Applicable | L15: Not Applicable | M15: Not Applicable | N15: Not Applicable | O15: Not Applicable | P15: Not Applicable | Q15: Not Applicable | R15: Not Applicable | S15: Not Applicable | T15: Not Applicable | U15: Not Applicable | V15: Not Applicable | W15: Not Applicable | X15: Not Applicable | Y15: Not Applicable | Z15: Not Applicable
A16: 12 | B16: Rents: Real Prop | C16: Various | D16: 11 | E16: Year not supported | F16: Various | G16: Various | H16: Various | I16: Various | J16: Various | K16: Various | L16: Various | M16: Various | N16: Various | O16: Various | P16: Various | Q16: Various | R16: Various | S16: Various | T16: Various | U16: Various | V16: Various | W16: Various | X16: Various | Y16: Various | Z16: Various
A17: 13 | B17: Rents in COGS | C17: Various | D17: 12 | E17: Year not supported | F17: Various | G17: Various | H17: Various | I17: Various | J17: Various | K17: Various | L17: Various | M17: Various | N17: Various | O17: Various | P17: Various | Q17: Various | R17: Various | S17: Various | T17: Various | U17: Various | V17: Various | W17: Various | X17: Various | Y17: Various | Z17: Various
A18: 14 | B18: Income Taxes | C18: =HLOOKUP($C$2,$E$5:$Z$255,$A18,FALSE) -> Part of: 1041, Pg 1, Ln 11 & Sched E, Part 1, Ln 16 | D18: 13 | E18: Year not supported | F18: Part of: 1041, Pg 1, Ln 11 & Sched E, Part 1, Ln 16 | G18: Part of: 1041, Pg 1, Ln 11 & Sched E, Part 1, Ln 16 | H18: Part of: 1041, Pg 1, Ln 11 & Sched E, Part 1, Ln 16 | I18: Part of: 1041, Pg 1, Ln 11 & Sched E, Part 1, Ln 16 | J18: Part of: 1041, Pg 1, Ln 11 & Sched E, Part 1, Ln 16 | K18: Part of: 1041, Pg 1, Ln 11 & Sched E, Part 1, Ln 16 | L18: Part of: 1041, Pg 1, Ln 11 & Sched E, Part 1, Ln 16 | M18: Part of: 1041, Pg 1, Ln 11 & Sched E, Part 1, Ln 16 | N18: Part of: 1041, Pg 1, Ln 11 & Sched E, Part 1, Ln 16 | O18: Part of: 1041, Pg 1, Ln 11 & Sched E, Part 1, Ln 16 | P18: Part of: 1041, Pg 1, Ln 11 & Sched E, Part 1, Ln 16 | Q18: Part of: 1041, Pg 1, Ln 11 & Sched E, Part 1, Ln 16 | R18: Part of: 1041, Pg 1, Ln 11 & Sched E, Part 1, Ln 16 | S18: Part of: 1041, Pg 1, Ln 11 & Sched E, Part 1, Ln 16 | T18: Part of: 1041, Pg 1, Ln 11 & Sched E, Part 1, Ln 16 | U18: Part of: 1041, Pg 1, Ln 11 & Sched E, Part 1, Ln 16 | V18: Part of: 1041, Pg 1, Ln 11 & Sched E, Part 1, Ln 16 | W18: Part of: 1041, Pg 1, Ln 11 & Sched E, Part 1, Ln 16 | X18: Part of: 1041, Pg 1, Ln 11 & Sched E, Part 1, Ln 16 | Y18: Part of: 1041, Pg 1, Ln 11 & Sched E, Part 1, Ln 16 | Z18: Part of: 1041, Pg 1, Ln 11 & Sched E, Part 1, Ln 16
A19: 15 | B19: Inventories (B) | C19: =HLOOKUP($C$2,$E$5:$Z$255,$A19,FALSE) -> Trust's Books & Records | D19: 14 | E19: Year not supported | F19: Trust's Books & Records | G19: Trust's Books & Records | H19: Trust's Books & Records | I19: Trust's Books & Records | J19: Trust's Books & Records | K19: Trust's Books & Records | L19: Trust's Books & Records | M19: Trust's Books & Records | N19: Trust's Books & Records | O19: Trust's Books & Records | P19: Trust's Books & Records | Q19: Trust's Books & Records | R19: Trust's Books & Records | S19: Trust's Books & Records | T19: Trust's Books & Records | U19: Trust's Books & Records | V19: Trust's Books & Records | W19: Trust's Books & Records | X19: Trust's Books & Records | Y19: Trust's Books & Records | Z19: Trust's Books & Records
A20: 16 | B20: Inventories (E) | C20: Trust's Books & Records | D20: 15 | E20: Year not supported | F20: Trust's Books & Records | G20: Trust's Books & Records | H20: Trust's Books & Records | I20: Trust's Books & Records | J20: Trust's Books & Records | K20: Trust's Books & Records | L20: Trust's Books & Records | M20: Trust's Books & Records | N20: Trust's Books & Records | O20: Trust's Books & Records | P20: Trust's Books & Records | Q20: Trust's Books & Records | R20: Trust's Books & Records | S20: Trust's Books & Records | T20: Trust's Books & Records | U20: Trust's Books & Records | V20: Trust's Books & Records | W20: Trust's Books & Records | X20: Trust's Books & Records | Y20: Trust's Books & Records | Z20: Trust's Books & Records
A21: 17 | B21: Building/Deprec Assets (B) | C21: Trust's Books & Records | D21: 16 | E21: Year not supported | F21: Trust's Books & Records | G21: Trust's Books & Records | H21: Trust's Books & Records | I21: Trust's Books & Records | J21: Trust's Books & Records | K21: Trust's Books & Records | L21: Trust's Books & Records | M21: Trust's Books & Records | N21: Trust's Books & Records | O21: Trust's Books & Records | P21: Trust's Books & Records | Q21: Trust's Books & Records | R21: Trust's Books & Records | S21: Trust's Books & Records | T21: Trust's Books & Records | U21: Trust's Books & Records | V21: Trust's Books & Records | W21: Trust's Books & Records | X21: Trust's Books & Records | Y21: Trust's Books & Records | Z21: Trust's Books & Records
A22: 18 | B22: Building/Deprec Assets (E) | C22: Trust's Books & Records | D22: 17 | E22: Year not supported | F22: Trust's Books & Records | G22: Trust's Books & Records | H22: Trust's Books & Records | I22: Trust's Books & Records | J22: Trust's Books & Records | K22: Trust's Books & Records | L22: Trust's Books & Records | M22: Trust's Books & Records | N22: Trust's Books & Records | O22: Trust's Books & Records | P22: Trust's Books & Records | Q22: Trust's Books & Records | R22: Trust's Books & Records | S22: Trust's Books & Records | T22: Trust's Books & Records | U22: Trust's Books & Records | V22: Trust's Books & Records | W22: Trust's Books & Records | X22: Trust's Books & Records | Y22: Trust's Books & Records | Z22: Trust's Books & Records
A23: 19 | B23: Depletable Assets (B) | C23: Trust's Books & Records | D23: 18 | E23: Year not supported | F23: Trust's Books & Records | G23: Trust's Books & Records | H23: Trust's Books & Records | I23: Trust's Books & Records | J23: Trust's Books & Records | K23: Trust's Books & Records | L23: Trust's Books & Records | M23: Trust's Books & Records | N23: Trust's Books & Records | O23: Trust's Books & Records | P23: Trust's Books & Records | Q23: Trust's Books & Records | R23: Trust's Books & Records | S23: Trust's Books & Records | T23: Trust's Books & Records | U23: Trust's Books & Records | V23: Trust's Books & Records | W23: Trust's Books & Records | X23: Trust's Books & Records | Y23: Trust's Books & Records | Z23: Trust's Books & Records
A24: 20 | B24: Depletable Assets (E) | C24: Trust's Books & Records | D24: 19 | E24: Year not supported | F24: Trust's Books & Records | G24: Trust's Books & Records | H24: Trust's Books & Records | I24: Trust's Books & Records | J24: Trust's Books & Records | K24: Trust's Books & Records | L24: Trust's Books & Records | M24: Trust's Books & Records | N24: Trust's Books & Records | O24: Trust's Books & Records | P24: Trust's Books & Records | Q24: Trust's Books & Records | R24: Trust's Books & Records | S24: Trust's Books & Records | T24: Trust's Books & Records | U24: Trust's Books & Records | V24: Trust's Books & Records | W24: Trust's Books & Records | X24: Trust's Books & Records | Y24: Trust's Books & Records | Z24: Trust's Books & Records
A25: 21 | B25: Land Owned (B) | C25: Trust's Books & Records | D25: 20 | E25: Year not supported | F25: Trust's Books & Records | G25: Trust's Books & Records | H25: Trust's Books & Records | I25: Trust's Books & Records | J25: Trust's Books & Records | K25: Trust's Books & Records | L25: Trust's Books & Records | M25: Trust's Books & Records | N25: Trust's Books & Records | O25: Trust's Books & Records | P25: Trust's Books & Records | Q25: Trust's Books & Records | R25: Trust's Books & Records | S25: Trust's Books & Records | T25: Trust's Books & Records | U25: Trust's Books & Records | V25: Trust's Books & Records | W25: Trust's Books & Records | X25: Trust's Books & Records | Y25: Trust's Books & Records | Z25: Trust's Books & Records
A26: 22 | B26: Land Owned (E) | C26: Trust's Books & Records | D26: 21 | E26: Year not supported | F26: Trust's Books & Records | G26: Trust's Books & Records | H26: Trust's Books & Records | I26: Trust's Books & Records | J26: Trust's Books & Records | K26: Trust's Books & Records | L26: Trust's Books & Records | M26: Trust's Books & Records | N26: Trust's Books & Records | O26: Trust's Books & Records | P26: Trust's Books & Records | Q26: Trust's Books & Records | R26: Trust's Books & Records | S26: Trust's Books & Records | T26: Trust's Books & Records | U26: Trust's Books & Records | V26: Trust's Books & Records | W26: Trust's Books & Records | X26: Trust's Books & Records | Y26: Trust's Books & Records | Z26: Trust's Books & Records
A27: 23 | B27: ST capital gain | C27: Sched D, Part I, Ln 7 | D27: 22 | E27: Year not supported | F27: Sched D, Part I, Ln 1 | G27: Sched D, Part I, Ln 1 | H27: Sched D, Part I, Ln 1 | I27: Sched D, Part I, Ln 1 | J27: Sched D, Part I, Ln 1 | K27: Sched D, Part I, Lns 1a & 1b | L27: Sched D, Part I, Ln 5 | M27: Sched D, Part I, Ln 5 | N27: Sched D, Part I, Ln 5 | O27: Sched D, Part I, Ln 7 | P27: Sched D, Part I, Ln 7 | Q27: Sched D, Part I, Ln 7 | R27: Sched D, Part I, Ln 7 | S27: Sched D, Part I, Ln 7 | T27: Sched D, Part I, Ln 7 | U27: Sched D, Part I, Ln 7 | V27: Sched D, Part I, Ln 7 | W27: Sched D, Part I, Ln 7 | X27: Sched D, Part I, Ln 7 | Y27: Sched D, Part I, Ln 7 | Z27: Sched D, Part I, Ln 7
A28: 24 | B28: LT capital gain | C28: Sched D, Part II, Ln 16 less Ln 14 | D28: 23 | E28: Year not supported | F28: Sched D, Part II, Ln 6 | G28: Sched D, Part II, Ln 6 | H28: Sched D, Part II, Ln 6 | I28: Sched D, Part II, Ln 6 | J28: Sched D, Part II, Ln 6 | K28: Sched D, Part II, Lns 6a & 6b | L28: Sched D, Part II, Lns 6a & 6b | M28: Sched D, Part II, Lns 6a - 8 | N28: Sched D, Part II, Lns 6a - 8 | O28: Sched D, Part II, Ln 16 less Ln 14 | P28: Sched D, Part II, Ln 16 less Ln 14 | Q28: Sched D, Part II, Ln 16 less Ln 14 | R28: Sched D, Part II, Ln 16 less Ln 14 | S28: Sched D, Part II, Ln 16 less Ln 14 | T28: Sched D, Part II, Ln 16 less Ln 14 | U28: Sched D, Part II, Ln 16 less Ln 14 | V28: Sched D, Part II, Ln 16 less Ln 14 | W28: Sched D, Part II, Ln 16 less Ln 14 | X28: Sched D, Part II, Ln 16 less Ln 14 | Y28: Sched D, Part II, Ln 16 less Ln 14 | Z28: Sched D, Part II, Ln 16 less Ln 14
A29: 25 | B29: §1231 gain (loss) | C29: 4797, Part I, Ln 7 | D29: 24 | E29: Year not supported | F29: 4797, Part I, Ln 7 | G29: 4797, Part I, Ln 7 | H29: 4797, Part I, Ln 7 | I29: 4797, Part I, Ln 7 | J29: 4797, Part I, Ln 7 | K29: 4797, Part I, Ln 7 | L29: 4797, Part I, Ln 7 | M29: 4797, Part I, Ln 7 | N29: 4797, Part I, Ln 7 | O29: 4797, Part I, Ln 7 | P29: 4797, Part I, Ln 7 | Q29: 4797, Part I, Ln 7 | R29: 4797, Part I, Ln 7 | S29: 4797, Part I, Ln 7 | T29: 4797, Part I, Ln 7 | U29: 4797, Part I, Ln 7 | V29: 4797, Part I, Ln 7 | W29: 4797, Part I, Ln 7 | X29: 4797, Part I, Ln 7 | Y29: 4797, Part I, Ln 7 | Z29: 4797, Part I, Ln 7
A30: 26 | B30: §179 Deduction | C30: 4562, Part I, Ln 12 | D30: 25 | E30: Year not supported | F30: 4562, Part I, Ln 12 | G30: 4562, Part I, Ln 12 | H30: 4562, Part I, Ln 12 | I30: 4562, Part I, Ln 12 | J30: 4562, Part I, Ln 12 | K30: 4562, Part I, Ln 12 | L30: 4562, Part I, Ln 12 | M30: 4562, Part I, Ln 12 | N30: 4562, Part I, Ln 12 | O30: 4562, Part I, Ln 12 | P30: 4562, Part I, Ln 12 | Q30: 4562, Part I, Ln 12 | R30: 4562, Part I, Ln 12 | S30: 4562, Part I, Ln 12 | T30: 4562, Part I, Ln 12 | U30: 4562, Part I, Ln 12 | V30: 4562, Part I, Ln 12 | W30: 4562, Part I, Ln 12 | X30: 4562, Part I, Ln 12 | Y30: 4562, Part I, Ln 12 | Z30: 4562, Part I, Ln 12
A31: 27 | B31: §179 Carryover to Next Year | C31: 4562, Part I, Ln 13 | D31: =+D30+1 -> 26 | E31: Year not supported | F31: 4562, Part I, Ln 13 | G31: 4562, Part I, Ln 13 | H31: 4562, Part I, Ln 13 | I31: 4562, Part I, Ln 13 | J31: 4562, Part I, Ln 13 | K31: 4562, Part I, Ln 13 | L31: 4562, Part I, Ln 13 | M31: 4562, Part I, Ln 13 | N31: 4562, Part I, Ln 13 | O31: 4562, Part I, Ln 13 | P31: 4562, Part I, Ln 13 | Q31: 4562, Part I, Ln 13 | R31: 4562, Part I, Ln 13 | S31: 4562, Part I, Ln 13 | T31: 4562, Part I, Ln 13 | U31: 4562, Part I, Ln 13 | V31: 4562, Part I, Ln 13 | W31: 4562, Part I, Ln 13 | X31: 4562, Part I, Ln 13 | Y31: 4562, Part I, Ln 13 | Z31: 4562, Part I, Ln 13
A32: 28 | B32: Contributions | C32: Form 1041, Pg 1, Ln 13 | D32: =+D31+1 -> 27 | E32: Year not supported | F32: Form 1041, Pg 1, Ln 13 | G32: Form 1041, Pg 1, Ln 13 | H32: Form 1041, Pg 1, Ln 13 | I32: Form 1041, Pg 1, Ln 13 | J32: Form 1041, Pg 1, Ln 13 | K32: Form 1041, Pg 1, Ln 13 | L32: Form 1041, Pg 1, Ln 13 | M32: Form 1041, Pg 1, Ln 13 | N32: Form 1041, Pg 1, Ln 13 | O32: Form 1041, Pg 1, Ln 13 | P32: Form 1041, Pg 1, Ln 13 | Q32: Form 1041, Pg 1, Ln 13 | R32: Form 1041, Pg 1, Ln 13 | S32: Form 1041, Pg 1, Ln 13 | T32: Form 1041, Pg 1, Ln 13 | U32: Form 1041, Pg 1, Ln 13 | V32: Form 1041, Pg 1, Ln 13 | W32: Form 1041, Pg 1, Ln 13 | X32: Form 1041, Pg 1, Ln 13 | Y32: Form 1041, Pg 1, Ln 13 | Z32: Form 1041, Pg 1, Ln 13
A33: 29 | B33: Owner's Retirement | C33: Not Applicable | D33: 28 | E33: Year not supported | F33: Not Applicable | G33: Not Applicable | H33: Not Applicable | I33: Not Applicable | J33: Not Applicable | K33: Not Applicable | L33: Not Applicable | M33: Not Applicable | N33: Not Applicable | O33: Not Applicable | P33: Not Applicable | Q33: Not Applicable | R33: Not Applicable | S33: Not Applicable | T33: Not Applicable | U33: Not Applicable | V33: Not Applicable | W33: Not Applicable | X33: Not Applicable | Y33: Not Applicable | Z33: Not Applicable
A34: 30 | B34: Owner's Health Ins | C34: Not Applicable | D34: 29 | E34: Year not supported | F34: Not Applicable | G34: Not Applicable | H34: Not Applicable | I34: Not Applicable | J34: Not Applicable | K34: Not Applicable | L34: Not Applicable | M34: Not Applicable | N34: Not Applicable | O34: Not Applicable | P34: Not Applicable | Q34: Not Applicable | R34: Not Applicable | S34: Not Applicable | T34: Not Applicable | U34: Not Applicable | V34: Not Applicable | W34: Not Applicable | X34: Not Applicable | Y34: Not Applicable | Z34: Not Applicable
A35: 31 | B35: Owner's Life Ins | C35: Not Applicable | D35: 30 | E35: Year not supported | F35: Not Applicable | G35: Not Applicable | H35: Not Applicable | I35: Not Applicable | J35: Not Applicable | K35: Not Applicable | L35: Not Applicable | M35: Not Applicable | N35: Not Applicable | O35: Not Applicable | P35: Not Applicable | Q35: Not Applicable | R35: Not Applicable | S35: Not Applicable | T35: Not Applicable | U35: Not Applicable | V35: Not Applicable | W35: Not Applicable | X35: Not Applicable | Y35: Not Applicable | Z35: Not Applicable
A36: 32 | B36: Deprec: §1245 & §1250 | C36: 4797, Part III, Ln 22 | D36: 31 | E36: Year not supported | F36: 4797, Part III, Ln 22 | G36: 4797, Part III, Ln 22 | H36: 4797, Part III, Ln 22 | I36: 4797, Part III, Ln 22 | J36: 4797, Part III, Ln 22 | K36: 4797, Part III, Ln 22 | L36: 4797, Part III, Ln 22 | M36: 4797, Part III, Ln 22 | N36: 4797, Part III, Ln 22 | O36: 4797, Part III, Ln 22 | P36: 4797, Part III, Ln 22 | Q36: 4797, Part III, Ln 22 | R36: 4797, Part III, Ln 22 | S36: 4797, Part III, Ln 22 | T36: 4797, Part III, Ln 22 | U36: 4797, Part III, Ln 22 | V36: 4797, Part III, Ln 22 | W36: 4797, Part III, Ln 22 | X36: 4797, Part III, Ln 22 | Y36: 4797, Part III, Ln 22 | Z36: 4797, Part III, Ln 22
A37: 33 | B37: Total gain: §1245 & §1250 | C37: 4797, Part III, Ln 24 | D37: 32 | E37: Year not supported | F37: 4797, Part III, Ln 24 | G37: 4797, Part III, Ln 24 | H37: 4797, Part III, Ln 24 | I37: 4797, Part III, Ln 24 | J37: 4797, Part III, Ln 24 | K37: 4797, Part III, Ln 24 | L37: 4797, Part III, Ln 24 | M37: 4797, Part III, Ln 24 | N37: 4797, Part III, Ln 24 | O37: 4797, Part III, Ln 24 | P37: 4797, Part III, Ln 24 | Q37: 4797, Part III, Ln 24 | R37: 4797, Part III, Ln 24 | S37: 4797, Part III, Ln 24 | T37: 4797, Part III, Ln 24 | U37: 4797, Part III, Ln 24 | V37: 4797, Part III, Ln 24 | W37: 4797, Part III, Ln 24 | X37: 4797, Part III, Ln 24 | Y37: 4797, Part III, Ln 24 | Z37: 4797, Part III, Ln 24
A38: 34 | B38: Smaller of ln 13 or 14 | D38: 33
A39: 35 | B39: Ordinary Inc on §1250 | C39: =HLOOKUP($C$2,$E$5:$Z$255,$A39,FALSE) -> 4797, Part III, Ln 26g | D39: 34 | E39: Year not supported | F39: 4797, Part III, Ln 26g | G39: 4797, Part III, Ln 26g | H39: 4797, Part III, Ln 26g | I39: 4797, Part III, Ln 26g | J39: 4797, Part III, Ln 26g | K39: 4797, Part III, Ln 26g | L39: 4797, Part III, Ln 26g | M39: 4797, Part III, Ln 26g | N39: 4797, Part III, Ln 26g | O39: 4797, Part III, Ln 26g | P39: 4797, Part III, Ln 26g | Q39: 4797, Part III, Ln 26g | R39: 4797, Part III, Ln 26g | S39: 4797, Part III, Ln 26g | T39: 4797, Part III, Ln 26g | U39: 4797, Part III, Ln 26g | V39: 4797, Part III, Ln 26g | W39: 4797, Part III, Ln 26g | X39: 4797, Part III, Ln 26g | Y39: 4797, Part III, Ln 26g | Z39: 4797, Part III, Ln 26g
A40: 36
A41: 37 | B41: Worksheet References 1065
A42: 38 | B42: Federal Income | C42: =HLOOKUP($C$2,$E$5:$Z$255,$A42,FALSE) -> Form 1065, Pg 6, Analysis of Net Income, Ln 1 | D42: 1 | E42: Year not supported | F42: Form 1065, Pg 4, Analysis of Net Income, Ln 1 | G42: Form 1065, Pg 4, Analysis of Net Income, Ln 1 | H42: Form 1065, Pg 4, Analysis of Net Income, Ln 1 | I42: Form 1065, Pg 4, Analysis of Net Income, Ln 1 | J42: Form 1065, Pg 5, Analysis of Net Income, Ln 1 | K42: Form 1065, Pg 5, Analysis of Net Income, Ln 1 | L42: Form 1065, Pg 5, Analysis of Net Income, Ln 1 | M42: Form 1065, Pg 5, Analysis of Net Income, Ln 1 | N42: Form 1065, Pg 5, Analysis of Net Income, Ln 1 | O42: Form 1065, Pg 5, Analysis of Net Income, Ln 1 | P42: Form 1065, Pg 5, Analysis of Net Income, Ln 1 | Q42: Form 1065, Pg 5, Analysis of Net Income, Ln 1 | R42: Form 1065, Pg 5, Analysis of Net Income, Ln 1 | S42: Form 1065, Pg 5, Analysis of Net Income, Ln 1 | T42: Form 1065, Pg 5, Analysis of Net Income, Ln 1 | U42: Form 1065, Pg 5, Analysis of Net Income, Ln 1 | V42: Form 1065, Pg 5, Analysis of Net Income, Ln 1 | W42: Form 1065, Pg 5, Analysis of Net Income, Ln 1 | X42: Form 1065, Pg 5, Analysis of Net Income, Ln 1 | Y42: Form 1065, Pg 6, Analysis of Net Income, Ln 1 | Z42: Form 1065, Pg 6, Analysis of Net Income, Ln 1
